Workbook

Sheet Title Page
A1: U.S. EPA Office of Ground Water and Drinking Water
A2: Work Breakdown Structure (WBS) Model for MULTI-STAGE BUBBLE AERATION Treatment
A3: Release Date: March 2023
A4: · The primary purpose of this model is to assist EPA in estimating national compliance costs.
A5: · As such, the costs are intended to be representative of the central tendency of typical facilities.
A6: · The default settings, however, do not account for all of the site-specific factors that could affect the cost of any given individual facility or project.
A7: · Still, other uses of the model might be reasonable if sufficient care is taken by the user to account for site- or project-specific factors.
A8: · The model results are point estimates shown to the nearest $1, but this precision is not meant to imply that the results are accurate to $1.
A9: · Instead, users should review all documentation, modify inputs/assumptions as appropriate to their specific purpose, and form their own informed opinions about the accuracy and suitability of the results.
A10: · Use of this model requires Excel 2007 or later.
A11: · The model should be opened as Read-only, so that any changes you make are saved under a new file name.
A12: · To function properly, macros ("active content") must be enabled. If a security warning appears, click "options" and "enable this content."
A13: · For further information see the following document distributed with this file:
A14: USEPA. 2023. Work Breakdown Structure-Based Cost Model for MULTI-STAGE BUBBLE AERATION Drinking Water Treatment. Office of Water.
A15: · To begin using the model, go to the INPUT sheet.

Sheet Index
A1: INDEX
A2: This page provides an index to all user-adjustable inputs and assumptions. Click on a variable name to go directly to the adjustable cells.
A4: User-adjustable Input or Assumption | B4: Variable Name and Link
A5: Access space per pump/blower for custom designed systems | B5: space_pumps_cust
A6: Access space per pump/blower for pre-engineered packages | B6: space_pumps_pre
A7: Additional blower head above water depth | B7: add_blow_head
A8: Additional building after… | B8: add_2nd_building
A9: Administrative LOE as a percent of average technical labor | B9: Clerical_percent
A10: Air conditioning EER | B10: EER
A11: Always include NEPA compliance costs? | B11: include_NEPA
A12: Annual cooling degree days | B12: cool_DD
A13: Annual heating degree days | B13: heat_DD
A14: Average Flow | B14: average_flow_I
A15: Basin excavation depth above which deeper boreholes are needed | B15: deep_bore_need
A16: Bedding depth below pipe | B16: bedding_depth
A17: Bedding depth surrounding the pipe | B17: bedding_pct
A18: Blower efficiency | B18: blower_effcy
A19: Blower safety factor | B19: blower_safety_factor
A20: Borehole depth (package systems) | B20: bore_depth_p
A21: Borehole depth for deep basins | B21: bore_depth_max
A22: Borehole depth for shallow basins | B22: bore_depth_min
A23: Borehole needed every x square feet | B23: hole_per_sf
A24: Boreholes per job | B24: hole_per_job
A25: Buffer space around other sides of buildings | B25: non_fire_buffer
A26: Builder's risk insurance percentage | B26: br_ins_pct
A27: Building height | B27: Building_height
A28: Bypass pipe length multiplier | B28: bp_pipe_mult
A29: City index | B29: City_Index
A30: City Index for Total O&M Cost | B30: OM_city_index
A31: Coefficient of passive pressure | B31: Coeff_Kp
A32: Computer workstations per x operators | B32: workstation_ratio
A33: Concrete pad thickness | B33: pad_thick
A34: Concrete pad thickness for small systems | B34: pad_thick_small
A35: Concrete thickness | B35: conc_thick
A36: Contaminant removal input type | B36: Units_rem_I
A37: Contaminant-specific off-gas table | B37: contaminant_lookup
A38: Cooling table for buildings 500 square feet or greater | B38: cooling_table
A39: Cooling table for buildings less than 500 ft2 | B39: cooling_table_shed
A40: Cooling ventilation/infiltration load | B40: cool_viload
A41: Cost for parts & maintenance for pumps and blowers | B41: pump_maint_rate
A42: Default operating temperature | B42: T_default
A43: Density of air | B43: PA
A44: Design Flow | B44: design_flow_I
A45: Design safety factor for standby power | B45: std_safety_factor
A46: Desired treated water pH or Not required | B46: pH_f
A47: Diffuser access space | B47: diffuser_access_space
A48: Drive controllers per blower | B48: S_blower
A49: Drive controllers per booster pump | B49: S_booster_pump
A50: Drive controllers per catalytic oxidizer | B50: S_CO
A51: Drive controllers per thermal oxidizer | B51: S_TO
A52: Efficiency of pumps | B52: pump_effcy
A53: Electric resistance heating efficiency | B53: resist_eff
A54: Electrical percentage | B54: elect_pct
A55: Engineering percentage for large systems | B55: eng_pct_large
A56: Engineering percentage for medium systems | B56: eng_pct_medium
A57: Engineering percentage for small systems | B57: eng_pct_small
A58: Ethernet modules | B58: plc_ethernet
A59: Excess air required | B59: CO_ex_air
A60: Excess air required | B60: TO_ex_air
A61: External air piping length multiplier | B61: air_pipe_add
A62: External off-gas piping length multiplier | B62: offgas_pipe_mult
A63: Financing percentage | B63: finance_pct
A64: Financing percentage for small systems | B64: finance_pct_small
A65: Fire truck buffer requirements | B65: fire_buffer
A66: Flow meters for air line per contact basin | B66: fm_air
A67: Flow meters for influent and treated water line | B67: tot_fm_in
A68: Flow meters for process line per contact basin | B68: fm_proc
A69: For instruments (includes calibration) | B69: uloe_inst_maint
A70: For pumps | B70: uloe_pump_maint
A71: For valves | B71: uloe_valve_maint
A72: Freeboard | B72: freeboard
A73: Frost depth | B73: frost
A74: GAC Density | B74: GAC_density
A75: Heat pump cooling mode EER | B75: hp_EER
A76: Heat pump heating coefficient of performance | B76: COP
A77: Heating Oil Heat Content | B77: diesel_heat_content
A78: Heating table for buildings 500 square feet or greater | B78: heating_table
A79: Heating table for buildings less than 500 ft2 | B79: heating_table_shed
A80: Heating ventilation/infiltration load | B80: heat_viload
A81: High/Low alarms per contact basin | B81: alarm_basin
A82: Hours per media changeout | B82: uloe_throwaway
A83: I/O port table | B83: port_table
A84: Include architectural fee for small systems? | B84: include_arch_small
A85: Include architectural fee? | B85: include_arch
A86: Include concrete pad in total capital cost? | B86: include_pad
A87: Include construction management cost for pre-engineered packages? | B87: include_cm_pre
A88: Include construction management cost? | B88: include_cm
A89: Include contingency costs for high cost systems? | B89: include_conting_high
A90: Include contingency costs for low cost systems? | B90: include_conting_low
A91: Include contingency costs for medium cost systems? | B91: include_conting_medium
A92: Include cooling in standby power | B92: need_cool
A93: Include geotechnical costs for high cost custom systems? | B93: include_geo_high_g
A94: Include geotechnical costs for high cost systems? | B94: include_geo_high
A95: Include geotechnical costs for low cost custom systems? | B95: include_geo_low_g
A96: Include geotechnical costs for low cost systems? | B96: include_geo_low
A97: Include geotechnical costs for medium cost custom systems? | B97: include_geo_medium_g
A98: Include geotechnical costs for medium cost systems? | B98: include_geo_medium
A99: Include heating in standby power | B99: need_heat
A100: Include performance bond cost? | B100: include_bond
A101: Include permit costs? | B101: include_permits
A102: Include pilot study costs? | B102: include_pilot
A103: Include sitework costs? | B103: include_sitework
A104: Include standby power costs for small systems? | B104: include_standby_small
A105: Include standby power costs? | B105: include_standby
A106: Include yard piping costs? | B106: include_yardpipe
A107: Influent and treated water pipe length multiplier | B107: in_out_pipe_mult
A108: Influent pH or Not required | B108: pH_i
A109: Influent water alkalinity or Not required | B109: alk_I
A110: Influent water concentration | B110: influent_conc_I
A111: Installation, Transportatation, and O&P percentage | B111: inst_pct
A112: Instrumentation and control percentage | B112: i_c_pct
A113: Legal percentage | B113: legal_pct
A114: Lighting power per sf, high-quality buildings | B114: lighting_power_high
A115: Lighting power per sf, low-quality buildings and sheds | B115: lighting_power_low
A116: Lighting power per sf, mid-quality buildings | B116: lighting_power_mid
A117: Linear feet bored per day | B117: hole_per_day
A118: Makeup carbon for off-site regeneration | B118: makeup_rate_off
A119: Mangerial LOE as a percent of average technical labor | B119: Manager_percent
A120: Maximum access space per vessel or tank for custom designed systems | B120: max_space_vessels_cust
A121: Maximum access space per vessel or tank for pre-engineered systems | B121: max_space_vessels_pre
A122: Maximum air surface loading intensity | B122: max_air_load
A123: Maximum basin length (custom design) | B123: max_length_custom
A124: Maximum basin length (pre-engineered package) | B124: max_length_package
A125: Mid-efficiency oil furnace efficiency | B125: diesel_eff
A126: Miles to non-hazardous solid waste disposal site | B126: non_haz_miles
A127: Minimum average flow as percentage of design | B127: min_avg_flow
A128: Minimum basin length to width ratio | B128: max_ratio
A129: Minimum number of boreholes | B129: min_holes
A130: Minimum standby power generator size | B130: min_standby
A131: Minimum trench depth to top of pipe | B131: min_trench_depth
A132: Minutes per 100 sf per day | B132: uloe_fp
A133: Minutes per instrument per day | B133: uloe_inst
A134: Minutes per pump, blower, and offgas unit per day | B134: uloe_pump
A135: Minutes per valve per week | B135: uloe_valve
A136: Miscellaneous allowance percentage | B136: misc_pct
A137: Mobilization percentage for large systems | B137: mob_pct_large
A138: Mobilization percentage for medium systems | B138: mob_pct_medium
A139: Mobilization percentage for pre-engineered packages | B139: mob_pct_pre
A140: Mobilization percentage for small systems | B140: mob_pct_small
A141: Natural gas condensing furnace efficiency | B141: gas_eff
A142: Natural gas non-condensing furnace efficiency | B142: gas_non_eff
A143: Number of check valves on bypass line | B143: tot_bp_chv
A144: Number of check valves on process line per booster pump | B144: proc_chv_pump
A145: Number of check valves on treated water line | B145: tot_in_chv
A146: Number of CPUs | B146: plc_cpu
A147: Number of electrical enclosures | B147: elec_encl
A148: Number of manual valves on influent and treated water line | B148: tot_man_valves
A149: Number of mechanical ventilation days per year 2nd building (large system) | B149: fan_days_build2_large
A150: Number of mechanical ventilation days per year 2nd building (medium system) | B150: fan_days_build2_medium
A151: Number of mechanical ventilation days per year 2nd building (small system) | B151: fan_days_build2_small
A152: Number of mechanical ventilation days per year first building (large system) | B152: fan_days_build1_large
A153: Number of mechanical ventilation days per year first building (medium system) | B153: fan_days_build1_medium
A154: Number of mechanical ventilation days per year first building (small system) | B154: fan_days_build1_small
A155: Number of pressure gauges per blower | B155: gauges_blower
A156: Number of redundant basins | B156: NRD_tanks
A157: Number of redundant blowers | B157: NRD_blowers
A158: Number of redundant blowers for systems with only one basin | B158: NRD_blowers_1
A159: Number of redundant pumps | B159: NRD_pumps
A160: Number of shifts | B160: shifts_day
A161: Office space per employee | B161: space_office
A162: Office space per employee | B162: space_office_small
A163: Operating temperature | B163: T_I
A164: Operator interfaces | B164: plc_interface
A165: Overexcavation for concrete basins | B165: overexcavate
A166: Percent of Total Flow that is Bypassed | B166: bp_pct
A167: pH_meters | B167: tot_ph
A168: Pilot air intensity or Not required | B168: pilot_phi
A169: Pilot rate constant or Not required | B169: pilot_k
A170: Pipe length from water source to the boundary of the 10 foot buffer | B170: yard_in
A171: Pipe length the boundary of the 10 foot buffer to distribution network | B171: yard_out
A172: Pressure drop across the fan | B172: Fan_pressure_drop
A173: Printers per x computer workstations | B173: printer_ratio
A174: Process pipe length multiplier | B174: proc_pipe_mult
A175: Pump head | B175: pump_head
A176: Quiescent chamber length as a proportion of stage length | B176: qchamber_ratio
A177: Recording operating paramenters for automated systems | B177: uloe_inst_auto
A178: Recuperative system heat recovery | B178: CO_rec_eff
A179: Recuperative system heat recovery | B179: TO_rec_eff
A180: Reduction factor | B180: Reduction
A181: Redundant CO units | B181: NRD_CO
A182: Redundant GAC beds | B182: NRD_GAC
A183: Redundant TO units | B183: NRD_TO
A184: Regenerative system heat recovery | B184: CO_reg_eff
A185: Regenerative system heat recovery | B185: TO_reg_eff
A186: R-value for ceilings | B186: R_ceiling
A187: R-value for walls | B187: R_wall
A188: Safety factor for pumps | B188: pump_safety_factor
A189: Sales tax percentage | B189: tax_pct
A190: Soil density | B190: soil_dens
A191: Specific heat of air | B191: cpa
A192: Standard oil furnace efficiency | B192: diesel_non_eff
A193: Technology complexity factor | B193: complexity
A194: Technology footprint above which boreholes are needed | B194: bore_need
A195: Test pit depth | B195: pit_depth
A196: Test pit length | B196: pit_length
A197: Test pit width | B197: pit_width
A198: Treated water concentration or Percent removal or Not required | B198: P_REM_I
A199: Trench inside angle | B199: trench_angle
A200: UPSs | B200: ups
A201: Use curve fit for costs | B201: curve
... 4 more rows

Sheet INPUT
A1: MULTI-STAGE BUBBLE AERATION SYSTEM DESIGN AND COST INPUT
E3: STEP 1
E4: Select Contaminant | H4: =IF(AND(contam>2,contam<16),"For VOCs, standard designs are available up to 1 MGD only, because information on using MSBA for these contaminants in larger systems is limited",IF(contam=16,"For other contaminants, the buttons shown in Step 2 will enter flows only, and clear all other inputs. Advanced users can change this behavior by entering inputs on the Standard Inputs sheet","")) -> For VOCs, standard designs are available up to 1 MGD only, because information on using MSBA for these contaminants in larger systems is limited
E6: STEP 2: | H6: =IF(OR('Standard Inputs'!AK9,'Standard Inputs'!AK17,'Standard Inputs'!AK25,'Standard Inputs'!AK33,'Standard Inputs'!AK41,'Standard Inputs'!AK49,'Standard Inputs'!AK57,'Standard Inputs'!AK65,'Standard Inputs'!AK73,'Standard Inputs'!AK81,'Standard Inputs'!AK89,'Standard Inputs'!AK97,'Standard Inputs'!AK105,'Standard Inputs'!AK113,'Standard Inputs'!AK121,'Standard Inputs'!AK129),"<- Using this design",IF(OR('Standard Inputs'!AL9,'Standard Inputs'!AL17,'Standard Inputs'!AL25,'Standard Inputs'!AL33,'Standard Inputs'!AL41,'Standard Inputs'!AL49,'Standard Inputs'!AL57,'Standard Inputs'!AL65,'Standard Inputs'!AL73,'Standard Inputs'!AL81,'Standard Inputs'!AL89,'Standard Inputs'!AL105,'Standard Inputs'!AL113,'Standard Inputs'!AL121,'Standard Inputs'!AL129),"<- You modified this design","")) -> <- Using this design | I6: The standard design buttons are for EPA's use in estimating national costs, but other users might find them useful as a starting point. See documentation for more information
E7: Select one of the eight standard designs at right OR select "CLEAR FOR MANUAL ENTRY" | H7: =IF(OR('Standard Inputs'!AK10,'Standard Inputs'!AK18,'Standard Inputs'!AK26,'Standard Inputs'!AK34,'Standard Inputs'!AK42,'Standard Inputs'!AK50,'Standard Inputs'!AK58,'Standard Inputs'!AK66,'Standard Inputs'!AK74,'Standard Inputs'!AK82,'Standard Inputs'!AK90,'Standard Inputs'!AK98,'Standard Inputs'!AK106,'Standard Inputs'!AK114,'Standard Inputs'!AK122,'Standard Inputs'!AK130),"<- Using this design",IF(OR('Standard Inputs'!AL10,'Standard Inputs'!AL18,'Standard Inputs'!AL26,'Standard Inputs'!AL34,'Standard Inputs'!AL42,'Standard Inputs'!AL50,'Standard Inputs'!AL58,'Standard Inputs'!AL66,'Standard Inputs'!AL74,'Standard Inputs'!AL82,'Standard Inputs'!AL90,'Standard Inputs'!AL106,'Standard Inputs'!AL114,'Standard Inputs'!AL122,'Standard Inputs'!AL130),"<- You modified this design","")) -> 
H8: =IF(OR('Standard Inputs'!AK11,'Standard Inputs'!AK19,'Standard Inputs'!AK27,'Standard Inputs'!AK35,'Standard Inputs'!AK43,'Standard Inputs'!AK51,'Standard Inputs'!AK59,'Standard Inputs'!AK67,'Standard Inputs'!AK75,'Standard Inputs'!AK83,'Standard Inputs'!AK91,'Standard Inputs'!AK99,'Standard Inputs'!AK107,'Standard Inputs'!AK115,'Standard Inputs'!AK123,'Standard Inputs'!AK131),"<- Using this design",IF(OR('Standard Inputs'!AL11,'Standard Inputs'!AL19,'Standard Inputs'!AL27,'Standard Inputs'!AL35,'Standard Inputs'!AL43,'Standard Inputs'!AL51,'Standard Inputs'!AL59,'Standard Inputs'!AL67,'Standard Inputs'!AL75,'Standard Inputs'!AL83,'Standard Inputs'!AL91,'Standard Inputs'!AL107,'Standard Inputs'!AL115,'Standard Inputs'!AL123,'Standard Inputs'!AL131),"<- You modified this design","")) -> 
H9: =IF(OR('Standard Inputs'!AK12,'Standard Inputs'!AK20,'Standard Inputs'!AK28,'Standard Inputs'!AK36,'Standard Inputs'!AK44,'Standard Inputs'!AK52,'Standard Inputs'!AK60,'Standard Inputs'!AK68,'Standard Inputs'!AK76,'Standard Inputs'!AK84,'Standard Inputs'!AK92,'Standard Inputs'!AK100,'Standard Inputs'!AK108,'Standard Inputs'!AK116,'Standard Inputs'!AK124,'Standard Inputs'!AK132),"<- Using this design",IF(OR('Standard Inputs'!AL12,'Standard Inputs'!AL20,'Standard Inputs'!AL28,'Standard Inputs'!AL36,'Standard Inputs'!AL44,'Standard Inputs'!AL52,'Standard Inputs'!AL60,'Standard Inputs'!AL68,'Standard Inputs'!AL76,'Standard Inputs'!AL84,'Standard Inputs'!AL92,'Standard Inputs'!AL108,'Standard Inputs'!AL116,'Standard Inputs'!AL124,'Standard Inputs'!AL132),"<- You modified this design","")) -> 
H10: =IF(OR('Standard Inputs'!AK13,'Standard Inputs'!AK21,'Standard Inputs'!AK29,'Standard Inputs'!AK37,'Standard Inputs'!AK45,'Standard Inputs'!AK53,'Standard Inputs'!AK61,'Standard Inputs'!AK69,'Standard Inputs'!AK77,'Standard Inputs'!AK85,'Standard Inputs'!AK93,'Standard Inputs'!AK101,'Standard Inputs'!AK109,'Standard Inputs'!AK117,'Standard Inputs'!AK125,'Standard Inputs'!AK133),"<- Using this design",IF(OR('Standard Inputs'!AL13,'Standard Inputs'!AL21,'Standard Inputs'!AL29,'Standard Inputs'!AL37,'Standard Inputs'!AL45,'Standard Inputs'!AL53,'Standard Inputs'!AL61,'Standard Inputs'!AL69,'Standard Inputs'!AL77,'Standard Inputs'!AL85,'Standard Inputs'!AL93,'Standard Inputs'!AL109,'Standard Inputs'!AL117,'Standard Inputs'!AL125,'Standard Inputs'!AL133),"<- You modified this design","")) -> 
H11: =IF(OR('Standard Inputs'!AK14,'Standard Inputs'!AK22,'Standard Inputs'!AK30,'Standard Inputs'!AK38,'Standard Inputs'!AK46,'Standard Inputs'!AK54,'Standard Inputs'!AK62,'Standard Inputs'!AK70,'Standard Inputs'!AK78,'Standard Inputs'!AK86,'Standard Inputs'!AK94,'Standard Inputs'!AK102,'Standard Inputs'!AK110,'Standard Inputs'!AK118,'Standard Inputs'!AK126,'Standard Inputs'!AK134),"<- Using this design",IF(OR('Standard Inputs'!AL14,'Standard Inputs'!AL22,'Standard Inputs'!AL30,'Standard Inputs'!AL38,'Standard Inputs'!AL46,'Standard Inputs'!AL54,'Standard Inputs'!AL62,'Standard Inputs'!AL70,'Standard Inputs'!AL78,'Standard Inputs'!AL86,'Standard Inputs'!AL94,'Standard Inputs'!AL110,'Standard Inputs'!AL118,'Standard Inputs'!AL126,'Standard Inputs'!AL134),"<- You modified this design","")) -> 
H12: =IF(OR('Standard Inputs'!AK15,'Standard Inputs'!AK23,'Standard Inputs'!AK31,'Standard Inputs'!AK39,'Standard Inputs'!AK47,'Standard Inputs'!AK55,'Standard Inputs'!AK63,'Standard Inputs'!AK71,'Standard Inputs'!AK79,'Standard Inputs'!AK87,'Standard Inputs'!AK95,'Standard Inputs'!AK103,'Standard Inputs'!AK111,'Standard Inputs'!AK119,'Standard Inputs'!AK127,'Standard Inputs'!AK135),"<- Using this design",IF(OR('Standard Inputs'!AL15,'Standard Inputs'!AL23,'Standard Inputs'!AL31,'Standard Inputs'!AL39,'Standard Inputs'!AL47,'Standard Inputs'!AL55,'Standard Inputs'!AL63,'Standard Inputs'!AL71,'Standard Inputs'!AL79,'Standard Inputs'!AL87,'Standard Inputs'!AL95,'Standard Inputs'!AL111,'Standard Inputs'!AL119,'Standard Inputs'!AL127,'Standard Inputs'!AL135),"<- You modified this design","")) -> 
H13: =IF(OR('Standard Inputs'!AK16,'Standard Inputs'!AK24,'Standard Inputs'!AK32,'Standard Inputs'!AK40,'Standard Inputs'!AK48,'Standard Inputs'!AK56,'Standard Inputs'!AK64,'Standard Inputs'!AK72,'Standard Inputs'!AK80,'Standard Inputs'!AK88,'Standard Inputs'!AK96,'Standard Inputs'!AK104,'Standard Inputs'!AK112,'Standard Inputs'!AK120,'Standard Inputs'!AK128,'Standard Inputs'!AK136),"<- Using this design",IF(OR('Standard Inputs'!AL16,'Standard Inputs'!AL24,'Standard Inputs'!AL32,'Standard Inputs'!AL40,'Standard Inputs'!AL48,'Standard Inputs'!AL56,'Standard Inputs'!AL64,'Standard Inputs'!AL72,'Standard Inputs'!AL80,'Standard Inputs'!AL88,'Standard Inputs'!AL96,'Standard Inputs'!AL112,'Standard Inputs'!AL120,'Standard Inputs'!AL128,'Standard Inputs'!AL136),"<- You modified this design","")) -> 
H14: =IF(COUNTIF(H6:H13,"")=8,"Using a manual design","") -> 
B15: Used? | C15: Valid Input? | D15: Invalid Reason
E16: STEP 3:
E17: (Optional for standard designs) | G17: =IF(input_complete,IF('Standard Inputs'!AK139,"Input Complete -- Results Ready","Input Complete -- Press 'Generate Results'"),"Input Incomplete -- Check for Error Messages Below") -> Input Complete -- Results Ready
C18: =AND(C33,C65,C75,C92) -> TRUE | E18: Enter or change values in the gold and blue cells below, under "Manual Inputs"
E20: STEP 4: | I20: ="Resulting Costs (in year "&TEXT(current_year_cl,0)&" dollars, see OUTPUT sheet for details)" -> Resulting Costs (in year 2021 dollars, see OUTPUT sheet for details)
I21: ="Direct Capital Cost: " & IF(input_status<>"input complete -- results ready",input_status,IF(Missing_Cost,"Missing cost!",IF(cost_buildup_error,"Cost buildup error!",IF(ISERROR(direct_cost),"Calculation error!",TEXT(direct_cost,"$0,0"))))) -> Direct Capital Cost: $78,998
E22: =IF(G17="input complete -- results ready","Results are ready (no need to click button)","Click here to generate results -->") -> Results are ready (no need to click button) | I22: ="Total Capital Cost: " & IF(input_status<>"input complete -- results ready",input_status,IF(Missing_Cost,"Missing cost!",IF(cost_buildup_error,"Cost buildup error!",IF(ISERROR(system_cost),"Calculation error!",TEXT(system_cost,"$0,0"))))) -> Total Capital Cost: $133,901
I23: ="Annualized Capital Cost: "&IF(input_status<>"Input Complete -- Results Ready",input_status,IF(Missing_Cost,"Missing Price!",IF(cost_buildup_error,"Cost buildup error!",IF(ISERROR(Annualized_Capital_Cost),"Calculation error!",TEXT(Annualized_Capital_Cost,"$0,0")&" per year"&" (over "&useful_life&" years at "&Discount_rate*100&"%)")))) -> Annualized Capital Cost: $13,846 per year (over 16.7 years at 7%)
I24: ="Annual O&M Cost: "&IF(input_status<>"input complete -- results ready",input_status,IF(ISERROR(om_cost),"Calculation error!",TEXT(om_cost,"$0,0")&" per year")) -> Annual O&M Cost: $7,561 per year
E25: MANUAL INPUTS | I25: ="Total Annualized Cost: "&IF(input_status<>"input complete -- results ready",input_status,IF(Missing_Cost,"Missing Price!",IF(cost_buildup_error,"Cost buildup error!",IF(ISERROR(Annualized_Cost),"Calculation error!",TEXT(Annualized_Cost,"$0,0")&" per year ("&TEXT(TAC_pct_cap,"0%")&" capital, "&TEXT(TAC_pct_OM,"0%")&" O&M)")))) -> Total Annualized Cost: $21,407 per year (65% capital, 35% O&M)
E26: Cells in gold are required; cells in blue are optional | I26: =IF(input_status="Input Incomplete -- check for error messages below","",IF(Missing_Cost,"A price is not available for at least one required component. See Use? column on OUTPUT sheet.",IF(cost_buildup_error,"There is an Excel error in the price for at least one component. Please see the Use? column on OUTPUT sheet.",""))) -> 
H27: Select units
E28: Design Flow | F28: design_flow_I | G28: 0.03 | H28: MGD
E29: Average Flow | F29: average_flow_I | G29: 0.007 | H29: MGD
E30: For information:
E31: Treatment system design flow | G31: =IF(ISERROR(design_flow),"",IF(df_units="gpm",design_flow_rate, design_flow)) -> 0.03 | H31: =IF(df_units="","",df_units) -> MGD
E32: Bypass design flow | G32: =IF(ISERROR(design_flow),"",IF(df_units="gpm",bp_flow_rate, bp_flow_rate*60*24/10^6)) -> 0 | H32: =IF(df_units="","",df_units) -> MGD | I32: ="Current bypass percentage is "&TEXT(bp_pct,"0%")&". Go to Critical Design Assumptions to change this value." -> Current bypass percentage is 0%. Go to Critical Design Assumptions to change this value.
C33: =IF(OR(df_units="",af_units=""),FALSE,IF(OR(average_flow<min_avg_flow * design_flow,average_flow>design_flow),FALSE,IF(OR(design_flow_I=0,average_flow_I=0),FALSE,TRUE))) -> TRUE | D33: =IF(OR(df_units="",af_units=""),"Choose units for design and average flow",IF(average_flow>design_flow,"The average flow should not be greater than the design flow",IF(average_flow<design_flow*min_avg_flow,"The average flow must be at least " & min_avg_flow & " times design flow",IF(OR(design_flow_I=0,average_flow_I=0),"Input incomplete","OK")))) -> OK | H33: =IF(C33,"Flow Input OK",D33) -> Flow Input OK | I33: Adjust bypass percentage
C35: =NOT(influent_conc="") -> TRUE | D35: =IF(C35,"OK","Removal Inputs Incomplete") -> OK | E35: Influent water concentration | F35: influent_conc_I | G35: 5 | H35: =IF(contam=1,"pCi/L",IF(contam=2,"mg/L","ug/L")) -> ug/L | I35: =IF(Units_rem=3,"Optional. Enter a value to use a measurment instead of the theoretical maximum CO2"&IF(ISERROR(CO2_max),""," of "&TEXT(CO2_max,"0.00")&" mg/L"),"") -> 
C36: =IF(Units_rem_I="",FALSE,TRUE) -> TRUE | D36: OK | E36: Contaminant removal input type | F36: Units_rem_I | G36: treated water concentration | H36: <--- pick one
B37: =IF(Units_rem=3,FALSE,TRUE) -> TRUE | C37: =IF(NOT(B37),TRUE,IF(P_REM_I="",FALSE,IF(AND(Units_rem=1,P_REM_I>=1),FALSE,IF(AND(Units_rem=2,P_REM_I>=influent_conc),FALSE,TRUE)))) -> TRUE | D37: =IF(C37,"OK",IF(P_REM_I="","Removal Inputs Incomplete",IF(AND(Units_rem=1,P_REM_I>=1),"Set percent removal to a decimal greater than 0 and less than 1",IF(AND(Units_rem=2,P_REM_I>=influent_conc),"Set treated water concentration less than influent concentration",TRUE)))) -> OK | E37: =IF(NOT(B37),"Not required",IF(Units_rem=1,"Percent removal ","Treated water concentration")) -> Treated water concentration | F37: P_REM_I | G37: 0.5 | H37: =IF(NOT(B37),"not required",IF(Units_rem=1,"decimal between 0 and 1",IF(contam=1,"pCi/L",IF(contam=2,"mg/L","ug/L")))) -> ug/L
B38: =IF(Units_rem=3,TRUE,FALSE) -> FALSE | C38: =IF(NOT(B38),TRUE,IF(pH_i="",FALSE,TRUE)) -> TRUE | D38: =IF(C38,"OK","Removal Inputs Incomplete") -> OK | E38: =IF(NOT(B38),"Not required","Influent pH") -> Not required | F38: pH_i | H38: =IF(NOT(B38),"not required","SU") -> not required
B39: =IF(Units_rem=3,TRUE,FALSE) -> FALSE | C39: =IF(NOT(B39),TRUE,IF(pH_f="",FALSE,IF(pH_f<=pH_i,FALSE,TRUE))) -> TRUE | D39: =IF(C39,"OK",IF(pH_f="","Removal Inputs Incomplete",IF(pH_f<=pH_i,"Set desired treated water pH greater than influent pH","OK"))) -> OK | E39: =IF(NOT(B39),"Not required","Desired treated water pH") -> Not required | F39: pH_f | H39: =IF(NOT(B39),"not required","SU") -> not required
B40: =IF(Units_rem=3,TRUE,FALSE) -> FALSE | C40: =IF(NOT(B40),TRUE,IF(alk_I="",FALSE,TRUE)) -> TRUE | D40: =IF(C40,"OK","Removal Inputs Incomplete") -> OK | E40: =IF(NOT(B40),"Not required","Influent water alkalinity") -> Not required | F40: alk_I | H40: =IF(NOT(B40),"not required","mg/L as CaCO3") -> not required
C41: =NOT(T_I="") -> TRUE | D41: =IF(C41,"OK","Removal Inputs Incomplete") -> OK | E41: Operating temperature | F41: T_I | G41: 283 | H41: degrees Kelvin | I41: Equilibrium operating temperature. 283 degrees Kelvin (10 degrees centigrade) is typical of groundwater.
B42: =IF(contam=1,FALSE,TRUE) -> TRUE | C42: =IF(NOT(B42),TRUE,NOT(pilot_k="")) -> TRUE | D42: =IF(C42,"OK","Removal Inputs Incomplete") -> OK | E42: =IF(NOT(B42),"Not required","Pilot rate constant") -> Pilot rate constant | F42: pilot_k | G42: 0.17 | H42: =IF(NOT(B42),"not required","1/min") -> 1/min
B43: =IF(contam=1,FALSE,TRUE) -> TRUE | C43: =IF(NOT(B43),TRUE,NOT(pilot_phi="")) -> TRUE | D43: =IF(C43,"OK","Removal Inputs Incomplete") -> OK | E43: =IF(NOT(B43),"Not required","Pilot air intensity") -> Pilot air intensity | F43: pilot_phi | G43: 2.54 | H43: =IF(NOT(B43),"not required","cfm/cubic ft") -> cfm/cubic ft
B44: =IF(Units_rem=3,TRUE,FALSE) -> FALSE | C44: =IF(NOT(B44),TRUE,IF(NOT(AND($C$35:$C$41)),FALSE,IF(influent_conc>CO2_max,FALSE,TRUE))) -> TRUE | D44: =IF(NOT(B44),"OK",IF(NOT(AND($C$35:$C$41)),"Removal inputs incomplete",IF(influent_conc>CO2_max,"Influent carbon dioxide concentration exceeds theoretical maximum, based on influent pH and alkalinity","OK"))) -> OK | E44: For information:
B45: =IF(Units_rem=3,TRUE,FALSE) -> FALSE | C45: =IF(NOT(B45),TRUE,IF(NOT(AND($C$35:$C$41)),FALSE,IF(influent_conc>CO2_max,FALSE,TRUE))) -> TRUE | D45: =IF(NOT(B45),"OK",IF(NOT(AND($C$35:$C$41)),"",IF(influent_conc>CO2_max,"Adjust influent water chemistry to realistic values","OK"))) -> OK | E45: Influent concentration | G45: =IF(influent_conc="","",IF(influent_conc_I="",TEXT(influent_conc,"0.00"),influent_conc)) -> 5 | H45: =IF(contam=1,"pCi/L",IF(contam=2,"mg/L","ug/L")) -> ug/L | I45: =IF(Units_rem=3,"The maximum theoretical influent CO2 concentration is: "&IF(ISERROR(CO2_max),"",TEXT(CO2_max,"0.00")&" mg/L"),"") -> 
B46: =IF(contam=2,TRUE,FALSE) -> FALSE | C46: =IF(NOT(B46),TRUE,IF(NOT(AND($C$35:$C$41)),FALSE,IF(CO2_f<CO2_min,FALSE,TRUE))) -> TRUE | D46: =IF(NOT(B46),"OK",IF(NOT(AND($C$35:$C$41)),"Removal inputs incomplete",IF(CO2_f<CO2_min,"Target treated water carbon dioxide is less than theoretical minimum in equilibrium with the atmosphere","OK"))) -> OK | E46: =IF(Units_rem=2,"Treated water concentration","Target treated water concentration") -> Treated water concentration | G46: =IF(OR(influent_conc="",Units_rem_I=""),"",IF(Units_rem=1,influent_conc*(1-P_REM_I),IF(Units_rem=2,P_REM_I,IF(ISERROR(CO2_f),"",TEXT(CO2_f,"0.00"))))) -> 0.5 | H46: =IF(contam=1,"pCi/L",IF(contam=2,"mg/L","ug/L")) -> ug/L | I46: =IF(contam=2,"The theoretical minimum CO2 concentration in equilibrium with the atmosphere is: "&IF(ISERROR(CO2_min),"",TEXT(CO2_min,"0.00")&" mg/L"),"") -> 
B47: =IF(contam=2,TRUE,FALSE) -> FALSE | C47: =IF(NOT(B47),TRUE,IF(NOT(AND($C$35:$C$41)),FALSE,IF(CO2_f<CO2_min,FALSE,TRUE))) -> TRUE | D47: =IF(NOT(B47),"OK",IF(NOT(AND($C$35:$C$41)),"",IF(CO2_f<CO2_min,"Therefore, achieving the desired treated water pH is not feasible using carbon dioxide stripping","OK"))) -> OK | E47: ="Percent removal"&IF(Units_rem<>1," required","") -> Percent removal required | G47: =IF(target_p_rem="NA","",TEXT(target_p_rem,"0.0%")) -> 90.0% | I47: =IF(OR(contam<>2,NOT(bool_removal_inputs_ok)),"","Percent shown is absolute removal; removal of removable CO2, accounting for equilibrium with the atmosphere, is "&TEXT(Rem_removableCO2,"0.0%")) -> 
I48: =IF(Units_rem=3,"Percent removal required is an estimate only. Actual pH results may vary based on specific water chemistry","") -> 
C49: =AND(C35:C44,C46) -> TRUE | D49: =IF(C49,"OK",IF(NOT(C35),D35,IF(NOT(C36),D36,IF(NOT(C37),D37,IF(NOT(C38),D38,IF(NOT(C39),D39,IF(NOT(C40),D40,IF(NOT(C41),D41,IF(NOT(C42),D42,IF(NOT(C43),D43,IF(NOT(C44),D44,IF(NOT(C46),D46,"OK")))))))))))) -> OK | H49: =IF(C49,"Removal Inputs OK",IF(D49="Removal Inputs Incomplete","Complete optional removal inputs above if you want to use the button below to optimize design",D49)) -> Removal Inputs OK | I49: =IF(Units_rem=3,"Bench- or pilot-scale testing is recommended to guide site-specific full-scale design","") -> 
C50: =IF(Units_rem=3,TRUE,FALSE) -> FALSE | D50: =IF(NOT(C50),"",IF(NOT(C45),D45,IF(NOT(C47),D47,""))) ->  | H50: =D50 ->  | I50: =IF(D50="","","See guidance above") -> 
B51: yes | C51: <- Optimize Std Inputs
C52: =IF(design_type_I="",FALSE,TRUE) -> TRUE | E52: Design Type | F52: design_type_I | G52: pre-engineered package | H52: <--- pick one | I52: =IF(design_type=1,"Vendor packages include aboveground stainless steel, plastic, or fiberglass basins and typically are used by small systems",IF(design_type=2,"Custom designs use in-ground concrete basins and typically are applicable for large systems","")) -> Vendor packages include aboveground stainless steel, plastic, or fiberglass basins and typically are used by small systems
C53: =IF(stages="",FALSE,TRUE) -> TRUE | E53: Number of stages | F53: stages | G53: 8 | I53: =IF(contam=1,"Guidance: practical designs for radon removal use 3 to 8 stages; recommend 6 stages (Lowry and Drago peer review comments)",IF(contam=2,"Guidance: full-scale designs for CO2 removal use 6 stages","Guidance: for VOCs, minimum of 6 stages, maximum of 12 stages, vendor uses 8 stages for most applications (Lowry peer review comments)")) -> Guidance: for VOCs, minimum of 6 stages, maximum of 12 stages, vendor uses 8 stages for most applications (Lowry peer review comments)
C54: =IF(max_h2odepth="",FALSE,TRUE) -> TRUE | E54: Maximum water depth | F54: max_h2odepth | G54: 3 | H54: feet | I54: =IF(contam=1,"Guidance: practical water depths for radon removal are 2 to 3 feet; 4 feet can increase removal, but is less economical (Lowry peer review comments)",IF(contam=2,"Guidance: full-scale designs for CO2 removal use water depth between 2 and 3 feet","Guidance: VOCs require no more than 2 to 3 feet water depth, beyond this depth no significant gain is realized (Lowry peer review comments)")) -> Guidance: VOCs require no more than 2 to 3 feet water depth, beyond this depth no significant gain is realized (Lowry peer review comments)
C55: =IF(air_water_ratio="",FALSE,TRUE) -> TRUE | E55: Air-to-water ratio | F55: air_water_ratio | G55: 40 | I55: =IF(contam=1,"Gudiance: air to water ratios between 11:1 and 30:1 needed to obtain high radon removals (Drago, 2000). 3:1 to 30:1 will cover removal rates from 70% to 99.9% (Lowry peer review comments)",IF(contam=2,"Guidance: air to water ratios from 5:1 to 25:1 provide theoretical CO2 removal rates from 80% to greater than 98% (Lowry, 2010)","Guidance: For VOCs, typical air to water ratios are between 10:1 and 300:1")) -> Guidance: For VOCs, typical air to water ratios are between 10:1 and 300:1
C56: =IF(num_op_tanks="",FALSE,TRUE) -> TRUE | E56: Number of operating basins | F56: num_op_tanks | G56: 1 | H56: units
E57: For information:
C58: =IF(NOT(C50),TRUE,IF(p_rem<target_p_rem,FALSE,TRUE)) -> TRUE | D58: =IF(NOT(C50),"",IF(p_rem<target_p_rem,"Hint: increase air-to-water ratio or number of stages","")) ->  | E58: Theoretical percent removal achieved | G58: =IF(NOT(C65),"",p_rem) -> 0.9006718956 | I58: =IF(AND(contam<>1,OR(pilot_k="",pilot_phi="")),"Enter pilot rate constant and air intensity above to estimate percent removal","Percent shown is "&IF(contam=2,"absolute removal and ","")&"an estimate only, based on "&IF(contam=1,"equation presented in Drago (2000)","pilot rate constant and air intensity")) -> Percent shown is an estimate only, based on pilot rate constant and air intensity
E59: Number of basins (including redundancy) | G59: =IF(NOT(C65),"",num_tanks) -> 1 | H59: units | I59: =IF(AND(contam<>1,OR(pilot_k="",pilot_phi="")),"","To increase percent removal achieved, increase air to water ratio and/or number of stages") -> To increase percent removal achieved, increase air to water ratio and/or number of stages
C60: =IF(design_type_I="","",IF(ISERROR(tank_length),"",IF(tank_length>max_length,FALSE,TRUE))) -> TRUE | D60: =IF(NOT(AND(C52:C56)),"",IF(NOT(C60),"Hint:"&IF(design_type=1," use custom design or","")&" increase number of basins or decrease air to water ratio","")) ->  | E60: Basin length (including quiescent chamber) | G60: =IF(NOT(C65),"",tank_length) -> 6.5 | H60: feet | I60: =IF(AND(contam<>1,OR(pilot_k="",pilot_phi="")),"","Bench- or pilot-scale testing is recommended to guide site-specific full-scale design") -> Bench- or pilot-scale testing is recommended to guide site-specific full-scale design
E61: Basin width | G61: =IF(NOT(C65),"",tank_width) -> 2.5 | H61: feet
E62: Basin height (including freeboard) | G62: =IF(NOT(C65),"",tank_depth) -> 5 | H62: feet | I62: Adjust freeboard
E63: Diffusers per stage | G63: =IF(NOT(C65),"",diffusers_per_stage) -> 1 | H63: units
E64: Total diffusers | G64: =IF(NOT(C65),"",total_diffusers) -> 8 | H64: units
C65: =AND(C52:C60) -> TRUE | D65: =IF(NOT(AND(C52:C56)),"Basin inputs incomplete",IF(NOT(C58),"Warning: design does not achieve target removal",IF(NOT(C66),"Warning: basins too long","OK"))) -> OK | H65: =IF(C65,"Basin Inputs OK",D65) -> Basin Inputs OK | I65: Adjust basin length constraints
C66: =AND(C58:C60) -> TRUE | D66: =IF(C66,"",IF(NOT(C58),D58,IF(NOT(C60),D60,""))) ->  | H66: =D66 ->  | I66: Adjust diffuser access space requirements
C68: =IF(contam<3,TRUE,NOT(max_VOC_release="")) -> TRUE | E68: VOC release at which air pollution control system is needed | F68: max_VOC_release | G68: 1 | H68: =IF(contam<3,"not required","lbs/day") -> lbs/day | I68: =IF(contam<3,"","CMRP (2000) states 1 lb/day is the maximum emission level for all VOCs for California South Coast AQMD, but other districts may require different emissions standards based on location of the site and regional ambient air quality.") -> CMRP (2000) states 1 lb/day is the maximum emission level for all VOCs for California South Coast AQMD, but other districts may require different emissions standards based on location of the site and regional ambient air quality.
E69: For information: | G69: =IF(contam<3,"Available off-gas control options not relevant for this contaminant",IF(max_VOC_release="","Enter a release limit above to see guidance on off-gas control",IF(NOT(AND(C42:C43)),"Enter pilot rate constant and air intensity above to see guidance on off-gas control",IF(VOC_Release>max_VOC_release,"Off-gas control system may be required","Off-gas control system may not be required")))) -> Off-gas control system may not be required
C71: =IF(contam<3,TRUE,NOT(Offgas_Tech_I="")) -> TRUE | E71: Off-gas pollution control technology | F71: Offgas_Tech_I | G71: none | H71: =IF(contam<3,"not required","<--- pick one") -> <--- pick one
B72: =OR(Offgas_Tech=2,Offgas_Tech=3) -> FALSE | C72: =IF(B72,NOT(og_opt1_I=""),TRUE) -> TRUE | E72: Heat recovery type | F72: og_opt1_I | H72: =IF(NOT(B72),"not required","<--- pick one") -> not required
B73: =Offgas_Tech=1 -> FALSE | C73: =IF(B73,NOT(og_opt2_I=""),TRUE) -> TRUE | E73: Spent GAC regeneration | F73: og_opt2_I | H73: =IF(NOT(B73),"not required","<--- pick one") -> not required
B74: =Offgas_Tech=1 -> FALSE | C74: =IF(B73,NOT(og_opt3=""),TRUE) -> TRUE | E74: GAC bed life | F74: og_opt3 | H74: =IF(NOT(B74),"not required","months") -> not required
C75: =IF(NOT(AND(C71:C74)),FALSE,TRUE) -> TRUE | D75: =IF(NOT(C75),"Offgas Inputs Incomplete","OK") -> OK | H75: =IF(C75,"Off-gas Inputs OK",D75) -> Off-gas Inputs OK
E77: Number of booster pumps | F77: num_pumps_I | H77: pumps | I77: Enter 0 to exclude booster pumps (i.e., use existing pumps). Leave blank to accept model default calculations.
C78: =IF(ISERROR(pump_rating),FALSE,IF(pump_rating>max_pump_size,FALSE,TRUE)) -> TRUE | D78: =IF(NOT(C78),"Warning: insufficient number of pumps","") ->  | E78: For information: # of booster pumps | G78: =IF(ISERROR(total_pumps),"",total_pumps) -> 2 | H78: pumps
E79: Number of blowers | F79: num_blowers_I | H79: blowers | I79: Designs should always include at least one blower. Leave blank to accept model default calculations.
C80: =IF(ISERROR(blower_rating),FALSE,IF(blower_rating>max_blow_size,FALSE,TRUE)) -> TRUE | D80: =IF(NOT(C80),"Warning: insufficient number of blowers","") ->  | E80: For information: # of blowers (including redundancy) | G80: =IF(ISERROR(total_blowers),"",total_blowers) -> 2 | H80: blowers | I80: Adjust number of redundant blowers
E81: Number of redundant basins to be added | F81: NRD_I | H81: units | I81: Leave blank to accept redundancy specified in critical design assumptions
E82: For information: Redundant basins | G82: =IF(NRD_I="",NRD_tanks,NRD_I) -> 0 | H82: units
E83: Component level | F83: component_level_I | H83: <-- pick or leave blank | I83: Leave blank to use low cost components
E84: System automation | F84: manual_I | G84: fully automated | H84: <-- pick or leave blank | I84: Leave blank to allow model to pick based on component level
E85: Include buildings? | F85: include_buildings_I | H85: <-- pick or leave blank | I85: Leave blank to include buildings
E86: Include HVAC? | F86: include_HVAC_I | H86: <-- pick or leave blank | I86: Leave blank to allow model to pick based on component level and building type
E87: Include land? | F87: include_land_I | H87: <-- pick or leave blank | I87: Leave blank to include land
E88: For information: Component level | G88: =IF(component_level=2,"high cost",IF(component_level=1,"mid cost","low cost")) -> low cost
E89: Automation | G89: =IF(manual=1,"manual",IF(manual=2,"semi-automated",IF(manual=3,"fully automated"))) -> fully automated
H90: =D78 -> 
H91: =D80 -> 
C92: =IF(NOT(AND(C78,C80)),FALSE,TRUE) -> TRUE | D92: =IF(NOT(C92),"Optional Inputs Incomplete","OK") -> OK | H92: =IF(C92,"Optional Inputs OK",D92) -> Optional Inputs OK

Sheet OUTPUT
A1: OUTPUT SUMMARY
B2: Parameter | C2: Value | D2: Units
B3: Technology | C3: MSBA
B4: Contaminant | C4: =VLOOKUP(contam,contaminant_lookup,2,FALSE) -> TCE
B5: System Size Category | C5: =IF(design_flow<1,"small","large") -> small
B6: Design Flow | C6: =design_flow -> 0.03 | D6: MGD (excludes bypass flow)
B7: Average Flow | C7: =average_flow -> 0.007 | D7: MGD (excludes bypass flow)
B8: Number of Basins | C8: =num_tanks -> 1 | D8: units
B9: Number of Stages per Basin | C9: =stages -> 8 | D9: stages
B10: Basin Length | C10: =tank_length -> 6.5 | D10: feet
B11: Basin Width | C11: =tank_width -> 2.5 | D11: feet
B12: Basin Height | C12: =tank_depth -> 5 | D12: feet
B13: Diffusers per Stage | C13: =diffusers_per_stage -> 1 | D13: units
B14: Total diffusers | C14: =total_diffusers -> 8 | D14: units
B15: Off-Gas Treatment | C15: =IF(Offgas_Tech_I="","none",Offgas_Tech_I) -> none
B16: Component level | C16: =IF(component_level=2,"high cost",IF(component_level=1,"mid cost","low cost")) -> low cost
B17: System automation | C17: =IF(manual=1,"manual",IF(manual=2,"semi-automated",IF(manual=3,"fully automated"))) -> fully automated
B18: ="Resulting Costs (in year "&TEXT(current_year_cl,0)&" dollars)" -> Resulting Costs (in year 2021 dollars)
B19: Direct Capital Cost | C19: =IF(input_status<>"input complete -- results ready","Action required",IF(Missing_Cost,"Missing cost!",IF(cost_buildup_error,"Error in buildup!",direct_cost))) -> 78997.74754 | D19: Details | E19: =IF(input_status<>"input complete -- results ready",IF(input_complete,"Press Generate Results","Check INPUT sheet for errors"),IF(Missing_Cost,"A price is not available for at least one required component. See Use? column below.",IF(cost_buildup_error,"There is an Excel error in the price for at least one component. See Use? column below.",""))) -> 
B20: Add-on Cost | C20: =IF(input_status<>"input complete -- results ready","Action required",addon_cost) -> 17523.83376 | D20: Details
B21: Indirect Capital Cost | C21: =IF(input_status<>"input complete -- results ready","Action required",indirect_cost) -> 37379.43539 | D21: Details
B22: Total Capital Cost | C22: =IF(input_status<>"input complete -- results ready","Action required",IF(Missing_Cost,"Missing cost!",IF(cost_buildup_error,"Error in buildup!",system_cost))) -> 133901.0167 | D22: Details
B23: ="Annualized Capital Cost "&IF(OR(input_status<>"input complete -- results ready",Missing_Cost,cost_buildup_error),"","(per year over "&useful_life&" years at "&Discount_rate*100&"%)") -> Annualized Capital Cost (per year over 16.7 years at 7%) | C23: =IF(input_status<>"input complete -- results ready","Action required",Annualized_Capital_Cost) -> 13846.35378 | D23: Details
B24: Annual O&M Cost (per year) | C24: =IF(input_status<>"input complete -- results ready","Action required",om_cost) -> 7560.541089 | D24: Details
B25: ="Total Annualized Cost (per year"&IF(OR(input_status<>"input complete -- results ready",ISERROR(OR(TAC_pct_cap,TAC_pct_OM))),"",", "&TEXT(TAC_pct_cap,"0%")&" capital, "&TEXT(TAC_pct_OM,"0%")&" O&M")&")" -> Total Annualized Cost (per year, 65% capital, 35% O&M) | C25: =IF(input_status<>"input complete -- results ready","Action required",IF(Missing_Cost,"Missing cost!",IF(cost_buildup_error,"Error in buildup!",Annualized_Cost))) -> 21406.89486 | D25: Details
B26: Annualized cost per 1,000 gallons average flow | C26: =IF(input_status<>"input complete -- results ready","Action required",IF(Missing_Cost,"Missing cost!",IF(cost_buildup_error,"Error in buildup!",C282))) -> 8.378432432
B27: Annualized cost per household per year | C27: =IF(input_status<>"input complete -- results ready","Action required",IF(Missing_Cost,"Missing cost!",IF(cost_buildup_error,"Error in buildup!",C283))) -> 844.2831214
A30: Direct Capital Cost Details (items in italics, without a 1 in the "Use?" column, represent alternate costs and are excluded from total)
A31: WBS # | B31: Item | C31: Design Quantity | E31: Design Size | G31: Size used in estimate | I31: Unit Cost | J31: Total Cost | K31: Useful Life | L31: Use? | M31: Full Line Item Name | N31: Priority selection | W31: Useful Life
N32: Small (<1 mgd) | Q32: Medium (1-10 mgd) | T32: Large (>10 mgd)
N33: Low | O33: Mid | P33: High | Q33: Low | R33: Mid | S33: High | T33: Low | U33: Mid | V33: High | W33: Count? | X33: Depreciation
A34: 1. | B34: Aeration Basins
A35: 1.1 | B35: Custom Designed
A36: 1.1.1 | B36: Concrete | C36: =IF(design_type=1,0,num_tanks) -> 0 | D36: units | E36: =IF(C36=0,"NA",tank_vol) -> NA | F36: =IF(C36=0,"","gal/basin") ->  | G36: =IF(C36=0,"NA",tank_vol) -> NA | H36: =IF(C36=0,"","gal/basin") ->  | I36: =IF(C36=0,"NA",conc_volume/num_tanks*VLOOKUP(0,conc_basin_cost_cl,3)) -> NA | J36: =IF(C36=0,"--",IF(I36="contact vendor","--",C36*I36)) -> -- | K36: =IF(C36=0,"NA",VLOOKUP(0,conc_basin_cost_cl,IF(ss_cat="large",4,5))) -> NA | M36: =$B$34&" - "&$B$35&" - "&B36 -> Aeration Basins - Custom Designed - Concrete | N36: 1 | O36: 1 | P36: 1 | Q36: 1 | R36: 1 | S36: 1 | T36: 1 | U36: 1 | V36: 1 | W36: =IF(ISERROR(K36*L36),0,IF(K36<1,0,L36)) -> 0 | X36: =IF(W36,J36/K36,0) -> 0
A37: 1.1.2 | B37: Excavation | C37: =IF(design_type=1,0,excavation_vol) -> 0 | D37: cy | E37: NA | G37: NA | I37: =IF(C37=0,"NA",VLOOKUP(0,excavate_cost_cl,3)) -> NA | J37: =IF(C37=0,"--",IF(I37="contact vendor","--",C37*I37)) -> -- | K37: =IF(C37=0,"NA",VLOOKUP(0,conc_basin_cost_cl,IF(ss_cat="large",4,5))) -> NA | M37: =$B$34&" - "&$B$35&" - "&B37 -> Aeration Basins - Custom Designed - Excavation | N37: 1 | O37: 1 | P37: 1 | Q37: 1 | R37: 1 | S37: 1 | T37: 1 | U37: 1 | V37: 1 | W37: 0 | X37: 0
A38: 1.1.3 | B38: Backfill and Compaction | C38: =IF(design_type=1,0,backfill_vol) -> 0 | D38: cy | E38: NA | G38: NA | I38: =IF(C38=0,"NA",VLOOKUP(0,backfill_cost_cl,3)) -> NA | J38: =IF(C38=0,"--",IF(I38="contact vendor","--",C38*I38)) -> -- | K38: =IF(C38=0,"NA",VLOOKUP(0,conc_basin_cost_cl,IF(ss_cat="large",4,5))) -> NA | M38: =$B$34&" - "&$B$35&" - "&B38 -> Aeration Basins - Custom Designed - Backfill and Compaction | N38: 1 | O38: 1 | P38: 1 | Q38: 1 | R38: 1 | S38: 1 | T38: 1 | U38: 1 | V38: 1 | W38: 0 | X38: 0
A39: 1.1.4 | B39: Steel Cover | C39: =IF(design_type=1,0,cover_sf) -> 0 | D39: sf | E39: NA | G39: NA | I39: =IF(C39=0,"NA",VLOOKUP("checkered plate platform",metal_cost_cl,3)) -> NA | J39: =IF(C39=0,"--",IF(I39="contact vendor","--",C39*I39)) -> -- | K39: =IF(C39=0,"NA",VLOOKUP("checkered plate platform",metal_cost_cl,IF(ss_cat="large",4,5))) -> NA | M39: =$B$34&" - "&$B$35&" - "&B39 -> Aeration Basins - Custom Designed - Steel Cover | N39: 1 | O39: 1 | P39: 1 | Q39: 1 | R39: 1 | S39: 1 | T39: 1 | U39: 1 | V39: 1 | W39: 0 | X39: 0
A40: 1.1.5 | B40: Membrane Baffles | C40: =IF(design_type=1,0,num_baffles) -> 0 | D40: units | E40: =IF(C40=0,"NA",baffle_area) -> NA | F40: =IF($C40=0,"","sf/baffle") ->  | G40: =IF(C40=0,"NA",IF(curve=1,baffle_area,VLOOKUP(baffle_area,baffle_cost_cl,2))) -> NA | H40: =IF($C40=0,"","sf/baffle") ->  | I40: =IF(C40=0,"NA",IF(curve=1,baffle_eq,VLOOKUP(baffle_area,baffle_cost_cl,3))) -> NA | J40: =IF(C40=0,"--",IF(I40="contact vendor","--",C40*I40)) -> -- | K40: =IF(C40=0,"NA",VLOOKUP(baffle_area,baffle_cost_cl,IF(ss_cat="large",4,5))) -> NA | M40: =$B$34&" - "&$B$35&" - "&B40 -> Aeration Basins - Custom Designed - Membrane Baffles | N40: 1 | O40: 1 | P40: 1 | Q40: 1 | R40: 1 | S40: 1 | T40: 1 | U40: 1 | V40: 1 | W40: =IF(ISERROR(K40*L40),0,IF(K40<1,0,L40)) -> 0 | X40: =IF(W40,J40/K40,0) -> 0
A41: 1.2 | B41: Prefabricated | W41: 0 | X41: 0
A42: 1.2.1 | B42: Stainless Steel | C42: =IF(design_type=1,num_tanks,0) -> 1 | D42: units | E42: =IF(C42=0,"NA",tank_sf) -> 222.5 | F42: =IF(C42=0,"","sf") -> sf | G42: =IF(C42=0,"NA",IF(curve=1,tank_sf,VLOOKUP(tank_sf,ss_basin_cost_cl,2))) -> 222.5 | H42: =IF(C42=0,"","sf") -> sf | I42: =IF(C42=0,"NA",IF(curve=1,ss_tank_eq,VLOOKUP(tank_sf,ss_basin_cost_cl,3))) -> 42707.56913 | J42: =IF(C42=0,"--",IF(I42="contact vendor","--",C42*I42)) -> 42707.56913 | K42: =IF(C42=0,"NA",VLOOKUP(tank_sf,ss_basin_cost_cl,IF(ss_cat="large",4,5))) -> 30 | L42: 0 | M42: =$B$34&" - "&$B$41&" - "&B42 -> Aeration Basins - Prefabricated - Stainless Steel | N42: 3 | O42: 3 | P42: 1 | Q42: 3 | R42: 3 | S42: 1 | T42: 3 | U42: 3 | V42: 1 | W42: 0 | X42: 0
A43: 1.2.1 | B43: Plastic with Stainless Steel Frame | C43: =IF(design_type=1,num_tanks,0) -> 1 | D43: units | E43: =IF(C43=0,"NA",tank_sf) -> 222.5 | F43: =IF(C43=0,"","sf") -> sf | G43: =IF(C43=0,"NA",IF(curve=1,tank_sf,VLOOKUP(tank_sf,pl_basin_cost_cl,2))) -> 222.5 | H43: =IF(C43=0,"","sf") -> sf | I43: =IF(C43=0,"NA",IF(curve=1,pl_tank_eq,VLOOKUP(tank_sf,pl_basin_cost_cl,3))) -> 36616.81442 | J43: 36616.81442 | K43: =IF(C43=0,"NA",VLOOKUP(tank_sf,pl_basin_cost_cl,IF(ss_cat="large",4,5))) -> 20 | L43: 0 | M43: =$B$34&" - "&$B$41&" - "&B43 -> Aeration Basins - Prefabricated - Plastic with Stainless Steel Frame | N43: 2 | O43: 1 | P43: 2 | Q43: 2 | R43: 1 | S43: 2 | T43: 2 | U43: 1 | V43: 2 | W43: 0 | X43: 0
A44: 1.2.1 | B44: Fiberglass | C44: =IF(design_type=1,num_tanks,0) -> 1 | D44: units | E44: =IF(C44=0,"NA",tank_sf) -> 222.5 | F44: sf | G44: =IF(C44=0,"NA",IF(curve=1,tank_sf,VLOOKUP(tank_vol,fg_basin_cost_cl,2))) -> 222.5 | H44: sf | I44: =IF(C44=0,"NA",IF(curve=1,fg_tank_eq,VLOOKUP(tank_sf,fg_basin_cost_cl,3))) -> 21753.7535 | J44: 21753.7535 | K44: =IF(C44=0,"NA",VLOOKUP(tank_sf,fg_basin_cost_cl,IF(ss_cat="large",4,5))) -> 20 | L44: 1 | M44: =$B$34&" - "&$B$41&" - "&B44 -> Aeration Basins - Prefabricated - Fiberglass | N44: 1 | O44: 2 | P44: 3 | Q44: 1 | R44: 2 | S44: 3 | T44: 1 | U44: 2 | V44: 3 | W44: 1 | X44: 1087.687675
A45: 1.3 | B45: Aerators | W45: 0 | X45: 0
A46: 1.3.1 | B46: Diffusers | C46: =total_diffusers -> 8 | D46: units | E46: =diffuser_size -> 13.92602496 | F46: cfm | G46: =IF(curve=1,diffuser_size,VLOOKUP(diffuser_size,diffuser_cost_cl,2)) -> 13.92602496 | H46: cfm | I46: =IF(curve=1,diffuser_eq,VLOOKUP(diffuser_size,diffuser_cost_cl,3)) -> 63.51862585 | J46: =IF(C46=0,"--",IF(I46="contact vendor","--",C46*I46)) -> 508.1490068 | K46: =VLOOKUP(diffuser_size,diffuser_cost_cl,IF(ss_cat="large",4,5)) -> 10 | L46: 1 | M46: =$B$34&" - "&$B$45&" - "&B46 -> Aeration Basins - Aerators - Diffusers | N46: 1 | O46: 1 | P46: 1 | Q46: 1 | R46: 1 | S46: 1 | T46: 1 | U46: 1 | V46: 1 | W46: 1 | X46: 50.81490068
A47: 2. | B47: Pumps and Blowers | W47: 0 | X47: 0
A48: 2.1 | B48: Booster Pumps | C48: =total_pumps -> 2 | D48: units | E48: =IF(C48=0,"NA",pump_rating) -> 13.02083333 | F48: =IF(C48=0,"","gpm") -> gpm | G48: =IF(C48=0,"NA",IF(curve=1,pump_rating,VLOOKUP(pump_rating,dis75_pump_cost_cl,2))) -> 13.02083333 | H48: =IF(C48=0,"","gpm") -> gpm | I48: =IF(C48=0,"NA",IF(curve=1,pump_eq,VLOOKUP(pump_rating,dis75_pump_cost_cl,3))) -> 4499.149573 | J48: =IF(C48=0,"--",IF(I48="contact vendor","--",C48*I48)) -> 8998.299146 | K48: =IF(C48=0,"NA",VLOOKUP(pump_rating,dis75_pump_cost_cl,IF(ss_cat="large",4,5))) -> 17 | L48: 1 | M48: =B47&" - "&B48 -> Pumps and Blowers - Booster Pumps | N48: 1 | O48: 1 | P48: 1 | Q48: 1 | R48: 1 | S48: 1 | T48: 1 | U48: 1 | V48: 1 | W48: 1 | X48: 529.3117145
A49: 2.2 | B49: Blowers | W49: =IF(ISERROR(K49*L49),0,IF(K49<1,0,L49)) -> 0 | X49: =IF(W49,J49/K49,0) -> 0
A50: 2.2.1 | B50: Centrifugal | C50: =total_blowers -> 2 | D50: units | E50: =blower_rating -> 139.2602496 | F50: cfm | G50: =IF(curve=1,blower_rating,VLOOKUP(blower_rating,cent_blow_cost_cl,2)) -> 139.2602496 | H50: cfm | I50: =IF(curve=1,cent_blow_eq,VLOOKUP(blower_rating,cent_blow_cost_cl,3)) -> 16502.21246 | J50: 33004.42492 | K50: =VLOOKUP(blower_rating,cent_blow_cost_cl,IF(ss_cat="large",4,5)) -> 20 | L50: 0 | M50: =B47&" - "&$B$49&" - "&B50 -> Pumps and Blowers - Blowers - Centrifugal | N50: 2 | O50: 2 | P50: 1 | Q50: 2 | R50: 2 | S50: 1 | T50: 2 | U50: 2 | V50: 1 | W50: 0 | X50: 0
A51: 2.2.1 | B51: Regenerative | C51: =total_blowers -> 2 | D51: units | E51: =blower_rating -> 139.2602496 | F51: cfm | G51: =IF(curve=1,blower_rating,VLOOKUP(blower_rating,reg_blow_cost_cl,2)) -> 139.2602496 | H51: cfm | I51: =IF(curve=1,reg_blow_eq,VLOOKUP(blower_rating,reg_blow_cost_cl,3)) -> 2356.720476 | J51: =IF(C51=0,"--",IF(I51="contact vendor","--",C51*I51)) -> 4713.440951 | K51: =VLOOKUP(blower_rating,reg_blow_cost_cl,IF(ss_cat="large",4,5)) -> 20 | L51: 1 | M51: =B48&" - "&$B$49&" - "&B51 -> Booster Pumps - Blowers - Regenerative | N51: 1 | O51: 1 | P51: 2 | Q51: 1 | R51: 1 | S51: 2 | T51: 1 | U51: 1 | V51: 2 | W51: =IF(ISERROR(K51*L51),0,IF(K51<1,0,L51)) -> 1 | X51: =IF(W51,J51/K51,0) -> 235.6720476
A52: 3. | B52: Piping | W52: 0 | X52: 0
A53: 3.1 | B53: Process Piping | W53: 0 | X53: 0
A54: 3.1.1 | B54: Ductile Iron | C54: =h2o_pipe_length -> 20 | D54: lf | E54: =h2o_pipe_diam -> 1.5 | F54: in. diam | G54: =IF(curve=1,h2o_pipe_diam,VLOOKUP(h2o_pipe_diam,di_pipe_cost_cl,2)) -> 1.5 | H54: in. diam | I54: =IF(curve=1,di_pipe_eq_h2o,VLOOKUP(h2o_pipe_diam,di_pipe_cost_cl,3)) -> contact vendor | J54: =IF(C54=0,"--",IF(I54="contact vendor","--",C54*I54)) -> -- | K54: =VLOOKUP(h2o_pipe_diam,di_pipe_cost_cl,IF(ss_cat="large",4,5)) -> 35 | L54: 0 | M54: =$B$53&" - "&B54 -> Process Piping - Ductile Iron | N54: 3 | O54: 3 | P54: 3 | Q54: 3 | R54: 3 | S54: 3 | T54: 3 | U54: 3 | V54: 3 | W54: 0 | X54: 0
A55: 3.1.1 | B55: CPVC | C55: =h2o_pipe_length -> 20 | D55: lf | E55: =h2o_pipe_diam -> 1.5 | F55: in. diam | G55: =IF(curve=1,h2o_pipe_diam,VLOOKUP(h2o_pipe_diam,cpvc_pipe_cost_cl,2)) -> 1.5 | H55: in. diam | I55: =IF(curve=1,cpvc_pipe_eq_h2o,VLOOKUP(h2o_pipe_diam,cpvc_pipe_cost_cl,3)) -> 7.013311728 | J55: 140.2662346 | K55: =VLOOKUP(h2o_pipe_diam,cpvc_pipe_cost_cl,IF(ss_cat="large",4,5)) -> 17 | L55: 0 | M55: =$B$53&" - "&B55 -> Process Piping - CPVC | N55: 2 | O55: 1 | P55: 4 | Q55: 2 | R55: 1 | S55: 4 | T55: 2 | U55: 1 | V55: 4 | W55: 0 | X55: 0
A56: 3.1.1 | B56: PVC | C56: =h2o_pipe_length -> 20 | D56: lf | E56: =h2o_pipe_diam -> 1.5 | F56: in. diam | G56: =IF(curve=1,h2o_pipe_diam,VLOOKUP(h2o_pipe_diam,pvc_pipe_cost_cl,2)) -> 1.5 | H56: in. diam | I56: =IF(curve=1,pvc_pipe_eq_h2o,VLOOKUP(h2o_pipe_diam,pvc_pipe_cost_cl,3)) -> 2.847676267 | J56: 56.95352533 | K56: =VLOOKUP(h2o_pipe_diam,pvc_pipe_cost_cl,IF(ss_cat="large",4,5)) -> 17 | L56: 1 | M56: =$B$53&" - "&B56 -> Process Piping - PVC | N56: 1 | O56: 2 | P56: 5 | Q56: 1 | R56: 2 | S56: 5 | T56: 1 | U56: 2 | V56: 5 | W56: 1 | X56: 3.350207373
A57: 3.1.1 | B57: Stainless Steel | C57: =h2o_pipe_length -> 20 | D57: lf | E57: =h2o_pipe_diam -> 1.5 | F57: in. diam | G57: =IF(curve=1,h2o_pipe_diam,VLOOKUP(h2o_pipe_diam,ss_pipe_cost_cl,2)) -> 1.5 | H57: in. diam | I57: =IF(curve=1,ss_pipe_eq_h2o,VLOOKUP(h2o_pipe_diam,ss_pipe_cost_cl,3)) -> 70.2752489 | J57: 1405.504978 | K57: =VLOOKUP(h2o_pipe_diam,ss_pipe_cost_cl,IF(ss_cat="large",4,5)) -> 40 | L57: 0 | M57: =$B$53&" - "&B57 -> Process Piping - Stainless Steel | N57: 5 | O57: 5 | P57: 1 | Q57: 5 | R57: 5 | S57: 1 | T57: 5 | U57: 5 | V57: 1 | W57: 0 | X57: 0
A58: 3.1.1 | B58: Steel | C58: =h2o_pipe_length -> 20 | D58: lf | E58: =h2o_pipe_diam -> 1.5 | F58: in. diam | G58: =IF(curve=1,h2o_pipe_diam,VLOOKUP(h2o_pipe_diam,st_pipe_cost_cl,2)) -> 1.5 | H58: in. diam | I58: =IF(curve=1,st_pipe_eq_h2o,VLOOKUP(h2o_pipe_diam,st_pipe_cost_cl,3)) -> 30.20656151 | J58: 604.1312302 | K58: =VLOOKUP(h2o_pipe_diam,st_pipe_cost_cl,IF(ss_cat="large",4,5)) -> 33 | L58: 0 | M58: =$B$53&" - "&B58 -> Process Piping - Steel | N58: 4 | O58: 4 | P58: 2 | Q58: 4 | R58: 4 | S58: 2 | T58: 4 | U58: 4 | V58: 2 | W58: 0 | X58: 0
A59: 3.2 | B59: Air Piping | W59: 0 | X59: 0
A60: 3.2.1 | B60: Ductile Iron | C60: =air_pipe_length -> 41 | D60: lf | E60: =air_pipe_diam -> 1.5 | F60: in. diam | G60: =IF(curve=1,air_pipe_diam,VLOOKUP(air_pipe_diam,di_pipe_cost_cl,2)) -> 1.5 | H60: in. diam | I60: =IF(curve=1,di_pipe_eq_air,VLOOKUP(air_pipe_diam,di_pipe_cost_cl,3)) -> contact vendor | J60: =IF(C60=0,"--",IF(I60="contact vendor","--",C60*I60)) -> -- | K60: =VLOOKUP(air_pipe_diam,di_pipe_cost_cl,IF(ss_cat="large",4,5)) -> 35 | L60: 0 | M60: =$B$59&" - "&B60 -> Air Piping - Ductile Iron | N60: 3 | O60: 3 | P60: 3 | Q60: 3 | R60: 3 | S60: 3 | T60: 3 | U60: 3 | V60: 3 | W60: 0 | X60: 0
A61: 3.2.1 | B61: CPVC | C61: =air_pipe_length -> 41 | D61: lf | E61: =air_pipe_diam -> 1.5 | F61: in. diam | G61: =IF(curve=1,air_pipe_diam,VLOOKUP(air_pipe_diam,cpvc_pipe_cost_cl,2)) -> 1.5 | H61: in. diam | I61: =IF(curve=1,cpvc_pipe_eq_air,VLOOKUP(air_pipe_diam,cpvc_pipe_cost_cl,3)) -> 7.013311728 | J61: 287.5457809 | K61: =VLOOKUP(air_pipe_diam,cpvc_pipe_cost_cl,IF(ss_cat="large",4,5)) -> 17 | L61: 0 | M61: =$B$59&" - "&B61 -> Air Piping - CPVC | N61: 2 | O61: 1 | P61: 4 | Q61: 2 | R61: 1 | S61: 4 | T61: 2 | U61: 1 | V61: 4 | W61: 0 | X61: 0
A62: 3.2.1 | B62: PVC | C62: =air_pipe_length -> 41 | D62: lf | E62: =air_pipe_diam -> 1.5 | F62: in. diam | G62: =IF(curve=1,air_pipe_diam,VLOOKUP(air_pipe_diam,pvc_pipe_cost_cl,2)) -> 1.5 | H62: in. diam | I62: =IF(curve=1,pvc_pipe_eq_air,VLOOKUP(air_pipe_diam,pvc_pipe_cost_cl,3)) -> 2.847676267 | J62: 116.7547269 | K62: =VLOOKUP(air_pipe_diam,pvc_pipe_cost_cl,IF(ss_cat="large",4,5)) -> 17 | L62: 1 | M62: =$B$59&" - "&B62 -> Air Piping - PVC | N62: 1 | O62: 2 | P62: 5 | Q62: 1 | R62: 2 | S62: 5 | T62: 1 | U62: 2 | V62: 5 | W62: 1 | X62: 6.867925114
A63: 3.2.1 | B63: Stainless Steel | C63: =air_pipe_length -> 41 | D63: lf | E63: =air_pipe_diam -> 1.5 | F63: in. diam | G63: =IF(curve=1,air_pipe_diam,VLOOKUP(air_pipe_diam,ss_pipe_cost_cl,2)) -> 1.5 | H63: in. diam | I63: =IF(curve=1,ss_pipe_eq_air,VLOOKUP(air_pipe_diam,ss_pipe_cost_cl,3)) -> 70.2752489 | J63: 2881.285205 | K63: =VLOOKUP(air_pipe_diam,ss_pipe_cost_cl,IF(ss_cat="large",4,5)) -> 40 | L63: 0 | M63: =$B$59&" - "&B63 -> Air Piping - Stainless Steel | N63: 5 | O63: 5 | P63: 1 | Q63: 5 | R63: 5 | S63: 1 | T63: 5 | U63: 5 | V63: 1 | W63: 0 | X63: 0
A64: 3.2.1 | B64: Steel | C64: =air_pipe_length -> 41 | D64: lf | E64: =air_pipe_diam -> 1.5 | F64: in. diam | G64: =IF(curve=1,air_pipe_diam,VLOOKUP(air_pipe_diam,st_pipe_cost_cl,2)) -> 1.5 | H64: in. diam | I64: =IF(curve=1,st_pipe_eq_air,VLOOKUP(air_pipe_diam,st_pipe_cost_cl,3)) -> 30.20656151 | J64: 1238.469022 | K64: =VLOOKUP(air_pipe_diam,st_pipe_cost_cl,IF(ss_cat="large",4,5)) -> 33 | L64: 0 | M64: =$B$59&" - "&B64 -> Air Piping - Steel | N64: 4 | O64: 4 | P64: 2 | Q64: 4 | R64: 4 | S64: 2 | T64: 4 | U64: 4 | V64: 2 | W64: 0 | X64: 0
A65: 3.3 | B65: Influent and Treated Water Piping | W65: 0 | X65: 0
A66: 3.3.1 | B66: Ductile Iron | C66: =in_out_pipe_length -> 20 | D66: lf | E66: =in_out_pipe_diam -> 1.5 | F66: in. diam | G66: =IF(curve=1,in_out_pipe_diam,VLOOKUP(in_out_pipe_diam,di_pipe_cost_cl,2)) -> 1.5 | H66: in. diam | I66: =IF(curve=1,di_pipe_eq_in_out,VLOOKUP(in_out_pipe_diam,di_pipe_cost_cl,3)) -> contact vendor | J66: =IF(C66=0,"--",IF(I66="contact vendor","--",C66*I66)) -> -- | K66: =VLOOKUP(in_out_pipe_diam,di_pipe_cost_cl,IF(ss_cat="large",4,5)) -> 35 | L66: 0 | M66: =$B$65&" - "&B66 -> Influent and Treated Water Piping - Ductile Iron | N66: 3 | O66: 3 | P66: 3 | Q66: 3 | R66: 3 | S66: 3 | T66: 3 | U66: 3 | V66: 3 | W66: 0 | X66: 0
A67: 3.3.1 | B67: CPVC | C67: =in_out_pipe_length -> 20 | D67: lf | E67: =in_out_pipe_diam -> 1.5 | F67: in. diam | G67: =IF(curve=1,in_out_pipe_diam,VLOOKUP(in_out_pipe_diam,cpvc_pipe_cost_cl,2)) -> 1.5 | H67: in. diam | I67: =IF(curve=1,cpvc_pipe_eq_in_out,VLOOKUP(in_out_pipe_diam,cpvc_pipe_cost_cl,3)) -> 7.013311728 | J67: 140.2662346 | K67: =VLOOKUP(in_out_pipe_diam,cpvc_pipe_cost_cl,IF(ss_cat="large",4,5)) -> 17 | L67: 0 | M67: =$B$65&" - "&B67 -> Influent and Treated Water Piping - CPVC | N67: 2 | O67: 1 | P67: 4 | Q67: 2 | R67: 1 | S67: 4 | T67: 2 | U67: 1 | V67: 4 | W67: 0 | X67: 0
A68: 3.3.1 | B68: PVC | C68: =in_out_pipe_length -> 20 | D68: lf | E68: =in_out_pipe_diam -> 1.5 | F68: in. diam | G68: =IF(curve=1,in_out_pipe_diam,VLOOKUP(in_out_pipe_diam,pvc_pipe_cost_cl,2)) -> 1.5 | H68: in. diam | I68: =IF(curve=1,pvc_pipe_eq_in_out,VLOOKUP(in_out_pipe_diam,pvc_pipe_cost_cl,3)) -> 2.847676267 | J68: 56.95352533 | K68: =VLOOKUP(in_out_pipe_diam,pvc_pipe_cost_cl,IF(ss_cat="large",4,5)) -> 17 | L68: 1 | M68: =$B$65&" - "&B68 -> Influent and Treated Water Piping - PVC | N68: 1 | O68: 2 | P68: 5 | Q68: 1 | R68: 2 | S68: 5 | T68: 1 | U68: 2 | V68: 5 | W68: 1 | X68: 3.350207373
A69: 3.3.1 | B69: Stainless Steel | C69: =in_out_pipe_length -> 20 | D69: lf | E69: =in_out_pipe_diam -> 1.5 | F69: in. diam | G69: =IF(curve=1,in_out_pipe_diam,VLOOKUP(in_out_pipe_diam,ss_pipe_cost_cl,2)) -> 1.5 | H69: in. diam | I69: =IF(curve=1,ss_pipe_eq_in_out,VLOOKUP(in_out_pipe_diam,ss_pipe_cost_cl,3)) -> 70.2752489 | J69: 1405.504978 | K69: =VLOOKUP(in_out_pipe_diam,ss_pipe_cost_cl,IF(ss_cat="large",4,5)) -> 40 | L69: 0 | M69: =$B$65&" - "&B69 -> Influent and Treated Water Piping - Stainless Steel | N69: 5 | O69: 5 | P69: 1 | Q69: 5 | R69: 5 | S69: 1 | T69: 5 | U69: 5 | V69: 1 | W69: =IF(ISERROR(K69*L69),0,IF(K69<1,0,L69)) -> 0 | X69: =IF(W69,J69/K69,0) -> 0
A70: 3.3.1 | B70: Steel | C70: =in_out_pipe_length -> 20 | D70: lf | E70: =in_out_pipe_diam -> 1.5 | F70: in. diam | G70: =IF(curve=1,in_out_pipe_diam,VLOOKUP(in_out_pipe_diam,st_pipe_cost_cl,2)) -> 1.5 | H70: in. diam | I70: =IF(curve=1,st_pipe_eq_in_out,VLOOKUP(in_out_pipe_diam,st_pipe_cost_cl,3)) -> 30.20656151 | J70: 604.1312302 | K70: =VLOOKUP(in_out_pipe_diam,st_pipe_cost_cl,IF(ss_cat="large",4,5)) -> 33 | L70: 0 | M70: =$B$65&" - "&B70 -> Influent and Treated Water Piping - Steel | N70: 4 | O70: 4 | P70: 2 | Q70: 4 | R70: 4 | S70: 2 | T70: 4 | U70: 4 | V70: 2 | W70: 0 | X70: 0
A71: 3.4 | B71: Bypass Piping | W71: 0 | X71: 0
A72: 3.4.1 | B72: Ductile Iron | C72: =bp_pipe_length -> 0 | D72: lf | E72: =IF(C72=0,"NA",bp_pipe_diam) -> NA | F72: =IF(C72=0,"","in. diam") ->  | G72: =IF(C72=0,"NA",IF(curve=1,bp_pipe_diam,VLOOKUP(bp_pipe_diam,di_pipe_cost_cl,2))) -> NA | H72: =IF(C72=0,"","in. diam") ->  | I72: =IF(C72=0,"NA",IF(curve=1,di_pipe_eq_bp,VLOOKUP(bp_pipe_diam,di_pipe_cost_cl,3))) -> NA | J72: =IF(C72=0,"--",IF(I72="contact vendor","--",C72*I72)) -> -- | K72: =IF(C72=0,"NA",VLOOKUP(bp_pipe_diam,di_pipe_cost_cl,IF(ss_cat="large",4,5))) -> NA | M72: =$B$71&" - "&B72 -> Bypass Piping - Ductile Iron | N72: 3 | O72: 3 | P72: 3 | Q72: 3 | R72: 3 | S72: 3 | T72: 3 | U72: 3 | V72: 3 | W72: 0 | X72: 0
A73: 3.4.1 | B73: CPVC | C73: =bp_pipe_length -> 0 | D73: lf | E73: =IF(C73=0,"NA",bp_pipe_diam) -> NA | F73: =IF(C73=0,"","in. diam") ->  | G73: =IF(C73=0,"NA",IF(curve=1,bp_pipe_diam,VLOOKUP(bp_pipe_diam,cpvc_pipe_cost_cl,2))) -> NA | H73: =IF(C73=0,"","in. diam") ->  | I73: =IF(C73=0,"NA",IF(curve=1,cpvc_pipe_eq_bp,VLOOKUP(bp_pipe_diam,cpvc_pipe_cost_cl,3))) -> NA | J73: -- | K73: =IF(C73=0,"NA",VLOOKUP(bp_pipe_diam,cpvc_pipe_cost_cl,IF(ss_cat="large",4,5))) -> NA | M73: =$B$71&" - "&B73 -> Bypass Piping - CPVC | N73: 2 | O73: 1 | P73: 4 | Q73: 2 | R73: 1 | S73: 4 | T73: 2 | U73: 1 | V73: 4 | W73: 0 | X73: 0
A74: 3.4.1 | B74: PVC | C74: =bp_pipe_length -> 0 | D74: lf | E74: =IF(C74=0,"NA",bp_pipe_diam) -> NA | G74: =IF(C74=0,"NA",IF(curve=1,bp_pipe_diam,VLOOKUP(bp_pipe_diam,pvc_pipe_cost_cl,2))) -> NA | H74: =IF(C74=0,"","in. diam") ->  | I74: =IF(C74=0,"NA",IF(curve=1,pvc_pipe_eq_bp,VLOOKUP(bp_pipe_diam,pvc_pipe_cost_cl,3))) -> NA | J74: -- | K74: =IF(C74=0,"NA",VLOOKUP(bp_pipe_diam,pvc_pipe_cost_cl,IF(ss_cat="large",4,5))) -> NA | M74: =$B$71&" - "&B74 -> Bypass Piping - PVC | N74: 1 | O74: 2 | P74: 5 | Q74: 1 | R74: 2 | S74: 5 | T74: 1 | U74: 2 | V74: 5 | W74: 0 | X74: 0
A75: 3.4.1 | B75: Stainless Steel | C75: =bp_pipe_length -> 0 | D75: lf | E75: =IF(C75=0,"NA",bp_pipe_diam) -> NA | G75: =IF(C75=0,"NA",IF(curve=1,bp_pipe_diam,VLOOKUP(bp_pipe_diam,ss_pipe_cost_cl,2))) -> NA | H75: =IF(C75=0,"","in. diam") ->  | I75: =IF(C75=0,"NA",IF(curve=1,ss_pipe_eq_bp,VLOOKUP(bp_pipe_diam,ss_pipe_cost_cl,3))) -> NA | J75: -- | K75: =IF(C75=0,"NA",VLOOKUP(bp_pipe_diam,ss_pipe_cost_cl,IF(ss_cat="large",4,5))) -> NA | M75: =$B$71&" - "&B75 -> Bypass Piping - Stainless Steel | N75: 5 | O75: 5 | P75: 1 | Q75: 5 | R75: 5 | S75: 1 | T75: 5 | U75: 5 | V75: 1 | W75: 0 | X75: 0
A76: 3.4.1 | B76: Steel | C76: =bp_pipe_length -> 0 | D76: lf | E76: =IF(C76=0,"NA",bp_pipe_diam) -> NA | G76: =IF(C76=0,"NA",IF(curve=1,bp_pipe_diam,VLOOKUP(bp_pipe_diam,st_pipe_cost_cl,2))) -> NA | H76: =IF(C76=0,"","in. diam") ->  | I76: =IF(C76=0,"NA",IF(curve=1,st_pipe_eq_bp,VLOOKUP(bp_pipe_diam,st_pipe_cost_cl,3))) -> NA | J76: -- | K76: =IF(C76=0,"NA",VLOOKUP(bp_pipe_diam,st_pipe_cost_cl,IF(ss_cat="large",4,5))) -> NA | M76: =$B$71&" - "&B76 -> Bypass Piping - Steel | N76: 4 | O76: 4 | P76: 2 | Q76: 4 | R76: 4 | S76: 2 | T76: 4 | U76: 4 | V76: 2 | W76: 0 | X76: 0
A77: 4. | B77: Valves | W77: 0 | X77: 0
A78: 4.1 | B78: Motor/Air Operated | W78: 0 | X78: 0
A79: 4.1.1 | B79: Process - Polypropylene/PVC | C79: =tot_proc_MOVs -> 6 | D79: units | E79: =IF(C79=0,"NA",tank_valve_size) -> 1.5 | F79: =IF($C79=0,"","in. diam") -> in. diam | G79: =IF(C79=0,"NA",IF(curve=1,tank_valve_size,VLOOKUP(tank_valve_size,pp_mov_cost_cl,2))) -> 1.5 | H79: =IF($C79=0,"","in. diam") -> in. diam | I79: =IF(C79=0,"NA",IF(curve=1,pp_mov_eq_tank,VLOOKUP(tank_valve_size,pp_mov_cost_cl,3))) -> 787.0140404 | J79: =IF(C79=0,"--",IF(I79="contact vendor","--",C79*I79)) -> 4722.084242 | K79: =IF(C79=0,"NA",VLOOKUP(tank_valve_size,pp_mov_cost_cl,IF(ss_cat="large",4,5))) -> 20 | L79: 1 | M79: =$B$77&" - "&$B$78&" - "&B79 -> Valves - Motor/Air Operated - Process - Polypropylene/PVC | N79: 1 | O79: 2 | P79: 3 | Q79: 1 | R79: 2 | S79: 3 | T79: 1 | U79: 2 | V79: 3 | W79: 1 | X79: 236.1042121
A80: 4.1.1 | B80: Process - Stainless Steel | C80: =tot_proc_MOVs -> 6 | D80: units | E80: =IF(C80=0,"NA",tank_valve_size) -> 1.5 | F80: =IF($C80=0,"","in. diam") -> in. diam | G80: =IF(C80=0,"NA",IF(curve=1,tank_valve_size,VLOOKUP(tank_valve_size,ss_mov_cost_cl,2))) -> 1.5 | H80: in. diam | I80: =IF(C80=0,"NA",IF(curve=1,ss_mov_eq_tank,VLOOKUP(tank_valve_size,ss_mov_cost_cl,3))) -> 1470.604046 | J80: 8823.624279 | K80: =IF(C80=0,"NA",VLOOKUP(tank_valve_size,ss_mov_cost_cl,IF(ss_cat="large",4,5))) -> 20 | L80: 0 | M80: Valves - Motor/Air Operated - Process - Stainless Steel | N80: 3 | O80: 3 | P80: 1 | Q80: 3 | R80: 3 | S80: 1 | T80: 3 | U80: 3 | V80: 1 | W80: 0 | X80: 0
A81: 4.1.1 | B81: Process - Cast Iron | C81: =tot_proc_MOVs -> 6 | D81: units | E81: =IF(C81=0,"NA",tank_valve_size) -> 1.5 | F81: in. diam | G81: =IF(C81=0,"NA",IF(curve=1,tank_valve_size,VLOOKUP(tank_valve_size,ci_mov_cost_cl,2))) -> 1.5 | H81: in. diam | I81: =IF(C81=0,"NA",IF(curve=1,ci_mov_eq_tank,VLOOKUP(tank_valve_size,ci_mov_cost_cl,3))) -> 791.8695572 | J81: 4751.217343 | K81: =IF(C81=0,"NA",VLOOKUP(tank_valve_size,ci_mov_cost_cl,IF(ss_cat="large",4,5))) -> 20 | L81: 0 | M81: Valves - Motor/Air Operated - Process - Cast Iron | N81: 2 | O81: 1 | P81: 2 | Q81: 2 | R81: 1 | S81: 2 | T81: 2 | U81: 1 | V81: 2 | W81: 0 | X81: 0
A82: 4.1.2 | B82: Air - Polypropylene/PVC | C82: =tot_air_MOVs -> 2 | D82: units | E82: =IF(C82=0,"NA",air_valve_size) -> 1.5 | F82: in. diam | G82: =IF(C82=0,"NA",IF(curve=1,air_valve_size,VLOOKUP(air_valve_size,pp_mov_cost_cl,2))) -> 1.5 | H82: in. diam | I82: =IF(C82=0,"NA",IF(curve=1,pp_mov_eq_air,VLOOKUP(air_valve_size,pp_mov_cost_cl,3))) -> 787.0140404 | J82: 1574.028081 | K82: =IF(C82=0,"NA",VLOOKUP(air_valve_size,pp_mov_cost_cl,IF(ss_cat="large",4,5))) -> 20 | L82: 1 | M82: Valves - Motor/Air Operated - Air - Polypropylene/PVC | N82: 1 | O82: 2 | P82: 3 | Q82: 1 | R82: 2 | S82: 3 | T82: 1 | U82: 2 | V82: 3 | W82: 1 | X82: 78.70140404
A83: 4.1.2 | B83: Air - Stainless Steel | C83: =tot_air_MOVs -> 2 | D83: units | E83: =IF(C83=0,"NA",air_valve_size) -> 1.5 | F83: in. diam | G83: =IF(C83=0,"NA",IF(curve=1,air_valve_size,VLOOKUP(air_valve_size,ss_mov_cost_cl,2))) -> 1.5 | H83: in. diam | I83: =IF(C83=0,"NA",IF(curve=1,ss_mov_eq_air,VLOOKUP(air_valve_size,ss_mov_cost_cl,3))) -> 1470.604046 | J83: 2941.208093 | K83: =IF(C83=0,"NA",VLOOKUP(air_valve_size,ss_mov_cost_cl,IF(ss_cat="large",4,5))) -> 20 | L83: 0 | M83: Valves - Motor/Air Operated - Air - Stainless Steel | N83: 3 | O83: 3 | P83: 1 | Q83: 3 | R83: 3 | S83: 1 | T83: 3 | U83: 3 | V83: 1 | W83: 0 | X83: 0
A84: 4.1.2 | B84: Air - Cast Iron | C84: =tot_air_MOVs -> 2 | D84: units | E84: =IF(C84=0,"NA",air_valve_size) -> 1.5 | F84: in. diam | G84: =IF(C84=0,"NA",IF(curve=1,air_valve_size,VLOOKUP(air_valve_size,ci_mov_cost_cl,2))) -> 1.5 | H84: in. diam | I84: =IF(C84=0,"NA",IF(curve=1,ci_mov_eq_air,VLOOKUP(air_valve_size,ci_mov_cost_cl,3))) -> 791.8695572 | J84: 1583.739114 | K84: =IF(C84=0,"NA",VLOOKUP(air_valve_size,ci_mov_cost_cl,IF(ss_cat="large",4,5))) -> 20 | L84: 0 | M84: Valves - Motor/Air Operated - Air - Cast Iron | N84: 2 | O84: 1 | P84: 2 | Q84: 2 | R84: 1 | S84: 2 | T84: 2 | U84: 1 | V84: 2 | W84: 0 | X84: 0
A85: 4.1.3 | B85: Bypass - Polypropylene/PVC | C85: =tot_bp_MOVs -> 0 | D85: units | E85: =IF(C85=0,"NA",bypass_valve_size) -> NA | G85: =IF(C85=0,"NA",IF(curve=1,bypass_valve_size,VLOOKUP(bypass_valve_size,pp_mov_cost_cl,2))) -> NA | I85: =IF(C85=0,"NA",IF(curve=1,pp_mov_eq_bp,VLOOKUP(bypass_valve_size,pp_mov_cost_cl,3))) -> NA | J85: -- | K85: =IF(C85=0,"NA",VLOOKUP(bypass_valve_size,pp_mov_cost_cl,IF(ss_cat="large",4,5))) -> NA | M85: =$B$77&" - "&$B$78&" - "&B85 -> Valves - Motor/Air Operated - Bypass - Polypropylene/PVC | N85: 1 | O85: 2 | P85: 3 | Q85: 1 | R85: 2 | S85: 3 | T85: 1 | U85: 2 | V85: 3 | W85: 0 | X85: 0
A86: 4.1.3 | B86: Bypass - Stainless Steel | C86: =tot_bp_MOVs -> 0 | D86: units | E86: =IF(C86=0,"NA",bypass_valve_size) -> NA | G86: =IF(C86=0,"NA",IF(curve=1,bypass_valve_size,VLOOKUP(bypass_valve_size,ss_mov_cost_cl,2))) -> NA | I86: =IF(C86=0,"NA",IF(curve=1,ss_mov_eq_bp,VLOOKUP(bypass_valve_size,ss_mov_cost_cl,3))) -> NA | J86: -- | K86: =IF(C86=0,"NA",VLOOKUP(bypass_valve_size,ss_mov_cost_cl,IF(ss_cat="large",4,5))) -> NA | M86: =$B$77&" - "&$B$78&" - "&B86 -> Valves - Motor/Air Operated - Bypass - Stainless Steel | N86: 3 | O86: 3 | P86: 1 | Q86: 3 | R86: 3 | S86: 1 | T86: 3 | U86: 3 | V86: 1 | W86: 0 | X86: 0
A87: 4.1.3 | B87: Bypass - Cast Iron | C87: =tot_bp_MOVs -> 0 | D87: units | E87: =IF(C87=0,"NA",bypass_valve_size) -> NA | G87: =IF(C87=0,"NA",IF(curve=1,bypass_valve_size,VLOOKUP(bypass_valve_size,ci_mov_cost_cl,2))) -> NA | I87: =IF(C87=0,"NA",IF(curve=1,ci_mov_eq_bp,VLOOKUP(bypass_valve_size,ci_mov_cost_cl,3))) -> NA | J87: -- | K87: =IF(C87=0,"NA",VLOOKUP(bypass_valve_size,ci_mov_cost_cl,IF(ss_cat="large",4,5))) -> NA | M87: =$B$77&" - "&$B$78&" - "&B87 -> Valves - Motor/Air Operated - Bypass - Cast Iron | N87: 2 | O87: 1 | P87: 2 | Q87: 2 | R87: 1 | S87: 2 | T87: 2 | U87: 1 | V87: 2 | W87: 0 | X87: 0
A88: 4.2 | B88: Manual | W88: 0 | X88: 0
A89: 4.2.1 | B89: Influent and treated water - Polypropylene/PVC | C89: =tot_man_valves -> 2 | D89: units | E89: =in_valve_size -> 1.5 | F89: in. diam | G89: =IF(curve=1,in_valve_size,VLOOKUP(in_valve_size,pp_man_cost_cl,2)) -> 1.5 | H89: in. diam | I89: =IF(curve=1,pp_man_eq,VLOOKUP(in_valve_size,pp_man_cost_cl,3)) -> 207.8491463 | J89: =IF(C89=0,"--",IF(I89="contact vendor","--",C89*I89)) -> 415.6982927 | K89: =VLOOKUP(in_valve_size,pp_man_cost_cl,IF(ss_cat="large",4,5)) -> 20 | L89: 1 | M89: =$B$77&" - "&$B$88&" - "&B89 -> Valves - Manual - Influent and treated water - Polypropylene/PVC | N89: 1 | O89: 2 | P89: 3 | Q89: 1 | R89: 2 | S89: 3 | T89: 1 | U89: 2 | V89: 3 | W89: 1 | X89: 20.78491463
A90: 4.2.1 | B90: Influent and treated water - Stainless Steel | C90: =tot_man_valves -> 2 | D90: units | E90: =in_valve_size -> 1.5 | F90: in. diam | G90: =IF(curve=1,in_valve_size,VLOOKUP(in_valve_size,ss_man_cost_cl,2)) -> 1.5 | H90: in. diam | I90: =IF(curve=1,ss_man_eq,VLOOKUP(in_valve_size,ss_man_cost_cl,3)) -> 395.8808732 | J90: 791.7617464 | K90: =VLOOKUP(in_valve_size,ss_man_cost_cl,IF(ss_cat="large",4,5)) -> 20 | L90: 0 | M90: =$B$77&" - "&$B$88&" - "&B90 -> Valves - Manual - Influent and treated water - Stainless Steel | N90: 3 | O90: 3 | P90: 1 | Q90: 3 | R90: 3 | S90: 1 | T90: 3 | U90: 3 | V90: 1 | W90: 0 | X90: 0
A91: 4.2.1 | B91: Influent and treated water - Cast Iron | C91: =tot_man_valves -> 2 | D91: units | E91: =in_valve_size -> 1.5 | F91: in. diam | G91: =IF(curve=1,in_valve_size,VLOOKUP(in_valve_size,ci_bfv_cost_cl,2)) -> 1.5 | H91: in. diam | I91: =IF(curve=1,ci_bfv_eq,VLOOKUP(in_valve_size,ci_bfv_cost_cl,3)) -> 338.9786776 | J91: 677.9573551 | K91: =VLOOKUP(in_valve_size,ci_bfv_cost_cl,IF(ss_cat="large",4,5)) -> 20 | L91: 0 | M91: =$B$77&" - "&$B$88&" - "&B91 -> Valves - Manual - Influent and treated water - Cast Iron | N91: 2 | O91: 1 | P91: 2 | Q91: 2 | R91: 1 | S91: 2 | T91: 2 | U91: 1 | V91: 2 | W91: 0 | X91: 0
A92: 4.2.2 | B92: Process - Polypropylene/PVC | C92: =tot_proc_man -> 1 | D92: units | E92: =IF(C92=0,"NA",tank_valve_size) -> 1.5 | F92: =IF($C92=0,"","in. diam") -> in. diam | G92: =IF(C92=0,"NA",IF(curve=1,tank_valve_size,VLOOKUP(tank_valve_size,pp_man_cost_cl,2))) -> 1.5 | H92: =IF($C92=0,"","in. diam") -> in. diam | I92: =IF(C92=0,"NA",IF(curve=1,pp_man_eq_tank,VLOOKUP(tank_valve_size,pp_man_cost_cl,3))) -> 207.8491463 | J92: 207.8491463 | K92: =IF(C92=0,"NA",VLOOKUP(tank_valve_size,pp_man_cost_cl,IF(ss_cat="large",4,5))) -> 20 | L92: 1 | M92: =$B$77&" - "&$B$88&" - "&B92 -> Valves - Manual - Process - Polypropylene/PVC | N92: 1 | O92: 2 | P92: 3 | Q92: 1 | R92: 2 | S92: 3 | T92: 1 | U92: 2 | V92: 3 | W92: 1 | X92: 10.39245732
A93: 4.2.2 | B93: Process - Stainless Steel | C93: =tot_proc_man -> 1 | D93: units | E93: =IF(C93=0,"NA",tank_valve_size) -> 1.5 | F93: =IF($C93=0,"","in. diam") -> in. diam | G93: =IF(C93=0,"NA",IF(curve=1,tank_valve_size,VLOOKUP(tank_valve_size,ss_man_cost_cl,2))) -> 1.5 | H93: in. diam | I93: =IF(C93=0,"NA",IF(curve=1,ss_man_eq_tank,VLOOKUP(tank_valve_size,ss_man_cost_cl,3))) -> 395.8808732 | J93: 395.8808732 | K93: =IF(C93=0,"NA",VLOOKUP(tank_valve_size,ss_man_cost_cl,IF(ss_cat="large",4,5))) -> 20 | L93: 0 | M93: Valves - Manual - Process - Stainless Steel | N93: 3 | O93: 3 | P93: 1 | Q93: 3 | R93: 3 | S93: 1 | T93: 3 | U93: 3 | V93: 1 | W93: 0 | X93: 0
A94: 4.2.2 | B94: Process - Cast Iron | C94: =tot_proc_man -> 1 | D94: units | E94: =IF(C94=0,"NA",tank_valve_size) -> 1.5 | F94: in. diam | G94: =IF(C94=0,"NA",IF(curve=1,tank_valve_size,VLOOKUP(tank_valve_size,ci_bfv_cost_cl,2))) -> 1.5 | H94: in. diam | I94: =IF(C94=0,"NA",IF(curve=1,ci_bfv_eq_tank,VLOOKUP(tank_valve_size,ci_bfv_cost_cl,3))) -> 338.9786776 | J94: 338.9786776 | K94: =IF(C94=0,"NA",VLOOKUP(tank_valve_size,ci_bfv_cost_cl,IF(ss_cat="large",4,5))) -> 20 | L94: 0 | M94: Valves - Manual - Process - Cast Iron | N94: 2 | O94: 1 | P94: 2 | Q94: 2 | R94: 1 | S94: 2 | T94: 2 | U94: 1 | V94: 2 | W94: 0 | X94: 0
A95: 4.2.3 | B95: Air - Polypropylene/PVC | C95: =tot_air_man -> 0 | D95: units | E95: =IF(C95=0,"NA",air_valve_size) -> NA | G95: =IF(C95=0,"NA",IF(curve=1,air_valve_size,VLOOKUP(air_valve_size,pp_man_cost_cl,2))) -> NA | I95: =IF(C95=0,"NA",IF(curve=1,pp_man_eq_air,VLOOKUP(air_valve_size,pp_man_cost_cl,3))) -> NA | J95: -- | K95: =IF(C95=0,"NA",VLOOKUP(air_valve_size,pp_man_cost_cl,IF(ss_cat="large",4,5))) -> NA | M95: Valves - Manual - Air - Polypropylene/PVC | N95: 1 | O95: 2 | P95: 3 | Q95: 1 | R95: 2 | S95: 3 | T95: 1 | U95: 2 | V95: 3 | W95: 0 | X95: 0
A96: 4.2.3 | B96: Air - Stainless Steel | C96: =tot_air_man -> 0 | D96: units | E96: =IF(C96=0,"NA",air_valve_size) -> NA | G96: =IF(C96=0,"NA",IF(curve=1,air_valve_size,VLOOKUP(air_valve_size,ss_man_cost_cl,2))) -> NA | I96: =IF(C96=0,"NA",IF(curve=1,ss_man_eq_air,VLOOKUP(air_valve_size,ss_man_cost_cl,3))) -> NA | J96: -- | K96: =IF(C96=0,"NA",VLOOKUP(air_valve_size,ss_man_cost_cl,IF(ss_cat="large",4,5))) -> NA | M96: Valves - Manual - Air - Stainless Steel | N96: 3 | O96: 3 | P96: 1 | Q96: 3 | R96: 3 | S96: 1 | T96: 3 | U96: 3 | V96: 1 | W96: 0 | X96: 0
A97: 4.2.3 | B97: Air - Cast Iron | C97: =tot_air_man -> 0 | D97: units | E97: =IF(C97=0,"NA",air_valve_size) -> NA | G97: =IF(C97=0,"NA",IF(curve=1,air_valve_size,VLOOKUP(air_valve_size,ci_bfv_cost_cl,2))) -> NA | I97: =IF(C97=0,"NA",IF(curve=1,ci_bfv_eq_air,VLOOKUP(air_valve_size,ci_bfv_cost_cl,3))) -> NA | J97: -- | K97: =IF(C97=0,"NA",VLOOKUP(air_valve_size,ci_bfv_cost_cl,IF(ss_cat="large",4,5))) -> NA | M97: Valves - Manual - Air - Cast Iron | N97: 2 | O97: 1 | P97: 2 | Q97: 2 | R97: 1 | S97: 2 | T97: 2 | U97: 1 | V97: 2 | W97: 0 | X97: 0
A98: 4.2.4 | B98: Bypass - Polypropylene/PVC | C98: =tot_bp_man -> 0 | D98: units | E98: =IF(C98=0,"NA",bypass_valve_size) -> NA | G98: =IF(C98=0,"NA",IF(curve=1,bypass_valve_size,VLOOKUP(bypass_valve_size,pp_man_cost_cl,2))) -> NA | I98: =IF(C98=0,"NA",IF(curve=1,pp_man_eq_bp,VLOOKUP(bypass_valve_size,pp_man_cost_cl,3))) -> NA | J98: -- | K98: =IF(C98=0,"NA",VLOOKUP(bypass_valve_size,pp_man_cost_cl,IF(ss_cat="large",4,5))) -> NA | M98: =$B$77&" - "&$B$88&" - "&B98 -> Valves - Manual - Bypass - Polypropylene/PVC | N98: 1 | O98: 2 | P98: 3 | Q98: 1 | R98: 2 | S98: 3 | T98: 1 | U98: 2 | V98: 3 | W98: 0 | X98: 0
A99: 4.2.4 | B99: Bypass - Stainless Steel | C99: =tot_bp_man -> 0 | D99: units | E99: =IF(C99=0,"NA",bypass_valve_size) -> NA | G99: =IF(C99=0,"NA",IF(curve=1,bypass_valve_size,VLOOKUP(bypass_valve_size,ss_man_cost_cl,2))) -> NA | I99: =IF(C99=0,"NA",IF(curve=1,ss_man_eq_bp,VLOOKUP(bypass_valve_size,ss_man_cost_cl,3))) -> NA | J99: -- | K99: =IF(C99=0,"NA",VLOOKUP(bypass_valve_size,ss_man_cost_cl,IF(ss_cat="large",4,5))) -> NA | M99: =$B$77&" - "&$B$88&" - "&B99 -> Valves - Manual - Bypass - Stainless Steel | N99: 3 | O99: 3 | P99: 1 | Q99: 3 | R99: 3 | S99: 1 | T99: 3 | U99: 3 | V99: 1 | W99: 0 | X99: 0
A100: 4.2.4 | B100: Bypass - Cast Iron | C100: =tot_bp_man -> 0 | D100: units | E100: =IF(C100=0,"NA",bypass_valve_size) -> NA | G100: =IF(C100=0,"NA",IF(curve=1,bypass_valve_size,VLOOKUP(bypass_valve_size,ci_bfv_cost_cl,2))) -> NA | I100: =IF(C100=0,"NA",IF(curve=1,ci_man_eq_bp,VLOOKUP(bypass_valve_size,ci_bfv_cost_cl,3))) -> NA | J100: -- | K100: =IF(C100=0,"NA",VLOOKUP(bypass_valve_size,ci_bfv_cost_cl,IF(ss_cat="large",4,5))) -> NA | M100: =$B$77&" - "&$B$88&" - "&B100 -> Valves - Manual - Bypass - Cast Iron | N100: 2 | O100: 1 | P100: 2 | Q100: 2 | R100: 1 | S100: 2 | T100: 2 | U100: 1 | V100: 2 | W100: 0 | X100: 0
A101: 4.3 | B101: Check Valves | W101: =IF(ISERROR(K101*L101),0,IF(K101<1,0,L101)) -> 0 | X101: =IF(W101,J101/K101,0) -> 0
A102: 4.3.1 | B102: Treated water - Polypropylene/PVC | C102: =tot_in_chv -> 1 | D102: units | E102: =in_valve_size -> 1.5 | F102: in. diam | G102: =IF(curve=1,in_valve_size,VLOOKUP(in_valve_size,pp_chv_cost_cl,2)) -> 1.5 | H102: in. diam | I102: =IF(curve=1,pp_chv_eq,VLOOKUP(in_valve_size,pp_chv_cost_cl,3)) -> 177.8274995 | J102: 177.8274995 | K102: =VLOOKUP(in_valve_size,pp_chv_cost_cl,IF(ss_cat="large",4,5)) -> 20 | L102: 1 | M102: =$B$77&" - "&$B$101&" - "&B102 -> Valves - Check Valves - Treated water - Polypropylene/PVC | N102: 1 | O102: 2 | P102: 3 | Q102: 1 | R102: 2 | S102: 3 | T102: 1 | U102: 2 | V102: 3 | W102: 1 | X102: 8.891374973
A103: 4.3.1 | B103: Treated water - Stainless Steel | C103: =tot_in_chv -> 1 | D103: units | E103: =in_valve_size -> 1.5 | F103: in. diam | G103: =IF(curve=1,in_valve_size,VLOOKUP(in_valve_size,ss_chv_cost_cl,2)) -> 1.5 | H103: in. diam | I103: =IF(curve=1,ss_chv_eq,VLOOKUP(in_valve_size,ss_chv_cost_cl,3)) -> 492.6734899 | J103: 492.6734899 | K103: =VLOOKUP(in_valve_size,ss_chv_cost_cl,IF(ss_cat="large",4,5)) -> 20 | L103: 0 | M103: =$B$77&" - "&$B$101&" - "&B103 -> Valves - Check Valves - Treated water - Stainless Steel | N103: 3 | O103: 3 | P103: 1 | Q103: 3 | R103: 3 | S103: 1 | T103: 3 | U103: 3 | V103: 1 | W103: 0 | X103: 0
A104: 4.3.1 | B104: Treated water - Cast Iron | C104: =tot_in_chv -> 1 | D104: units | E104: =in_valve_size -> 1.5 | F104: in. diam | G104: =IF(curve=1,in_valve_size,VLOOKUP(in_valve_size,ci_chv_cost_cl,2)) -> 1.5 | H104: in. diam | I104: =IF(curve=1,ci_chv_eq,VLOOKUP(in_valve_size,ci_chv_cost_cl,3)) -> contact vendor | J104: -- | K104: =VLOOKUP(in_valve_size,ci_chv_cost_cl,IF(ss_cat="large",4,5)) -> 20 | L104: 0 | M104: Valves - Check Valves - Treated water - Cast Iron | N104: 2 | O104: 1 | P104: 2 | Q104: 2 | R104: 1 | S104: 2 | T104: 2 | U104: 1 | V104: 2 | W104: 0 | X104: 0
A105: 4.3.2 | B105: Process - Polypropylene/PVC | C105: =tot_proc_chv -> 2 | D105: units | E105: =IF(C105=0,"NA",tank_valve_size) -> 1.5 | F105: =IF($C105=0,"","in. diam") -> in. diam | G105: =IF(C105=0,"NA",IF(curve=1,tank_valve_size,VLOOKUP(tank_valve_size,pp_chv_cost_cl,2))) -> 1.5 | H105: =IF($C105=0,"","in. diam") -> in. diam | I105: =IF(C105=0,"NA",IF(curve=1,pp_chv_eq_proc,VLOOKUP(tank_valve_size,pp_chv_cost_cl,3))) -> 177.8274995 | J105: 355.6549989 | K105: =IF(C105=0,"NA",VLOOKUP(tank_valve_size,pp_chv_cost_cl,IF(ss_cat="large",4,5))) -> 20 | L105: 1 | M105: Valves - Check Valves - Process - Polypropylene/PVC | N105: 1 | O105: 2 | P105: 3 | Q105: 1 | R105: 2 | S105: 3 | T105: 1 | U105: 2 | V105: 3 | W105: 1 | X105: 17.78274995
A106: 4.3.2 | B106: Process - Stainless Steel | C106: =tot_proc_chv -> 2 | D106: units | E106: =IF(C106=0,"NA",tank_valve_size) -> 1.5 | F106: =IF($C106=0,"","in. diam") -> in. diam | G106: =IF(C106=0,"NA",IF(curve=1,tank_valve_size,VLOOKUP(tank_valve_size,ss_chv_cost_cl,2))) -> 1.5 | H106: =IF($C106=0,"","in. diam") -> in. diam | I106: =IF(C106=0,"NA",IF(curve=1,ss_chv_eq_proc,VLOOKUP(tank_valve_size,ss_chv_cost_cl,3))) -> 492.6734899 | J106: 985.3469798 | K106: =IF(C106=0,"NA",VLOOKUP(tank_valve_size,ss_chv_cost_cl,IF(ss_cat="large",4,5))) -> 20 | L106: 0 | M106: Valves - Check Valves - Process - Stainless Steel | N106: 3 | O106: 3 | P106: 1 | Q106: 3 | R106: 3 | S106: 1 | T106: 3 | U106: 3 | V106: 1 | W106: 0 | X106: 0
A107: 4.3.2 | B107: Process - Cast Iron | C107: =tot_proc_chv -> 2 | D107: units | E107: =IF(C107=0,"NA",tank_valve_size) -> 1.5 | F107: =IF($C107=0,"","in. diam") -> in. diam | G107: =IF(C107=0,"NA",IF(curve=1,tank_valve_size,VLOOKUP(tank_valve_size,ci_chv_cost_cl,2))) -> 1.5 | H107: =IF($C107=0,"","in. diam") -> in. diam | I107: =IF(C107=0,"NA",IF(curve=1,ci_chv_eq_proc,VLOOKUP(tank_valve_size,ci_chv_cost_cl,3))) -> contact vendor | J107: -- | K107: =IF(C107=0,"NA",VLOOKUP(tank_valve_size,ci_chv_cost_cl,IF(ss_cat="large",4,5))) -> 20 | L107: 0 | M107: Valves - Check Valves - Process - Cast Iron | N107: 2 | O107: 1 | P107: 2 | Q107: 2 | R107: 1 | S107: 2 | T107: 2 | U107: 1 | V107: 2 | W107: 0 | X107: 0
A108: 4.3.3 | B108: Bypass - Polypropylene/PVC | C108: =IF(bp_pct=0,0,tot_bp_chv) -> 0 | D108: units | E108: =IF(bp_pct=0,"NA",bypass_valve_size) -> NA | F108: =IF(bp_pct=0," ","in. diam") ->  | G108: =IF(bp_pct=0,"NA",(IF(curve=1,bypass_valve_size,VLOOKUP(bypass_valve_size,pp_chv_cost_cl,2)))) -> NA | H108: =IF(bp_pct=0," ","in. diam") ->  | I108: =IF(bp_pct=0,"NA",(IF(curve=1,pp_chv_eq_bp,VLOOKUP(bypass_valve_size,pp_chv_cost_cl,3)))) -> NA | J108: -- | K108: =IF(C108=0,"NA",VLOOKUP(E108,pp_chv_cost_cl,IF(ss_cat="large",4,5))) -> NA | M108: Valves - Check Valves - Bypass - Polypropylene/PVC | N108: 1 | O108: 2 | P108: 3 | Q108: 1 | R108: 2 | S108: 3 | T108: 1 | U108: 2 | V108: 3 | W108: 0 | X108: 0
A109: 4.3.3 | B109: Bypass - Stainless Steel | C109: =IF(bp_pct=0,0,tot_bp_chv) -> 0 | D109: units | E109: =IF(bp_pct=0,"NA",bypass_valve_size) -> NA | F109: =IF(bp_pct=0," ","in. diam") ->  | G109: =IF(bp_pct=0,"NA",(IF(curve=1,bypass_valve_size,VLOOKUP(bypass_valve_size,ss_chv_cost_cl,2)))) -> NA | H109: =IF(bp_pct=0," ","in. diam") ->  | I109: =IF(bp_pct=0,"NA",(IF(curve=1,ss_chv_eq_bp,VLOOKUP(bypass_valve_size,ss_chv_cost_cl,3)))) -> NA | J109: -- | K109: =IF(C109=0,"NA",VLOOKUP(E109,ss_chv_cost_cl,IF(ss_cat="large",4,5))) -> NA | M109: Valves - Check Valves - Bypass - Stainless Steel | N109: 3 | O109: 3 | P109: 1 | Q109: 3 | R109: 3 | S109: 1 | T109: 3 | U109: 3 | V109: 1 | W109: 0 | X109: 0
A110: 4.3.3 | B110: Bypass - Cast Iron | C110: =IF(bp_pct=0,0,tot_bp_chv) -> 0 | D110: units | E110: =IF(bp_pct=0,"NA",bypass_valve_size) -> NA | F110: =IF(bp_pct=0," ","in. diam") ->  | G110: =IF(bp_pct=0,"NA",(IF(curve=1,bypass_valve_size,VLOOKUP(bypass_valve_size,ci_chv_cost_cl,2)))) -> NA | H110: =IF(bp_pct=0," ","in. diam") ->  | I110: =IF(bp_pct=0,"NA",(IF(curve=1,ci_chv_eq_bp,VLOOKUP(bypass_valve_size,ci_chv_cost_cl,3)))) -> NA | J110: -- | K110: =IF(C110=0,"NA",VLOOKUP(E110,ci_chv_cost_cl,IF(ss_cat="large",4,5))) -> NA | M110: Valves - Check Valves - Bypass - Cast Iron | N110: 2 | O110: 1 | P110: 2 | Q110: 2 | R110: 1 | S110: 2 | T110: 2 | U110: 1 | V110: 2 | W110: 0 | X110: 0
A111: 5. | B111: Instrumentation | W111: 0 | X111: 0
A112: 5.1 | B112: Flow Meters - Influent and Treated Water | W112: 0 | X112: 0
A113: 5.1.1 | B113: Orifice Plate | C113: =tot_fm_in -> 1 | D113: units | E113: =in_meter_size -> 1.5 | F113: in. diam | G113: =IF(curve=1,in_meter_size,VLOOKUP(in_meter_size,op_fm_cost_cl,2)) -> 1.5 | H113: in. diam | I113: =IF(curve=1,op_fm_eq_in,VLOOKUP(in_meter_size,op_fm_cost_cl,3)) -> 1481.25862 | J113: =IF(I113="contact vendor","--",C113*I113) -> 1481.25862 | K113: =VLOOKUP(in_meter_size,op_fm_cost_cl,IF(ss_cat="large",4,5)) -> 14 | L113: 0 | M113: =$B$111&" - "&$B$112&" - "&B113 -> Instrumentation - Flow Meters - Influent and Treated Water - Orifice Plate | N113: 3 | O113: 4 | P113: 4 | Q113: 3 | R113: 4 | S113: 4 | T113: 3 | U113: 3 | V113: 4 | W113: 0 | X113: 0
A114: 5.1.1 | B114: Propeller | C114: =tot_fm_in -> 1 | D114: units | E114: =in_meter_size -> 1.5 | F114: in. diam | G114: =IF(curve=1,in_meter_size,VLOOKUP(in_meter_size,prop_fm_cost_cl,2)) -> 1.5 | H114: in. diam | I114: =IF(curve=1,prop_fm_eq_in,VLOOKUP(in_meter_size,prop_fm_cost_cl,3)) -> 2349.859753 | J114: =IF(I114="contact vendor","--",C114*I114) -> 2349.859753 | K114: =VLOOKUP(in_meter_size,prop_fm_cost_cl,IF(ss_cat="large",4,5)) -> 14 | L114: 1 | M114: =$B$111&" - "&$B$112&" - "&B114 -> Instrumentation - Flow Meters - Influent and Treated Water - Propeller | N114: 1 | O114: 2 | P114: 3 | Q114: 1 | R114: 2 | S114: 3 | T114: 4 | U114: 4 | V114: 2 | W114: 1 | X114: 167.8471252
A115: 5.1.1 | B115: Venturi | C115: =tot_fm_in -> 1 | D115: units | E115: =in_meter_size -> 1.5 | F115: in. diam | G115: =IF(curve=1,in_meter_size,VLOOKUP(in_meter_size,ven_fm_cost_cl,2)) -> 1.5 | H115: in. diam | I115: =IF(curve=1,ven_fm_eq_in,VLOOKUP(in_meter_size,ven_fm_cost_cl,3)) -> 2229.880831 | J115: =IF(I115="contact vendor","--",C115*I115) -> 2229.880831 | K115: =VLOOKUP(in_meter_size,ven_fm_cost_cl,IF(ss_cat="large",4,5)) -> 14 | L115: 0 | M115: =$B$111&" - "&$B$112&" - "&B115 -> Instrumentation - Flow Meters - Influent and Treated Water - Venturi | N115: 2 | O115: 1 | P115: 2 | Q115: 2 | R115: 1 | S115: 2 | T115: 1 | U115: 2 | V115: 3 | W115: 0 | X115: 0
A116: 5.1.1 | B116: Magnetic | C116: =tot_fm_in -> 1 | D116: units | E116: =in_meter_size -> 1.5 | F116: in. diam | G116: =IF(curve=1,in_meter_size,VLOOKUP(in_meter_size,mag_fm_cost_cl,2)) -> 1.5 | H116: in. diam | I116: =IF(curve=1,mag_fm_eq_in,VLOOKUP(in_meter_size,mag_fm_cost_cl,3)) -> 3844.624961 | J116: =IF(I116="contact vendor","--",C116*I116) -> 3844.624961 | K116: =VLOOKUP(in_meter_size,mag_fm_cost_cl,IF(ss_cat="large",4,5)) -> 14 | L116: 0 | M116: =$B$111&" - "&$B$112&" - "&B116 -> Instrumentation - Flow Meters - Influent and Treated Water - Magnetic | N116: 4 | O116: 3 | P116: 1 | Q116: 4 | R116: 3 | S116: 1 | T116: 2 | U116: 1 | V116: 1 | W116: 0 | X116: 0
A117: 5.2 | B117: Flow Meters - Process | W117: 0 | X117: 0
A118: 5.2.1 | B118: Orifice Plate | C118: =tot_fm_proc -> 1 | D118: units | E118: =proc_meter_size -> 1.5 | F118: in. diam | G118: =IF(curve=1,proc_meter_size,VLOOKUP(proc_meter_size,op_fm_cost_cl,2)) -> 1.5 | H118: in. diam | I118: =IF(curve=1,op_fm_eq_proc,VLOOKUP(proc_meter_size,op_fm_cost_cl,3)) -> 1481.25862 | J118: =IF(I118="contact vendor","--",C118*I118) -> 1481.25862 | K118: =VLOOKUP(proc_meter_size,op_fm_cost_cl,IF(ss_cat="large",4,5)) -> 14 | L118: 0 | M118: =$B$111&" - "&$B$117&" - "&B118 -> Instrumentation - Flow Meters - Process - Orifice Plate | N118: 3 | O118: 4 | P118: 4 | Q118: 3 | R118: 4 | S118: 4 | T118: 3 | U118: 3 | V118: 4 | W118: 0 | X118: 0
A119: 5.2.1 | B119: Propeller | C119: =tot_fm_proc -> 1 | D119: units | E119: =proc_meter_size -> 1.5 | F119: in. diam | G119: =IF(curve=1,proc_meter_size,VLOOKUP(proc_meter_size,prop_fm_cost_cl,2)) -> 1.5 | H119: in. diam | I119: =IF(curve=1,prop_fm_eq_proc,VLOOKUP(proc_meter_size,prop_fm_cost_cl,3)) -> 2349.859753 | J119: =IF(I119="contact vendor","--",C119*I119) -> 2349.859753 | K119: =VLOOKUP(proc_meter_size,prop_fm_cost_cl,IF(ss_cat="large",4,5)) -> 14 | L119: 1 | M119: =$B$111&" - "&$B$117&" - "&B119 -> Instrumentation - Flow Meters - Process - Propeller | N119: 1 | O119: 2 | P119: 3 | Q119: 1 | R119: 2 | S119: 3 | T119: 4 | U119: 4 | V119: 2 | W119: 1 | X119: 167.8471252
A120: 5.2.1 | B120: Venturi | C120: =tot_fm_proc -> 1 | D120: units | E120: =proc_meter_size -> 1.5 | F120: in. diam | G120: =IF(curve=1,proc_meter_size,VLOOKUP(proc_meter_size,ven_fm_cost_cl,2)) -> 1.5 | H120: in. diam | I120: =IF(curve=1,ven_fm_eq_proc,VLOOKUP(proc_meter_size,ven_fm_cost_cl,3)) -> 2229.880831 | J120: =IF(I120="contact vendor","--",C120*I120) -> 2229.880831 | K120: =VLOOKUP(proc_meter_size,ven_fm_cost_cl,IF(ss_cat="large",4,5)) -> 14 | L120: 0 | M120: =$B$111&" - "&$B$117&" - "&B120 -> Instrumentation - Flow Meters - Process - Venturi | N120: 2 | O120: 1 | P120: 2 | Q120: 2 | R120: 1 | S120: 2 | T120: 1 | U120: 2 | V120: 3 | W120: 0 | X120: 0
A121: 5.2.1 | B121: Magnetic | C121: =tot_fm_proc -> 1 | D121: units | E121: =proc_meter_size -> 1.5 | F121: in. diam | G121: =IF(curve=1,proc_meter_size,VLOOKUP(proc_meter_size,mag_fm_cost_cl,2)) -> 1.5 | H121: in. diam | I121: =IF(curve=1,mag_fm_eq_proc,VLOOKUP(proc_meter_size,mag_fm_cost_cl,3)) -> 3844.624961 | J121: =IF(I121="contact vendor","--",C121*I121) -> 3844.624961 | K121: =VLOOKUP(proc_meter_size,mag_fm_cost_cl,IF(ss_cat="large",4,5)) -> 14 | L121: 0 | M121: =$B$111&" - "&$B$117&" - "&B121 -> Instrumentation - Flow Meters - Process - Magnetic | N121: 4 | O121: 3 | P121: 1 | Q121: 4 | R121: 3 | S121: 1 | T121: 2 | U121: 1 | V121: 1 | W121: 0 | X121: 0
A122: 5.3 | B122: Air Flow Meters | W122: 0 | X122: 0
A123: 5.3.1 | B123: Rotameter | C123: =tot_fm_air -> 1 | D123: units | E123: NA | G123: NA | I123: =VLOOKUP(0,gas_fm_cost_cl,3) -> 2900.055941 | J123: =IF(I123="contact vendor","--",C123*I123) -> 2900.055941 | K123: =VLOOKUP(0,gas_fm_cost_cl,IF(ss_cat="large",4,5)) -> 14 | L123: 1 | M123: =$B$111&" - "&$B$122&" - "&B123 -> Instrumentation - Air Flow Meters - Rotameter | N123: 1 | O123: 1 | P123: 1 | Q123: 1 | R123: 1 | S123: 1 | T123: 1 | U123: 1 | V123: 1 | W123: 1 | X123: 207.1468529
A124: 5.4 | B124: High/low alarms (for contact basins) | C124: =tot_basin_alarm -> 1 | D124: units | E124: NA | G124: NA | I124: =VLOOKUP(0,alarm_cost_cl,3) -> 600.1870767 | J124: =IF(I124="contact vendor","--",C124*I124) -> 600.1870767 | K124: =VLOOKUP(0,alarm_cost_cl,IF(ss_cat="large",4,5)) -> 14 | L124: 1 | M124: =$B$111&" - "&B124 -> Instrumentation - High/low alarms (for contact basins) | N124: 1 | O124: 1 | P124: 1 | Q124: 1 | R124: 1 | S124: 1 | T124: 1 | U124: 1 | V124: 1 | W124: 1 | X124: 42.87050548
A125: 5.5 | B125: pH Meters | C125: =tot_ph -> 2 | D125: units | E125: NA | G125: NA | I125: =IF(C125=0,"NA",VLOOKUP(0,pH_meter_cost_cl,3)) -> 3047.115548 | J125: =IF(OR(I125="contact vendor",I125="NA"),"--",C125*I125) -> 6094.231096 | K125: =IF(C125=0,"NA",VLOOKUP(0,pH_meter_cost_cl,IF(ss_cat="large",4,5))) -> 14 | L125: 1 | M125: =$B$111&" - "&B125 -> Instrumentation - pH Meters | N125: 1 | O125: 1 | P125: 1 | Q125: 1 | R125: 1 | S125: 1 | T125: 1 | U125: 1 | V125: 1 | W125: 1 | X125: 435.3022211
A126: 5.6 | B126: Pressure Gauges | C126: =tot_gauges -> 4 | D126: units | E126: NA | G126: NA | I126: =IF(C126=0,"NA",VLOOKUP(0,gauge_cost_cl,3)) -> 267.5801301 | J126: =IF(OR(I126="contact vendor",I126="NA"),"--",C126*I126) -> 1070.32052 | K126: =IF(C126=0,"NA",VLOOKUP(0,gauge_cost_cl,IF(ss_cat="large",4,5))) -> 14 | L126: 1 | M126: =$B$111&" - "&B126 -> Instrumentation - Pressure Gauges | N126: 1 | O126: 1 | P126: 1 | Q126: 1 | R126: 1 | S126: 1 | T126: 1 | U126: 1 | V126: 1 | W126: 1 | X126: 76.45146575
A127: 5.7 | B127: Electrical Enclosure | C127: =elec_encl -> 0 | D127: units | E127: NA | G127: NA | I127: =IF(C127=0,"NA",VLOOKUP(0,elec_encl_cost_cl,3)) -> NA | J127: =IF(C127=0,"--",IF(I127="contact vendor","--",C127*I127)) -> -- | K127: =IF(C127=0,"NA",VLOOKUP(0,elec_encl_cost_cl,IF(ss_cat="large",4,5))) -> NA | M127: =$B$111&" - "&B127 -> Instrumentation - Electrical Enclosure | N127: 1 | O127: 1 | P127: 1 | Q127: 1 | R127: 1 | S127: 1 | T127: 1 | U127: 1 | V127: 1 | W127: 0 | X127: 0
A128: 6. | B128: System Controls | W128: 0 | X128: 0
A129: 6.1 | B129: PLC Units | W129: 0 | X129: 0
A130: 6.1.1 | B130: PLC racks/power supplies | C130: =IF(manual=1,0,plc_rack) -> 1 | D130: units | E130: NA | G130: NA | I130: =IF(C130=0,"NA",VLOOKUP(0,plc_rack_cost_cl,3)) -> 355.56 | J130: =IF(C130=0,"--",IF(I130="contact vendor","--",C130*I130)) -> 355.56 | K130: =IF(C130=0,"NA",VLOOKUP(0,plc_rack_cost_cl,IF(ss_cat="large",4,5))) -> 8 | L130: 1 | M130: =$B$128&" - "&$B$129&" - "&B130 -> System Controls - PLC Units - PLC racks/power supplies | N130: 1 | O130: 1 | P130: 1 | Q130: 1 | R130: 1 | S130: 1 | T130: 1 | U130: 1 | V130: 1 | W130: 1 | X130: 44.445
A131: 6.1.2 | B131: CPUs | C131: =IF(manual=1,0,plc_cpu) -> 2 | D131: units | E131: NA | G131: NA | I131: =IF(C131=0,"NA",VLOOKUP(0,plc_cpu_cost_cl,3)) -> 378.8 | J131: 757.6 | K131: =IF(C131=0,"NA",VLOOKUP(0,plc_cpu_cost_cl,IF(ss_cat="large",4,5))) -> 8 | L131: 1 | M131: =$B$128&" - "&$B$129&" - "&B131 -> System Controls - PLC Units - CPUs | N131: 1 | O131: 1 | P131: 1 | Q131: 1 | R131: 1 | S131: 1 | T131: 1 | U131: 1 | V131: 1 | W131: 1 | X131: 94.7
A132: 6.1.3 | B132: I/O discrete input modules | C132: =IF(manual=1,0,plc_discrete_input) -> 1 | D132: units | E132: NA | G132: NA | I132: =IF(C132=0,"NA",VLOOKUP(0,plc_discrete_input_cost_cl,3)) -> 382.68 | J132: 382.68 | K132: =IF(C132=0,"NA",VLOOKUP(0,plc_discrete_input_cost_cl,IF(ss_cat="large",4,5))) -> 8 | L132: 1 | M132: System Controls - PLC Units - I/O discrete input modules | N132: 1 | O132: 1 | P132: 1 | Q132: 1 | R132: 1 | S132: 1 | T132: 1 | U132: 1 | V132: 1 | W132: 1 | X132: 47.835
A133: 6.1.4 | B133: I/O discrete output modules | C133: =IF(manual=1,0,plc_discrete_output) -> 1 | D133: units | E133: NA | G133: NA | I133: =IF(C133=0,"NA",VLOOKUP(0,plc_discrete_output_cost_cl,3)) -> 340.425 | J133: 340.425 | K133: =IF(C133=0,"NA",VLOOKUP(0,plc_discrete_output_cost_cl,IF(ss_cat="large",4,5))) -> 8 | L133: 1 | M133: System Controls - PLC Units - I/O discrete output modules | N133: 1 | O133: 1 | P133: 1 | Q133: 1 | R133: 1 | S133: 1 | T133: 1 | U133: 1 | V133: 1 | W133: =IF(ISERROR(K133*L133),0,IF(K133<1,0,L133)) -> 1 | X133: =IF(W133,J133/K133,0) -> 42.553125
A134: 6.1.5 | B134: I/O combination analog modules | C134: =IF(manual=1,0,plc_combination_analog) -> 3 | D134: units | E134: NA | G134: NA | I134: =IF(C134=0,"NA",VLOOKUP(0,plc_combination_analog_cost_cl,3)) -> 557.335 | J134: 1672.005 | K134: =IF(C134=0,"NA",VLOOKUP(0,plc_combination_analog_cost_cl,IF(ss_cat="large",4,5))) -> 8 | L134: 1 | M134: System Controls - PLC Units - I/O combination analog modules | N134: 1 | O134: 1 | P134: 1 | Q134: 1 | R134: 1 | S134: 1 | T134: 1 | U134: 1 | V134: 1 | W134: 1 | X134: 209.000625
A135: 6.1.6 | B135: Ethernet modules | C135: =IF(manual=1,0,plc_ethernet) -> 2 | D135: units | E135: NA | G135: NA | I135: =IF(C135=0,"NA",VLOOKUP(0,plc_ethernet_cost_cl,3)) -> 1342.235 | J135: 2684.47 | K135: =IF(C135=0,"NA",VLOOKUP(0,plc_ethernet_cost_cl,IF(ss_cat="large",4,5))) -> 8 | L135: 1 | M135: System Controls - PLC Units - Ethernet modules | N135: 1 | O135: 1 | P135: 1 | Q135: 1 | R135: 1 | S135: 1 | T135: 1 | U135: 1 | V135: 1 | W135: 1 | X135: 335.55875
A136: 6.1.7 | B136: Base expansion modules | C136: =IF(manual=1,0,plc_base_expansion) -> 0 | D136: units | E136: NA | G136: NA | I136: =IF(C136=0,"NA",VLOOKUP(0,plc_base_expansion_cost_cl,3)) -> NA | J136: -- | K136: =IF(C136=0,"NA",VLOOKUP(0,plc_base_expansion_cost_cl,IF(ss_cat="large",4,5))) -> NA | M136: System Controls - PLC Units - Base expansion modules | N136: 1 | O136: 1 | P136: 1 | Q136: 1 | R136: 1 | S136: 1 | T136: 1 | U136: 1 | V136: 1 | W136: 0 | X136: 0
A137: 6.1.8 | B137: Base expansion controller modules | C137: =IF(manual=1,0,plc_base_expansion_controller) -> 0 | D137: units | E137: NA | G137: NA | I137: =IF(C137=0,"NA",VLOOKUP(0,plc_base_expansion_controller_cost_cl,3)) -> NA | J137: -- | K137: =IF(C137=0,"NA",VLOOKUP(0,plc_base_expansion_controller_cost_cl,IF(ss_cat="large",4,5))) -> NA | M137: System Controls - PLC Units - Base expansion controller modules | N137: 1 | O137: 1 | P137: 1 | Q137: 1 | R137: 1 | S137: 1 | T137: 1 | U137: 1 | V137: 1 | W137: 0 | X137: 0
A138: 6.1.9 | B138: UPSs | C138: =IF(manual=1,0,ups) -> 1 | D138: units | E138: NA | G138: NA | I138: =IF(C138=0,"NA",VLOOKUP(0,ups_cost_cl,3)) -> 877.495 | J138: 877.495 | K138: =IF(C138=0,"NA",VLOOKUP(0,ups_cost_cl,IF(ss_cat="large",4,5))) -> 8 | L138: 1 | M138: System Controls - PLC Units - UPSs | N138: 1 | O138: 1 | P138: 1 | Q138: 1 | R138: 1 | S138: 1 | T138: 1 | U138: 1 | V138: 1 | W138: 1 | X138: 109.686875
A139: 6.2 | B139: Operator equipment | W139: 0 | X139: 0
A140: 6.2.1 | B140: Drive controllers | C140: =IF(manual=1,0,tot_switches) -> 4 | D140: units | E140: NA | G140: NA | I140: =IF(C140=0,"NA",VLOOKUP(0,switch_cost_cl,3)) -> 1300.897873 | J140: =IF(C140=0,"--",IF(I140="contact vendor","--",C140*I140)) -> 5203.59149 | K140: =IF(C140=0,"NA",VLOOKUP(0,switch_cost_cl,IF(ss_cat="large",4,5))) -> 14 | L140: 1 | M140: =$B$128&" - "&$B$139&" - "&B140 -> System Controls - Operator equipment - Drive controllers | N140: 1 | O140: 1 | P140: 1 | Q140: 1 | R140: 1 | S140: 1 | T140: 1 | U140: 1 | V140: 1 | W140: 1 | X140: 371.6851065
A141: 6.2.2 | B141: Operator interface units | C141: =IF(manual=1,0,plc_interface) -> 2 | D141: units | E141: NA | G141: NA | I141: =IF(C141=0,"NA",VLOOKUP(ss_cat,plc_op_interface_cost_cl,3,FALSE)) -> 1828.625 | J141: 3657.25 | K141: =IF(C141=0,"NA",VLOOKUP(ss_cat,plc_op_interface_cost_cl,IF(ss_cat="large",4,5),FALSE)) -> 8 | L141: 1 | M141: =$B$128&" - "&$B$139&" - "&B141 -> System Controls - Operator equipment - Operator interface units | N141: 1 | O141: 1 | P141: 1 | Q141: 1 | R141: 1 | S141: 1 | T141: 1 | U141: 1 | V141: 1 | W141: 1 | X141: 457.15625
A142: 6.2.3 | B142: PC Workstations | C142: =IF(OR(manual=1,ss_cat="small"),0,workstations) -> 0 | D142: units | E142: NA | G142: NA | I142: =IF(C142=0,"NA",VLOOKUP(0,pc_workstation_cost_cl,3)) -> NA | J142: -- | K142: =IF(C142=0,"NA",VLOOKUP(0,pc_workstation_cost_cl,IF(ss_cat="large",4,5))) -> NA | M142: =$B$128&" - "&$B$139&" - "&B142 -> System Controls - Operator equipment - PC Workstations | N142: 1 | O142: 1 | P142: 1 | Q142: 1 | R142: 1 | S142: 1 | T142: 1 | U142: 1 | V142: 1 | W142: 0 | X142: 0
A143: 6.2.4 | B143: Printers - laser jet | C143: =IF(OR(manual=1,ss_cat="small"),0,printers) -> 0 | D143: units | E143: NA | G143: NA | I143: =IF(C143=0,"NA",VLOOKUP(0,laser_printer_cost_cl,3)) -> NA | J143: -- | K143: =IF(C143=0,"NA",VLOOKUP(0,laser_printer_cost_cl,IF(ss_cat="large",4,5))) -> NA | M143: =$B$128&" - "&$B$139&" - "&B143 -> System Controls - Operator equipment - Printers - laser jet | N143: 1 | O143: 1 | P143: 1 | Q143: 1 | R143: 1 | S143: 1 | T143: 1 | U143: 1 | V143: 1 | W143: 0 | X143: 0
A144: 6.3 | B144: Controls Software | W144: 0 | X144: 0
A145: 6.3.1 | B145: Operator interface software | C145: =IF(OR(manual=1,ss_cat="small"),0,plc_interface) -> 0 | D145: units | E145: NA | G145: NA | I145: =IF(C145=0,"NA",VLOOKUP(0,op_interface_software_cost_cl,3)) -> NA | J145: =IF(C145=0,"--",IF(I145="contact vendor","--",C145*I145)) -> -- | K145: =IF(C145=0,"NA",VLOOKUP(0,op_interface_software_cost_cl,IF(ss_cat="large",4,5))) -> NA | M145: =$B$128&" - "&$B$144&" - "&B145 -> System Controls - Controls Software - Operator interface software | N145: 1 | O145: 1 | P145: 1 | Q145: 1 | R145: 1 | S145: 1 | T145: 1 | U145: 1 | V145: 1 | W145: 0 | X145: 0
A146: 6.3.2 | B146: PLC programming software | C146: =IF(OR(manual=1,ss_cat="small"),0,workstations) -> 0 | D146: units | E146: NA | G146: NA | I146: =IF(C146=0,"NA",VLOOKUP(0,plc_software_cost_cl,3)) -> NA | J146: -- | K146: =IF(C146=0,"NA",VLOOKUP(0,plc_software_cost_cl,IF(ss_cat="large",4,5))) -> NA | M146: =$B$128&" - "&$B$144&" - "&B146 -> System Controls - Controls Software - PLC programming software | N146: 1 | O146: 1 | P146: 1 | Q146: 1 | R146: 1 | S146: 1 | T146: 1 | U146: 1 | V146: 1 | W146: 0 | X146: 0
A147: 6.3.3 | B147: PLC data collection software | C147: =IF(OR(manual=1,ss_cat="small"),0,workstations) -> 0 | D147: units | E147: NA | G147: NA | I147: =IF(C147=0,"NA",VLOOKUP(0,plc_data_software_cost_cl,3)) -> NA | J147: -- | K147: =IF(C147=0,"NA",VLOOKUP(0,plc_data_software_cost_cl,IF(ss_cat="large",4,5))) -> NA | M147: =$B$128&" - "&$B$144&" - "&B147 -> System Controls - Controls Software - PLC data collection software | N147: 1 | O147: 1 | P147: 1 | Q147: 1 | R147: 1 | S147: 1 | T147: 1 | U147: 1 | V147: 1 | W147: 0 | X147: 0
A148: 6.3.4 | B148: Plant intelligence software | C148: =IF(OR(manual=1,ss_cat="small"),0,workstations) -> 0 | D148: units | E148: NA | G148: NA | I148: =IF(C148=0,"NA",VLOOKUP(0,plant_intel_software_cost_cl,3)) -> NA | J148: -- | K148: =IF(C148=0,"NA",VLOOKUP(0,plant_intel_software_cost_cl,IF(ss_cat="large",4,5))) -> NA | M148: =$B$128&" - "&$B$144&" - "&B148 -> System Controls - Controls Software - Plant intelligence software | N148: 1 | O148: 1 | P148: 1 | Q148: 1 | R148: 1 | S148: 1 | T148: 1 | U148: 1 | V148: 1 | W148: 0 | X148: 0
A149: 7. | B149: Offgas Pollution Control Equipment | W149: 0 | X149: 0
A150: 7.1 | B150: Thermal Oxidizer - No Heat Recovery | C150: =IF(og_opt1<>0,0,tot_TOs) -> 0 | D150: units | E150: =IF(C150=0,"NA",TO_size) -> NA | F150: =IF(C150=0,"","cfm") ->  | G150: =IF(C150=0,"NA",IF(curve=1,TO_size,VLOOKUP(TO_size,og_to_cost_cl,2))) -> NA | H150: =IF(C150=0,"","cfm") ->  | I150: =IF(C150=0,"NA",IF(curve=1,og_TO_eq,VLOOKUP(TO_size,og_to_cost_cl,3))) -> NA | J150: =IF(C150=0,"--",IF(I150="contact vendor","--",C150*I150)) -> -- | K150: =IF(C150=0,"NA",VLOOKUP(TO_size,og_to_cost_cl,IF(ss_cat="large",4,5))) -> NA | M150: =$B$149&" - "&B150 -> Offgas Pollution Control Equipment - Thermal Oxidizer - No Heat Recovery | N150: 1 | O150: 1 | P150: 1 | Q150: 1 | R150: 1 | S150: 1 | T150: 1 | U150: 1 | V150: 1 | W150: 0 | X150: 0
A151: 7.1 | B151: Thermal Oxidizer - Recuperative | C151: =IF(og_opt1<>1,0,tot_TOs) -> 0 | D151: units | E151: =IF(C151=0,"NA",TO_size) -> NA | G151: =IF(C151=0,"NA",IF(curve=1,TO_size,VLOOKUP(TO_size,og_torec_cost_cl,2))) -> NA | I151: =IF(C151=0,"NA",IF(curve=1,og_torec_eq,VLOOKUP(TO_size,og_torec_cost_cl,3))) -> NA | J151: -- | K151: =IF(C151=0,"NA",VLOOKUP(TO_size,og_torec_cost_cl,IF(ss_cat="large",4,5))) -> NA | M151: Offgas Pollution Control Equipment - Thermal Oxidizer - Recuperative | N151: 1 | O151: 1 | P151: 1 | Q151: 1 | R151: 1 | S151: 1 | T151: 1 | U151: 1 | V151: 1 | W151: 0 | X151: 0
A152: 7.1 | B152: Thermal Oxidizer - Regenerative/Flameless | C152: =IF(og_opt1<>2,0,tot_TOs) -> 0 | D152: units | E152: =IF(C152=0,"NA",TO_size) -> NA | G152: =IF(C152=0,"NA",IF(curve=1,TO_size,VLOOKUP(TO_size,og_toreg_cost_cl,2))) -> NA | I152: =IF(C152=0,"NA",IF(curve=1,og_toreg_eq,VLOOKUP(TO_size,og_toreg_cost_cl,3))) -> NA | J152: -- | K152: =IF(C152=0,"NA",VLOOKUP(TO_size,og_toreg_cost_cl,IF(ss_cat="large",4,5))) -> NA | M152: Offgas Pollution Control Equipment - Thermal Oxidizer - Regenerative/Flameless | N152: 1 | O152: 1 | P152: 1 | Q152: 1 | R152: 1 | S152: 1 | T152: 1 | U152: 1 | V152: 1 | W152: 0 | X152: 0
A153: 7.1 | B153: Catalytic Oxidizer - No Heat Recovery | C153: =IF(og_opt1<>0,0,tot_COs) -> 0 | D153: units | E153: =IF(C153=0,"NA",CO_size) -> NA | G153: =IF(C153=0,"NA",IF(curve=1,CO_size,VLOOKUP(CO_size,og_co_cost_cl,2))) -> NA | I153: =IF(C153=0,"NA",IF(curve=1,og_co_eq,VLOOKUP(CO_size,og_co_cost_cl,3))) -> NA | J153: -- | K153: =IF(C153=0,"NA",VLOOKUP(CO_size,og_co_cost_cl,IF(ss_cat="large",4,5))) -> NA | M153: Offgas Pollution Control Equipment - Catalytic Oxidizer - No Heat Recovery | N153: 1 | O153: 1 | P153: 1 | Q153: 1 | R153: 1 | S153: 1 | T153: 1 | U153: 1 | V153: 1 | W153: 0 | X153: 0
A154: 7.1 | B154: Catalytic Oxidizer - Recuperative | C154: =IF(og_opt1<>1,0,tot_COs) -> 0 | D154: units | E154: =IF(C154=0,"NA",CO_size) -> NA | G154: =IF(C154=0,"NA",IF(curve=1,CO_size,VLOOKUP(CO_size,og_corec_cost_cl,2))) -> NA | I154: =IF(C154=0,"NA",IF(curve=1,og_corec_eq,VLOOKUP(CO_size,og_corec_cost_cl,3))) -> NA | J154: -- | K154: =IF(C154=0,"NA",VLOOKUP(CO_size,og_corec_cost_cl,IF(ss_cat="large",4,5))) -> NA | M154: Offgas Pollution Control Equipment - Catalytic Oxidizer - Recuperative | N154: 1 | O154: 1 | P154: 1 | Q154: 1 | R154: 1 | S154: 1 | T154: 1 | U154: 1 | V154: 1 | W154: 0 | X154: 0
A155: 7.1 | B155: Catalytic Oxidizer - Regenerative | C155: =IF(og_opt1<>2,0,tot_COs) -> 0 | D155: units | E155: =IF(C155=0,"NA",CO_size) -> NA | G155: =IF(C155=0,"NA",IF(curve=1,CO_size,VLOOKUP(CO_size,og_coreg_cost_cl,2))) -> NA | I155: =IF(C155=0,"NA",IF(curve=1,og_coreg_eq,VLOOKUP(CO_size,og_coreg_cost_cl,3))) -> NA | J155: -- | K155: =IF(C155=0,"NA",VLOOKUP(CO_size,og_coreg_cost_cl,IF(ss_cat="large",4,5))) -> NA | M155: Offgas Pollution Control Equipment - Catalytic Oxidizer - Regenerative | N155: 1 | O155: 1 | P155: 1 | Q155: 1 | R155: 1 | S155: 1 | T155: 1 | U155: 1 | V155: 1 | W155: 0 | X155: 0
A156: 7.1 | B156: Gas-phase GAC Adsorber | C156: =tot_GAC_beds -> 0 | D156: units | E156: =IF(C156=0,"NA",GAC_bed_size) -> NA | F156: =IF(C156=0,"","cu. ft") ->  | G156: =IF(C156=0,"NA",IF(curve=1,GAC_bed_size,VLOOKUP(GAC_bed_size,og_gac_cost_cl,2))) -> NA | H156: =IF(C156=0,"","cu. ft") ->  | I156: =IF(C156=0,"NA",IF(curve=1,og_gac_eq,VLOOKUP(GAC_bed_size,og_gac_cost_cl,3))) -> NA | J156: -- | K156: =IF(C156=0,"NA",VLOOKUP(GAC_bed_size,og_gac_cost_cl,IF(ss_cat="large",4,5))) -> NA | M156: =$B$149&" - "&B156 -> Offgas Pollution Control Equipment - Gas-phase GAC Adsorber | N156: 1 | O156: 1 | P156: 1 | Q156: 1 | R156: 1 | S156: 1 | T156: 1 | U156: 1 | V156: 1 | W156: =IF(ISERROR(K156*L156),0,IF(K156<1,0,L156)) -> 0 | X156: =IF(W156,J156/K156,0) -> 0
A157: 7.2 | B157: Initial GAC Charge | C157: =GAC -> 0 | D157: lbs | E157: NA | G157: NA | I157: =IF(C157=0,"NA",IF(curve=1,gac_eq,VLOOKUP(GAC,gac_cost_cl,3))) -> NA | J157: -- | K157: =IF(C157=0,"NA",VLOOKUP(GAC,gac_cost_cl,IF(ss_cat="large",4,5))) -> NA | M157: =$B$149&" - "&B157 -> Offgas Pollution Control Equipment - Initial GAC Charge | N157: 1 | O157: 1 | P157: 1 | Q157: 1 | R157: 1 | S157: 1 | T157: 1 | U157: 1 | V157: 1 | W157: =IF(ISERROR(K157*L157),0,IF(K157<1,0,L157)) -> 0 | X157: =IF(W157,J157/K157,0) -> 0
A158: 8. | B158: Building Structures and HVAC | W158: 0 | X158: 0
A159: 8.1 | B159: Building 1 | W159: 0 | X159: 0
A160: 8.1.1 | B160: Small Low Cost Shed | C160: =IF(AND(build1_fp>0,build1_fp<500),1,0) -> 1 | D160: units | E160: =build1_fp -> 70 | F160: sf | G160: =build1_fp -> 70 | H160: sf | I160: =IF(C160=0,"NA",VLOOKUP(build1_fp,bldg_shed_cost_cl,3)) -> 50.74228944 | J160: =IF(OR(I160="NA",I160="contact vendor"),"--",G160*I160) -> 3551.960261 | K160: =IF($C160=0,"N/A",VLOOKUP(build1_fp,bldg_shed_cost_cl,IF(ss_cat="large",4,5))) -> 20 | L160: 1 | M160: =B158&" - "&B159&" - "&B160 -> Building Structures and HVAC - Building 1 - Small Low Cost Shed | N160: =IF(include_buildings=1,2,0) -> 2 | O160: 2 | P160: 2 | Q160: 2 | R160: 2 | S160: 2 | T160: 2 | U160: 2 | V160: 2 | W160: 1 | X160: 177.5980131 | Y160: =IF(W160,K160,0) -> 20
A161: 8.1.1 | B161: Low Quality | C161: =IF(build1_fp>=500,1,0) -> 0 | D161: units | E161: =build1_fp -> 70 | F161: sf | G161: =build1_fp -> 70 | H161: sf | I161: =IF(C161=0,"NA",IF(curve=1,bldg_lo_eq_1,VLOOKUP(build1_fp, bldg_lo_cost_cl,3))) -> NA | J161: =IF(OR(I161="NA",I161="contact vendor"),"--",G161*I161) -> -- | K161: =IF($C161=0,"N/A",VLOOKUP(build1_fp,bldg_lo_cost_cl,IF(ss_cat="large",4,5))) -> N/A | L161: 0 | M161: =B158&" - "&B159&" - "&B161 -> Building Structures and HVAC - Building 1 - Low Quality | N161: =include_buildings -> 1 | Q161: =include_buildings -> 1 | T161: =include_buildings -> 1 | W161: 0 | X161: 0 | Y161: =IF(W161,K161,0) -> 0
A162: 8.1.1 | B162: Medium Quality | C162: =IF(build1_fp>=500,1,0) -> 0 | D162: units | E162: =build1_fp -> 70 | F162: sf | G162: =build1_fp -> 70 | H162: sf | I162: =IF(C162=0,"NA",IF(curve=1,bldg_mid_eq_1,VLOOKUP(build1_fp, bldg_mid_cost_cl,3))) -> NA | J162: =IF(OR(I162="NA",I162="contact vendor"),"--",G162*I162) -> -- | K162: =IF($C162=0,"N/A",VLOOKUP(build1_fp,bldg_mid_cost_cl,IF(ss_cat="large",4,5))) -> N/A | L162: 0 | M162: =B158&" - "&B159&" - "&B162 -> Building Structures and HVAC - Building 1 - Medium Quality | O162: =include_buildings -> 1 | R162: =include_buildings -> 1 | U162: =include_buildings -> 1 | W162: 0 | X162: 0 | Y162: =IF(W162,K162,0) -> 0
A163: 8.1.1 | B163: High Quality | C163: =IF(build1_fp>=500,1,0) -> 0 | D163: units | E163: =build1_fp -> 70 | F163: sf | G163: =build1_fp -> 70 | H163: sf | I163: =IF(C163=0,"NA",IF(curve=1,bldg_hi_eq_1,VLOOKUP(build1_fp, bldg_hi_cost_cl,3))) -> NA | J163: -- | K163: =IF($C163=0,"N/A",VLOOKUP(build1_fp,bldg_hi_cost_cl,IF(ss_cat="large",4,5))) -> N/A | L163: 0 | M163: =B158&" - "&B159&" - "&B163 -> Building Structures and HVAC - Building 1 - High Quality | P163: =include_buildings -> 1 | S163: =include_buildings -> 1 | V163: =include_buildings -> 1 | W163: 0 | X163: 0 | Y163: =IF(W163,K163,0) -> 0
A164: 8.2 | B164: ="Heating System"&IF(build1_heat="heat pump"," (included with cooling system)","") -> Heating System | W164: 0 | X164: 0
A165: 8.2.1 | B165: Electric resistance | C165: =IF(build1_heat="heat pump","NA",IF(build1_need_heat,build1_zones,"NA")) -> NA | D165: =IF(C165="NA","","zones") ->  | E165: =IF(C165="NA","NA",build1_heat_mbh) -> NA | F165: =IF(C165="NA","","MBH") ->  | G165: =IF(C165="NA","NA",IF(curve=1,build1_heat_mbh,VLOOKUP(build1_heat_mbh,hvac_elec_cost_cl,2))) -> NA | H165: =IF(C165="NA","","MBH") ->  | I165: =IF(C165="NA","NA",IF(curve=1,hvac_elec_eq_1,VLOOKUP(build1_heat_mbh,hvac_elec_cost_cl,3))) -> NA | J165: =IF(OR(I165="NA",I165="contact vendor"),"--",C165*I165) -> -- | K165: =IF(C165="NA","NA",VLOOKUP(build1_heat_mbh,hvac_elec_cost_cl,IF(ss_cat="large",4,5))) -> NA | M165: =B158&" - "&B159&" - "&B164&" - "&B165 -> Building Structures and HVAC - Building 1 - Heating System - Electric resistance | N165: =IF(include_HVAC=0,0,IF(build1_heat=$B165,1,"")) ->  | W165: =IF(ISERROR(K165*L165),0,IF(K165<1,0,L165)) -> 0 | X165: =IF(W165,J165/K165,0) -> 0
A166: 8.2.1 | B166: Natural gas non-condensing furnace | C166: =IF(build1_heat="heat pump","NA",IF(build1_need_heat,build1_zones,"NA")) -> NA | D166: =IF(C166="NA","","zones") ->  | E166: =IF(C166="NA","NA",build1_heat_mbh) -> NA | F166: =IF(C166="NA","","MBH") ->  | G166: =IF(C166="NA","NA",IF(curve=1,build1_heat_mbh,VLOOKUP(build1_heat_mbh,hvac_gas_non_cost_cl,2))) -> NA | H166: =IF(C166="NA","","MBH") ->  | I166: =IF(C166="NA","NA",IF(curve=1,hvac_gas_non_eq_1,VLOOKUP(build1_heat_mbh,hvac_gas_non_cost_cl,3))) -> NA | J166: =IF(OR(I166="NA",I166="contact vendor"),"--",C166*I166) -> -- | K166: =IF(C166="NA","NA",VLOOKUP(build1_heat_mbh,hvac_gas_non_cost_cl,IF(ss_cat="large",4,5))) -> NA | M166: =B158&" - "&B159&" - "&B164&" - "&B166 -> Building Structures and HVAC - Building 1 - Heating System - Natural gas non-condensing furnace | W166: 0 | X166: 0
A167: 8.2.1 | B167: Natural gas condensing furnace | C167: =IF(build1_heat="heat pump","NA",IF(build1_need_heat,build1_zones,"NA")) -> NA | D167: =IF(C167="NA","","zones") ->  | E167: =IF(C167="NA","NA",build1_heat_mbh) -> NA | F167: =IF(C167="NA","","MBH") ->  | G167: =IF(C167="NA","NA",IF(curve=1,build1_heat_mbh,VLOOKUP(build1_heat_mbh,hvac_gas_cost_cl,2))) -> NA | H167: =IF(C167="NA","","MBH") ->  | I167: =IF(C167="NA","NA",IF(curve=1,hvac_gas_eq_1,VLOOKUP(build1_heat_mbh,hvac_gas_cost_cl,3))) -> NA | J167: =IF(OR(I167="NA",I167="contact vendor"),"--",C167*I167) -> -- | K167: =IF(C167="NA","NA",VLOOKUP(build1_heat_mbh,hvac_gas_cost_cl,IF(ss_cat="large",4,5))) -> NA | M167: =B158&" - "&B159&" - "&B164&" - "&B167 -> Building Structures and HVAC - Building 1 - Heating System - Natural gas condensing furnace | W167: 0 | X167: 0
A168: 8.2.1 | B168: Standard efficiency oil furnace | C168: =IF(build1_heat="heat pump","NA",IF(build1_need_heat,build1_zones,"NA")) -> NA | D168: =IF(C168="NA","","zones") ->  | E168: =IF(C168="NA","NA",build1_heat_mbh) -> NA | F168: =IF(C168="NA","","MBH") ->  | G168: =IF(C168="NA","NA",IF(curve=1,build1_heat_mbh,VLOOKUP(E168,hvac_oil_std_cost_cl,2))) -> NA | H168: =IF(C168="NA","","MBH") ->  | I168: =IF(C168="NA","NA",IF(curve=1,hvac_oil_std_eq_1,VLOOKUP(build1_heat_mbh,hvac_oil_std_cost_cl,3))) -> NA | J168: =IF(OR(I168="NA",I168="contact vendor"),"--",C168*I168) -> -- | K168: =IF(C168="NA","NA",VLOOKUP(build1_heat_mbh,hvac_oil_std_cost_cl,IF(ss_cat="large",4,5))) -> NA | M168: =B158&" - "&B159&" - "&B164&" - "&B168 -> Building Structures and HVAC - Building 1 - Heating System - Standard efficiency oil furnace | W168: 0 | X168: 0
A169: 8.2.1 | B169: Mid-efficiency oil furnace | C169: =IF(build1_heat="heat pump","NA",IF(build1_need_heat,build1_zones,"NA")) -> NA | D169: =IF(C169="NA","","zones") ->  | E169: =IF(C169="NA","NA",build1_heat_mbh) -> NA | F169: =IF(C169="NA","","MBH") ->  | G169: =IF(C169="NA","NA",IF(curve=1,build1_heat_mbh,VLOOKUP(build1_heat_mbh,hvac_oil_mid_cost_cl,2))) -> NA | H169: =IF(C169="NA","","MBH") ->  | I169: =IF(C169="NA","NA",IF(curve=1,hvac_oil_mid_eq_1,VLOOKUP(build1_heat_mbh,hvac_oil_mid_cost_cl,3))) -> NA | J169: =IF(OR(I169="NA",I169="contact vendor"),"--",C169*I169) -> -- | K169: =IF(C169="NA","NA",VLOOKUP(build1_heat_mbh,hvac_oil_mid_cost_cl,IF(ss_cat="large",4,5))) -> NA | M169: =B158&" - "&B159&" - "&B164&" - "&B169 -> Building Structures and HVAC - Building 1 - Heating System - Mid-efficiency oil furnace | W169: 0 | X169: 0
A170: 8.3 | B170: =IF(build1_heat="heat pump","Heating and ","")&"Cooling System" -> Cooling System | W170: 0 | X170: 0
A171: 8.3.1 | B171: Air conditioner | C171: =IF(build1_need_cool,build1_zones,"NA") -> NA | D171: =IF(C171="NA","","zones") ->  | E171: =IF(C171="NA","NA",build1_cooling_tons) -> NA | F171: =IF(C171="NA","","tons") ->  | G171: =IF(C171="NA","NA",IF(curve=1,build1_cooling_tons,VLOOKUP(build1_cooling_tons,hvac_ac_cost_cl,2))) -> NA | H171: =IF(C171="NA","","tons") ->  | I171: =IF(C171="NA","NA",IF(curve=1,hvac_ac_eq_1,VLOOKUP(build1_cooling_tons,hvac_ac_cost_cl,3))) -> NA | J171: =IF(OR(I171="NA",I171="contact vendor"),"--",C171*I171) -> -- | K171: =IF(C171="NA","NA",VLOOKUP(build1_cooling_tons,hvac_ac_cost_cl,IF(ss_cat="large",4,5))) -> NA | M171: =B158&" - "&B159&" - "&B170&" - "&B171 -> Building Structures and HVAC - Building 1 - Cooling System - Air conditioner | N171: =IF(build1_cool=$B171,1,"") ->  | O171: =IF(include_HVAC=0,0,IF(build1_cool=$B171,1,"")) ->  | W171: 0 | X171: 0
A172: 8.3.1 | B172: Heat pump | C172: =IF(AND(hp_ok_1,build1_need_cool),build1_zones,"NA") -> NA | D172: =IF(C172="NA","","zones") ->  | E172: =IF(C172="NA","NA",build1_cooling_tons) -> NA | F172: =IF(C172="NA","","tons") ->  | G172: =IF(C172="NA","NA",IF(curve=1,build1_cooling_tons,VLOOKUP(build1_cooling_tons,hvac_hp_cost_cl,2))) -> NA | H172: =IF(C172="NA","","tons") ->  | I172: =IF(C172="NA","NA",IF(curve=1,hvac_hp_eq_1,VLOOKUP(build1_cooling_tons,hvac_hp_cost_cl,3))) -> NA | J172: =IF(OR(I172="NA",I172="contact vendor"),"--",C172*I172) -> -- | K172: =IF(C172="NA","NA",VLOOKUP(build1_cooling_tons,hvac_hp_cost_cl,IF(ss_cat="large",4,5))) -> NA | M172: =B158&" - "&B159&" - "&B170&" - "&B172 -> Building Structures and HVAC - Building 1 - Cooling System - Heat pump | W172: 0 | X172: 0
A173: 8.4 | B173: Building 2 | W173: 0 | X173: 0
A174: 8.4.1 | B174: Small Low Cost Shed | C174: =IF(AND(build2_fp>0,build2_fp<500),1,0) -> 0 | D174: units | E174: =build2_fp -> 0 | F174: sf | G174: =build2_fp -> 0 | H174: sf | I174: =IF(C174=0,"NA",VLOOKUP(build2_fp,bldg_shed_cost_cl,3)) -> NA | J174: =IF(OR(I174="NA",I174="contact vendor"),"--",G174*I174) -> -- | K174: =IF($C174=0,"N/A",VLOOKUP(build2_fp,bldg_shed_cost_cl,IF(ss_cat="large",4,5))) -> N/A | M174: =B158&" - "&B173&" - "&B174 -> Building Structures and HVAC - Building 2 - Small Low Cost Shed | N174: =IF(include_buildings=1,2,0) -> 2 | O174: 2 | P174: 2 | Q174: 2 | R174: 2 | S174: 2 | T174: 2 | U174: 2 | V174: 2 | W174: 0 | X174: 0 | Y174: =IF(W174,K174,0) -> 0
A175: 8.4.1 | B175: Low Quality | C175: =IF(build2_fp>=500,1,0) -> 0 | D175: units | E175: =build2_fp -> 0 | F175: sf | G175: =build2_fp -> 0 | H175: sf | I175: =IF(C175=0,"NA",IF(curve=1,bldg_lo_eq_2,VLOOKUP(build2_fp, bldg_lo_cost_cl,3))) -> NA | J175: -- | K175: =IF($C175=0,"N/A",VLOOKUP(build2_fp,bldg_lo_cost_cl,IF(ss_cat="large",4,5))) -> N/A | M175: =B158&" - "&B173&" - "&B175 -> Building Structures and HVAC - Building 2 - Low Quality | N175: =include_buildings -> 1 | Q175: =include_buildings -> 1 | T175: =include_buildings -> 1 | W175: 0 | X175: 0 | Y175: =IF(W175,K175,0) -> 0
A176: 8.4.1 | B176: Medium Quality | C176: =IF(build2_fp>=500,1,0) -> 0 | D176: units | E176: =build2_fp -> 0 | F176: sf | G176: =build2_fp -> 0 | H176: sf | I176: =IF(C176=0,"NA",IF(curve=1,bldg_mid_eq_2,VLOOKUP(build2_fp, bldg_mid_cost_cl,3))) -> NA | J176: -- | K176: =IF($C176=0,"N/A",VLOOKUP(build2_fp,bldg_mid_cost_cl,IF(ss_cat="large",4,5))) -> N/A | M176: =B158&" - "&B173&" - "&B176 -> Building Structures and HVAC - Building 2 - Medium Quality | O176: =include_buildings -> 1 | R176: =include_buildings -> 1 | U176: =include_buildings -> 1 | W176: 0 | X176: 0 | Y176: =IF(W176,K176,0) -> 0
A177: 8.4.1 | B177: High Quality | C177: =IF(build2_fp>=500,1,0) -> 0 | D177: units | E177: =build2_fp -> 0 | F177: sf | G177: =build2_fp -> 0 | H177: sf | I177: =IF(C177=0,"NA",IF(curve=1,bldg_hi_eq_2,VLOOKUP(build2_fp, bldg_hi_cost_cl,3))) -> NA | J177: -- | K177: =IF($C177=0,"N/A",VLOOKUP(build2_fp,bldg_hi_cost_cl,IF(ss_cat="large",4,5))) -> N/A | M177: =B158&" - "&B173&" - "&B177 -> Building Structures and HVAC - Building 2 - High Quality | P177: =include_buildings -> 1 | S177: =include_buildings -> 1 | V177: =include_buildings -> 1 | W177: 0 | X177: 0 | Y177: =IF(W177,K177,0) -> 0
A178: 8.5 | B178: ="Heating System"&IF(build2_heat="heat pump"," (included with cooling system)","") -> Heating System | W178: 0 | X178: 0
A179: 8.5.1 | B179: Electric resistance | C179: =IF(build2_heat="heat pump","NA",IF(build2_need_heat,build2_zones,"NA")) -> NA | D179: =IF(C179="NA","","zones") ->  | E179: =IF(C179="NA","NA",build2_heat_mbh) -> NA | F179: =IF(C179="NA","","MBH") ->  | G179: =IF(C179="NA","NA",IF(curve=1,build2_heat_mbh,VLOOKUP(build2_heat_mbh,hvac_elec_cost_cl,2))) -> NA | H179: =IF(C179="NA","","MBH") ->  | I179: =IF(C179="NA","NA",IF(curve=1,hvac_elec_eq_2,VLOOKUP(build2_heat_mbh,hvac_elec_cost_cl,3))) -> NA | J179: =IF(OR(I179="NA",I179="contact vendor"),"--",C179*I179) -> -- | K179: =IF(C179="NA","NA",VLOOKUP(build2_heat_mbh,hvac_elec_cost_cl,IF(ss_cat="large",4,5))) -> NA | M179: =B158&" - "&B173&" - "&B178&" - "&B179 -> Building Structures and HVAC - Building 2 - Heating System - Electric resistance | N179: =IF(include_HVAC=0,0,IF(build2_heat=$B179,1,"")) ->  | W179: 0 | X179: 0
A180: 8.5.1 | B180: Natural gas non-condensing furnace | C180: =IF(build2_heat="heat pump","NA",IF(build2_need_heat,build2_zones,"NA")) -> NA | D180: =IF(C180="NA","","zones") ->  | E180: =IF(C180="NA","NA",build2_heat_mbh) -> NA | F180: =IF(C180="NA","","MBH") ->  | G180: =IF(C180="NA","NA",IF(curve=1,build2_heat_mbh,VLOOKUP(build2_heat_mbh,hvac_gas_non_cost_cl,2))) -> NA | H180: =IF(C180="NA","","MBH") ->  | I180: =IF(C180="NA","NA",IF(curve=1,hvac_gas_non_eq_2,VLOOKUP(build2_heat_mbh,hvac_gas_non_cost_cl,3))) -> NA | J180: =IF(OR(I180="NA",I180="contact vendor"),"--",C180*I180) -> -- | K180: =IF(C180="NA","NA",VLOOKUP(build2_heat_mbh,hvac_gas_non_cost_cl,IF(ss_cat="large",4,5))) -> NA | M180: =B158&" - "&B173&" - "&B178&" - "&B180 -> Building Structures and HVAC - Building 2 - Heating System - Natural gas non-condensing furnace | W180: 0 | X180: 0
A181: 8.5.1 | B181: Natural gas condensing furnace | C181: =IF(build2_heat="heat pump","NA",IF(build2_need_heat,build2_zones,"NA")) -> NA | D181: =IF(C181="NA","","zones") ->  | E181: =IF(C181="NA","NA",build2_heat_mbh) -> NA | F181: =IF(C181="NA","","MBH") ->  | G181: =IF(C181="NA","NA",IF(curve=1,build2_heat_mbh,VLOOKUP(build2_heat_mbh,hvac_gas_cost_cl,2))) -> NA | H181: =IF(C181="NA","","MBH") ->  | I181: =IF(C181="NA","NA",IF(curve=1,hvac_gas_eq_2,VLOOKUP(build2_heat_mbh,hvac_gas_cost_cl,3))) -> NA | J181: =IF(OR(I181="NA",I181="contact vendor"),"--",C181*I181) -> -- | K181: =IF(C181="NA","NA",VLOOKUP(build2_heat_mbh,hvac_gas_cost_cl,IF(ss_cat="large",4,5))) -> NA | M181: =B158&" - "&B173&" - "&B178&" - "&B181 -> Building Structures and HVAC - Building 2 - Heating System - Natural gas condensing furnace | W181: 0 | X181: 0
A182: 8.5.1 | B182: Standard efficiency oil furnace | C182: =IF(build2_heat="heat pump","NA",IF(build2_need_heat,build2_zones,"NA")) -> NA | D182: =IF(C182="NA","","zones") ->  | E182: =IF(C182="NA","NA",build2_heat_mbh) -> NA | F182: =IF(C182="NA","","MBH") ->  | G182: =IF(C182="NA","NA",IF(curve=1,build2_heat_mbh,VLOOKUP(E182,hvac_oil_std_cost_cl,2))) -> NA | H182: =IF(C182="NA","","MBH") ->  | I182: =IF(C182="NA","NA",IF(curve=1,hvac_oil_std_eq_2,VLOOKUP(build2_heat_mbh,hvac_oil_std_cost_cl,3))) -> NA | J182: =IF(OR(I182="NA",I182="contact vendor"),"--",C182*I182) -> -- | K182: =IF(C182="NA","NA",VLOOKUP(build2_heat_mbh,hvac_oil_std_cost_cl,IF(ss_cat="large",4,5))) -> NA | M182: =B158&" - "&B173&" - "&B178&" - "&B182 -> Building Structures and HVAC - Building 2 - Heating System - Standard efficiency oil furnace | W182: 0 | X182: 0
A183: 8.5.1 | B183: Mid-efficiency oil furnace | C183: =IF(build2_heat="heat pump","NA",IF(build2_need_heat,build2_zones,"NA")) -> NA | D183: =IF(C183="NA","","zones") ->  | E183: =IF(C183="NA","NA",build2_heat_mbh) -> NA | F183: =IF(C183="NA","","MBH") ->  | G183: =IF(C183="NA","NA",IF(curve=1,build2_heat_mbh,VLOOKUP(build2_heat_mbh,hvac_oil_mid_cost_cl,2))) -> NA | H183: =IF(C183="NA","","MBH") ->  | I183: =IF(C183="NA","NA",IF(curve=1,hvac_oil_mid_eq_2,VLOOKUP(build2_heat_mbh,hvac_oil_mid_cost_cl,3))) -> NA | J183: =IF(OR(I183="NA",I183="contact vendor"),"--",C183*I183) -> -- | K183: =IF(C183="NA","NA",VLOOKUP(build2_heat_mbh,hvac_oil_mid_cost_cl,IF(ss_cat="large",4,5))) -> NA | M183: =B158&" - "&B173&" - "&B178&" - "&B183 -> Building Structures and HVAC - Building 2 - Heating System - Mid-efficiency oil furnace | W183: 0 | X183: 0
A184: 8.6 | B184: =IF(build2_heat="heat pump","Heating and ","")&"Cooling System" -> Cooling System | W184: 0 | X184: 0
A185: 8.6.1 | B185: Air conditioner | C185: =IF(build2_need_cool,build2_zones,"NA") -> NA | D185: =IF(C185="NA","","zones") ->  | E185: =IF(C185="NA","NA",build2_cooling_tons) -> NA | F185: =IF(C185="NA","","tons") ->  | G185: =IF(C185="NA","NA",IF(curve=1,build2_cooling_tons,VLOOKUP(build2_cooling_tons,hvac_ac_cost_cl,2))) -> NA | H185: =IF(C185="NA","","tons") ->  | I185: =IF(C185="NA","NA",IF(curve=1,hvac_ac_eq_2,VLOOKUP(build2_cooling_tons,hvac_ac_cost_cl,3))) -> NA | J185: =IF(OR(I185="NA",I185="contact vendor"),"--",C185*I185) -> -- | K185: =IF(C185="NA","NA",VLOOKUP(build2_cooling_tons,hvac_ac_cost_cl,IF(ss_cat="large",4,5))) -> NA | M185: =B158&" - "&B173&" - "&B184&" - "&B185 -> Building Structures and HVAC - Building 2 - Cooling System - Air conditioner | N185: =IF(include_HVAC=0,0,IF(build2_cool=$B185,1,"")) ->  | W185: 0 | X185: 0
A186: 8.6.1 | B186: Heat pump | C186: =IF(AND(hp_ok_2,build2_need_cool),build2_zones,"NA") -> NA | D186: =IF(C186="NA","","zones") ->  | E186: =IF(C186="NA","NA",build2_cooling_tons) -> NA | F186: =IF(C186="NA","","tons") ->  | G186: =IF(C186="NA","NA",IF(curve=1,build2_cooling_tons,VLOOKUP(build2_cooling_tons,hvac_hp_cost_cl,2))) -> NA | H186: =IF(C186="NA","","tons") ->  | I186: =IF(C186="NA","NA",IF(curve=1,hvac_hp_eq_2,VLOOKUP(build2_cooling_tons,hvac_hp_cost_cl,3))) -> NA | J186: =IF(OR(I186="NA",I186="contact vendor"),"--",C186*I186) -> -- | K186: =IF(C186="NA","NA",VLOOKUP(build2_cooling_tons,hvac_hp_cost_cl,IF(ss_cat="large",4,5))) -> NA | M186: =B158&" - "&B173&" - "&B184&" - "&B186 -> Building Structures and HVAC - Building 2 - Cooling System - Heat pump | W186: 0 | X186: 0
A187: 8.7 | B187: Concrete Pad | C187: 1 | D187: units | E187: =concrete -> 1 | F187: cy | G187: =concrete -> 1 | H187: cy | I187: =VLOOKUP(0,conc_pad_cost_cl,3) -> 492.75 | J187: =IF(I187="contact vendor","--",E187*I187) -> 492.75 | K187: =VLOOKUP(0,conc_pad_cost_cl,IF(ss_cat="large",4,5)) -> 37 | L187: 1 | M187: =B158&" - "&B187 -> Building Structures and HVAC - Concrete Pad | N187: =include_pad -> 1 | O187: 1 | P187: 1 | Q187: 1 | R187: 1 | S187: 1 | T187: 1 | U187: 1 | V187: 1 | W187: 1 | X187: 13.31756757
W188: direct_for_UL | X188: total_direct_depreciation | Y188: build_UL
A189: Total of direct line items above: | W189: =SUMPRODUCT(W36:W187,J36:J187) -> 78997.74754 | X189: =SUM(X36:X187) -> 5290.713399 | Y189: =MAX(Y160:Y163,Y174:Y177) -> 20
B190: Direct cost category | C190: Total | D190: Guidance
B191: Process costs | C191: =SUMPRODUCT(J36:J157,L36:L157) -> 74953.03728 | D191: Excludes alternate cost line items in italics, without a 1 in the "Use?" column. Includes installation, transportation, and O&P
B192: Building costs | C192: =SUMPRODUCT(J158:J187,L158:L187) -> 4044.710261 | D192: See input sheet to exclude buildings/HVAC; indirect assumptions sheet to exclude concrete pad
B193: Total direct capital cost | C193: =process_cost+Building_cost -> 78997.74754 | D193: Total of process and building costs
A195: Add-on Cost Details (See indirect assumptions sheet to exclude individual add-on items)
B196: Add-on Line Item | C196: Total | D196: Guidance
B197: Permits | C197: =include_permits*permit_cost -> 252.85
B198: Pilot Study | C198: =include_pilot*VLOOKUP(tech_name,CHOOSE(ss_cat2,pilot_cost_small_cl,pilot_cost_medium_cl,pilot_cost_large_cl),2,FALSE) -> 16444.95731
B199: Land Cost | C199: =include_land*land_required*land_cost -> 826.0264583 | D199: ="For "&TEXT(land_required,"#0.00")&" acres" -> For 0.04 acres
B200: Total add-on costs | C200: =SUM(C197:C199) -> 17523.83376 | D200: Total of permits, piloting, and land
A202: Indirect Capital Cost Details (See indirect assumptions sheet to exclude individual indirect items)
B203: Indirect Line Item | C203: Total | D203: Percent | E203: Guidance
B204: Mobilization and Demobilization | C204: =(direct_cost+C206+C207+C208+C209+C210+C211+C212+C215)*D204 -> 0 | D204: =IF(design_type=1,mob_pct_pre,CHOOSE(ss_cat2,mob_pct_small,mob_pct_medium,mob_pct_large)) -> 0 | E204: Excluded for pre-engineered packages
... 96 more rows

Sheet Critical Design Assumptions
A1: Default Critical Design Assumptions
A2: Users may change any of the cells in the Value column; cells in gold are most important and may vary based on contaminant treated and site-specific conditions
A4: Assumption | B4: Range Name | C4: Value | D4: Units | E4: Guidance
A5: Use curve fit for costs | B5: curve | C5: 1 | D5: <-- enter 1 to use cost equations, leave blank to use lookup tables for component costs | E5: Keeping this assumption with a value of 1 is strongly recommended; the cost equations method is more appropriate for national cost estimating and will be more accurate for nearly all user-specified designs
A7: Bypass Flow
A8: Percent of Total Flow that is Bypassed | B8: bp_pct | C8: 0 | E8: Typically, bypass flow ranges between 0% and 50% of inflow. Enter zero to remove bypass piping and components. 0% is default consistent with the type of cost curves that EPA will need for its national cost simulation model.
A10: Pumps and Blowers
A11: Safety factor for pumps | B11: pump_safety_factor | C11: 0.25
A12: Number of redundant pumps | B12: NRD_pumps | C12: 0 | E12: Multiple pump approach eliminates need for redundant pumps.
A13: Blower safety factor | B13: blower_safety_factor | C13: 0.25
A14: Number of redundant blowers for systems with only one basin | B14: NRD_blowers_1 | C14: 1 | E14: Provides a spare blower to prevent a single point of failure when only one basin is present
A15: Number of redundant blowers | B15: NRD_blowers | C15: 0 | E15: Systems with multiple basins can operate at reduced capacity when a blower is out of service
A16: Minimum average flow as percentage of design | B16: min_avg_flow | C16: 0.1 | E16: The minimum ratio of average flow to design flow. If the ratio falls below this value, it will trigger a warning on the INPUT sheet. If this value is zero, no minimum is enforced.
A18: Contact basin design
A19: Maximum air surface loading intensity | B19: max_air_load | C19: 16.5 | D19: cfm/square ft | E19: Maximum should be <16 to 20 cfm/ft2. Recommend 16 to 17 cfm/ft2 (Lowry peer review comments)
A20: Minimum basin length to width ratio | B20: max_ratio | C20: 2.6 | E20: Basins are longer than they are wide
A21: Freeboard | B21: freeboard | C21: 2 | D21: feet | E21: 1 to 3 feet, assuming 2 feet (ASCE/AWWA, 1997, p. 471)
A22: Number of redundant basins | B22: NRD_tanks | C22: 0 | D22: units | E22: According to TDP, basins are not considered for redundancy
A23: Maximum basin length (pre-engineered package) | B23: max_length_package | C23: 12 | D23: feet | E23: Vendor packages supply aboveground basins up to 12 feet long (Lowry peer review comments)
A24: Maximum basin length (custom design) | B24: max_length_custom | C24: 60 | D24: feet | E24: Vendors have custom designed in-ground concrete basins up to 60 feet long (Lowry peer review comments)
A25: Quiescent chamber length as a proportion of stage length | B25: qchamber_ratio | C25: 0.5 | E25: Based on review of vendor schematics, quiescent chamber is approximately half the length of an individual stage
A26: Concrete thickness | B26: conc_thick | C26: 1 | D26: feet
A27: Overexcavation for concrete basins | B27: overexcavate | C27: 4 | D27: ft | E27: 2 feet each side in each dimension. This assumption used only if concrete basins are used.
A28: Diffuser access space | B28: diffuser_access_space | C28: 1 | D28: inches | E28: Added to diffuser length and diameter to allow access
A30: GAC Regeneration
A33: Pipe Length Multipliers
A34: Influent and treated water pipe length multiplier | B34: in_out_pipe_mult | C34: 2 | D34: times facility length
A35: Process pipe length multiplier | B35: proc_pipe_mult | C35: 2 | D35: times facility length
A36: Bypass pipe length multiplier | B36: bp_pipe_mult | C36: 2.5 | D36: times facility length
A37: External air piping length multiplier | B37: air_pipe_add | C37: 1 | D37: times facility length | E37: Additional external air piping from blowers to basins
A38: External off-gas piping length multiplier | B38: offgas_pipe_mult | C38: 1 | D38: times facility length | E38: Additional external air piping when off-gas control system is present
A40: Valves and Instrumentation
A41: See the Valve Table at the bottom of this page for additional assumptions relating to valves
A42: Number of manual valves on influent and treated water line | B42: tot_man_valves | C42: 2 | D42: valves
A44: Number of check valves on treated water line | B44: tot_in_chv | C44: 1 | D44: valves
A45: Number of check valves on bypass line | B45: tot_bp_chv | C45: 1 | D45: valves
A46: Number of check valves on process line per booster pump | B46: proc_chv_pump | C46: 1 | D46: valves
A48: Flow meters for influent and treated water line | B48: tot_fm_in | C48: 1 | D48: units | E48: Influent line only
A49: Flow meters for process line per contact basin | B49: fm_proc | C49: 1 | D49: units/basin
A50: Flow meters for air line per contact basin | B50: fm_air | C50: 1 | D50: units/basin
A51: pH_meters | B51: tot_ph | C51: 2 | D51: units | E51: Included on influent and treated water because aeration will strip CO2
A52: High/Low alarms per contact basin | B52: alarm_basin | C52: 1 | D52: units/basin
A53: Number of pressure gauges per blower | B53: gauges_blower | C53: 2 | D53: units/blower | E53: On outlet to monitor state of aerators (fouling); on inlet to monitor air filter element (plugging)
A54: Number of electrical enclosures | B54: elec_encl | C54: 0 | D54: units | E54: Required only for technologies with significant electric-powered equipment outside a building
A56: System Controls
A57: See the I/O Port Table at the bottom of this page for additional assumptions relating to system controls
A58: Controllers are used only under full automation
A59: To change the degree of automation, change the number of controllers to zero for the appropriate items.
A60: Drive controllers per booster pump | B60: S_booster_pump | C60: 1
A61: Drive controllers per blower | B61: S_blower | C61: 1
A62: Drive controllers per thermal oxidizer | B62: S_TO | C62: 2 | E62: One for burners, one for secondary air
A63: Drive controllers per catalytic oxidizer | B63: S_CO | C63: 2 | E63: One for burners, one for secondary air
A65: Number of CPUs | B65: plc_cpu | C65: 2 | D65: units | E65: One CPU is needed to run the local and expansion bases and modules (max 8192 I/O); using two to provide redundancy
A66: Ethernet modules | B66: plc_ethernet | C66: 2 | D66: units | E66: One ethernet module is needed; using two to provide redundancy
A67: Operator interfaces | B67: plc_interface | C67: 2 | D67: units | E67: Two to provide redundancy in the event of SCADA node failure
A68: UPSs | B68: ups | C68: 1 | D68: unit | E68: UPS protects the PLC system from undesired outages and surges that can adversely affect the performance of the PLC unit
A69: Computer workstations per x operators | B69: workstation_ratio | C69: 1 | D69: operator/workstation | E69: Minimum will always be one, but larger systems will have multiple workstations to control the system
A70: Number of shifts | B70: shifts_day | C70: 3 | D70: shifts/day | E70: Used to determine number of workstations
A71: Printers per x computer workstations | B71: printer_ratio | C71: 4 | D71: workstations/printer | E71: Minimum will always be one, but larger systems will have multiple printers
A73: Structure/Floorplan
A74: Maximum access space per vessel or tank for custom designed systems | B74: max_space_vessels_cust | C74: 6 | D74: feet | E74: This is the MAXIMUM; space between vessels and tanks defaults to vessel or tank diameter, up to this maximum. Maximum provides space for sandblasting and painting for large vessels (5-8 feet per Richard E. Hubel, Peter Keenan, American Water Works Service Company).
A75: Maximum access space per vessel or tank for pre-engineered systems | B75: max_space_vessels_pre | C75: 1 | D75: feet | E75: Assumes skid-mounting with minimal access space
A76: Access space per pump/blower for custom designed systems | B76: space_pumps_cust | C76: 4 | D76: feet | E76: Used for both pumps and blowers; provide a minimum of 3 ft (1 m) of clear space around each item of equipment (American Water Works Association and American Society of Civil Engineers. Water Treatment Plant Design. Third Edition. New York: McGraw Hill, 1998. Pp. 695).
A77: Access space per pump/blower for pre-engineered packages | B77: space_pumps_pre | C77: 0 | D77: feet | E77: Pumps and blowers on skid for pre-engineered packages, no additional access space
A78: Fire truck buffer requirements | B78: fire_buffer | C78: 40 | D78: feet
A79: Buffer space around other sides of buildings | B79: non_fire_buffer | C79: 10 | D79: feet
A80: Building height | B80: Building_height | C80: 20 | D80: feet
A81: Office space per employee | B81: space_office | C81: 100 | D81: square ft
A82: Office space per employee | B82: space_office_small | C82: 0 | D82: square ft | E82: Small systems do not require office space
A83: Concrete pad thickness | B83: pad_thick | C83: =6/12 -> 0.5 | D83: feet
A84: Concrete pad thickness for small systems | B84: pad_thick_small | C84: =4/12 -> 0.3333333333 | D84: feet
A85: Additional building after… | B85: add_2nd_building | C85: 10000 | D85: sf
A87: Valve Table
A88: Under assumptions below, valves are motorized for fully automated systems, manual for semi-automated and manual systems
A89: To change the degree of automation, the user may replace the numbers in each of the blue columns.
A90: Number of control valves of x type on y line per z | B90: Lookup name | C90: Manual | D90: Semi-auto | E90: Fully Auto | F90: Units
A91: Motor/air operated on process line per contact basin | B91: proc_MOV_basin | C91: 0 | D91: 0 | E91: 2 | F91: valves/basin
A92: Motor/air operated on process line per booster pump | B92: proc_MOV_pump | C92: 0 | D92: 0 | E92: 2 | F92: valves/pump
A93: Motor/air operated on air line per blower | B93: air_MOV_basin | C93: 0 | D93: 0 | E93: 1 | F93: valves/blower
A94: Motor/air operated on bypass line | B94: tot_bp_MOVs | C94: 0 | D94: 0 | E94: 1 | F94: valves
A95: Number of MOVs per offgas control unit | B95: air_MOV_og | C95: 0 | D95: 0 | E95: 1 | F95: valves/unit
A96: Additional MOVs with offgas control | B96: add_MOV_og | C96: 0 | D96: 0 | E96: 1 | F96: valve | G96: For emergency direct venting
A97: Manual on process line per contact basin | B97: proc_man_basin | C97: 3 | D97: 3 | E97: 1 | F97: valves/basin | G97: One even when fully automated for drain piping
A98: Manual on process line per booster pump | B98: proc_man_pump | C98: 2 | D98: 2 | E98: 0 | F98: valves/pump
A99: Manual on air line per blower | B99: air_man_basin | C99: 1 | D99: 1 | E99: 0 | F99: valves/blower
A100: Manual on bypass line | B100: tot_bp_man | C100: 1 | D100: 1 | E100: 0 | F100: valves
A101: Number of manual control valves per offgas control unit | B101: air_man_og | C101: 1 | D101: 1 | E101: 0 | F101: valves/unit
A102: Additional manual control valves with offgas control | B102: add_man_og | C102: 1 | D102: 1 | E102: 0 | F102: valve | G102: For emergency direct venting
A104: I/O Port Table
A105: Full automation includes all inputs and outputs, semi-automated uses inputs only, manual control uses neither
A106: To change the degree of automation, the user may replace the numbers in each of the blue columns.
A107: I/O Ports needed per…. | B107: Lookup name | C107: Discrete Inputs | D107: Discrete Outputs | E107: Analog Inputs | F107: Analog Outputs
A108: Alarm (including level switch/alarms, high/low alarms, low alarms) | B108: alarm | C108: 1 | D108: 1 | E108: 0 | F108: 0
A109: Catalytic oxidizer | B109: CO | C109: 3 | D109: 2 | E109: 2 | F109: 1 | G109: Air flow: 2 AI, 1 AO, Temperature controller: 1 DI, 1 DO, Automated shut down: 1 DI, 1 DO, LEL sensor: 1 DI
A110: Air flow meter (rotameter) | B110: flow_air | C110: 0 | D110: 0 | E110: 1 | F110: 0
A111: Magnetic flow meter | B111: flow_mag | C111: 0 | D111: 0 | E111: 1 | F111: 0
A112: Orifice plate flow meter | B112: flow_op | C112: 0 | D112: 0 | E112: 2 | F112: 1 | G112: Additional analog input because flow meters include pressure gauges
A113: Propeller flow meter | B113: flow_prop | C113: 0 | D113: 0 | E113: 1 | F113: 0
A114: Venturi flow meter | B114: flow_ven | C114: 0 | D114: 0 | E114: 2 | F114: 1 | G114: Additional analog input because flow meters include pressure gauges
A115: pH meter | B115: ph | C115: 0 | D115: 0 | E115: 1 | F115: 0
A116: Pressure gauge | B116: press | C116: 0 | D116: 0 | E116: 1 | F116: 0
A117: Drive controller | B117: switch | C117: 3 | D117: 1 | E117: 0 | F117: 0
A118: TDS monitor | B118: TDS | C118: 1 | D118: 0 | E118: 0 | F118: 0
A119: Temperature meter | B119: temp | C119: 0 | D119: 0 | E119: 1 | F119: 0
A120: Thermal oxidizer | B120: TO | C120: 3 | D120: 2 | E120: 2 | F120: 1 | G120: Air flow: 2 AI, 1 AO, Temperature controller: 1 DI, 1 DO, Automated shut down: 1 DI, 1 DO, LEL sensor: 1 DI
A121: Motor/air operated valve | B121: valve | C121: 0 | D121: 0 | E121: 1 | F121: 1

Sheet O&M Assumptions
A1: Default O&M Assumptions
A2: Users may change any of the cells in the Value column
A4: Assumption | B4: Range Name | C4: Value | D4: Units | E4: Guidance
A5: Pump head | B5: pump_head | C5: 75 | D5: psi | E5: Consistent with pumping to distribution at 60-90 psi (Lowry Peer Review Comments)
A6: Efficiency of pumps | B6: pump_effcy | C6: 0.75
A7: Additional blower head above water depth | B7: add_blow_head | C7: 10 | D7: inches
A8: Blower efficiency | B8: blower_effcy | C8: 0.7
A9: Cost for parts & maintenance for pumps and blowers | B9: pump_maint_rate | C9: 0.01 | E9: For calculating cost of actual maintenance materials; not to be confused with depreciation; 5% would be too high (Richard E. Hubel, Peter Keenan, American Water Works Service Company, Inc)
A11: Operating LOE assumptions
A12: Minutes per instrument per day | B12: uloe_inst | C12: 5 | D12: min/day | E12: For manual systems only
A13: Recording operating paramenters for automated systems | B13: uloe_inst_auto | C13: 5 | D13: min/day | E13: For semiautomated and automated systems
A14: Minutes per pump, blower, and offgas unit per day | B14: uloe_pump | C14: 5 | D14: min/day | E14: For manual and semiautomated systems
A15: Minutes per valve per week | B15: uloe_valve | C15: 5 | D15: min/week | E15: For manual and semiautomated systems
A16: Minutes per 100 sf per day | B16: uloe_fp | C16: 1 | D16: min/100 sf/day
A17: Hours per media changeout | B17: uloe_throwaway | C17: 4 | D17: hours/bed/event | E17: For systems with GAC offgas treatment
A19: Mangerial LOE as a percent of average technical labor | B19: Manager_percent | C19: 0.1 | D19: fraction
A20: Administrative LOE as a percent of average technical labor | B20: Clerical_percent | C20: 0.1 | D20: fraction
A22: Maintenance LOE assumptions
A23: For instruments (includes calibration) | B23: uloe_inst_maint | C23: 10 | D23: min/month
A24: For pumps | B24: uloe_pump_maint | C24: 30.25 | D24: hours/year | E24: Based on vendor recommended maintenance activities; applied to large, frequently operated pumps only
A25: For valves | B25: uloe_valve_maint | C25: 5 | D25: min/year | E25: Applied to main process valves only
A27: Lighting and HVAC
A28: Lighting power per sf, low-quality buildings and sheds | B28: lighting_power_low | C28: 0.3 | D28: W/sf | E28: 0.3, 0.6, and 1.2 W/sf are the assumptions used for building capital costs
A29: Lighting power per sf, mid-quality buildings | B29: lighting_power_mid | C29: 0.6 | D29: W/sf
A30: Lighting power per sf, high-quality buildings | B30: lighting_power_high | C30: 1.2 | D30: W/sf
A32: Ventilation air change rate for contactor | B32: Air_changes_contactor | C32: 3 | D32: air changes/hr
A33: Ventilation air change rate for pump room | B33: Air_changes_pump | C33: 20 | D33: air changes/hr | E33: Could be lower (annual average 3 changes/hr) in a northern climate
A34: Ventilation air change rate for offices | B34: Air_changes_office | C34: 2 | D34: air changes/hr
A35: Pressure drop across the fan | B35: Fan_pressure_drop | C35: 0.25 | D35: lbs/ft2
A36: Number of mechanical ventilation days per year first building (small system) | B36: fan_days_build1_small | C36: 90 | D36: days/year | E36: Number of days per year where natural ventilation is applicable cannot be greater than 365 days
A37: Number of mechanical ventilation days per year 2nd building (small system) | B37: fan_days_build2_small | C37: 90 | D37: days/year | E37: For small systems (<1 MGD)
A38: Number of mechanical ventilation days per year first building (medium system) | B38: fan_days_build1_medium | C38: 120 | D38: days/year | E38: For medium systems (1 - 10 MGD)
A39: Number of mechanical ventilation days per year 2nd building (medium system) | B39: fan_days_build2_medium | C39: 120 | D39: days/year
A40: Number of mechanical ventilation days per year first building (large system) | B40: fan_days_build1_large | C40: 185 | D40: days/year | E40: For large systems (> 10 MGD)
A41: Number of mechanical ventilation days per year 2nd building (large system) | B41: fan_days_build2_large | C41: 185 | D41: days/year
A43: R-value for walls | B43: R_wall | C43: 25 | D43: hr-sf-degF/BTU | E43: See Appendix E. If higher R-value materials are desired, user may also need to adjust the cost of building materials in cl.xls
A44: R-value for ceilings | B44: R_ceiling | C44: 49 | D44: hr-sf-degF/BTU | E44: See Appendix E. If higher R-value materials are desired, user may also need to adjust the cost of building materials in cl.xls
A45: Annual heating degree days | B45: heat_DD | C45: 4260 | D45: degree days | E45: Heating and cooling assumptions should be consistent with one another. Assumed values are for a climate that results in a total energy usage for heating and cooling equal to the national median.
A46: Annual cooling degree days | B46: cool_DD | C46: 1415 | D46: degree days | E46: Heating and cooling assumptions should be consistent with one another. Assumed values are for a climate that results in a total energy usage for heating and cooling equal to the national median.
A47: Heating ventilation/infiltration load | B47: heat_viload | C47: 168679 | D47: BTU/cfm | E47: Heating and cooling assumptions should be consistent with one another. Assumed values are for a climate that results in a total energy usage for heating and cooling equal to the national median.
A48: Cooling ventilation/infiltration load | B48: cool_viload | C48: 51771 | D48: BTU/cfm | E48: Heating and cooling assumptions should be consistent with one another. Assumed values are for a climate that results in a total energy usage for heating and cooling equal to the national median.
A49: Electric resistance heating efficiency | B49: resist_eff | C49: 0.98 | E49: See Appendix E
A50: Heat pump heating coefficient of performance | B50: COP | C50: 3.3 | E50: See Appendix E
A51: Natural gas non-condensing furnace efficiency | B51: gas_non_eff | C51: 0.85 | E51: See Appendix E
A52: Natural gas condensing furnace efficiency | B52: gas_eff | C52: 0.9 | E52: See Appendix E
A53: Standard oil furnace efficiency | B53: diesel_non_eff | C53: 0.82 | E53: See Appendix E
A54: Mid-efficiency oil furnace efficiency | B54: diesel_eff | C54: 0.9 | E54: See Appendix E
A55: Air conditioning EER | B55: EER | C55: 11.8 | D55: BTU/Whr | E55: See Appendix E
A56: Heat pump cooling mode EER | B56: hp_EER | C56: 11.8 | D56: BTU/Whr | E56: See Appendix E
A58: Heating Oil Heat Content | B58: diesel_heat_content | C58: 139000 | D58: BTU/gal | E58: U.S. DOE, Energy Information Administration.

Sheet Indirect Assumptions
A1: Default Assumptions for Indirect and Add-On Costs
A2: Users may change any of the cells in the Value column
A4: Assumption | B4: Range Name | C4: Value | D4: Units | E4: Guidance
A5: Permits
A6: Include permit costs? | B6: include_permits | C6: 1 | D6: <--- enter 1 for yes, 0 for no
A7: Always include NEPA compliance costs? | B7: include_NEPA | C7: 1 | D7: <--- enter 1 for default, enter 2 for yes, 3 for no | E7: Default of 1 means NEPA compliance is included only for systems that discharge to surface water. Selecting 2 means NEPA compliance will be included in all estimates. Selecting 3 means NEPA compliance will never be included.
A9: Pilot Study
A10: Include pilot study costs? | B10: include_pilot | C10: 1 | D10: <--- enter 1 for yes, 0 for no
A12: Mobilization and Demobilization
A13: Mobilization percentage for pre-engineered packages | B13: mob_pct_pre | C13: 0 | D13: of direct capital cost | E13: Typically 2-5% of the estimated construction cost. Enter 0% to exclude.
A14: Mobilization percentage for small systems | B14: mob_pct_small | C14: 0.05 | D14: of direct capital cost
A15: Mobilization percentage for medium systems | B15: mob_pct_medium | C15: 0.04 | D15: of direct capital cost
A16: Mobilization percentage for large systems | B16: mob_pct_large | C16: 0.02 | D16: of direct capital cost
A18: Architectural Fees for Treatment Building
A19: Include architectural fee? | B19: include_arch | C19: 1 | D19: <--- enter 1 for yes, 0 for no | E19: Must be added to building cost. Change for special considerations. Includes structural, mechanical, and electrical engineering for building only.
A20: Include architectural fee for small systems? | B20: include_arch_small | C20: 0 | D20: <--- enter 1 for yes, 0 for no
A22: Installation, Transportatation, and O&P
A23: Installation, Transportatation, and O&P percentage | B23: inst_pct | C23: 0 | D23: of direct capital cost | E23: Included in line item unit costs. Add a percentage for special considerations such as a remote site or high cost location.
A25: Sitework
A26: Include sitework costs? | B26: include_sitework | C26: 1 | D26: <--- enter 1 for yes, 0 for no
A28: Yard Piping
A29: Include yard piping costs? | B29: include_yardpipe | C29: 1 | D29: <--- enter 1 for yes, 0 for no
A30: Frost depth | B30: frost | C30: 38 | D30: inches | E30: Should be consistent with (reflect same climate as) heating and cooling assumptions on O&M assumptions page
A31: Minimum trench depth to top of pipe | B31: min_trench_depth | C31: 36 | D31: inches | E31: US Army Corps of Engineers recommended minimum cover for distribution pipes of 2.5 ft in grassed areas, 3 ft if buried under pavement or roadways but not less than frost penetration depth (USACOE 1984)
A32: Soil density | B32: soil_dens | C32: 97 | D32: lb/cubic ft. | E32: Based on soil density of loamy sand (1.55 gm/cc)
A33: Coefficient of passive pressure | B33: Coeff_Kp | C33: 3
A34: Reduction factor | B34: Reduction | C34: 0.467
A35: Bedding depth below pipe | B35: bedding_depth | C35: 6 | D35: inches
A36: Bedding depth surrounding the pipe | B36: bedding_pct | C36: 0.25 | D36: of pipe diameter
A37: Trench inside angle | B37: trench_angle | C37: =RADIANS(45) -> 0.7853981634 | D37: radians
A38: Pipe length from water source to the boundary of the 10 foot buffer | B38: yard_in | C38: 0 | D38: feet | E38: Use if technology is first step in treatment process
A39: Pipe length the boundary of the 10 foot buffer to distribution network | B39: yard_out | C39: 0 | D39: feet | E39: Use if technology is last step in treatment process
A41: Geotechnical
A42: Include geotechnical costs for low cost systems? | B42: include_geo_low | C42: 0 | D42: <--- enter 1 for yes, 0 for no
A43: Include geotechnical costs for medium cost systems? | B43: include_geo_medium | C43: 0 | D43: <--- enter 1 for yes, 0 for no
A44: Include geotechnical costs for high cost systems? | B44: include_geo_high | C44: 1 | D44: <--- enter 1 for yes, 0 for no
A45: Include geotechnical costs for low cost custom systems? | B45: include_geo_low_g | C45: 1 | D45: <--- enter 1 for yes, 0 for no | E45: Geotechnical is always included for custom systems, because of basin excavation
A46: Include geotechnical costs for medium cost custom systems? | B46: include_geo_medium_g | C46: 1 | D46: <--- enter 1 for yes, 0 for no
A47: Include geotechnical costs for high cost custom systems? | B47: include_geo_high_g | C47: 1 | D47: <--- enter 1 for yes, 0 for no
A48: Test pit length | B48: pit_length | C48: 4 | D48: feet
A49: Test pit width | B49: pit_width | C49: 4 | D49: feet
A50: Test pit depth | B50: pit_depth | C50: 7 | D50: feet
A51: Borehole depth (package systems) | B51: bore_depth_p | C51: 10 | D51: feet
A52: Borehole depth for shallow basins | B52: bore_depth_min | C52: 25 | D52: feet
A53: Borehole depth for deep basins | B53: bore_depth_max | C53: 50 | D53: feet
A54: Basin excavation depth above which deeper boreholes are needed | B54: deep_bore_need | C54: 20 | D54: feet | E54: Deeper basins (although unlikely for this technology) would require deeper investigation
A55: Technology footprint above which boreholes are needed | B55: bore_need | C55: 2000 | D55: square feet | E55: Small system geotechnical investigation can be completed with test pits, larger systems require boreholes
A56: Minimum number of boreholes | B56: min_holes | C56: 4
A57: Borehole needed every x square feet | B57: hole_per_sf | C57: 1000 | D57: square feet
A58: Boreholes per job | B58: hole_per_job | C58: 24 | D58: boreholes/job
A59: Linear feet bored per day | B59: hole_per_day | C59: 55.5 | D59: l.f./day | E59: RS Means Costworks 2001
A61: Standby Power
A62: Include standby power costs? | B62: include_standby | C62: 1 | D62: <--- enter 1 for yes, 0 for no
A63: Include standby power costs for small systems? | B63: include_standby_small | C63: 0 | D63: <--- enter 1 for yes, 0 for no
A64: Design safety factor for standby power | B64: std_safety_factor | C64: 0 | E64: Default 0%. Apply a percentage to increase standby power requirements.
A65: Include heating in standby power | B65: need_heat | C65: 0 | D65: <--- enter 1 for yes, 0 for no | E65: If a system uses gas or diesel heat, heating will not be included in standby power, regardless of this assumption.
A66: Include cooling in standby power | B66: need_cool | C66: 0 | D66: <--- enter 1 for yes, 0 for no | E66: If both heating and cooling are included, standby power requirements will be based on the maximum of the two.
A67: Minimum standby power generator size | B67: min_standby | C67: 1.5 | D67: kW
A69: Electrical (including yard wiring)
A70: Electrical percentage | B70: elect_pct | C70: 0.1 | D70: of direct cost
A72: Instrumentation and Control
A73: Instrumentation and control percentage | B73: i_c_pct | C73: 0 | D73: of direct cost | E73: Included as a direct cost line item.
A75: Contingency
A76: Include contingency costs for low cost systems? | B76: include_conting_low | C76: 0 | D76: <--- enter 1 for yes, 0 for no
A77: Include contingency costs for medium cost systems? | B77: include_conting_medium | C77: 0 | D77: <--- enter 1 for yes, 0 for no
A78: Include contingency costs for high cost systems? | B78: include_conting_high | C78: 1 | D78: <--- enter 1 for yes, 0 for no
A79: Technology complexity factor | B79: complexity | C79: 1.5 | E79: Technology-specific factor. See Appendices for details. Low complexity = 0.5; Average complexity = 1.0; High complexity = 1.5; Very high complexity = 2.0.
A81: Process Engineering
A82: Engineering percentage for small systems | B82: eng_pct_small | C82: 0.2 | D82: of direct capital cost | E82: Enter 0% to exclude
A83: Engineering percentage for medium systems | B83: eng_pct_medium | C83: 0.12 | D83: of direct capital cost
A84: Engineering percentage for large systems | B84: eng_pct_large | C84: 0.08 | D84: of direct capital cost
A86: Miscellaneous Allowance
A87: Miscellaneous allowance percentage | B87: misc_pct | C87: 0.1 | D87: of direct capital cost | E87: Enter 0% to exclude
A89: Legal, Fiscal, and Administrative
A90: Legal percentage | B90: legal_pct | C90: 0.02 | D90: of direct capital cost | E90: Enter 0% to exclude. Highly site-specific. Can range from 2-5% of equipment, installation, construction, electrical, and standby power.
A92: Sales Tax
A93: Sales tax percentage | B93: tax_pct | C93: 0 | D93: of direct capital cost | E93: May be exempt if constructed with public funds. May be as high as 7.25% of equipment and construction, with national average 4.75%.
A95: Financing during Construction
A96: Financing percentage | B96: finance_pct | C96: 0.05 | D96: of direct capital cost | E96: Enter 0% to exclude. Typically assumed to be one year's interest on capital cost.
A97: Financing percentage for small systems | B97: finance_pct_small | C97: 0 | D97: of direct capital cost | E97: Small system construction assumed to take less than one year
A99: Construction Management and General Contractor Overhead
A100: Builder's risk insurance percentage | B100: br_ins_pct | C100: 0.0034 | E100: Enter 0% to exclude. 0.34% is national average rate. RSMeans Building Construction Cost Data 2009, reference section R01100-070
A101: Include performance bond cost? | B101: include_bond | C101: 1 | D101: <--- enter 1 for yes, 0 for no
A102: Include construction management cost? | B102: include_cm | C102: 1 | D102: <--- enter 1 for yes, 0 for no
A103: Include construction management cost for pre-engineered packages? | B103: include_cm_pre | C103: 0 | D103: <--- enter 1 for yes, 0 for no
A105: Concrete Pad
A106: Include concrete pad in total capital cost? | B106: include_pad | C106: 1 | D106: <--- enter 1 for yes, 0 for no
A108: Heating Table (1=include heating in buildings and O&M, 0 = do not include heating)
A109: Component Level | B109: Range Name | C109: System Size
C110: Small (<1 mgd) | D110: Medium (1-10 mgd) | E110: Large (>10 mgd)
A111: Buildings 500 square feet or greater
A112: low cost | B112: heating_table | C112: 0 | D112: 1 | E112: 1
A113: mid cost | C113: 1 | D113: 1 | E113: 1
A114: high cost | C114: 1 | D114: 1 | E114: 1
A115: Buildings less than 500 ft2 (other than those used for chlorine storage)
A116: low cost | B116: heating_table_shed | C116: 0 | D116: 0 | E116: 1
A117: mid cost | C117: 0 | D117: 0 | E117: 1
A118: high cost | C118: 1 | D118: 1 | E118: 1
A120: Cooling Table (1=include cooling in buildings and O&M, 0 = do not include cooling)
A121: Component Level | B121: Range Name | C121: System Size
C122: Small (<1 mgd) | D122: Medium (1-10 mgd) | E122: Large (>10 mgd)
A123: Buildings 500 square feet or greater
A124: low cost | B124: cooling_table | C124: 0 | D124: 0 | E124: 1
A125: mid cost | C125: 0 | D125: 1 | E125: 1
A126: high cost | C126: 1 | D126: 1 | E126: 1
A127: Buildings less than 500 ft2 (other than those used for chlorine storage)
A128: low cost | B128: cooling_table_shed | C128: 0 | D128: 0 | E128: 0
A129: mid cost | C129: 0 | D129: 0 | E129: 0
A130: high cost | C130: 0 | D130: 0 | E130: 0

Sheet Offgas Assumptions
A1: Default Offgas Assumptions
A2: Users may change any of the cells in the Value column
A4: Assumption | B4: Range Name | C4: Value | D4: Units | E4: Guidance
A5: Specific heat of air | B5: cpa | C5: 1.01 | D5: kJ/kg-deg C | E5: Rough assumption to account for high temperature and relative humidity in this application
A6: Density of air | B6: PA | C6: 1.247 | D6: kg/m3 | E6: Conservatively using value for 10 deg C
A7: Default operating temperature | B7: T_default | C7: 283 | D7: degrees Kelvin | E7: Assumption used for equilibrium operating temperature when user leaves optional input blank. 283 degrees K (10 degrees C) is typical of groundwater.
A9: GAC
A10: GAC Density | B10: GAC_density | C10: 30 | D10: lbs/cu ft | E10: Bulk density, not particle density. GAC density range of 22-30 lb/cubic ft; lignite GAC approximately 22 and bituminous GAC approximately 28 lb/cubic ft (Randal J. Braker, General Manager, Duck River Utility Commission)
A11: Redundant GAC beds | B11: NRD_GAC | C11: 0 | D11: units | E11: Most of the unit costs are for dual bed units, which should provide sufficient redundancy.
A12: Makeup carbon for off-site regeneration | B12: makeup_rate_off | C12: 0.3 | E12: Makeup carbon needs are higher for transport and regeneration off-site -- 30% (Richard E. Hubel, Peter Keenan, American Water Works Service Company).
A13: Miles to non-hazardous solid waste disposal site | B13: non_haz_miles | C13: 10 | D13: miles | E13: For spent carbon disposal
A15: Thermal Oxidizer
A16: Redundant TO units | B16: NRD_TO | C16: 0 | D16: units
A17: Excess air required | B17: TO_ex_air | C17: 2 | E17: Thermal oxidizers typically require 180% to 550% excess air (www.baaqmd.gov/pmt/handbook/s12c05ap.htm)
A18: Recuperative system heat recovery | B18: TO_rec_eff | C18: 0.7 | E18: U.S. EPA, 2006; CMRP, 2000
A19: Regenerative system heat recovery | B19: TO_reg_eff | C19: 0.95 | E19: U.S. EPA, 2006; CMRP, 2000; van der Vaart et al. 1994
A21: Catalytic Oxidizer
A22: Redundant CO units | B22: NRD_CO | C22: 0 | D22: units
A23: Excess air required | B23: CO_ex_air | C23: 2 | E23: Thermal oxidizers typically require 180% to 550% excess air (www.baaqmd.gov/pmt/handbook/s12c05ap.htm)
A24: Recuperative system heat recovery | B24: CO_rec_eff | C24: 0.7 | E24: U.S. EPA, 2006; CMRP, 2000
A25: Regenerative system heat recovery | B25: CO_reg_eff | C25: 0.95 | E25: U.S. EPA, 2006; CMRP, 2000; van der Vaart et al. 1994
A27: Contaminant-Specific Off-gas Assumptions
A28: Contaminant Number | B28: Contaminant | C28: Heating Value | D28: GAC Bed Residence Time | E28: TO Operating Temperature | F28: CO Operating Temperature | G28: Molecular Weight
C29: (BTU/gal) | D29: (sec) | E29: (deg C) | F29: (deg C) | G29: (kg/kilomole)
A30: 1 | B30: Radon | C30: 0 | D30: 0 | E30: 0 | F30: 0 | G30: NA
A31: 2 | B31: Carbon Dioxide | C31: 0 | D31: 0 | E31: 0 | F31: 0 | G31: NA
A32: 3 | B32: TCE | C32: 0 | D32: 6.4 | E32: 1093 | F32: 500 | G32: 131.39
A33: 4 | B33: PCE | C33: 0 | D33: 6.4 | E33: 1093 | F33: 500 | G33: 165.83
A34: 5 | B34: Vinyl Chloride | C34: 0 | D34: 6.4 | E34: 1093 | F34: 500 | G34: 62.5
A35: 6 | B35: Carbon Tetrachloride | C35: 0 | D35: 6.4 | E35: 1093 | F35: 500 | G35: 153.82
A36: 7 | B36: Benzene | C36: 0 | D36: 6.4 | E36: 1093 | F36: 500 | G36: 78.11
A37: 8 | B37: 1,2-Dichloropropane | C37: 0 | D37: 6.4 | E37: 1093 | F37: 500 | G37: 112.99
A38: 9 | B38: Methylene Chloride | C38: 0 | D38: 6.4 | E38: 1093 | F38: 500 | G38: 84.93
A39: 10 | B39: 1,2-Dichloroethane | C39: 0 | D39: 6.4 | E39: 1093 | F39: 500 | G39: 98.96
A40: 11 | B40: 1,3-Butadiene | C40: 0 | D40: 6.4 | E40: 1093 | F40: 500 | G40: 54.09
A41: 12 | B41: 1,1-Dichloroethane | C41: 0 | D41: 6.4 | E41: 1093 | F41: 500 | G41: 98.96
A42: 13 | B42: 1,1,1,2-Tetrachloroethane | C42: 0 | D42: 6.4 | E42: 1093 | F42: 500 | G42: 167.85
A43: 14 | B43: 1,1,2,2-Tetrachloroethane | C43: 0 | D43: 6.4 | E43: 1093 | F43: 500 | G43: 167.85
A44: 15 | B44: 1,2,3-Trichloropropane | C44: 0 | D44: 6.4 | E44: 1093 | F44: 500 | G44: 147.43
A45: 16 | B45: Other

Sheet Basin Constraints
A1: Basin Constraint Calculations
A3: Calculation | B3: Range Name | C3: Value | D3: Units | E3: Guidance
A4: From Inputs
A5: Design Production Flow | B5: design_flow | C5: =IF(df_units="gpm",(1-bp_pct)*design_flow_I*24*60/1000000,(1-bp_pct)*design_flow_I) -> 0.03 | D5: MGD | E5: From input, less bypass
A6: Average Production Flow | B6: average_flow | C6: =(1-bp_pct)*IF(af_units="gpm",average_flow_I*24*60/1000000,IF(af_units="fraction of design flow",average_flow_I*design_flow,average_flow_I)) -> 0.007 | D6: MGD | E6: From input, less bypass
A7: Design Production Flow Rate | B7: design_flow_rate | C7: =design_flow*1000000/(24*60) -> 20.83333333 | D7: gpm | E7: Design flow expressed in gpm
A8: Average Production Flow Rate | B8: average_flow_rate | C8: =average_flow*1000000/(24*60) -> 4.861111111 | D8: gpm | E8: Average flow expressed in gpm
A9: Bypass Flow Rate | B9: bp_flow_rate | C9: =bp_pct/(1-bp_pct)*design_flow_rate -> 0 | D9: gpm
A10: Target Contaminant | B10: contam | C10: 3 | D10: <--- click here for list
A11: Contaminant removal input type | B11: Units_rem | C11: =IF(Units_rem_I="percent removal",1,IF(Units_rem_I="treated water concentration",2,IF(Units_rem_I="calculate based on pH",3,0))) -> 2 | D11: <--- 1 for percent removal, 2 for treated water concentration, 3 for calculate based on pH
A12: Operating temperature | B12: T | C12: =IF(T_I="",T_default,IF(T_units="degrees Centigrade",T_I+273.15,IF(T_units="degrees Fahrenheit",(T_I-32)*(5/9)+273.15,T_I))) -> 283 | D12: degrees Kelvin
A13: Influent water concentration | B13: influent_conc | C13: =IF(AND(Units_rem=3,influent_conc_I=""),CO2_max,influent_conc_I) -> 5 | D13: =IF(contam=1,"pCi/L",IF(contam=2,"mg/L","ug/L")) -> ug/L
A14: Target percent removal | B14: target_p_rem | C14: =IF(bool_removal_inputs_ok=FALSE,"NA",IF(Units_rem=1,P_REM_I,IF(Units_rem=2,1-(P_REM_I/influent_conc),IF(Units_rem=3,IF(ISERROR(Rem_in_CO2),"NA",Rem_in_CO2),"NA")))) -> 0.9
A16: Contact Basins
A17: Design type | B17: design_type | C17: =IF(design_type_I="pre-engineered package",1,2) -> 1 | D17: 1 = pre-engineered package, 2 = custom design
A18: Design air flow | B18: design_air_flow | C18: =design_flow_rate*air_water_ratio/7.48 -> 111.4081996 | D18: cfm
A19: Maximum diffuser size | B19: max_diffuser_size | C19: =MAX(VLOOKUP(10^6,diffuser_cost_cl,1)-1) -> 43.1 | D19: cfm | E19: The largest size for which costs are available.
A20: Diffusers per stage | B20: diffusers_per_stage | C20: =IF(OR(stages=0,num_op_tanks=0),0,ROUNDUP(design_air_flow/(stages*num_op_tanks)/max_diffuser_size,0)) -> 1
A21: Number of diffusers per tank | B21: num_diffusers | C21: =diffusers_per_stage*stages -> 8 | D21: units
A22: Total diffusers | B22: total_diffusers | C22: =num_diffusers*num_tanks -> 8 | D22: units
A23: Diffuser size | B23: diffuser_size | C23: =IF(total_diffusers=0,0,design_air_flow/total_diffusers) -> 13.92602496 | D23: cfm
A24: Stage length required per diffuser | B24: diffuser_diameter | C24: =VLOOKUP(diffuser_size,diffuser_dim_table_cl,3)+diffuser_access_space -> 3.6 | D24: inches | E24: Includes access space
A25: Total stage length required for diffusers | B25: diffuser_space | C25: =diffuser_diameter*diffusers_per_stage -> 3.6 | D25: inches | E25: Includes access space
A26: Width required for diffusers | B26: diffuser_space_width | C26: =VLOOKUP(diffuser_size,diffuser_dim_table_cl,4)+diffuser_access_space -> 25 | D26: inches | E26: Includes access space
A27: Minimum basin area required per basin | B27: tank_area | C27: =IF(num_op_tanks=0,0,design_air_flow/max_air_load/num_op_tanks) -> 6.7520121 | D27: square ft | E27: Based on maximum air surface loading intensity
A28: Width required for diffusers | C28: =diffuser_space_width/12 -> 2.083333333 | E28: Includes access space
A29: Width required by area and ratio | C29: =(tank_area/max_ratio)^(1/2) -> 1.611498598 | E29: Based on minimum area and length to width ratio
A30: Basin width | B30: tank_width | C30: =ROUNDUP(2*MAX(C28:C29),0)/2 -> 2.5 | D30: feet | E30: Maximum of requirements above, sized in 6" intervals
A31: Length required by area | C31: =tank_area/tank_width -> 2.70080484 | E31: Based on minimum area
A32: Length required by ratio | C32: =tank_width*max_ratio -> 6.5 | E32: Based on length to width ratio
A33: Length required by diffusers | C33: =diffuser_space*(stages+qchamber_ratio)/12 -> 2.55 | E33: Includes access space and quiescent chamber
A34: Basin length | B34: tank_length | C34: =ROUNDUP(2*MAX(C31:C33),0)/2 -> 6.5 | D34: feet | E34: Maximum of requirements above, sized in 6" intervals
A35: Maximum basin length | B35: max_length | C35: =IF(design_type=1,max_length_package,max_length_custom) -> 12 | D35: feet | E35: Depends on design type. For input sheet validation.
A36: Length per stage | B36: stage_length | C36: =tank_length/(stages+qchamber_ratio)*12 -> 9.176470588 | D36: inches
A37: Basin depth including freeboard | B37: tank_depth | C37: =max_h2odepth+freeboard -> 5 | D37: feet
A38: Total basin volume | B38: tank_vol | C38: =ROUNDUP(tank_width*tank_length*tank_depth*7.48,0) -> 608 | D38: gal
A39: Baffle area per baffle | B39: baffle_area | C39: =tank_depth*tank_width -> 12.5 | D39: square ft | E39: Conservative calculation, assumes baffle covers entire cross-sectional area
A40: Total basin surface area, including baffles | B40: tank_sf | C40: =2*tank_width*tank_length+2*tank_depth*tank_width+2*tank_depth*tank_length+stages*baffle_area -> 222.5 | D40: square ft | E40: Includes cover and baffle for quiescent chamber at end of basin, assumes baffles cover entire cross-sectional area (conservative)
A41: Total number of basins | B41: num_tanks | C41: =num_op_tanks+IF(NRD_I="",NRD_tanks,NRD_I) -> 1 | D41: units | E41: Including redundancy
A42: Total number of baffles | B42: num_baffles | C42: =stages*num_tanks -> 8 | D42: units | E42: Total for all basins, includes baffles for quiescent chamber at end of basins
A43: Basin concrete volume | B43: conc_volume | C43: =IF(design_type=1,"-",num_tanks*(2*(tank_width+2*conc_thick)*(tank_depth+conc_thick)*conc_thick+2*(tank_length)*(tank_depth+conc_thick)*conc_thick+tank_length*tank_width*conc_thick)/27) -> - | D43: cubic yd | E43: For custom designs only. No common wall design in this technology, because of need for baffle and diffuser access
A44: Excavation volume | B44: excavation_vol | C44: =IF(design_type=1,"-",num_tanks*((tank_width+2*conc_thick+overexcavate)*(tank_length+2*conc_thick+overexcavate)*(tank_depth+conc_thick+overexcavate)+0.5*(3*(tank_depth+conc_thick+overexcavate)*(tank_depth+conc_thick+overexcavate)*(tank_length+2*conc_thick+overexcavate)))/27) -> - | D44: cubic yd | E44: Includes ramping for moving earth out of excavated area, assumes flush with grade (conservative)
A45: Backfill volume | B45: backfill_vol | C45: =IF(design_type=1,"-",excavation_vol-num_tanks*(tank_width+2*conc_thick)*(tank_length+2*conc_thick)*(tank_depth+conc_thick)/27) -> - | D45: cubic yd
A46: Cover area for concrete basins | B46: cover_sf | C46: =num_tanks*(tank_width+2*conc_thick)*(tank_length+2*conc_thick) -> 38.25 | D46: square ft
A47: Actual air surface loading intensity | C47: =IF(OR(stages=0,num_op_tanks=0),0,design_air_flow/(stage_length/12*stages*tank_width*num_op_tanks)) -> 7.284382284 | D47: cfm/sq ft | E47: For comparison purposes only
A49: Removal Estimate | E49: Estimate only
A50: Basin contact volume | B50: contact_volume | C50: =stage_length*stages/12*tank_width*max_h2odepth -> 45.88235294 | D50: cubic ft
A51: Total detention time | B51: contact_time | C51: =contact_volume*7.48*num_op_tanks/design_flow_rate -> 16.4736 | D51: minutes | E51: Contact time is not a design parameter, but used in removal estimate
A52: Volumetric air intensity | B52: phi | C52: =IF(num_op_tanks=0,0,design_air_flow/(contact_volume*num_op_tanks)) -> 2.428127428 | D52: cfm/cf
A53: Mass transfer rate | B53: Kla | C53: =IF(contam=1,(36.9*phi^0.8)/60,IF(OR(pilot_k="",pilot_phi=""),"NA",(phi/pilot_phi)*pilot_k)) -> 0.1625124657 | D53: 1/min | E53: For radon, based on Drago (2000); for other contaminants, based on optional inputs for pilot data
A54: Percent removal | B54: p_rem | C54: =IF(Kla<>"NA",1-(1+Kla*contact_time/stages)^(-stages),"NA") -> 0.9006718956

Sheet CO2 Removal
A1: Carbon Dioxide Removal Calculations
A2: This sheet is used when the design targets carbon dioxide removal for pH adjustment
A4: Calculation | B4: Range Name | C4: Value | D4: Units | E4: Guidance
A5: Equilibrium constant for carbonic acid dissociation | B5: log_K1 | C5: =VLOOKUP(T-273,log_K1_lookup,3) -> -6.46 | E5: Relationship 11, Table 3, Lytle et al., 1998
A6: Maximum initial dissolved CO2 concentration | B6: CO2_max | C6: =IF(Units_rem<>3,"NA",44010*(alk_I/50045)/(10^(pH_i+log_K1))) -> NA | D6: mg/L | E6: Equation 5, Table 3, Lytle et al., 1998
A7: Target treated water CO2 | B7: CO2_f | C7: =IF(contam<>2,"NA",IF(Units_rem=1,influent_conc*(1-P_REM_I),IF(Units_rem=2,P_REM_I,10^(pH_i-pH_f)*influent_conc))) -> NA | D7: mg/L | E7: Based on Equation 1 in text and Equation 3 in Table 3, Lytle et al., 1998
A8: Minimum CO2 achievable at equilibrium | B8: CO2_min | C8: =VLOOKUP(T-273,min_CO2_lookup,3) -> 0.71 | D8: mg/L | E8: Relationship 10, Table 3, Lytle et al., 1998
A9: Percent removal required to achieve desired pH | B9: Rem_in_CO2 | C9: =IF(Units_rem<>3,"NA",(influent_conc-CO2_f)/influent_conc) -> NA
A10: Percent removal of removable CO2 | B10: Rem_removableCO2 | C10: =IF(contam<>2,"NA",(influent_conc-CO2_f)/(influent_conc-CO2_min)) -> NA | E10: Accounting for equilibrium with atmosphere

Sheet Offgas
A1: Offgas Calculations
A3: Calculation | B3: Range Name | C3: Value | D3: Units | E3: Guidance
A4: From Inputs
A5: Off-gas Pollution Control Technology | B5: Offgas_Tech | C5: =IF(OR(Offgas_Tech_I="none",Offgas_Tech_I=""),0,IF(Offgas_Tech_I="GAC",1,IF(Offgas_Tech_I="thermal oxidation",2,3))) -> 0 | D5: <--- 0 for none, 1 for GAC, 2 for Thermal Oxidation, 3 for Catalytic Oxidation
A6: Heat recovery type | B6: og_opt1 | C6: =IF(OR(Offgas_Tech=2,Offgas_Tech=3),IF(og_opt1_I="none",0,IF(og_opt1_I="recuperative",1,2)),"") ->  | D6: <--- 0 for none, 1 for recuperative, 2 for regenerative
A7: Spent GAC regeneration | B7: og_opt2 | C7: =IF(Offgas_Tech=1,IF(og_opt2_I="throwaway",0,1),"") ->  | D7: <--- 0 for throwaway (no regeneration), 1 for off-site regeneration
A8: Percent removal | B8: p_rem_og | C8: =IF(p_rem="NA","NA",p_rem) -> 0.9006718956
A10: Off-gas Control System
A11: Molecular Weight of Contaminant | B11: MW | C11: =VLOOKUP(contam,contaminant_lookup,7) -> 131.39 | D11: kg/kilomole | E11: From critical design assumptions for contaminant
A12: Contaminant heating value | B12: BTU_contam | C12: =IF(Offgas_Tech=1,VLOOKUP(contam,contaminant_lookup,3),0) -> 0 | D12: BTU/gal | E12: From critical design assumptions for contaminant
A13: Contaminant release rate | B13: VOC_Release | C13: =IF(p_rem_og="NA","NA",(influent_conc*p_rem_og/10^6)*(design_flow*0.04583*60*60*24)*2.205) -> 0.001179587234 | D13: lbs/day | E13: Based on design flow
A14: Off-gas concentration | C14: =IF(p_rem_og="NA","NA",(influent_conc*p_rem_og/1000)*air_water_ratio) -> 0.1801343791 | D14: mg/m3
A15: Off-gas concentration | C15: =IF(p_rem_og="NA","NA",IF(MW="NA",0,(C14*T)/(12.187*MW))) -> 0.03183639751 | D15: ppmv
A16: Off-gas concentration | B16: C_gal | C16: =IF(p_rem_og="NA","NA",C15/10^6*1000*3.785) -> 0.0001205007646 | D16: gal/m3
A17: Off-gas flow (design) | C17: =design_air_flow -> 111.4081996 | D17: cfm | E17: Based on design flow
A18: Off-gas flow (design) | B18: Design_air_flow_liters_min | C18: =C17/35.31*1000 -> 3155.145841 | D18: L/min
A19: Off-gas flow (average) | B19: Average_air_flow | C19: =C17*average_flow/design_flow -> 25.99524658 | D19: cfm | E19: Based on average flow
A20: Off-gas flow (average) | B20: Average_air_flow_liters_min | C20: =C18*average_flow/design_flow -> 736.2006962 | D20: L/min
A21: Off-gas flow (average) | B21: DAILY_AIR | C21: =Average_air_flow_liters_min/1000/60 -> 0.0122700116 | D21: m3/s
A23: GAC System
A24: GAC Bed Residence Time | B24: GAC_EBCT | C24: =IF(Offgas_Tech=1,VLOOKUP(contam,contaminant_lookup,4),0) -> 0 | D24: sec | E24: From critical design assumptions for contaminant
A25: Total bed size needed | B25: GAC_tot_bed_size | C25: =IF(Offgas_Tech=1,design_air_flow/60*GAC_EBCT,0) -> 0 | D25: cf
A26: Maximum GAC unit bed size | B26: GAC_max_bed | C26: =MAX(VLOOKUP(10^6,og_gac_cost_cl,1)-0.1) -> 1333.3 | D26: cf | E26: The largest size for which costs are available.
A27: Number of units | B27: op_GAC_beds | C27: =IF(Offgas_Tech=1,ROUNDUP(GAC_tot_bed_size/GAC_max_bed,0),0) -> 0 | D27: units
A28: Total units including redundancy | B28: tot_GAC_beds | C28: =op_GAC_beds+NRD_GAC -> 0 | D28: units
A29: Bed size per unit | B29: GAC_bed_size | C29: =IF(Offgas_Tech=1,GAC_tot_bed_size/op_GAC_beds,0) -> 0 | D29: cf
A30: Total GAC Quantity | B30: GAC | C30: =IF(Offgas_Tech=1,design_air_flow/60*GAC_EBCT*GAC_density,0) -> 0 | D30: lbs
A31: Bed Life | B31: bed_life | C31: =og_opt3 -> 0 | D31: months
A32: GAC use rate | C32: =IF(Offgas_Tech=1,(GAC/bed_life)/(Average_air_flow*60*24*30/1000),0) -> 0 | D32: lb/1,000 cf of air | E32: For comparison purposes
A33: Annual GAC use | B33: GAC_yr | C33: =IF(Offgas_Tech=1,GAC*12/bed_life,0) -> 0 | D33: lbs
A34: Annual Regenerated GAC | B34: regen_yr | C34: =IF(og_opt2=1,(1-makeup_rate_off)*GAC_yr,0) -> 0 | D34: lbs/yr
A35: Annual Regenerated GAC in cubic feet | B35: regen_yr_cf | C35: =regen_yr/GAC_density -> 0 | D35: cubic ft/yr
A36: Annual Virgin GAC | B36: GAC_makeup | C36: =IF(og_opt2=1,makeup_rate_off*GAC_yr,GAC_yr) -> 0 | D36: lbs/yr
A37: Annual Virgin GAC in cubic feet | B37: GAC_makeup_cf | C37: =GAC_makeup/GAC_density -> 0 | D37: cubic ft/yr
A38: Replacement/disposal frequency | B38: disp_freq | C38: =IF(Offgas_Tech=1,12/bed_life,0) -> 0 | D38: times per year
A39: Spent media quantity (total per event) | B39: spent_media | C39: =IF(og_opt2=0,GAC/2000,0) -> 0 | D39: tons
A40: Disposal | C40: =spent_media*disp_freq*nonhaz_disposal_cost_cl -> 0 | D40: $/year
A41: Transportation | C41: =spent_media*disp_freq*non_haz_miles*nonhaz_transportation_cost_cl -> 0 | D41: $/year
A42: Total annual spent media diposal fee | B42: disposal_fee | C42: =C41+C40 -> 0 | D42: $/year
A44: Thermal Oxidizer System
A45: Maximum TO capacity | B45: TO_max_size | C45: =IF(og_opt1=0,TO_max_size_no,IF(og_opt1=1,TO_max_size_rec,TO_max_size_reg)) -> 736000 | D45: scfm
A46: Total capacity needed | B46: TO_tot_size | C46: =IF(Offgas_Tech=2,design_air_flow,0) -> 0 | D46: scfm
A47: Maximum TO capacity (no heat recovery) | B47: TO_max_size_no | C47: =MAX(VLOOKUP(10^6,og_to_cost_cl,1)-1) -> 7257 | D47: scfm | E47: The largest size for which costs are available.
A48: Maximum TO capacity (recuperative) | B48: TO_max_size_rec | C48: =MAX(VLOOKUP(10^6,og_torec_cost_cl,1)-1) -> 7257 | D48: scfm | E48: The largest size for which costs are available.
A49: Maximum TO capacity (regenerative) | B49: TO_max_size_reg | C49: 736000 | D49: scfm | E49: The largest size for which costs are available.
A50: Number of units | B50: op_TOs | C50: =IF(Offgas_Tech=2,ROUNDUP(TO_tot_size/TO_max_size,0),0) -> 0 | D50: units
A51: Total units including redundancy | B51: tot_TOs | C51: =op_TOs+NRD_TO -> 0 | D51: units
A52: Capacity per unit | B52: TO_size | C52: =IF(Offgas_Tech=2,TO_tot_size/op_TOs,0) -> 0 | D52: scfm
A53: TO operating temperature | B53: TO_op_temp | C53: =IF(Offgas_Tech=2,VLOOKUP(contam,contaminant_lookup,5),0) -> 0 | D53: deg C | E53: From critical design assumptions for contaminant
A54: Fuel BTUs required (no heat recovery) | C54: =IF(Offgas_Tech=2,MAX(0,((1+TO_ex_air)*(DAILY_AIR*60*60*24*365))*PA*cpa*(TO_op_temp-(T-273))/1.0545-BTU_contam*C_gal*DAILY_AIR*60*60*24*365),0) -> 0 | D54: BTU/yr | E54: kJ = Q (m3/yr) * p (kg/m3) * cp (kJ/kg-deg C) * delta T (deg C). 1 BTU = 1.0545 kJ
A55: Actual fuel BTUs required | C55: =C54*(1-IF(og_opt1=1,TO_rec_eff,IF(og_opt1=2,TO_reg_eff,0))) -> 0 | D55: BTU/yr
A56: Annual natural gas required | B56: TO_ng_yr | C56: =C55/100000 -> 0 | D56: therms/yr
A57: Excess air blower power | C57: =IF(Offgas_Tech=2,TO_ex_air*(average_flow_rate*air_water_ratio/7.48)*blow_head/(229*blower_effcy),0) -> 0 | D57: HP
A58: Excess air blower energy per year | B58: TO_power_yr | C58: =(24*365*0.7457/1000)*C57 -> 0 | D58: MWhr/yr
A60: Catalytic Oxidizer System
A61: Maximum CO capacity | B61: CO_max_size | C61: =IF(og_opt1=0,CO_max_size_no,IF(og_opt1=1,CO_max_size_rec,CO_max_size_reg)) -> 736000 | D61: scfm
A62: Total capacity needed | B62: CO_tot_size | C62: =IF(Offgas_Tech=3,design_air_flow,0) -> 0 | D62: scfm
A63: Maximum TO capacity (no heat recovery) | B63: CO_max_size_no | C63: =MAX(VLOOKUP(10^6,og_co_cost_cl,1)-1) -> 736000 | D63: scfm | E63: The largest size for which costs are available.
A64: Maximum TO capacity (recuperative) | B64: CO_max_size_rec | C64: =MAX(VLOOKUP(10^6,og_corec_cost_cl,1)-1) -> 736000 | D64: scfm | E64: The largest size for which costs are available.
A65: Maximum TO capacity (regenerative) | B65: CO_max_size_reg | C65: =MAX(VLOOKUP(10^6,og_coreg_cost_cl,1)-1) -> 736000 | D65: scfm | E65: The largest size for which costs are available.
A66: Number of units | B66: op_COs | C66: =IF(Offgas_Tech=3,ROUNDUP(CO_tot_size/CO_max_size,0),0) -> 0 | D66: units
A67: Total units including redundancy | B67: tot_COs | C67: =op_COs+NRD_CO -> 0 | D67: units
A68: Capacity per unit | B68: CO_size | C68: =IF(Offgas_Tech=3,CO_tot_size/op_COs,0) -> 0 | D68: scfm
A69: CO operating temperature | B69: CO_op_temp | C69: =IF(Offgas_Tech=3,VLOOKUP(contam,contaminant_lookup,6),0) -> 0 | D69: deg C
A70: Fuel BTUs required (no heat recovery) | C70: =IF(Offgas_Tech=3,MAX(0,((1+CO_ex_air)*(DAILY_AIR*60*60*24*365))*PA*cpa*(CO_op_temp-(T-273))/1.0545-BTU_contam*C_gal*DAILY_AIR*60*60*24*365),0) -> 0 | D70: BTU/yr | E70: kJ = Q (m3/yr) * p (kg/m3) * cp (kJ/kg-deg C) * delta T (deg C). 1 BTU = 1.0545 kJ
A71: Actual fuel BTUs required | C71: =C70*(1-IF(og_opt1=1,CO_rec_eff,IF(og_opt1=2,CO_reg_eff,0))) -> 0 | D71: BTU/yr
A72: Annual natural gas required | B72: CO_ng_yr | C72: =C71/100000 -> 0 | D72: therms/yr
A73: Excess air blower power | C73: =IF(Offgas_Tech=3,CO_ex_air*(average_flow_rate*air_water_ratio/7.48)*blow_head/(229*blower_effcy),0) -> 0 | D73: HP
A74: Excess air blower energy per year | B74: CO_power_yr | C74: =(24*365*0.7457/1000)*C73 -> 0 | D74: MWhr/yr

Sheet Pumps Pipe Structure
A1: Pumps, Piping, and Structure Calculations
A3: Calculation | B3: Range Name | C3: Value | D3: Units | E3: Guidance
A4: Influent Pumping
A5: Flow of each pump | B5: pump_rating | C5: =IF(num_pumps_I="",MIN(MAX(average_flow_rate+bp_flow_rate*average_flow_rate/design_flow_rate,(design_flow_rate+bp_flow_rate)/2)*(1+pump_safety_factor),max_pump_size),IF(num_pumps_I=0,0,(design_flow_rate+bp_flow_rate)*(1+pump_safety_factor)/num_pumps_I)) -> 13.02083333 | D5: gpm | E5: Includes safety factor
A6: Operating pumps | B6: num_pumps | C6: =IF(pump_rating=0,0,ROUNDUP((design_flow_rate+bp_flow_rate)*(1+pump_safety_factor)/pump_rating,0)) -> 2 | D6: units
A7: Total pumps | B7: total_pumps | C7: =IF(pump_rating=0,0,num_pumps+NRD_pumps) -> 2 | D7: units
A8: Maximum pump size | B8: max_pump_size | C8: =MAX(VLOOKUP(10^6,pump_cost_cl,1)-1,VLOOKUP(10^6,back_pump_cost_cl,1)-1) -> 10000 | D8: gpm | E8: The largest pump size for which costs are available. Applies to booster pumps.
A10: Blowers
A11: Design air flow per basin | B11: air_flow_per_basin | C11: =IF(num_op_tanks=0,0,design_air_flow*(1+blower_safety_factor)/num_op_tanks) -> 139.2602496 | D11: cfm | E11: Includes safety factor
A12: Minimum blowers per basin | B12: blowers_per_basin | C12: =ROUNDUP(air_flow_per_basin/max_blow_size,0) -> 1 | D12: units | E12: For default calculation
A13: Operating blowers | B13: num_blowers | C13: =IF(num_blowers_I="",blowers_per_basin*num_tanks,num_blowers_I) -> 1 | D13: units
A14: Flow of each blower | B14: blower_rating | C14: =IF(blowers_per_basin=0,0,IF(num_blowers_I="",air_flow_per_basin/blowers_per_basin,design_air_flow*(1+blower_safety_factor)/num_blowers_I)) -> 139.2602496 | D14: cfm
A15: Total blowers | B15: total_blowers | C15: =IF(num_blowers=0,0,num_blowers+IF(num_tanks=1,NRD_blowers_1,NRD_blowers)) -> 2 | D15: units
A16: Maximum blower size | B16: max_blow_size | C16: =MAX(VLOOKUP(10^6,cent_blow_cost_cl,1)-1,VLOOKUP(10^6,reg_blow_cost_cl,1)-1) -> 5000 | D16: cfm | E16: The largest size for which costs are available.
A18: Piping
A19: Influent and treated water pipe length | B19: in_out_pipe_length | C19: =in_out_pipe_mult*facil_length -> 20 | D19: linear feet
A20: Influent and treated water pipe flow | B20: in_out_pipe_flow | C20: =design_flow_rate -> 20.83333333 | D20: gpm
A21: Influent and treated water piping diameter | B21: in_out_pipe_diam | C21: =VLOOKUP(in_out_pipe_flow,pipe_size_table_cl,2) -> 1.5 | D21: inches
A22: Process pipe length | B22: h2o_pipe_length | C22: =proc_pipe_mult*facil_length -> 20 | D22: linear feet
A23: Process pipe diameter | B23: h2o_pipe_diam | C23: =IF(num_op_tanks=0,0,VLOOKUP(design_flow_rate/num_op_tanks,pipe_size_table_cl,2)) -> 1.5 | D23: inches
A24: Internal air piping | B24: air_pipe_tank | C24: =ROUNDUP(tank_length*num_tanks+max_h2odepth*total_diffusers,0) -> 31 | D24: linear feet | E24: Internal piping spans length of basin + water depth to each diffuser (conservative, as diffuser placement may not be at the bottom)
A25: Total air pipe length | B25: air_pipe_length | C25: =air_pipe_tank+air_pipe_add*facil_length+IF(Offgas_Tech=0,0,offgas_pipe_mult*facil_length) -> 41 | D25: linear feet | E25: Adds external piping
A26: Air pipe diameter | B26: air_pipe_diam | C26: =h2o_pipe_diam -> 1.5 | D26: inches | E26: Assume air pipe diameter is same as liquid pipe diameter
A27: Bypass piping length | B27: bp_pipe_length | C27: =IF(bp_pct>0,bp_pipe_mult*facil_length,0) -> 0 | D27: linear feet
A28: Bypass pipe diameter | B28: bp_pipe_diam | C28: =IF(bp_pct>0,VLOOKUP(bp_flow_rate,pipe_size_table_cl,2),0) -> 0 | D28: inches
A30: Building Structure
A31: Maximum access space per basin | B31: max_space_vessels | C31: =IF(ss_cat2=1,max_space_vessels_pre,max_space_vessels_cust) -> 1 | D31: feet
A32: Access space per basin | B32: space_vessels | C32: =IF(ROUNDUP(tank_width,0)>max_space_vessels,max_space_vessels,ROUNDUP(tank_width,0)) -> 1 | D32: feet
A33: Access space per pump/blower | B33: space_pumps | C33: =CHOOSE(design_type,space_pumps_pre,space_pumps_cust) -> 0 | D33: feet
A34: Footprint for influent pumps | B34: pump_fp | C34: =IF(total_pumps=0,0,ROUNDUP((VLOOKUP(pump_rating,pump_dim_table_cl,3)+2*space_pumps)*(VLOOKUP(pump_rating,pump_dim_table_cl,4)+2*space_pumps)+(total_pumps-1)*(VLOOKUP(pump_rating,pump_dim_table_cl,3)+space_pumps)*(VLOOKUP(pump_rating,pump_dim_table_cl,4)+space_pumps),0)) -> 13 | D34: square feet
A35: Footprint for blowers | B35: blow_fp | C35: =IF(total_blowers=0,0,ROUNDUP((VLOOKUP(blower_rating,blow_dim_table_cl,7)+2*space_pumps)*(VLOOKUP(blower_rating,blow_dim_table_cl,8)+2*space_pumps)+(total_blowers-1)*(VLOOKUP(blower_rating,blow_dim_table_cl,7)+space_pumps)*(VLOOKUP(blower_rating,blow_dim_table_cl,8)+space_pumps),0)) -> 14 | D35: square feet
A36: Office space | B36: office_fp | C36: =VLOOKUP(design_flow,labor_table_cl,3)*IF(ss_cat2=1,space_office_small,space_office) -> 0 | D36: square feet
A37: Basin footprint | B37: basin_fp | C37: =ROUNDUP((tank_width+2*space_vessels)*(tank_length+2*space_vessels)+(num_tanks-1)*(tank_width+space_vessels)*(tank_length+2*space_vessels),0) -> 39 | D37: square feet
A38: Offgas treatment system footprint (GAC) | C38: =IF(Offgas_Tech=1,ROUNDUP(((GAC_bed_size/6)^(1/2)+2*space_pumps)*((GAC_bed_size/6)^(1/2)+2*space_pumps)+(tot_GAC_beds-1)*((GAC_bed_size/6)^(1/2)+2*space_pumps)*((GAC_bed_size/6)^(1/2)+space_pumps),0),0) -> 0 | D38: square ft
A39: Offgas treatment system footprint (TO) | C39: =IF(Offgas_Tech=2,ROUNDUP((VLOOKUP(TO_size,to_dim_table_cl,5)+2*space_pumps)*(VLOOKUP(TO_size,to_dim_table_cl,6)+2*space_pumps)+(tot_TOs-1)*(VLOOKUP(TO_size,to_dim_table_cl,5)+2*space_pumps)*(VLOOKUP(TO_size,to_dim_table_cl,6)+space_pumps),0),0) -> 0 | D39: square ft
A40: Offgas treatment system footprint (CO) | C40: =IF(Offgas_Tech=3,ROUNDUP((VLOOKUP(CO_size,co_dim_table_cl,5)+2*space_pumps)*(VLOOKUP(CO_size,co_dim_table_cl,6)+2*space_pumps)+(tot_COs-1)*(VLOOKUP(CO_size,co_dim_table_cl,5)+2*space_pumps)*(VLOOKUP(CO_size,co_dim_table_cl,6)+space_pumps),0),0) -> 0 | D40: square ft
A41: Offgas treatment system footprint | B41: offgas_fp | C41: =SUM(C38:C40) -> 0 | D41: square ft
A42: Exact building footprint required | B42: fp_required | C42: =SUM(C34:C37) -> 66 | D42: square feet | E42: Building does not cover offgas systems
A43: Building 1 footprint | B43: build1_fp | C43: =ROUNDUP(IF(fp_required>add_2nd_building,basin_fp,fp_required),-1) -> 70 | D43: square feet | E43: If total footprint is large, building 1 contains basins only. If total footprint is small, building 1 contains all equipment.
A44: Building 2 footprint | B44: build2_fp | C44: =ROUNDUP(IF(fp_required>add_2nd_building,pump_fp+blow_fp+office_fp,0),-1) -> 0 | D44: square feet | E44: If total footprint is large, a second building is used for pumps and blowers
A45: Total building footprint | B45: total_fp | C45: =build1_fp+build2_fp -> 70 | D45: square feet
A46: Concrete Class A for pad | B46: concrete | C46: =ROUNDUP((pump_fp+blow_fp+IF(design_type=1,basin_fp,0)+offgas_fp)*IF(ss_cat2=1,pad_thick_small,pad_thick)/27,0) -> 1 | D46: cubic yards | E46: Pad underlies basins (in aboveground systems), pumps, blowers, and offgas equipment
A47: Facility dimension assumed square | B47: facil_length | C47: =ROUNDUP((total_fp+offgas_fp)^0.5,-1) -> 10 | D47: feet
A48: Land acquisition required | B48: land_required | C48: =ROUNDUP(((build1_fp)^0.5+(2*non_fire_buffer))*((build1_fp)^0.5+(non_fire_buffer+fire_buffer))+IF(build2_fp=0,0,((build2_fp)^0.5+(2*non_fire_buffer))*((build2_fp)^0.5+(non_fire_buffer+fire_buffer)))+offgas_fp,-2)/43560 -> 0.03902662994 | D48: acres
A49: Land Cost per acre | B49: land_cost | C49: =VLOOKUP(design_flow,land_cost_cl,3) -> 21165.71325 | D49: $/acre

Sheet Instrumentation and Control
A1: Instrumentation and Control Calculations
A3: Calculation | B3: Range Name | C3: Value | D3: Units | E3: Guidance
A4: From Inputs
A5: Component level | B5: component_level | C5: =IF(component_level_I="high cost",2,IF(component_level_I="mid cost",1,"")) ->  | D5: blank = low cost, 1 = mid cost, 2 = high cost
A6: Manual system controls | B6: manual | C6: =IF(manual_I="manual",1,IF(manual_I="semi-automated",2,IF(manual_I="fully automated",3,IF(component_level="",1,IF(component_level=2,3,CHOOSE(ss_cat2,3,3,3)))))) -> 3 | D6: 1 = fully manual system, 2 = semi-automated system, 3 = fully automated system. | E6: Based on system size and component level (see cell comment), unless user overrides on input sheet
A8: Valves and Instrumentation
A9: Size of valves for influent and treated water lines | B9: in_valve_size | C9: =in_out_pipe_diam -> 1.5 | D9: inches
A10: Size of valves for process line | B10: tank_valve_size | C10: =h2o_pipe_diam -> 1.5 | D10: inches
A11: Size of valves for air line | B11: air_valve_size | C11: =air_pipe_diam -> 1.5 | D11: inches
A12: Size of valves for bypass line | B12: bypass_valve_size | C12: =bp_pipe_diam -> 0 | D12: inches
A14: Number of MOVs for process line | B14: tot_proc_MOVs | C14: =VLOOKUP("proc_MOV_basin",valve_table,manual+1,FALSE)*num_tanks+VLOOKUP("proc_MOV_pump",valve_table,manual+1,FALSE)*total_pumps -> 6 | D14: valves
A15: Number of MOVs for air line | B15: tot_air_MOVs | C15: =VLOOKUP("air_MOV_basin",valve_table,manual+1,FALSE)*total_blowers+VLOOKUP("air_MOV_og",valve_table,manual+1,FALSE)*CHOOSE(Offgas_Tech+1,0,tot_GAC_beds,tot_TOs,tot_COs)+IF(Offgas_Tech=0,0,VLOOKUP("add_MOV_og",valve_table,manual+1,FALSE)) -> 2 | D15: valves
A16: Number of MOVs for bypass line | B16: tot_bp_MOVs | C16: =IF(bp_pct=0,0,VLOOKUP("tot_bp_movs",valve_table,manual+1,FALSE)) -> 0 | D16: valves
A17: Total number of MOVs | B17: tot_MOVs | C17: =tot_air_MOVs+tot_proc_MOVs+tot_bp_MOVs -> 8 | D17: valves
A18: Number of manual valves for process line | B18: tot_proc_man | C18: =VLOOKUP("proc_man_basin",valve_table,manual+1,FALSE)*num_tanks+VLOOKUP("proc_man_pump",valve_table,manual+1,FALSE)*total_pumps -> 1 | D18: valves
A19: Number of manual valves for air line | B19: tot_air_man | C19: =VLOOKUP("air_man_basin",valve_table,manual+1,FALSE)*total_blowers+VLOOKUP("air_man_og",valve_table,manual+1,FALSE)*CHOOSE(Offgas_Tech+1,0,tot_GAC_beds,tot_TOs,tot_COs)+IF(Offgas_Tech=0,0,VLOOKUP("add_man_og",valve_table,manual+1,FALSE)) -> 0 | D19: valves
A20: Number of manual valves for bypass line | B20: tot_bp_man | C20: =IF(bp_pct=0,0,VLOOKUP("tot_bp_man",valve_table,manual+1,FALSE)) -> 0 | D20: valves
A22: Number of check valves for process line | B22: tot_proc_chv | C22: =proc_chv_pump*total_pumps -> 2 | D22: valves
A24: Size of flow meters for influent line | B24: in_meter_size | C24: =in_out_pipe_diam -> 1.5 | D24: inches
A25: Size of flow meters for process line | B25: proc_meter_size | C25: =h2o_pipe_diam -> 1.5 | D25: inches
A26: Number of flow meters for process line | B26: tot_fm_proc | C26: =fm_proc*num_tanks -> 1 | D26: units
A27: Number of flow meters for air line | B27: tot_fm_air | C27: =fm_air*num_tanks -> 1 | D27: units
A29: Total high/low alarms | B29: tot_basin_alarm | C29: =alarm_basin*num_tanks -> 1 | D29: units
A30: Total pressure gauges | B30: tot_gauges | C30: =gauges_blower*total_blowers -> 4 | D30: units
A31: Total drive controllers | B31: tot_switches | C31: =IF(manual=2,0,S_booster_pump*total_pumps+S_blower*total_blowers+S_TO*tot_TOs+S_CO*tot_COs) -> 4 | D31: units
A33: System Controls
A34: Flow meter lookup code - influent and treated water | B34: fm_lkp_io | C34: =IF(OUTPUT!L113=1,"flow_op",IF(OUTPUT!L114=1,"flow_prop",IF(OUTPUT!L115=1,"flow_ven","flow_mag"))) -> flow_prop | E34: These codes are used to look up SCADA requirements, which depend on the type of flow meter selected.
A35: Flow meter lookup code - process | B35: fm_lkp_proc | C35: =IF(OUTPUT!L118=1,"flow_op",IF(OUTPUT!L119=1,"flow_prop",IF(OUTPUT!L120=1,"flow_ven","flow_mag"))) -> flow_prop
A36: Total discrete inputs | B36: discrete_inputs | C36: =VLOOKUP(fm_lkp_io,port_table,2,FALSE)*tot_fm_in+VLOOKUP(fm_lkp_proc,port_table,2,FALSE)*tot_fm_proc+VLOOKUP("flow_air",port_table,2,FALSE)*tot_fm_air+VLOOKUP("alarm",port_table,2,FALSE)*tot_basin_alarm+VLOOKUP("switch",port_table,2,FALSE)*tot_switches+VLOOKUP("valve",port_table,2,FALSE)*tot_MOVs+VLOOKUP("pH",port_table,2,FALSE)*tot_ph+VLOOKUP("press",port_table,2,FALSE)*tot_gauges+VLOOKUP("TO",port_table,2,FALSE)*tot_TOs+VLOOKUP("CO",port_table,2,FALSE)*tot_COs -> 13 | D36: units
A37: Total discrete outputs | B37: discrete_outputs | C37: =IF(manual=2,0,VLOOKUP(fm_lkp_io,port_table,3,FALSE)*tot_fm_in+VLOOKUP(fm_lkp_proc,port_table,3,FALSE)+VLOOKUP("flow_air",port_table,3,FALSE)*tot_fm_air+VLOOKUP("alarm",port_table,3,FALSE)*tot_basin_alarm+VLOOKUP("switch",port_table,3,FALSE)*tot_switches+VLOOKUP("valve",port_table,3,FALSE)*tot_MOVs+VLOOKUP("pH",port_table,3,FALSE)*tot_ph+VLOOKUP("press",port_table,3,FALSE)*tot_gauges+VLOOKUP("TO",port_table,3,FALSE)*tot_TOs+VLOOKUP("CO",port_table,3,FALSE)*tot_COs) -> 5 | D37: units
A38: Total analog inputs | B38: analog_inputs | C38: =VLOOKUP(fm_lkp_io,port_table,4,FALSE)*tot_fm_in+VLOOKUP(fm_lkp_proc,port_table,4,FALSE)*tot_fm_proc+VLOOKUP("flow_air",port_table,4,FALSE)*tot_fm_air+VLOOKUP("alarm",port_table,4,FALSE)*tot_basin_alarm+VLOOKUP("switch",port_table,4,FALSE)*tot_switches+VLOOKUP("valve",port_table,4,FALSE)*tot_MOVs+VLOOKUP("pH",port_table,4,FALSE)*tot_ph+VLOOKUP("press",port_table,4,FALSE)*tot_gauges+VLOOKUP("TO",port_table,4,FALSE)*tot_TOs+VLOOKUP("CO",port_table,4,FALSE)*tot_COs -> 17 | D38: units
A39: Total analog outputs | B39: analog_outputs | C39: =IF(manual=2,0,VLOOKUP(fm_lkp_io,port_table,5,FALSE)*tot_fm_in+VLOOKUP(fm_lkp_proc,port_table,5,FALSE)*tot_fm_proc+VLOOKUP("flow_air",port_table,5,FALSE)*tot_fm_air+VLOOKUP("alarm",port_table,5,FALSE)*tot_basin_alarm+VLOOKUP("switch",port_table,5,FALSE)*tot_switches+VLOOKUP("valve",port_table,5,FALSE)*tot_MOVs+VLOOKUP("pH",port_table,5,FALSE)*tot_ph+VLOOKUP("press",port_table,5,FALSE)*tot_gauges+VLOOKUP("TO",port_table,5,FALSE)*tot_TOs+VLOOKUP("CO",port_table,5,FALSE)*tot_COs) -> 8 | D39: units
A41: I/O Discrete Output Modules | B41: plc_discrete_output | C41: =ROUNDUP(discrete_outputs/32,0) -> 1 | D41: units
A42: I/O Discrete Input Modules | B42: plc_discrete_input | C42: =ROUNDUP(discrete_inputs/32,0) -> 1 | D42: units
A43: I/O Combination Analog Modules | B43: plc_combination_analog | C43: =ROUNDUP((analog_inputs + analog_outputs)/12,0) -> 3 | D43: units
A44: Total number of PLC slots used | B44: plc_slots | C44: =plc_cpu + plc_ethernet + plc_discrete_input + plc_discrete_output + plc_combination_analog -> 9 | D44: units
A45: Expansions required | B45: plc_expansions | C45: =IF(plc_slots<=9,0,ROUNDUP((plc_slots-9)/8,0)) -> 0 | D45: units
A46: PLC Rack/Power Supplies | B46: plc_rack | C46: =1+plc_expansions -> 1 | D46: units
A47: Base Expansion Modules | B47: plc_base_expansion | C47: =plc_expansions -> 0 | D47: units
A48: Base Expansion Controller Modules | B48: plc_base_expansion_controller | C48: =plc_expansions -> 0 | D48: units
A49: Number of computer workstations | B49: workstations | C49: =ROUNDUP(Operator_LOE/2080/shifts_day/workstation_ratio,0) -> 1 | D49: units
A50: Number of printers | B50: printers | C50: =ROUNDUP(workstations/printer_ratio,0) -> 1 | D50: units

Sheet O&M
A1: Operation and Maintenance Calculations
A3: Calculation | B3: Range Name | C3: Value | D3: Units | E3: Guidance
A4: Materials
A5: Maintenance Materials
A6: Pumps | B6: pump_materials | C6: =IF(OUTPUT!J48="--",0,pump_maint_rate*OUTPUT!J48) -> 89.98299146 | D6: /yr
A7: Blowers | B7: blower_materials | C7: =IF(num_blowers=0,0,pump_maint_rate*SUMPRODUCT(OUTPUT!J50:J51,OUTPUT!L50:L51)) -> 47.13440951 | D7: /yr
A9: Labor
A10: General Labor
A11: Number of process instruments for operation | B11: tot_inst | C11: =tot_fm_in+tot_fm_proc+tot_fm_air+tot_ph -> 5 | E11: Instruments requiring daily observation
A12: Total number of instruments for maintenance | B12: tot_inst_maint | C12: =tot_fm_in+tot_fm_proc+tot_fm_air+tot_ph+tot_basin_alarm -> 6 | E12: All instruments for preventative maintenance
A13: Number of process pumps, blowers, offgas units for operation | B13: tot_pumps | C13: =num_pumps+num_blowers+CHOOSE(Offgas_Tech+1,0,op_GAC_beds,op_TOs,op_COs) -> 3 | E13: Pumps requiring daily observation/adjustment; includes blowers & offgas units in this technology
A14: Total number of pumps for maintenance | B14: tot_pumps_maint | C14: =num_pumps+num_blowers -> 3 | E14: Large, frequently operated pumps require preventative maintenance; includes blowers in this technology
A15: Number of process valves | B15: tot_valves | C15: =tot_proc_MOVs+tot_proc_man+tot_air_MOVs+tot_air_man+tot_bp_MOVs+tot_bp_man -> 9 | E15: Main process valves require frequent operation and preventative maintenance
A16: Media changeouts per year | B16: media_changes | C16: =IF(Offgas_Tech=1,op_GAC_beds*12/bed_life,0) -> 0 | E16: For offgas GAC
A18: Record system operating parameters (includes routine sampling) | C18: =IF(manual=1,tot_inst*uloe_inst*365/60,uloe_inst_auto*365/60) -> 30.41666667 | D18: hr/yr
A19: Preventative maintenance and calibration of instruments | C19: =tot_inst_maint*uloe_inst_maint*12/60 -> 12 | D19: hr/yr
A20: Verify/adjust pump operating parameters | C20: =IF(OR(manual=1,manual=2),tot_pumps*uloe_pump*365/60,0) -> 0 | D20: hr/yr
A21: Preventative maintenance of pumps | C21: =tot_pumps_maint*uloe_pump_maint -> 90.75 | D21: hr/yr
A22: Verify/adjust valve positions | C22: =IF(OR(manual=1,manual=2),tot_valves*uloe_valve*52/60,0) -> 0 | D22: hr/yr
A23: Preventative maintenance and inspection of valves | C23: =tot_valves*uloe_valve_maint/60 -> 0.75 | D23: hr/yr
A24: Visual inspection of facility | C24: =(total_fp+offgas_fp)/100*uloe_fp*365/60 -> 4.258333333 | D24: hr/yr
A25: Managing media changeouts | C25: =media_changes*uloe_throwaway -> 0 | D25: hr/yr | E25: For offgas GAC
A26: General Operator Labor | B26: General_Oper_Labor | C26: =SUM(C18:C25) -> 138.175 | D26: hr/yr
A27: Annual Operator LOE | B27: Operator_LOE | C27: =General_Oper_Labor -> 138.175 | D27: hr/yr
A29: Annual Manager LOE | B29: Manager_LOE | C29: =Operator_LOE*Manager_percent -> 13.8175 | D29: hr/yr | E29: Based on general operator labor and percentages in critical design assumptions
A30: Annual Administrative LOE | B30: Clerical_LOE | C30: =Operator_LOE*Clerical_percent -> 13.8175 | D30: hr/yr | E30: Based on general operator labor and percentages in critical design assumptions
A32: Building and HVAC Maintenance
A33: Cost excluding heating and cooling | C33: =IF(include_buildings=0,0,building_matl_rate_cl*total_fp) -> 453.5319975 | D33: /yr | E33: Labor and materials; includes routine in-house maintenance and major repairs
A34: Cost to maintain heating system, building 1 | C34: =build1_need_heat*heating_matl_rate_cl*build1_fp -> 0 | D34: /yr
A35: Cost to maintain cooling system, building 1 | C35: =build1_need_cool*cooling_matl_rate_cl*build1_fp -> 0 | D35: /yr
A36: Cost to maintain heating system, building 2 | C36: =build2_need_heat*heating_matl_rate_cl*build2_fp -> 0 | D36: /yr
A37: Cost to maintain cooling system, building 2 | C37: =build2_need_cool*cooling_matl_rate_cl*build2_fp -> 0 | D37: /yr
A38: Total annual building and HVAC maintenance | B38: bldg_maint_cost | C38: =SUM(C33:C37) -> 453.5319975 | E38: Includes labor and materials
A40: Energy
A41: Booster Pumps
A42: Pump operating horsepower (all pumps) | B42: pump_energy_hp | C42: =(average_flow_rate+bp_flow_rate*average_flow_rate/design_flow_rate)*pump_head/pump_effcy/14.7*33.9*8.34/550/60 -> 0.2833152958 | D42: hp
A43: Energy for all active booster pumps | B43: pump_energy | C43: =IF(num_pumps=0,0,(0.7457/1000*24*365)*pump_energy_hp) -> 1.850709573 | D43: MWh/yr
A45: Blowers
A46: Blower operating pressure | B46: blow_head | C46: =(max_h2odepth+add_blow_head/12)/2.307 -> 1.661609594 | D46: psi
A47: Total blower operating horsepower | B47: blower_hp | C47: =(average_flow_rate*air_water_ratio/7.48)*blow_head/(229*blower_effcy) -> 0.2694569627 | D47: HP
A48: Energy | B48: blower_energy | C48: =(24*365*0.7457/1000)*blower_hp -> 1.76018234 | D48: MWh/yr
A50: Building Lighting
A51: Lighting power per sf, building 1 | B51: lighting_energy_1 | C51: =IF(OR(build1_fp<500,component_level=""),lighting_power_low,CHOOSE(component_level,lighting_power_mid,lighting_power_high))*24*365/1000 -> 2.628 | D51: kWh/sf/yr
A52: Lighting power per sf, building 2 | B52: lighting_energy_2 | C52: =IF(OR(build2_fp<500,component_level=""),lighting_power_low,CHOOSE(component_level,lighting_power_mid,lighting_power_high))*24*365/1000 -> 2.628 | D52: kWh/sf/yr
A53: Lighting | B53: lighting | C53: =IF(include_buildings=0,0,MIN(1,Operator_LOE/(24*365))*(build1_fp*lighting_energy_1+build2_fp*lighting_energy_2)/1000) -> 0.002901675 | D53: MWh/yr
A55: HVAC
A56: Heating energy usage for:
A57: Electric resistance | B57: heating | C57: =IF(build1_heat=A57,VLOOKUP(A57,build1_heat_options, 7,FALSE),0)+IF(build2_heat=A57,VLOOKUP(A57,build2_heat_options, 7,FALSE),0) -> 0 | D57: MWh/yr
A58: Natural gas non-condensing furnace | B58: heating_gas_non | C58: 0 | D58: therms/yr
A59: Natural gas condensing furnace | B59: heating_gas | C59: 0 | D59: therms/yr
A60: Standard efficiency oil furnace | B60: heating_diesel_non | C60: 0 | D60: gal/yr
A61: Mid-efficiency oil furnace | B61: heating_diesel | C61: 0 | D61: gal/yr
A62: Heat pump | B62: heating_hp | C62: 0 | D62: MWh/yr
A64: Cooling energy usage for:
A65: Air conditioner | B65: cooling | C65: =IF(build1_cool=A65,VLOOKUP(A65,build1_cool_options, 7,FALSE),0)+IF(build2_cool=A65,VLOOKUP(A65,build2_cool_options, 7,FALSE),0) -> 0 | D65: MWh/yr
A66: Heat pump | B66: cooling_hp | C66: =IF(build1_cool=A66,VLOOKUP(A66,build1_cool_options, 7,FALSE),0)+IF(build2_cool=A66,VLOOKUP(A66,build2_cool_options, 7,FALSE),0) -> 0 | D66: MWh/yr

Sheet HVAC
A1: Building Heating, Ventilating, and Air Conditioning Calculations
A3: Calculation | B3: Range Name | C3: Value | D3: Units | E3: Guidance
A4: General information
A5: System size | B5: ss_cat2 | C5: =IF(design_flow<1,1,IF(design_flow<10,2,3)) -> 1 | D5: 1 indicates small system, 2 indicates medium, 3 indicates large | E5: ss_cat2 is used to select ventilation requirements and building type
A6: Buiding 1 length and width | B6: build1_side | C6: =build1_fp^0.5 -> 8.366600265 | D6: ft
A7: Building 2 length and width | B7: build2_side | C7: =build2_fp^0.5 -> 0 | D7: ft
A8: Include HVAC? | B8: include_HVAC | C8: =IF(include_HVAC_I="no",0,IF(include_HVAC_I="yes",1,2)) -> 2 | D8: 0 = always exclude, 1 = always include, 2 = use model default
A10: Ventilation
A11: Building 1 weighted average air changes | B11: air_changes_build1 | C11: =IF(build2_fp=0,(Air_changes_contactor*basin_fp+Air_changes_pump*pump_fp+Air_changes_pump*blower_hp+Air_changes_office*office_fp)/build1_fp,Air_changes_contactor) -> 5.462701989 | D11: air changes/hr
A12: Building 2 weighted average air changes | B12: air_changes_build2 | C12: =IF(build2_fp=0,0,(Air_changes_pump*pump_fp+Air_changes_pump*blow_fp+Air_changes_office*office_fp)/build2_fp) -> 0 | D12: air changes/hr
A13: Building 1 ventilation | C13: =CHOOSE(ss_cat2,fan_days_build1_small,fan_days_build1_medium,fan_days_build1_large)*24*0.746*Fan_pressure_drop*build1_fp*Building_height*air_changes_build1/33000 -> 93.35857022 | D13: kWh/yr
A14: Building 2 ventilation | C14: =CHOOSE(ss_cat2,fan_days_build2_small,fan_days_build2_medium,fan_days_build2_large)*24*0.746*Fan_pressure_drop*build2_fp*Building_height*air_changes_build2/33000 -> 0 | D14: kWh/yr
A15: Total ventilation | B15: ventilation | C15: =IF(include_HVAC=0,0,SUM(C13:C14)/1000) -> 0.09335857022 | D15: MWh/yr
A17: Building 1 air exchange rate | B17: build1_cfm | C17: =build1_fp*Building_height*air_changes_build1/60 -> 127.4630464 | D17: cfm
A18: Building 2 air exchange rate | B18: build2_cfm | C18: =build2_fp*Building_height*air_changes_build2/60 -> 0 | D18: cfm
A20: Heating and Cooling
A21: Include heating for building 1 | B21: build1_need_heat | C21: =IF(include_HVAC=0,0,IF(include_HVAC=1,1,VLOOKUP(IF(component_level_I="","low cost",component_level_I),IF(build1_fp<500,heating_table_shed,heating_table),ss_cat2+2,FALSE))) -> 0 | D21: 1 for yes, 0 for no | E21: Based on system size, building floorplan, and inputs
A22: Include cooling for building 1 | B22: build1_need_cool | C22: =IF(include_HVAC=0,0,IF(include_HVAC=1,1,VLOOKUP(IF(component_level_I="","low cost",component_level_I),IF(build1_fp<500,cooling_table_shed,cooling_table),ss_cat2+2,FALSE))) -> 0 | D22: 1 for yes, 0 for no
A23: Include heating for building 2 | B23: build2_need_heat | C23: =IF(build2_fp=0,0,IF(include_HVAC=0,0,IF(include_HVAC=1,1,VLOOKUP(IF(component_level_I="","low cost",component_level_I),IF(build2_fp<500,heating_table_shed,heating_table),ss_cat2+2,FALSE)))) -> 0 | D23: 1 for yes, 0 for no
A24: Include cooling for building 2 | B24: build2_need_cool | C24: =IF(build2_fp=0,0,IF(include_HVAC=0,0,IF(include_HVAC=1,1,VLOOKUP(IF(component_level_I="","low cost",component_level_I),IF(build2_fp<500,cooling_table_shed,cooling_table),ss_cat2+2,FALSE)))) -> 0 | D24: 1 for yes, 0 for no
A26: Heating Requirements
A27: Building 1 side conductance heat loss | C27: =4*build1_side*Building_height*heat_DD*24/R_wall -> 2737283.876 | D27: BTU/yr
A28: Buiding 1 ceiling conductance heat loss | C28: =build1_fp*heat_DD*24/R_ceiling -> 146057.1429 | D28: BTU/yr
A29: Building 1 air exchange heat loss | C29: =build1_cfm*heat_viload -> 21500339.21 | D29: BTU/yr
A30: Building 1 total annual heat loss | B30: build1_heat_loss_yr | C30: =SUM(C27:C29) -> 24383680.23 | D30: BTU/yr
A31: Building 1 heating requirement in thousand BTU/hr | B31: build1_heat_mbh | C31: =build1_heat_loss_yr/365.25/24/1000 -> 2.781619921 | D31: MBH | E31: thousands of BTU per hour
A32: Building 1 number of heating zones | B32: build1_heat_zones | C32: =ROUNDUP(build1_heat_mbh/max_heat_cl,0) -> 1
A34: Building 2 side conductance heat loss | C34: =4*build2_side*Building_height*heat_DD*24/R_wall -> 0 | D34: BTU/yr
A35: Buiding 2 ceiling conductance heat loss | C35: =build2_fp*heat_DD*24/R_ceiling -> 0 | D35: BTU/yr
A36: Building 2 air exchange heat loss | C36: =build2_cfm*heat_viload -> 0 | D36: BTU/yr
A37: Building 2 total annual heat loss | B37: build2_heat_loss_yr | C37: =SUM(C34:C36) -> 0 | D37: BTU/yr
A38: Building 2 heating requirement in thousand BTU/hr | B38: build2_heat_mbh | C38: =build2_heat_loss_yr/365.25/24/1000 -> 0 | D38: MBH
A39: Building 2 number of heating zones | B39: build2_heat_zones | C39: =ROUNDUP(build2_heat_mbh/max_heat_cl,0) -> 0
A41: Cooling Requirements
A42: Power lost: booster pumps | B42: eloss_pumps | C42: =pump_energy_hp*(1-pump_effcy)*0.7457 -> 0.05281705402 | D42: kW
A43: Waste heat: booster pumps | B43: waste_heat_pumps | C43: =eloss_pumps*3415 -> 180.3702395 | D43: BTU/hr
A44: Power lost: blowers | B44: eloss_blow | C44: =blower_hp*(1-blower_effcy)*0.7457 -> 0.06028021713 | D44: kW
A45: Waste heat: blowers | B45: waste_heat_blow | C45: =eloss_blow*3415 -> 205.8569415 | D45: BTU/hr
A47: Building 1 side conductance cooling loss | C47: =4*build1_side*Building_height*cool_DD*24/R_wall -> 909215.184 | D47: BTU/yr
A48: Buiding 1 ceiling conductance cooling loss | C48: =build1_fp*cool_DD*24/R_ceiling -> 48514.28571 | D48: BTU/yr
A49: Building 1 air exchange cooling loss | C49: =build1_cfm*cool_viload -> 6598889.376 | D49: BTU/yr
A50: Building 1 total annual cooling loss | B50: build1_cooling_loss_yr | C50: =SUM(C47:C49) -> 7556618.846 | D50: BTU/yr
A51: Building 1 cooling loss per hour | B51: build1_cooling_loss_hr | C51: =build1_cooling_loss_yr/365.25/24 -> 862.0372856 | D51: BTU/hr
A53: Building 1 total cooling requirement | B53: build1_cooling_req | C53: =build1_cooling_loss_hr+IF(fp_required<add_2nd_building,waste_heat_pumps+waste_heat_blow,0) -> 1248.264467 | D53: BTU/hr
A54: Building 1 annual cooling requirement | B54: build1_cooling_yr | C54: =build1_cooling_req*365.25*24 -> 10942286.31 | D54: BTU/yr
A55: Building 1 total cooling requirement in tons | B55: build1_cooling_tons | C55: =build1_cooling_req/12000 -> 0.1040220389 | D55: tons | E55: 1 ton cooling = 12,000 BTU/hr
A56: Building 1 number of cooling zones | B56: build1_cool_zones | C56: =ROUNDUP(build1_cooling_tons/max_cool_cl,0) -> 1
A58: Building 2 side conductance cooling loss | C58: =4*build2_side*Building_height*cool_DD*24/R_wall -> 0 | D58: BTU/yr
A59: Buiding 2 ceiling conductance cooling loss | C59: =build2_fp*cool_DD*24/R_ceiling -> 0 | D59: BTU/yr
A60: Building 2 air exchange cooling loss | C60: =build2_cfm*cool_viload -> 0 | D60: BTU/yr
A61: Building 2 total annual cooling loss | B61: build2_cooling_loss_yr | C61: =SUM(C58:C60) -> 0 | D61: BTU/yr
A62: Building 2 cooling loss per hour | B62: build2_cooling_loss_hr | C62: =build2_cooling_loss_yr/365.25/24 -> 0 | D62: BTU/hr
A64: Building 2 total cooling requirement | B64: build2_cooling_req | C64: =build2_cooling_loss_hr+IF(fp_required<add_2nd_building,0,waste_heat_pumps+waste_heat_blow) -> 0 | D64: BTU/hr
A65: Building 2 annual cooling requirement | B65: build2_cooling_yr | C65: =build2_cooling_req*365.25*24 -> 0 | D65: BTU/yr
A66: Building 2 total cooling requirement in tons | B66: build2_cooling_tons | C66: =build2_cooling_req/12000 -> 0 | D66: tons | E66: 1 ton cooling = 12,000 BTU/hr
A67: Building 2 number of cooling zones | B67: build2_cool_zones | C67: =ROUNDUP(build2_cooling_tons/max_cool_cl,0) -> 0
A69: Heating Options
A71: Building 1 number of HVAC zones | B71: build1_zones | C71: =MAX(build1_heat_zones, build1_cool_zones) -> 1
A72: Building 2 number of HVAC zones | B72: build2_zones | C72: =MAX(build2_heat_zones, build2_cool_zones) -> 0
A74: Heat pump OK for building 1? | B74: hp_ok_1 | C74: =AND(build1_heat_mbh<=hp_max_heat_cl,build1_cooling_tons<=hp_max_cool_cl) -> TRUE | E74: For heat pumps, we check both heating and cooling capacities.
A75: Heat pump OK for building 2? | B75: hp_ok_2 | C75: =AND(build2_heat_mbh<=hp_max_heat_cl,build2_cooling_tons<=hp_max_cool_cl) -> TRUE
A77: Building 1 | B77: build1_heat_options
A78: Option | B78: Size needed per zone (MBH) | C78: Size selected (MBH) | D78: Direct Cost Per Zone | E78: Useful Life (yrs) | F78: Annualized Capital Cost, All Zones | G78: Energy/Yr | I78: Energy Unit Cost | K78: Annual Energy Cost | L78: Total Annual Cost
A79: Electric resistance | B79: =build1_heat_mbh/build1_zones -> 2.781619921 | C79: =IF(curve=1,B79,VLOOKUP(B79,hvac_elec_cost_cl,2)) -> 2.781619921 | D79: =IF(curve=1,hvac_elec_eq_1,VLOOKUP(B79,hvac_elec_cost_cl,3)) -> 2514.511627 | E79: =VLOOKUP(B79,hvac_elec_cost_cl,IF(ss_cat="large",4,5)) -> 20 | F79: =IF(D79="contact vendor","n/a",-PMT(Discount_rate,E79,D79)*build1_zones) -> 237.3521093 | G79: =build1_heat_loss_yr/3412000/resist_eff -> 7.292293773 | H79: MWh/yr | I79: =energy_cost_cl -> 0.1100175092 | J79: /kwh | K79: =I79*G79*1000 -> 802.2799976 | L79: =IF(OR(F79="n/a",K79="n/a"),"n/a",F79+K79) -> 1039.632107
A80: Heat pump | B80: capital costs are in the cooling table | F80: n/a | G80: =IF(hp_ok_1,build1_heat_loss_yr/3412000/COP,"n/a") -> 2.165590272 | H80: MWh/yr | I80: =energy_cost_cl -> 0.1100175092 | J80: /kwh | K80: =IF(G80="n/a","n/a",I80*G80*1000) -> 238.2528478 | L80: n/a
A81: Natural gas non-condensing furnace | B81: =build1_heat_mbh/build1_zones -> 2.781619921 | C81: =IF(curve=1,B81,VLOOKUP(B81,hvac_gas_non_cost_cl,2)) -> 2.781619921 | D81: =IF(curve=1,hvac_gas_non_eq_1,VLOOKUP(B81,hvac_gas_non_cost_cl,3)) -> 1907.295161 | E81: =VLOOKUP(B81,hvac_gas_non_cost_cl,IF(ss_cat="large",4,5)) -> 20 | F81: =IF(D81="contact vendor","n/a",-PMT(Discount_rate,E81,D81)*build1_zones) -> 180.0351705 | G81: =build1_heat_loss_yr/100000/gas_non_eff -> 286.8668262 | H81: therms/yr | I81: =gas_cost_cl -> 0.5785614035 | J81: /therm | K81: =I81*G81 -> 165.9700736 | L81: 346.0052441
A82: Natural gas condensing furnace | B82: =build1_heat_mbh/build1_zones -> 2.781619921 | C82: =IF(curve=1,B82,VLOOKUP(B82,hvac_gas_cost_cl,2)) -> 2.781619921 | D82: =IF(curve=1,hvac_gas_eq_1,VLOOKUP(B82,hvac_gas_cost_cl,3)) -> 1907.295161 | E82: =VLOOKUP(B82,hvac_gas_cost_cl,IF(ss_cat="large",4,5)) -> 20 | F82: =IF(D82="contact vendor","n/a",-PMT(Discount_rate,E82,D82)*build1_zones) -> 180.0351705 | G82: =build1_heat_loss_yr/100000/gas_eff -> 270.9297803 | H82: therms/yr | I82: =gas_cost_cl -> 0.5785614035 | J82: /therm | K82: =I82*G82 -> 156.7495139 | L82: 336.7846845
A83: Standard efficiency oil furnace | B83: =build1_heat_mbh/build1_zones -> 2.781619921 | C83: =IF(curve=1,B83,VLOOKUP(B83,hvac_oil_std_cost_cl,2)) -> 2.781619921 | D83: =IF(curve=1,hvac_oil_std_eq_1,VLOOKUP(B83,hvac_oil_std_cost_cl,3)) -> 2419.338742 | E83: =VLOOKUP(B83,hvac_oil_std_cost_cl,IF(ss_cat="large",4,5)) -> 20 | F83: =IF(D83="contact vendor","n/a",-PMT(Discount_rate,E83,D83)*build1_zones) -> 228.3684622 | G83: =build1_heat_loss_yr/diesel_heat_content/diesel_non_eff -> 213.9294633 | H83: gal/yr | I83: =diesel_cost_cl -> 3.829500772 | J83: /gal | K83: =I83*G83 -> 819.2430448 | L83: 1047.611507
A84: Mid-efficiency oil furnace | B84: =build1_heat_mbh/build1_zones -> 2.781619921 | C84: =IF(curve=1,B84,VLOOKUP(B84,hvac_oil_mid_cost_cl,2)) -> 2.781619921 | D84: =IF(curve=1,hvac_oil_mid_eq_1,VLOOKUP(B84,hvac_oil_mid_cost_cl,3)) -> 2419.338742 | E84: =VLOOKUP(B84,hvac_oil_mid_cost_cl,IF(ss_cat="large",4,5)) -> 20 | F84: =IF(D84="contact vendor","n/a",-PMT(Discount_rate,E84,D84)*build1_zones) -> 228.3684622 | G84: =build1_heat_loss_yr/diesel_heat_content/diesel_eff -> 194.913511 | H84: gal/yr | I84: =diesel_cost_cl -> 3.829500772 | J84: /gal | K84: =I84*G84 -> 746.4214408 | L84: 974.789903
A86: Building 2 | B86: build2_heat_options
A87: Option | B87: Size needed per zone (MBH) | C87: Size selected (MBH) | D87: Direct Cost Per Zone | E87: Useful Life (yrs) | F87: Annualized Capital Cost, All Zones | G87: Energy/Yr | I87: Energy Unit Cost | K87: Annual Energy Cost | L87: Total Annual Cost
A88: Electric resistance | B88: =IF(build2_zones=0,0,build2_heat_mbh/build2_zones) -> 0 | C88: =IF(curve=1,B88,VLOOKUP(B88,hvac_elec_cost_cl,2)) -> 0 | D88: =IF(curve=1,hvac_elec_eq_2,VLOOKUP(B88,hvac_elec_cost_cl,3)) -> 0 | E88: =VLOOKUP(B88,hvac_elec_cost_cl,IF(ss_cat="large",4,5)) -> 20 | F88: =IF(D88="contact vendor","n/a",-PMT(Discount_rate,E88,D88)*build2_zones) -> 0 | G88: =build2_heat_loss_yr/3412000/resist_eff -> 0 | H88: MWh/yr | I88: =energy_cost_cl -> 0.1100175092 | J88: /kwh | K88: =I88*G88*1000 -> 0 | L88: =IF(F88="n/a","n/a",F88+K88) -> 0
A89: Heat pump | B89: capital costs are in the cooling table | F89: n/a | G89: =IF(hp_ok_2,build2_heat_loss_yr/3412000/COP,"n/a") -> 0 | H89: MWh/yr | I89: =energy_cost_cl -> 0.1100175092 | J89: /kwh | K89: =IF(G89="n/a","n/a",I89*G89*1000) -> 0 | L89: =IF(OR(F89="n/a",K89="n/a"),"n/a",F89+K89) -> n/a
A90: Natural gas non-condensing furnace | B90: =IF(build2_zones=0,0,build2_heat_mbh/build2_zones) -> 0 | C90: =IF(curve=1,B90,VLOOKUP(B90,hvac_gas_non_cost_cl,2)) -> 0 | D90: =IF(curve=1,hvac_gas_non_eq_2,VLOOKUP(B90,hvac_gas_non_cost_cl,3)) -> 0 | E90: =VLOOKUP(B90,hvac_gas_non_cost_cl,IF(ss_cat="large",4,5)) -> 20 | F90: =IF(D90="contact vendor","n/a",-PMT(Discount_rate,E90,D90)*build2_zones) -> 0 | G90: =build2_heat_loss_yr/100000/gas_non_eff -> 0 | H90: therms/yr | I90: =gas_cost_cl -> 0.5785614035 | J90: /therm | K90: =I90*G90 -> 0 | L90: =IF(F90="n/a","n/a",F90+K90) -> 0
A91: Natural gas condensing furnace | B91: =IF(build2_zones=0,0,build2_heat_mbh/build2_zones) -> 0 | C91: =IF(curve=1,B91,VLOOKUP(B91,hvac_gas_cost_cl,2)) -> 0 | D91: =IF(curve=1,hvac_gas_eq_2,VLOOKUP(B91,hvac_gas_cost_cl,3)) -> 0 | E91: =VLOOKUP(B91,hvac_gas_cost_cl,IF(ss_cat="large",4,5)) -> 20 | F91: =IF(D91="contact vendor","n/a",-PMT(Discount_rate,E91,D91)*build2_zones) -> 0 | G91: =build2_heat_loss_yr/100000/gas_eff -> 0 | H91: therms/yr | I91: =gas_cost_cl -> 0.5785614035 | J91: /therm | K91: =I91*G91 -> 0 | L91: =IF(F91="n/a","n/a",F91+K91) -> 0
A92: Standard efficiency oil furnace | B92: =IF(build2_zones=0,0,build2_heat_mbh/build2_zones) -> 0 | C92: =IF(curve=1,B92,VLOOKUP(B92,hvac_oil_std_cost_cl,2)) -> 0 | D92: =IF(curve=1,hvac_oil_std_eq_2,VLOOKUP(B92,hvac_oil_std_cost_cl,3)) -> 0 | E92: =VLOOKUP(B92,hvac_oil_std_cost_cl,IF(ss_cat="large",4,5)) -> 20 | F92: =IF(D92="contact vendor","n/a",-PMT(Discount_rate,E92,D92)*build2_zones) -> 0 | G92: =build2_heat_loss_yr/diesel_heat_content/diesel_non_eff -> 0 | H92: gal/yr | I92: =diesel_cost_cl -> 3.829500772 | J92: /gal | K92: =I92*G92 -> 0 | L92: =IF(F92="n/a","n/a",F92+K92) -> 0
A93: Mid-efficiency oil furnace | B93: =IF(build2_zones=0,0,build2_heat_mbh/build2_zones) -> 0 | C93: =IF(curve=1,B93,VLOOKUP(B93,hvac_oil_mid_cost_cl,2)) -> 0 | D93: =IF(curve=1,hvac_oil_mid_eq_2,VLOOKUP(B93,hvac_oil_mid_cost_cl,3)) -> 0 | E93: =VLOOKUP(B93,hvac_oil_mid_cost_cl,IF(ss_cat="large",4,5)) -> 20 | F93: =IF(D93="contact vendor","n/a",-PMT(Discount_rate,E93,D93)*build2_zones) -> 0 | G93: =build2_heat_loss_yr/diesel_heat_content/diesel_eff -> 0 | H93: gal/yr | I93: =diesel_cost_cl -> 3.829500772 | J93: /gal | K93: =I93*G93 -> 0 | L93: =IF(F93="n/a","n/a",F93+K93) -> 0
A95: Cooling Options
A96: Building 1 | B96: build1_cool_options
A97: Option | B97: Size needed per zone (tons) | C97: Size selected (tons) | D97: Direct Cost Per Zone | E97: Useful Life (yrs) | F97: Annualized Capital Cost, All Zones | G97: Energy/Yr | I97: Energy Unit Cost | K97: Annual Energy Cost | L97: Total Annual Cost
A98: Air conditioner | B98: =build1_cooling_tons/build1_zones -> 0.1040220389 | C98: =IF(curve=1,B98,VLOOKUP(B98,hvac_ac_cost_cl,2)) -> 0.1040220389 | D98: =IF(curve=1,hvac_ac_eq_1,VLOOKUP(B98,hvac_ac_cost_cl,3)) -> 198.3547438 | E98: =VLOOKUP(B98,hvac_ac_cost_cl,IF(ss_cat="large",4,5)) -> 20 | F98: =IF(D98="contact vendor","n/a",-PMT(Discount_rate,E98,D98)*build1_zones) -> 18.7232846 | G98: =build1_cooling_yr/EER/10^6 -> 0.9273123995 | H98: MWh/yr | I98: =energy_cost_cl -> 0.1100175092 | J98: /kwh | K98: =I98*G98*1000 -> 102.0206005 | L98: =IF(F98="n/a","n/a",F98+K98) -> 120.7438851
A99: Heat pump | B99: =build1_cooling_tons/build1_zones -> 0.1040220389 | C99: =IF(hp_ok_1,IF(curve=1,B99,VLOOKUP(B99,hvac_hp_cost_cl,2)),"n/a") -> 0.1040220389 | D99: =IF(C99="n/a","n/a",IF(curve=1,hvac_hp_eq_1,VLOOKUP(B99,hvac_hp_cost_cl,3))) -> 1088.139739 | E99: =IF(C99="n/a","n/a",VLOOKUP(B99,hvac_hp_cost_cl,IF(ss_cat="large",4,5))) -> 20 | F99: =IF(OR(D99="contact vendor",D99="n/a"),"n/a",-PMT(Discount_rate,E99,D99)*build1_zones) -> 102.7126936 | G99: =IF(C99="n/a","n/a",build1_cooling_yr/hp_EER/10^6) -> 0.9273123995 | H99: MWh/yr | I99: =energy_cost_cl -> 0.1100175092 | J99: /kwh | K99: =IF(C99="n/a","n/a",I99*G99*1000) -> 102.0206005 | L99: =IF(F99="n/a","n/a",F99+K99) -> 204.7332941
A101: Building 2 | B101: build2_cool_options
A102: Option | B102: Size needed per zone (tons) | C102: Size selected (tons) | D102: Direct Cost Per Zone | E102: Useful Life (yrs) | F102: Annualized Capital Cost, All Zones | G102: Energy/Yr | I102: Energy Unit Cost | K102: Annual Energy Cost | L102: Total Annual Cost
A103: Air conditioner | B103: =IF(build2_zones=0,0,build2_cooling_tons/build2_zones) -> 0 | C103: =IF(curve=1,B103,VLOOKUP(B103,hvac_ac_cost_cl,2)) -> 0 | D103: =IF(curve=1,hvac_ac_eq_2,VLOOKUP(B103,hvac_ac_cost_cl,3)) -> 0 | E103: =VLOOKUP(B103,hvac_ac_cost_cl,IF(ss_cat="large",4,5)) -> 20 | F103: =IF(D103="contact vendor","n/a",-PMT(Discount_rate,E103,D103)*build2_zones) -> 0 | G103: =build2_cooling_yr/EER/10^6 -> 0 | H103: MWh/yr | I103: =energy_cost_cl -> 0.1100175092 | J103: /kwh | K103: =I103*G103*1000 -> 0 | L103: =IF(F103="n/a","n/a",F103+K103) -> 0
A104: Heat pump | B104: =IF(build2_zones=0,0,build2_cooling_tons/build2_zones) -> 0 | C104: =IF(hp_ok_2,IF(curve=1,B104,VLOOKUP(B104,hvac_hp_cost_cl,2)),"n/a") -> 0 | D104: =IF(C104="n/a","n/a",IF(curve=1,hvac_hp_eq_2,VLOOKUP(B104,hvac_hp_cost_cl,3))) -> 0 | E104: =IF(C104="n/a","n/a",VLOOKUP(B104,hvac_hp_cost_cl,IF(ss_cat="large",4,5))) -> 20 | F104: =IF(OR(D104="contact vendor",D104="n/a"),"n/a",-PMT(Discount_rate,E104,D104)*build2_zones) -> 0 | G104: =IF(C104="n/a","n/a",build2_cooling_yr/hp_EER/10^6) -> 0 | H104: MWh/yr | I104: =energy_cost_cl -> 0.1100175092 | J104: /kwh | K104: =IF(C104="n/a","n/a",I104*G104*1000) -> 0 | L104: =IF(F104="n/a","n/a",F104+K104) -> 0
A107: Heating and Cooling Selection | E107: We will select the option with the lowest annual cost for each building.
A109: Building 1 Selection
A110: Heating option | B110: Annual cost | C110: Cooling option | D110: Annual cost | E110: Total annual cost
A111: Electric resistance | B111: =IF(build1_need_heat,VLOOKUP(A111,build1_heat_options,12,FALSE),0) -> 0 | C111: Air conditioner | D111: =IF(build1_need_cool,VLOOKUP(C111,build1_cool_options,12,FALSE),0) -> 0 | E111: =IF(OR(B111="n/a",D111="n/a"),"n/a",ROUND(B111+D111,0)) -> 0
A112: Natural gas non-condensing furnace | B112: =IF(build1_need_heat,VLOOKUP(A112,build1_heat_options,12,FALSE),0) -> 0 | C112: Air conditioner | D112: =IF(build1_need_cool,VLOOKUP(C112,build1_cool_options,12,FALSE),0) -> 0 | E112: 0
A113: Natural gas condensing furnace | B113: =IF(build1_need_heat,VLOOKUP(A113,build1_heat_options,12,FALSE),0) -> 0 | C113: Air conditioner | D113: =IF(build1_need_cool,VLOOKUP(C113,build1_cool_options,12,FALSE),0) -> 0 | E113: 0
A114: Standard efficiency oil furnace | B114: =IF(build1_need_heat,VLOOKUP(A114,build1_heat_options,12,FALSE),0) -> 0 | C114: Air conditioner | D114: =IF(build1_need_cool,VLOOKUP(C114,build1_cool_options,12,FALSE),0) -> 0 | E114: 0
A115: Mid-efficiency oil furnace | B115: =IF(build1_need_heat,VLOOKUP(A115,build1_heat_options,12,FALSE),0) -> 0 | C115: Air conditioner | D115: =IF(build1_need_cool,VLOOKUP(C115,build1_cool_options,12,FALSE),0) -> 0 | E115: 0
A116: Heat pump | B116: =IF(AND(build1_need_heat, build1_need_cool),K80,"n/a") -> n/a | C116: Heat pump | D116: =IF(AND(build1_need_heat,build1_need_cool),VLOOKUP(C116,build1_cool_options,12,FALSE),0) -> 0 | E116: n/a
A118: Row selected | B118: build1_row | C118: =MATCH(MIN(E111:E116),E111:E116,0) -> 1
A119: Building 1 heating selection | B119: build1_heat | C119: =IF(build1_need_heat,INDEX(A111:A116,build1_row),"n/a") -> n/a
A120: Building 1 cooling selection | B120: build1_cool | C120: =IF(build1_need_cool,INDEX(C111:C116,build1_row),"n/a") -> n/a
A123: Building 2 Selection
A124: Heating option | B124: Annual cost | C124: Cooling option | D124: Annual cost | E124: Total annual cost
A125: Electric resistance | B125: =IF(build2_need_heat,VLOOKUP(A125,build2_heat_options,12,FALSE),0) -> 0 | C125: Air conditioner | D125: =IF(build2_need_cool,VLOOKUP(C125,build2_cool_options,12,FALSE),0) -> 0 | E125: =IF(OR(B125="n/a",D125="n/a"),"n/a",ROUND(B125+D125,0)) -> 0
A126: Natural gas non-condensing furnace | B126: =IF(build2_need_heat,VLOOKUP(A126,build2_heat_options,12,FALSE),0) -> 0 | C126: Air conditioner | D126: =IF(build2_need_cool,VLOOKUP(C126,build2_cool_options,12,FALSE),0) -> 0 | E126: 0
A127: Natural gas condensing furnace | B127: =IF(build2_need_heat,VLOOKUP(A127,build2_heat_options,12,FALSE),0) -> 0 | C127: Air conditioner | D127: =IF(build2_need_cool,VLOOKUP(C127,build2_cool_options,12,FALSE),0) -> 0 | E127: 0
A128: Standard efficiency oil furnace | B128: =IF(build2_need_heat,VLOOKUP(A128,build2_heat_options,12,FALSE),0) -> 0 | C128: Air conditioner | D128: =IF(build2_need_cool,VLOOKUP(C128,build2_cool_options,12,FALSE),0) -> 0 | E128: 0
A129: Mid-efficiency oil furnace | B129: =IF(build2_need_heat,VLOOKUP(A129,build2_heat_options,12,FALSE),0) -> 0 | C129: Air conditioner | D129: =IF(build2_need_cool,VLOOKUP(C129,build2_cool_options,12,FALSE),0) -> 0 | E129: 0
A130: Heat pump | B130: =IF(AND(build2_need_heat, build2_need_cool),K89,"n/a") -> n/a | C130: Heat pump | D130: =IF(AND(build1_need_heat,build2_need_cool),VLOOKUP(C130,build2_cool_options,12,FALSE),0) -> 0 | E130: n/a
A132: Row selected | B132: build2_row | C132: =MATCH(MIN(E125:E130),E125:E130,0) -> 1
A133: Building 2 heating selection | B133: build2_heat | C133: =IF(build2_need_heat,INDEX(A125:A130,build2_row),"n/a") -> n/a
A134: Building 2 cooling selection | B134: build2_cool | C134: =IF(build2_need_cool,INDEX(C125:C130,build2_row),"n/a") -> n/a

Sheet Indirect
A1: Indirect and Add-on Cost Calculations
A3: Calculation | B3: Range Name | C3: Value | D3: Units | E3: Guidance
A4: Buildings and Land
A5: Include buildings? | B5: include_buildings | C5: =IF(include_buildings_I="no",0,1) -> 1 | D5: 1 = yes, 0 = no
A6: Include land? | B6: include_land | C6: =IF(include_land_I="no",0,1) -> 1 | D6: 1 = yes, 0 = no
A8: Standby Power
A9: Blowers | C9: =blower_energy*design_flow/average_flow/365/24*1000 -> 0.8611459589 | D9: kW
A10: Pumps | C10: =pump_energy*design_flow/average_flow/365/24*1000 -> 0.9054352118 | D10: kW
A11: Offgas blowers | C11: =IF(Offgas_Tech=2,TO_power_yr,IF(Offgas_Tech=3,CO_power_yr,0))*design_flow/average_flow/365/24*1000 -> 0 | D11: kW
A12: Lighting | C12: =IF(include_buildings=0,0,(build1_fp*lighting_energy_1+build2_fp*lighting_energy_2)/365/24) -> 0.021 | D12: kW
A13: Building 1 ventilation | C13: =IF(include_HVAC=0,0,0.746*Fan_pressure_drop*build1_fp*Building_height*air_changes_build1/33000) -> 0.04322156029 | D13: kW
A14: Building 2 ventilation | C14: =IF(include_HVAC=0,0,0.746*Fan_pressure_drop*build2_fp*Building_height*air_changes_build2/33000) -> 0 | D14: kW
A15: Total base standby power requirement | B15: std_base | C15: =SUM(C9:C14) -> 1.830802731 | D15: kW
A17: Electric heating for Building 1? | B17: build1_elec_heat | C17: =IF(build1_need_heat=1,VLOOKUP(build1_heat,build1_heat_options,8,FALSE)="MWh/yr",FALSE) -> FALSE
A18: Power to heat Building 1 | B18: build1_elec_heat_power | C18: =IF(build1_elec_heat,VLOOKUP(build1_heat,build1_heat_options,7,FALSE),0)*365.25*24/1000 -> 0 | D18: kW
A19: Electric heating for Building 2? | B19: build2_elec_heat | C19: =IF(build2_need_heat,(VLOOKUP(build2_heat,build2_heat_options,8,FALSE)="MWh/yr"),FALSE) -> FALSE
A20: Power to heat Building 2 | B20: build2_elec_heat_power | C20: =IF(build2_elec_heat,VLOOKUP(build2_heat,build2_heat_options,7,FALSE),0)*365.25*24/1000 -> 0 | D20: kW
A21: Standby power for heating | B21: std_heat | C21: =IF(include_HVAC=0,0,build1_elec_heat_power+build2_elec_heat_power) -> 0 | D21: kW
A23: Electric cooling for Building 1? | B23: build1_elec_cool | C23: =IF(build1_need_cool,(VLOOKUP(build1_cool,build1_cool_options,8,FALSE)="MWh/yr"),FALSE) -> FALSE
A24: Power to cool Building 1 | B24: build1_elec_cool_power | C24: =IF(build1_elec_cool,VLOOKUP(build1_cool,build1_cool_options,7,FALSE),0)*365.25*24/1000 -> 0 | D24: kW
A25: Electric cooling for Building 2? | B25: build2_elec_cool | C25: =IF(build2_need_cool,(VLOOKUP(build2_cool,build2_cool_options,8,FALSE)="MWh/yr"),FALSE) -> FALSE
A26: Power to cool Building 2 | B26: build2_elec_cool_power | C26: =IF(build2_elec_cool,VLOOKUP(build2_cool,build2_cool_options,7,FALSE),0)*365.25*24/1000 -> 0 | D26: kW
A27: Standby power for cooling | B27: std_cool | C27: =IF(include_HVAC=0,0,build1_elec_cool_power+build2_elec_cool_power) -> 0 | D27: kW
A29: Total standby power requirements | B29: std_power | C29: =ROUNDUP(2*MAX(min_standby,(IF(AND(need_heat=1,need_cool=1),MAX(std_heat,std_cool),need_heat*std_heat+need_cool*std_cool)+std_base)*(1+std_safety_factor)),0)/2 -> 2 | D29: kW
A30: Total standby power cost | B30: std_power_cost | C30: =VLOOKUP(std_power,std_gen_cost_cl,3)*std_power -> 1320
A32: Geotechnical & Sitework
A33: Total technology footprint | B33: tech_fp | C33: =total_fp+offgas_fp -> 70 | D33: square feet
A34: Maximum basin excavation depth | B34: max_excav_depth | C34: =IF(design_type=1,0,tank_depth+conc_thick+overexcavate) -> 0 | D34: feet
A35: Borehole depth | B35: bore_depth | C35: =IF(design_type=1,bore_depth_p,IF(max_excav_depth>deep_bore_need,bore_depth_max,bore_depth_min)) -> 10 | D35: feet
A36: Number of test pits | B36: num_pits | C36: =IF(OR(design_type=2,tech_fp>bore_need),0,ROUNDUP(tech_fp/hole_per_sf,0)) -> 1
A37: Number of boreholes | B37: num_holes | C37: =IF(AND(design_type=1,tech_fp<bore_need),0,IF(ROUNDUP(tech_fp/hole_per_sf,0)<min_holes,min_holes,ROUNDUP(tech_fp/hole_per_sf,0))) -> 0
A39: Costs
A40: Borings, initial field stake out & determination of elevations | C40: =IF(num_pits>0,1,ROUNDUP(num_holes/hole_per_job,0))*VLOOKUP(0,stake_out_cost_cl,3) -> 1475
A41: Borings, drawings showing boring details | C41: =ROUNDUP(num_holes/hole_per_job,0)*VLOOKUP(0,bore_draw_cost_cl,3) -> 0
A42: Borings, report and recommendations from P.E. | C42: =IF(num_pits>0,1,ROUNDUP(num_holes/hole_per_job,0))*VLOOKUP(0,bore_report_cost_cl,3) -> 970
A43: Borings, mobilization and demobilization, minimum | C43: =IF(num_pits>0,0,1)*VLOOKUP(0,bore_mob_cost_cl,3) -> 0
A44: Borings, drill rig and crew with truck mounted auger | C44: =ROUNDUP(bore_depth*num_holes/hole_per_day,0)*VLOOKUP(0,bore_rig_cost_cl,3) -> 0
A45: Borings, cased borings in earth, w/samples, 2.5" dia | C45: =num_holes*bore_depth*VLOOKUP(0,bore_cost_cl,3) -> 0
A46: Test pits | C46: =pit_width*pit_length*pit_depth/27*num_pits*VLOOKUP(0,pit_cost_cl,3) -> 1180.148148
A47: Total geotechnical cost | B47: geotech_cost | C47: =SUM(C40:C46) -> 3625.148148
A49: Total sitework cost | B49: sitework_cost | C49: =tech_fp*sitework_sf_cl -> 1063.384615
A51: Yard Piping
A52: Actual yard piping diameter | B52: yard_pipe_diam | C52: =SUMPRODUCT(OUTPUT!G66:G70,OUTPUT!L66:L70) -> 1.5 | D52: in. diam | E52: Based on output sheet selection for influent and treated water pipe
A53: Trench depth to top of pipe | B53: trench_depth | C53: =MAX(frost,min_trench_depth) -> 38 | D53: inches
A54: Thrust force | B54: thrust_force | C54: =VLOOKUP(yard_pipe_diam,thrust_block_table_cl,2)*2.2 -> 764.7983868 | D54: lbs
A55: Bearing Area (L x H) | B55: bearing_area | C55: =1.5*thrust_force/(soil_dens*(trench_depth/12+yard_pipe_diam/12)*Coeff_Kp*Reduction) -> 2.564557868 | D55: square ft
A56: L | C56: =bearing_area/C57 -> 2.264755116 | D56: ft
A57: H | C57: =(bearing_area/2)^0.5 -> 1.132377558 | D57: ft
A58: F | C58: =MAX(0.5,yard_pipe_diam/12) -> 0.5 | D58: ft | E58: Pipe diameter with a minimum of 6 inches
A59: T | C59: =C56/2 -> 1.132377558 | D59: ft
A60: Thrust block volume | B60: block_vol | C60: =(C59+(yard_pipe_diam/12)/2)*(C56+C58)/2*C57/27 -> 0.06927516497 | D60: cy
A61: Trench Cross-section Area | B61: trench_area | C61: =(yard_pipe_diam/12+2)*(bedding_depth/12+yard_pipe_diam/12+trench_depth/12)+(bedding_depth/12+yard_pipe_diam/12+trench_depth/12)^2*TAN(trench_angle) -> 22.43402778 | D61: square ft
A62: Trench Volume Source Water | C62: =trench_area*yard_in/27 -> 0 | D62: cy
A63: Trench Volume Influent and Treated Water | C63: =((2*non_fire_buffer)+2*(total_fp^0.5)/4)*trench_area/27 -> 20.09366026 | D63: cy
A64: Trench Volume Between Buildings | C64: =IF(build2_fp=0,0,((2*non_fire_buffer)+2*(build2_fp^0.5)/4)*trench_area/27) -> 0 | D64: cy
A65: Trench Volume to Distribution Network | C65: =trench_area*yard_out/27 -> 0 | D65: cy
A66: Trench Volume total | B66: trench_vol | C66: =SUM(C62:C65)+block_vol -> 20.16293542 | D66: cy
A67: Equivalent pipe length | B67: yard_pipe_length | C67: =yard_in+yard_out+2*((2*non_fire_buffer)+2*(build1_fp^0.5)/4+IF(build2_fp=0,0,((2*non_fire_buffer)+2*(build2_fp^0.5)/4))+2*(trench_depth+yard_pipe_diam)/12) -> 61.53326693 | D67: lf
A68: Bedding cross sectional surface area | C68: =(yard_pipe_diam/12+2)*(bedding_depth/12+yard_pipe_diam/12*bedding_pct)+(bedding_depth/12+yard_pipe_diam/12*bedding_pct)^2*TAN(trench_angle)-((yard_pipe_diam/12/2)^2*ACOS((yard_pipe_diam/12/2-bedding_pct*yard_pipe_diam/12)/(yard_pipe_diam/12/2))-(yard_pipe_diam/12/2-yard_pipe_diam/12*bedding_pct)*((2*yard_pipe_diam/12/2*yard_pipe_diam/12*bedding_pct-(yard_pipe_diam/12*bedding_pct)^2)^0.5)) -> 1.408733653 | D68: square ft
A69: Bedding volume | B69: bedding_vol | C69: =C68*yard_pipe_length/2/27 -> 1.605258961 | D69: cy
A71: Costs
A72: Bedding cost | C72: =VLOOKUP(0,bedding_cost_cl,3)*bedding_vol -> 72.79849389
A73: Excavation cost | C73: =trench_vol*VLOOKUP(0,excavate_cost_cl,3) -> 622.6314458
A74: Backfill cost | C74: =trench_vol*VLOOKUP(0,backfill_cost_cl,3) -> 376.0387456
A75: Thrust block cost | C75: =block_vol*VLOOKUP(0,conc_basin_cost_cl,3) -> 51.23629917
A76: Pipe cost | C76: =yard_pipe_length*SUMPRODUCT(OUTPUT!I66:I70,OUTPUT!L66:L70) -> 175.2268239 | E76: Based on output sheet selection for influent and treated water pipe
A77: Total yard piping cost | B77: yard_cost | C77: =SUM(C72:C76) -> 1297.931808
A79: Permits
A80: Building #1 value | C80: =SUMPRODUCT(OUTPUT!J159:J172,OUTPUT!L159:L172) -> 3551.960261 | E80: Determined using Use? Column of output sheet
A81: Building #2 value | C81: =SUMPRODUCT(OUTPUT!J173:J186,OUTPUT!L173:L186) -> 0 | E81: Determined using Use? Column of output sheet
A82: Building permit cost | C82: =VLOOKUP(design_flow,UBC_mult_table_cl,3)*(BPCost_UBC97(C81)+BPCost_UBC97(C80)) -> 252.85 | E82: Uses custom function to apply formula and multiplier documented in Abt Associates, 2020, Permitting Requirement Costs for Drinking Water Treatment Cost Models. Prepared for USEPA. October.
A83: Storm water permit cost | C83: =VLOOKUP(land_required,SW_permit_cost_cl,2) -> 0 | E83: Applies to systems requiring 1 acre of land or greater
A84: Risk management plan | C84: 0 | E84: Not required for this technology
A85: NEPA compliance | C85: =CHOOSE(include_NEPA,0,VLOOKUP(land_required,NEPA_cost_cl,2),0) -> 0 | E85: Included only if technology discharges to surface water or if assumption "include_NEPA" is changed on CDA sheet
A86: Total permit cost | B86: permit_cost | C86: =SUM(C82:C85) -> 252.85
A88: Construction Management and General Contractor Job Overhead
A89: Builder's risk insurance percentage | C89: =br_ins_pct*direct_cost -> 268.5923416
A90: Performance bond cost | C90: =include_bond*(VLOOKUP(direct_cost,performance_bond_table_cl,3)+VLOOKUP(direct_cost,performance_bond_table_cl,4)*(direct_cost-VLOOKUP(direct_cost,performance_bond_table_cl,5))) -> 1974.943688 | E90: Bracket determined from direct capital cost
A91: Construction management percentage | C91: =VLOOKUP(direct_cost,construction_mgt_table_cl,3) -> 0.1 | E91: Looked up from direct capital cost
A92: Construction management fee | C92: =CHOOSE(design_type,include_cm_pre,include_cm)*C91*direct_cost -> 0
A93: Total construction management/job overhead cost | B93: cm_cost | C93: =SUM(C89:C90,C92) -> 2243.53603
A95: Percent Contributions to Annualized Cost
A96: Total annualized cost percent capital | B96: TAC_pct_cap | C96: =Annualized_Capital_Cost/Annualized_Cost -> 0.6468174793
A97: Total annualized cost percent O&M | B97: TAC_pct_OM | C97: =om_cost/Annualized_Cost -> 0.3531825207

Sheet Standard Inputs
A1: Standard Designs
A2: Default inputs represent typical options used to generate national average compliance costs.
A6: Design Indices | C6: System Size | G6: Optional Removal Inputs | Q6: System Configuration | W6: Off-gas | AB6: Optional
A7: Contaminant Selection | B7: Design # | C7: Design flow (mgd) | D7: Design Flow Units | E7: Average Flow | F7: Average flow units | G7: Influent water concentration | H7: Contaminant removal input type | I7: Percent removal or treated water concentration | J7: Influent pH | K7: Desired treated water pH | L7: Influent water alkalinity | M7: Operating temperature | N7: Temperature Units | O7: Pilot rate constant (Kla) | P7: Pilot air intensity (AI) | Q7: Design Type | R7: Optimize Standard Inputs | S7: Number of Operating Basins | T7: Air to Water Ratio | U7: Maximum Water Depth | V7: # of Stages | W7: VOC Release Limit (lbs/day) | X7: Off-gas Pollution Control Technology | Y7: Heat Recovery Type | Z7: GAC Regeneration | AA7: GAC Bed Life | AB7: Number of Pumps | AC7: Number of Blowers | AD7: Number of Redundant Basins | AE7: Component level | AF7: System Automation | AG7: Include buildings? | AH7: Include HVAC? | AI7: Include land? | AJ7: Contaminant Name | AK7: Internal Use
C8: design_flow_I | D8: df_units | E8: average_flow_I | F8: af_units | G8: influent_conc_I | H8: Units_rem_I | I8: P_REM_I | J8: pH_i | K8: pH_f | L8: alk_I | M8: T_I | N8: T_units | O8: pilot_k | P8: pilot_phi | Q8: design_type_I | R8: use_autosize | S8: num_op_tanks | T8: air_water_ratio | U8: max_h2odepth | V8: stages | W8: max_VOC_release | X8: Offgas_tech_I | Y8: og_opt1_I | Z8: og_opt2_I | AA8: og_opt3 | AB8: num_pumps_I | AC8: num_blowers_I | AD8: NRD_I | AE8: component_level_I | AF8: manual_I | AG8: include_buildings_I | AH8: include_HVAC_I | AI8: include_land_I | AK8: All match | AL8: Flow match | AM8: if use_autosize | AN8: if not use_autosize
A9: 1 | B9: 1 | C9: 0.03 | D9: MGD | E9: 0.007 | F9: MGD | Q9: pre-engineered package | R9: yes | T9: 20 | U9: 3 | V9: 6 | AF9: fully automated | AJ9: Radon | AK9: =IF(R9="yes",AM9,AN9) -> FALSE | AL9: =AND(C9:F9=inp_used_minimal) -> TRUE | AM9: =AND(A9=inp_used_usersel,C9:Q9=inp_used_nonvessel1,U9:AI9=inp_used_nonvessel2,inp_used_autosize=inp_autosize) -> FALSE | AN9: =AND(A9=inp_used_usersel,C9:AI9=inp_used) -> FALSE
A10: 1 | B10: 2 | C10: 0.124 | D10: MGD | E10: 0.035 | F10: MGD | Q10: pre-engineered package | R10: yes | T10: 20 | U10: 3 | V10: 6 | AF10: fully automated | AK10: =IF(R10="yes",AM10,AN10) -> FALSE | AL10: =AND(C10:F10=inp_used_minimal) -> FALSE | AM10: =AND(A10=inp_used_usersel,C10:Q10=inp_used_nonvessel1,U10:AI10=inp_used_nonvessel2,inp_used_autosize=inp_autosize) -> FALSE | AN10: =AND(A10=inp_used_usersel,C10:AI10=inp_used) -> FALSE
A11: 1 | B11: 3 | C11: 0.305 | D11: MGD | E11: 0.094 | F11: MGD | Q11: pre-engineered package | R11: yes | T11: 20 | U11: 3 | V11: 6 | AF11: fully automated | AK11: FALSE | AL11: =AND(C11:F11=inp_used_minimal) -> FALSE | AM11: =AND(A11=inp_used_usersel,C11:Q11=inp_used_nonvessel1,U11:AI11=inp_used_nonvessel2,inp_used_autosize=inp_autosize) -> FALSE | AN11: =AND(A11=inp_used_usersel,C11:AI11=inp_used) -> FALSE
A12: 1 | B12: 4 | C12: 0.74 | D12: MGD | E12: 0.251 | F12: MGD | Q12: pre-engineered package | R12: yes | T12: 20 | U12: 3 | V12: 6 | AF12: fully automated | AK12: FALSE | AL12: =AND(C12:F12=inp_used_minimal) -> FALSE | AM12: =AND(A12=inp_used_usersel,C12:Q12=inp_used_nonvessel1,U12:AI12=inp_used_nonvessel2,inp_used_autosize=inp_autosize) -> FALSE | AN12: =AND(A12=inp_used_usersel,C12:AI12=inp_used) -> FALSE
A13: 1 | B13: 5 | C13: 2.152 | D13: MGD | E13: 0.819 | F13: MGD | Q13: custom design | R13: yes | T13: 20 | U13: 3 | V13: 6 | AF13: fully automated | AK13: FALSE | AL13: =AND(C13:F13=inp_used_minimal) -> FALSE | AM13: =AND(A13=inp_used_usersel,C13:Q13=inp_used_nonvessel1,U13:AI13=inp_used_nonvessel2,inp_used_autosize=inp_autosize) -> FALSE | AN13: =AND(A13=inp_used_usersel,C13:AI13=inp_used) -> FALSE
A14: 1 | B14: 6 | C14: 7.365 | D14: MGD | E14: 3.2 | F14: MGD | Q14: custom design | R14: yes | T14: 20 | U14: 3 | V14: 6 | AF14: fully automated | AK14: FALSE | AL14: =AND(C14:F14=inp_used_minimal) -> FALSE | AM14: =AND(A14=inp_used_usersel,C14:Q14=inp_used_nonvessel1,U14:AI14=inp_used_nonvessel2,inp_used_autosize=inp_autosize) -> FALSE | AN14: =AND(A14=inp_used_usersel,C14:AI14=inp_used) -> FALSE
A15: 1 | B15: 7 | C15: 22.614 | D15: MGD | E15: 11.066 | F15: MGD | Q15: custom design | R15: yes | T15: 20 | U15: 3 | V15: 6 | AF15: fully automated | AK15: FALSE | AL15: =AND(C15:F15=inp_used_minimal) -> FALSE | AM15: =AND(A15=inp_used_usersel,C15:Q15=inp_used_nonvessel1,U15:AI15=inp_used_nonvessel2,inp_used_autosize=inp_autosize) -> FALSE | AN15: =AND(A15=inp_used_usersel,C15:AI15=inp_used) -> FALSE
A16: 1 | B16: 8 | C16: 75.072 | D16: MGD | E16: 37.536 | F16: MGD | Q16: custom design | R16: yes | T16: 20 | U16: 3 | V16: 6 | AF16: fully automated | AK16: FALSE | AL16: =AND(C16:F16=inp_used_minimal) -> FALSE | AM16: =AND(A16=inp_used_usersel,C16:Q16=inp_used_nonvessel1,U16:AI16=inp_used_nonvessel2,inp_used_autosize=inp_autosize) -> FALSE | AN16: =AND(A16=inp_used_usersel,C16:AI16=inp_used) -> FALSE
A17: 2 | B17: 1 | C17: 0.03 | D17: MGD | E17: 0.007 | F17: MGD | G17: 43 | H17: calculate based on pH | J17: 6.44 | K17: 7.8 | L17: 52.4 | M17: 283 | N17: degrees Kelvin | O17: 1.44 | P17: 4.3 | Q17: pre-engineered package | R17: yes | U17: 3 | V17: 6 | AF17: fully automated | AJ17: Carbon Dioxide | AK17: FALSE | AL17: =AND(C17:F17=inp_used_minimal) -> TRUE | AM17: =AND(A17=inp_used_usersel,C17:Q17=inp_used_nonvessel1,U17:AI17=inp_used_nonvessel2,inp_used_autosize=inp_autosize) -> FALSE | AN17: =AND(A17=inp_used_usersel,C17:AI17=inp_used) -> FALSE
A18: 2 | B18: 2 | C18: 0.124 | D18: MGD | E18: 0.035 | F18: MGD | G18: 43 | H18: calculate based on pH | J18: 6.44 | K18: 7.8 | L18: 52.4 | M18: 283 | N18: degrees Kelvin | O18: 1.44 | P18: 4.3 | Q18: pre-engineered package | R18: yes | U18: 3 | V18: 6 | AF18: fully automated | AK18: FALSE | AL18: =AND(C18:F18=inp_used_minimal) -> FALSE | AM18: =AND(A18=inp_used_usersel,C18:Q18=inp_used_nonvessel1,U18:AI18=inp_used_nonvessel2,inp_used_autosize=inp_autosize) -> FALSE | AN18: =AND(A18=inp_used_usersel,C18:AI18=inp_used) -> FALSE
A19: 2 | B19: 3 | C19: 0.305 | D19: MGD | E19: 0.094 | F19: MGD | G19: 43 | H19: calculate based on pH | J19: 6.44 | K19: 7.8 | L19: 52.4 | M19: 283 | N19: degrees Kelvin | O19: 1.44 | P19: 4.3 | Q19: pre-engineered package | R19: yes | U19: 3 | V19: 6 | AF19: fully automated | AK19: FALSE | AL19: =AND(C19:F19=inp_used_minimal) -> FALSE | AM19: =AND(A19=inp_used_usersel,C19:Q19=inp_used_nonvessel1,U19:AI19=inp_used_nonvessel2,inp_used_autosize=inp_autosize) -> FALSE | AN19: =AND(A19=inp_used_usersel,C19:AI19=inp_used) -> FALSE
A20: 2 | B20: 4 | C20: 0.74 | D20: MGD | E20: 0.251 | F20: MGD | G20: 43 | H20: calculate based on pH | J20: 6.44 | K20: 7.8 | L20: 52.4 | M20: 283 | N20: degrees Kelvin | O20: 1.44 | P20: 4.3 | Q20: pre-engineered package | R20: yes | U20: 3 | V20: 6 | AF20: fully automated | AK20: FALSE | AL20: =AND(C20:F20=inp_used_minimal) -> FALSE | AM20: =AND(A20=inp_used_usersel,C20:Q20=inp_used_nonvessel1,U20:AI20=inp_used_nonvessel2,inp_used_autosize=inp_autosize) -> FALSE | AN20: =AND(A20=inp_used_usersel,C20:AI20=inp_used) -> FALSE
A21: 2 | B21: 5 | C21: 2.152 | D21: MGD | E21: 0.819 | F21: MGD | G21: 43 | H21: calculate based on pH | J21: 6.44 | K21: 7.8 | L21: 52.4 | M21: 283 | N21: degrees Kelvin | O21: 1.44 | P21: 4.3 | Q21: pre-engineered package | R21: yes | U21: 3 | V21: 6 | AF21: fully automated | AK21: FALSE | AL21: =AND(C21:F21=inp_used_minimal) -> FALSE | AM21: =AND(A21=inp_used_usersel,C21:Q21=inp_used_nonvessel1,U21:AI21=inp_used_nonvessel2,inp_used_autosize=inp_autosize) -> FALSE | AN21: =AND(A21=inp_used_usersel,C21:AI21=inp_used) -> FALSE
A22: 2 | B22: 6 | C22: 7.365 | D22: MGD | E22: 3.2 | F22: MGD | G22: 43 | H22: calculate based on pH | J22: 6.44 | K22: 7.8 | L22: 52.4 | M22: 283 | N22: degrees Kelvin | O22: 1.44 | P22: 4.3 | Q22: custom design | R22: yes | U22: 3 | V22: 6 | AF22: fully automated | AK22: FALSE | AL22: =AND(C22:F22=inp_used_minimal) -> FALSE | AM22: =AND(A22=inp_used_usersel,C22:Q22=inp_used_nonvessel1,U22:AI22=inp_used_nonvessel2,inp_used_autosize=inp_autosize) -> FALSE | AN22: =AND(A22=inp_used_usersel,C22:AI22=inp_used) -> FALSE
A23: 2 | B23: 7 | C23: 22.614 | D23: MGD | E23: 11.066 | F23: MGD | G23: 43 | H23: calculate based on pH | J23: 6.44 | K23: 7.8 | L23: 52.4 | M23: 283 | N23: degrees Kelvin | O23: 1.44 | P23: 4.3 | Q23: custom design | R23: yes | U23: 3 | V23: 6 | AF23: fully automated | AK23: FALSE | AL23: =AND(C23:F23=inp_used_minimal) -> FALSE | AM23: =AND(A23=inp_used_usersel,C23:Q23=inp_used_nonvessel1,U23:AI23=inp_used_nonvessel2,inp_used_autosize=inp_autosize) -> FALSE | AN23: =AND(A23=inp_used_usersel,C23:AI23=inp_used) -> FALSE
A24: 2 | B24: 8 | C24: 75.072 | D24: MGD | E24: 37.536 | F24: MGD | G24: 43 | H24: calculate based on pH | J24: 6.44 | K24: 7.8 | L24: 52.4 | M24: 283 | N24: degrees Kelvin | O24: 1.44 | P24: 4.3 | Q24: custom design | R24: yes | U24: 3 | V24: 6 | AF24: fully automated | AK24: FALSE | AL24: =AND(C24:F24=inp_used_minimal) -> FALSE | AM24: =AND(A24=inp_used_usersel,C24:Q24=inp_used_nonvessel1,U24:AI24=inp_used_nonvessel2,inp_used_autosize=inp_autosize) -> FALSE | AN24: =AND(A24=inp_used_usersel,C24:AI24=inp_used) -> FALSE
A25: 3 | B25: 1 | C25: 0.03 | D25: MGD | E25: 0.007 | F25: MGD | G25: 5 | H25: treated water concentration | I25: 0.5 | M25: 283 | N25: degrees Kelvin | O25: 0.17 | P25: 2.54 | Q25: pre-engineered package | R25: yes | U25: 3 | V25: 8 | W25: 1 | X25: none | AF25: fully automated | AJ25: TCE | AK25: TRUE | AL25: =AND(C25:F25=inp_used_minimal) -> TRUE | AM25: =AND(A25=inp_used_usersel,C25:Q25=inp_used_nonvessel1,U25:AI25=inp_used_nonvessel2,inp_used_autosize=inp_autosize) -> TRUE | AN25: =AND(A25=inp_used_usersel,C25:AI25=inp_used) -> FALSE
A26: 3 | B26: 2 | C26: 0.124 | D26: MGD | E26: 0.035 | F26: MGD | G26: 5 | H26: treated water concentration | I26: 0.5 | M26: 283 | N26: degrees Kelvin | O26: 0.17 | P26: 2.54 | Q26: pre-engineered package | R26: yes | U26: 3 | V26: 8 | W26: 1 | X26: none | AF26: fully automated | AK26: FALSE | AL26: =AND(C26:F26=inp_used_minimal) -> FALSE | AM26: =AND(A26=inp_used_usersel,C26:Q26=inp_used_nonvessel1,U26:AI26=inp_used_nonvessel2,inp_used_autosize=inp_autosize) -> FALSE | AN26: =AND(A26=inp_used_usersel,C26:AI26=inp_used) -> FALSE
A27: 3 | B27: 3 | C27: 0.305 | D27: MGD | E27: 0.094 | F27: MGD | G27: 5 | H27: treated water concentration | I27: 0.5 | M27: 283 | N27: degrees Kelvin | O27: 0.17 | P27: 2.54 | Q27: pre-engineered package | R27: yes | U27: 3 | V27: 8 | W27: 1 | X27: none | AF27: fully automated | AK27: FALSE | AL27: =AND(C27:F27=inp_used_minimal) -> FALSE | AM27: =AND(A27=inp_used_usersel,C27:Q27=inp_used_nonvessel1,U27:AI27=inp_used_nonvessel2,inp_used_autosize=inp_autosize) -> FALSE | AN27: =AND(A27=inp_used_usersel,C27:AI27=inp_used) -> FALSE
A28: 3 | B28: 4 | C28: 0.74 | D28: MGD | E28: 0.251 | F28: MGD | G28: 5 | H28: treated water concentration | I28: 0.5 | M28: 283 | N28: degrees Kelvin | O28: 0.17 | P28: 2.54 | Q28: pre-engineered package | R28: yes | U28: 3 | V28: 8 | W28: 1 | X28: none | AF28: fully automated | AK28: FALSE | AL28: =AND(C28:F28=inp_used_minimal) -> FALSE | AM28: =AND(A28=inp_used_usersel,C28:Q28=inp_used_nonvessel1,U28:AI28=inp_used_nonvessel2,inp_used_autosize=inp_autosize) -> FALSE | AN28: =AND(A28=inp_used_usersel,C28:AI28=inp_used) -> FALSE
A29: 3 | B29: 5 | C29: 2.152 | D29: MGD | E29: 0.819 | F29: MGD | AK29: FALSE | AL29: =AND(C29:F29=inp_used_minimal) -> FALSE | AM29: =AND(A29=inp_used_usersel,C29:Q29=inp_used_nonvessel1,U29:AI29=inp_used_nonvessel2,inp_used_autosize=inp_autosize) -> FALSE | AN29: =AND(A29=inp_used_usersel,C29:AI29=inp_used) -> FALSE
A30: 3 | B30: 6 | C30: 7.365 | D30: MGD | E30: 3.2 | F30: MGD | AK30: FALSE | AL30: =AND(C30:F30=inp_used_minimal) -> FALSE | AM30: =AND(A30=inp_used_usersel,C30:Q30=inp_used_nonvessel1,U30:AI30=inp_used_nonvessel2,inp_used_autosize=inp_autosize) -> FALSE | AN30: =AND(A30=inp_used_usersel,C30:AI30=inp_used) -> FALSE
A31: 3 | B31: 7 | C31: 22.614 | D31: MGD | E31: 11.066 | F31: MGD | AK31: FALSE | AL31: =AND(C31:F31=inp_used_minimal) -> FALSE | AM31: =AND(A31=inp_used_usersel,C31:Q31=inp_used_nonvessel1,U31:AI31=inp_used_nonvessel2,inp_used_autosize=inp_autosize) -> FALSE | AN31: =AND(A31=inp_used_usersel,C31:AI31=inp_used) -> FALSE
A32: 3 | B32: 8 | C32: 75.072 | D32: MGD | E32: 37.536 | F32: MGD | AK32: FALSE | AL32: =AND(C32:F32=inp_used_minimal) -> FALSE | AM32: =AND(A32=inp_used_usersel,C32:Q32=inp_used_nonvessel1,U32:AI32=inp_used_nonvessel2,inp_used_autosize=inp_autosize) -> FALSE | AN32: =AND(A32=inp_used_usersel,C32:AI32=inp_used) -> FALSE
A33: 4 | B33: 1 | C33: 0.03 | D33: MGD | E33: 0.007 | F33: MGD | G33: 5 | H33: treated water concentration | I33: 0.5 | M33: 283 | N33: degrees Kelvin | O33: 0.389 | P33: 2.54 | Q33: pre-engineered package | R33: yes | U33: 3 | V33: 8 | W33: 1 | X33: none | AF33: fully automated | AJ33: PCE | AK33: FALSE | AL33: =AND(C33:F33=inp_used_minimal) -> TRUE | AM33: =AND(A33=inp_used_usersel,C33:Q33=inp_used_nonvessel1,U33:AI33=inp_used_nonvessel2,inp_used_autosize=inp_autosize) -> FALSE | AN33: =AND(A33=inp_used_usersel,C33:AI33=inp_used) -> FALSE
A34: 4 | B34: 2 | C34: 0.124 | D34: MGD | E34: 0.035 | F34: MGD | G34: 5 | H34: treated water concentration | I34: 0.5 | M34: 283 | N34: degrees Kelvin | O34: 0.389 | P34: 2.54 | Q34: pre-engineered package | R34: yes | U34: 3 | V34: 8 | W34: 1 | X34: none | AF34: fully automated | AK34: FALSE | AL34: =AND(C34:F34=inp_used_minimal) -> FALSE | AM34: =AND(A34=inp_used_usersel,C34:Q34=inp_used_nonvessel1,U34:AI34=inp_used_nonvessel2,inp_used_autosize=inp_autosize) -> FALSE | AN34: =AND(A34=inp_used_usersel,C34:AI34=inp_used) -> FALSE
A35: 4 | B35: 3 | C35: 0.305 | D35: MGD | E35: 0.094 | F35: MGD | G35: 5 | H35: treated water concentration | I35: 0.5 | M35: 283 | N35: degrees Kelvin | O35: 0.389 | P35: 2.54 | Q35: pre-engineered package | R35: yes | U35: 3 | V35: 8 | W35: 1 | X35: none | AF35: fully automated | AK35: FALSE | AL35: =AND(C35:F35=inp_used_minimal) -> FALSE | AM35: =AND(A35=inp_used_usersel,C35:Q35=inp_used_nonvessel1,U35:AI35=inp_used_nonvessel2,inp_used_autosize=inp_autosize) -> FALSE | AN35: =AND(A35=inp_used_usersel,C35:AI35=inp_used) -> FALSE
A36: 4 | B36: 4 | C36: 0.74 | D36: MGD | E36: 0.251 | F36: MGD | G36: 5 | H36: treated water concentration | I36: 0.5 | M36: 283 | N36: degrees Kelvin | O36: 0.389 | P36: 2.54 | Q36: pre-engineered package | R36: yes | U36: 3 | V36: 8 | W36: 1 | X36: none | AF36: fully automated | AK36: FALSE | AL36: =AND(C36:F36=inp_used_minimal) -> FALSE | AM36: =AND(A36=inp_used_usersel,C36:Q36=inp_used_nonvessel1,U36:AI36=inp_used_nonvessel2,inp_used_autosize=inp_autosize) -> FALSE | AN36: =AND(A36=inp_used_usersel,C36:AI36=inp_used) -> FALSE
A37: 4 | B37: 5 | C37: 2.152 | D37: MGD | E37: 0.819 | F37: MGD | AK37: FALSE | AL37: =AND(C37:F37=inp_used_minimal) -> FALSE | AM37: =AND(A37=inp_used_usersel,C37:Q37=inp_used_nonvessel1,U37:AI37=inp_used_nonvessel2,inp_used_autosize=inp_autosize) -> FALSE | AN37: =AND(A37=inp_used_usersel,C37:AI37=inp_used) -> FALSE
A38: 4 | B38: 6 | C38: 7.365 | D38: MGD | E38: 3.2 | F38: MGD | AK38: FALSE | AL38: =AND(C38:F38=inp_used_minimal) -> FALSE | AM38: =AND(A38=inp_used_usersel,C38:Q38=inp_used_nonvessel1,U38:AI38=inp_used_nonvessel2,inp_used_autosize=inp_autosize) -> FALSE | AN38: =AND(A38=inp_used_usersel,C38:AI38=inp_used) -> FALSE
A39: 4 | B39: 7 | C39: 22.614 | D39: MGD | E39: 11.066 | F39: MGD | AK39: FALSE | AL39: =AND(C39:F39=inp_used_minimal) -> FALSE | AM39: =AND(A39=inp_used_usersel,C39:Q39=inp_used_nonvessel1,U39:AI39=inp_used_nonvessel2,inp_used_autosize=inp_autosize) -> FALSE | AN39: =AND(A39=inp_used_usersel,C39:AI39=inp_used) -> FALSE
A40: 4 | B40: 8 | C40: 75.072 | D40: MGD | E40: 37.536 | F40: MGD | AK40: FALSE | AL40: =AND(C40:F40=inp_used_minimal) -> FALSE | AM40: =AND(A40=inp_used_usersel,C40:Q40=inp_used_nonvessel1,U40:AI40=inp_used_nonvessel2,inp_used_autosize=inp_autosize) -> FALSE | AN40: =AND(A40=inp_used_usersel,C40:AI40=inp_used) -> FALSE
A41: 5 | B41: 1 | C41: 0.03 | D41: MGD | E41: 0.007 | F41: MGD | G41: 2 | H41: treated water concentration | I41: 0.5 | M41: 283 | N41: degrees Kelvin | O41: 0.647 | P41: 2.54 | Q41: pre-engineered package | R41: yes | U41: 3 | V41: 8 | W41: 1 | X41: none | AF41: fully automated | AJ41: Vinyl Chloride | AK41: FALSE | AL41: =AND(C41:F41=inp_used_minimal) -> TRUE | AM41: =AND(A41=inp_used_usersel,C41:Q41=inp_used_nonvessel1,U41:AI41=inp_used_nonvessel2,inp_used_autosize=inp_autosize) -> FALSE | AN41: =AND(A41=inp_used_usersel,C41:AI41=inp_used) -> FALSE
A42: 5 | B42: 2 | C42: 0.124 | D42: MGD | E42: 0.035 | F42: MGD | G42: 2 | H42: treated water concentration | I42: 0.5 | M42: 283 | N42: degrees Kelvin | O42: 0.647 | P42: 2.54 | Q42: pre-engineered package | R42: yes | U42: 3 | V42: 8 | W42: 1 | X42: none | AF42: fully automated | AK42: FALSE | AL42: =AND(C42:F42=inp_used_minimal) -> FALSE | AM42: =AND(A42=inp_used_usersel,C42:Q42=inp_used_nonvessel1,U42:AI42=inp_used_nonvessel2,inp_used_autosize=inp_autosize) -> FALSE | AN42: =AND(A42=inp_used_usersel,C42:AI42=inp_used) -> FALSE
A43: 5 | B43: 3 | C43: 0.305 | D43: MGD | E43: 0.094 | F43: MGD | G43: 2 | H43: treated water concentration | I43: 0.5 | M43: 283 | N43: degrees Kelvin | O43: 0.647 | P43: 2.54 | Q43: pre-engineered package | R43: yes | U43: 3 | V43: 8 | W43: 1 | X43: none | AF43: fully automated | AK43: FALSE | AL43: =AND(C43:F43=inp_used_minimal) -> FALSE | AM43: =AND(A43=inp_used_usersel,C43:Q43=inp_used_nonvessel1,U43:AI43=inp_used_nonvessel2,inp_used_autosize=inp_autosize) -> FALSE | AN43: =AND(A43=inp_used_usersel,C43:AI43=inp_used) -> FALSE
A44: 5 | B44: 4 | C44: 0.74 | D44: MGD | E44: 0.251 | F44: MGD | G44: 2 | H44: treated water concentration | I44: 0.5 | M44: 283 | N44: degrees Kelvin | O44: 0.647 | P44: 2.54 | Q44: pre-engineered package | R44: yes | U44: 3 | V44: 8 | W44: 1 | X44: none | AF44: fully automated | AK44: FALSE | AL44: =AND(C44:F44=inp_used_minimal) -> FALSE | AM44: =AND(A44=inp_used_usersel,C44:Q44=inp_used_nonvessel1,U44:AI44=inp_used_nonvessel2,inp_used_autosize=inp_autosize) -> FALSE | AN44: =AND(A44=inp_used_usersel,C44:AI44=inp_used) -> FALSE
A45: 5 | B45: 5 | C45: 2.152 | D45: MGD | E45: 0.819 | F45: MGD | AK45: FALSE | AL45: =AND(C45:F45=inp_used_minimal) -> FALSE | AM45: =AND(A45=inp_used_usersel,C45:Q45=inp_used_nonvessel1,U45:AI45=inp_used_nonvessel2,inp_used_autosize=inp_autosize) -> FALSE | AN45: =AND(A45=inp_used_usersel,C45:AI45=inp_used) -> FALSE
A46: 5 | B46: 6 | C46: 7.365 | D46: MGD | E46: 3.2 | F46: MGD | AK46: FALSE | AL46: =AND(C46:F46=inp_used_minimal) -> FALSE | AM46: =AND(A46=inp_used_usersel,C46:Q46=inp_used_nonvessel1,U46:AI46=inp_used_nonvessel2,inp_used_autosize=inp_autosize) -> FALSE | AN46: =AND(A46=inp_used_usersel,C46:AI46=inp_used) -> FALSE
A47: 5 | B47: 7 | C47: 22.614 | D47: MGD | E47: 11.066 | F47: MGD | AK47: FALSE | AL47: =AND(C47:F47=inp_used_minimal) -> FALSE | AM47: =AND(A47=inp_used_usersel,C47:Q47=inp_used_nonvessel1,U47:AI47=inp_used_nonvessel2,inp_used_autosize=inp_autosize) -> FALSE | AN47: =AND(A47=inp_used_usersel,C47:AI47=inp_used) -> FALSE
A48: 5 | B48: 8 | C48: 75.072 | D48: MGD | E48: 37.536 | F48: MGD | AK48: FALSE | AL48: =AND(C48:F48=inp_used_minimal) -> FALSE | AM48: =AND(A48=inp_used_usersel,C48:Q48=inp_used_nonvessel1,U48:AI48=inp_used_nonvessel2,inp_used_autosize=inp_autosize) -> FALSE | AN48: =AND(A48=inp_used_usersel,C48:AI48=inp_used) -> FALSE
A49: 6 | B49: 1 | C49: 0.03 | D49: MGD | E49: 0.007 | F49: MGD | G49: 5 | H49: treated water concentration | I49: 0.5 | M49: 283 | N49: degrees Kelvin | O49: 0.569 | P49: 2.54 | Q49: pre-engineered package | R49: yes | U49: 3 | V49: 8 | W49: 1 | X49: none | AF49: fully automated | AJ49: Carbon Tetrachloride | AK49: FALSE | AL49: =AND(C49:F49=inp_used_minimal) -> TRUE | AM49: =AND(A49=inp_used_usersel,C49:Q49=inp_used_nonvessel1,U49:AI49=inp_used_nonvessel2,inp_used_autosize=inp_autosize) -> FALSE | AN49: =AND(A49=inp_used_usersel,C49:AI49=inp_used) -> FALSE
A50: 6 | B50: 2 | C50: 0.124 | D50: MGD | E50: 0.035 | F50: MGD | G50: 5 | H50: treated water concentration | I50: 0.5 | M50: 283 | N50: degrees Kelvin | O50: 0.569 | P50: 2.54 | Q50: pre-engineered package | R50: yes | U50: 3 | V50: 8 | W50: 1 | X50: none | AF50: fully automated | AK50: FALSE | AL50: =AND(C50:F50=inp_used_minimal) -> FALSE | AM50: =AND(A50=inp_used_usersel,C50:Q50=inp_used_nonvessel1,U50:AI50=inp_used_nonvessel2,inp_used_autosize=inp_autosize) -> FALSE | AN50: =AND(A50=inp_used_usersel,C50:AI50=inp_used) -> FALSE
A51: 6 | B51: 3 | C51: 0.305 | D51: MGD | E51: 0.094 | F51: MGD | G51: 5 | H51: treated water concentration | I51: 0.5 | M51: 283 | N51: degrees Kelvin | O51: 0.569 | P51: 2.54 | Q51: pre-engineered package | R51: yes | U51: 3 | V51: 8 | W51: 1 | X51: none | AF51: fully automated | AK51: FALSE | AL51: =AND(C51:F51=inp_used_minimal) -> FALSE | AM51: =AND(A51=inp_used_usersel,C51:Q51=inp_used_nonvessel1,U51:AI51=inp_used_nonvessel2,inp_used_autosize=inp_autosize) -> FALSE | AN51: =AND(A51=inp_used_usersel,C51:AI51=inp_used) -> FALSE
A52: 6 | B52: 4 | C52: 0.74 | D52: MGD | E52: 0.251 | F52: MGD | G52: 5 | H52: treated water concentration | I52: 0.5 | M52: 283 | N52: degrees Kelvin | O52: 0.569 | P52: 2.54 | Q52: pre-engineered package | R52: yes | U52: 3 | V52: 8 | W52: 1 | X52: none | AF52: fully automated | AK52: FALSE | AL52: =AND(C52:F52=inp_used_minimal) -> FALSE | AM52: =AND(A52=inp_used_usersel,C52:Q52=inp_used_nonvessel1,U52:AI52=inp_used_nonvessel2,inp_used_autosize=inp_autosize) -> FALSE | AN52: =AND(A52=inp_used_usersel,C52:AI52=inp_used) -> FALSE
A53: 6 | B53: 5 | C53: 2.152 | D53: MGD | E53: 0.819 | F53: MGD | AK53: FALSE | AL53: =AND(C53:F53=inp_used_minimal) -> FALSE | AM53: =AND(A53=inp_used_usersel,C53:Q53=inp_used_nonvessel1,U53:AI53=inp_used_nonvessel2,inp_used_autosize=inp_autosize) -> FALSE | AN53: =AND(A53=inp_used_usersel,C53:AI53=inp_used) -> FALSE
A54: 6 | B54: 6 | C54: 7.365 | D54: MGD | E54: 3.2 | F54: MGD | AK54: FALSE | AL54: =AND(C54:F54=inp_used_minimal) -> FALSE | AM54: =AND(A54=inp_used_usersel,C54:Q54=inp_used_nonvessel1,U54:AI54=inp_used_nonvessel2,inp_used_autosize=inp_autosize) -> FALSE | AN54: =AND(A54=inp_used_usersel,C54:AI54=inp_used) -> FALSE
A55: 6 | B55: 7 | C55: 22.614 | D55: MGD | E55: 11.066 | F55: MGD | AK55: FALSE | AL55: =AND(C55:F55=inp_used_minimal) -> FALSE | AM55: =AND(A55=inp_used_usersel,C55:Q55=inp_used_nonvessel1,U55:AI55=inp_used_nonvessel2,inp_used_autosize=inp_autosize) -> FALSE | AN55: =AND(A55=inp_used_usersel,C55:AI55=inp_used) -> FALSE
A56: 6 | B56: 8 | C56: 75.072 | D56: MGD | E56: 37.536 | F56: MGD | AK56: FALSE | AL56: =AND(C56:F56=inp_used_minimal) -> FALSE | AM56: =AND(A56=inp_used_usersel,C56:Q56=inp_used_nonvessel1,U56:AI56=inp_used_nonvessel2,inp_used_autosize=inp_autosize) -> FALSE | AN56: =AND(A56=inp_used_usersel,C56:AI56=inp_used) -> FALSE
A57: 7 | B57: 1 | C57: 0.03 | D57: MGD | E57: 0.007 | F57: MGD | G57: 5 | H57: treated water concentration | I57: 0.5 | M57: 283 | N57: degrees Kelvin | O57: 0.236 | P57: 2.54 | Q57: pre-engineered package | R57: yes | U57: 3 | V57: 8 | W57: 1 | X57: none | AF57: fully automated | AJ57: Benzene | AK57: FALSE | AL57: =AND(C57:F57=inp_used_minimal) -> TRUE | AM57: =AND(A57=inp_used_usersel,C57:Q57=inp_used_nonvessel1,U57:AI57=inp_used_nonvessel2,inp_used_autosize=inp_autosize) -> FALSE | AN57: =AND(A57=inp_used_usersel,C57:AI57=inp_used) -> FALSE
A58: 7 | B58: 2 | C58: 0.124 | D58: MGD | E58: 0.035 | F58: MGD | G58: 5 | H58: treated water concentration | I58: 0.5 | M58: 283 | N58: degrees Kelvin | O58: 0.236 | P58: 2.54 | Q58: pre-engineered package | R58: yes | U58: 3 | V58: 8 | W58: 1 | X58: none | AF58: fully automated | AK58: FALSE | AL58: =AND(C58:F58=inp_used_minimal) -> FALSE | AM58: =AND(A58=inp_used_usersel,C58:Q58=inp_used_nonvessel1,U58:AI58=inp_used_nonvessel2,inp_used_autosize=inp_autosize) -> FALSE | AN58: =AND(A58=inp_used_usersel,C58:AI58=inp_used) -> FALSE
A59: 7 | B59: 3 | C59: 0.305 | D59: MGD | E59: 0.094 | F59: MGD | G59: 5 | H59: treated water concentration | I59: 0.5 | M59: 283 | N59: degrees Kelvin | O59: 0.236 | P59: 2.54 | Q59: pre-engineered package | R59: yes | U59: 3 | V59: 8 | W59: 1 | X59: none | AF59: fully automated | AK59: FALSE | AL59: =AND(C59:F59=inp_used_minimal) -> FALSE | AM59: =AND(A59=inp_used_usersel,C59:Q59=inp_used_nonvessel1,U59:AI59=inp_used_nonvessel2,inp_used_autosize=inp_autosize) -> FALSE | AN59: =AND(A59=inp_used_usersel,C59:AI59=inp_used) -> FALSE
A60: 7 | B60: 4 | C60: 0.74 | D60: MGD | E60: 0.251 | F60: MGD | G60: 5 | H60: treated water concentration | I60: 0.5 | M60: 283 | N60: degrees Kelvin | O60: 0.236 | P60: 2.54 | Q60: pre-engineered package | R60: yes | U60: 3 | V60: 8 | W60: 1 | X60: none | AF60: fully automated | AK60: FALSE | AL60: =AND(C60:F60=inp_used_minimal) -> FALSE | AM60: =AND(A60=inp_used_usersel,C60:Q60=inp_used_nonvessel1,U60:AI60=inp_used_nonvessel2,inp_used_autosize=inp_autosize) -> FALSE | AN60: =AND(A60=inp_used_usersel,C60:AI60=inp_used) -> FALSE
A61: 7 | B61: 5 | C61: 2.152 | D61: MGD | E61: 0.819 | F61: MGD | AK61: FALSE | AL61: =AND(C61:F61=inp_used_minimal) -> FALSE | AM61: =AND(A61=inp_used_usersel,C61:Q61=inp_used_nonvessel1,U61:AI61=inp_used_nonvessel2,inp_used_autosize=inp_autosize) -> FALSE | AN61: =AND(A61=inp_used_usersel,C61:AI61=inp_used) -> FALSE
A62: 7 | B62: 6 | C62: 7.365 | D62: MGD | E62: 3.2 | F62: MGD | AK62: FALSE | AL62: =AND(C62:F62=inp_used_minimal) -> FALSE | AM62: =AND(A62=inp_used_usersel,C62:Q62=inp_used_nonvessel1,U62:AI62=inp_used_nonvessel2,inp_used_autosize=inp_autosize) -> FALSE | AN62: =AND(A62=inp_used_usersel,C62:AI62=inp_used) -> FALSE
A63: 7 | B63: 7 | C63: 22.614 | D63: MGD | E63: 11.066 | F63: MGD | AK63: FALSE | AL63: =AND(C63:F63=inp_used_minimal) -> FALSE | AM63: =AND(A63=inp_used_usersel,C63:Q63=inp_used_nonvessel1,U63:AI63=inp_used_nonvessel2,inp_used_autosize=inp_autosize) -> FALSE | AN63: =AND(A63=inp_used_usersel,C63:AI63=inp_used) -> FALSE
A64: 7 | B64: 8 | C64: 75.072 | D64: MGD | E64: 37.536 | F64: MGD | AK64: FALSE | AL64: =AND(C64:F64=inp_used_minimal) -> FALSE | AM64: =AND(A64=inp_used_usersel,C64:Q64=inp_used_nonvessel1,U64:AI64=inp_used_nonvessel2,inp_used_autosize=inp_autosize) -> FALSE | AN64: =AND(A64=inp_used_usersel,C64:AI64=inp_used) -> FALSE
A65: 8 | B65: 1 | C65: 0.03 | D65: MGD | E65: 0.007 | F65: MGD | G65: 5 | H65: treated water concentration | I65: 0.5 | M65: 283 | N65: degrees Kelvin | O65: 0.13 | P65: 3.17 | Q65: pre-engineered package | R65: yes | U65: 3 | V65: 8 | W65: 1 | X65: none | AF65: fully automated | AJ65: 1,2-DCP | AK65: FALSE | AL65: =AND(C65:F65=inp_used_minimal) -> TRUE | AM65: =AND(A65=inp_used_usersel,C65:Q65=inp_used_nonvessel1,U65:AI65=inp_used_nonvessel2,inp_used_autosize=inp_autosize) -> FALSE | AN65: =AND(A65=inp_used_usersel,C65:AI65=inp_used) -> FALSE
A66: 8 | B66: 2 | C66: 0.124 | D66: MGD | E66: 0.035 | F66: MGD | G66: 5 | H66: treated water concentration | I66: 0.5 | M66: 283 | N66: degrees Kelvin | O66: 0.13 | P66: 3.17 | Q66: pre-engineered package | R66: yes | U66: 3 | V66: 8 | W66: 1 | X66: none | AF66: fully automated | AK66: FALSE | AL66: =AND(C66:F66=inp_used_minimal) -> FALSE | AM66: =AND(A66=inp_used_usersel,C66:Q66=inp_used_nonvessel1,U66:AI66=inp_used_nonvessel2,inp_used_autosize=inp_autosize) -> FALSE | AN66: =AND(A66=inp_used_usersel,C66:AI66=inp_used) -> FALSE
A67: 8 | B67: 3 | C67: 0.305 | D67: MGD | E67: 0.094 | F67: MGD | G67: 5 | H67: treated water concentration | I67: 0.5 | M67: 283 | N67: degrees Kelvin | O67: 0.13 | P67: 3.17 | Q67: pre-engineered package | R67: yes | U67: 3 | V67: 8 | W67: 1 | X67: none | AF67: fully automated | AK67: FALSE | AL67: =AND(C67:F67=inp_used_minimal) -> FALSE | AM67: =AND(A67=inp_used_usersel,C67:Q67=inp_used_nonvessel1,U67:AI67=inp_used_nonvessel2,inp_used_autosize=inp_autosize) -> FALSE | AN67: =AND(A67=inp_used_usersel,C67:AI67=inp_used) -> FALSE
A68: 8 | B68: 4 | C68: 0.74 | D68: MGD | E68: 0.251 | F68: MGD | G68: 5 | H68: treated water concentration | I68: 0.5 | M68: 283 | N68: degrees Kelvin | O68: 0.13 | P68: 3.17 | Q68: pre-engineered package | R68: yes | U68: 3 | V68: 8 | W68: 1 | X68: none | AF68: fully automated | AK68: FALSE | AL68: =AND(C68:F68=inp_used_minimal) -> FALSE | AM68: =AND(A68=inp_used_usersel,C68:Q68=inp_used_nonvessel1,U68:AI68=inp_used_nonvessel2,inp_used_autosize=inp_autosize) -> FALSE | AN68: =AND(A68=inp_used_usersel,C68:AI68=inp_used) -> FALSE
A69: 8 | B69: 5 | C69: 2.152 | D69: MGD | E69: 0.819 | F69: MGD | AK69: FALSE | AL69: =AND(C69:F69=inp_used_minimal) -> FALSE | AM69: =AND(A69=inp_used_usersel,C69:Q69=inp_used_nonvessel1,U69:AI69=inp_used_nonvessel2,inp_used_autosize=inp_autosize) -> FALSE | AN69: =AND(A69=inp_used_usersel,C69:AI69=inp_used) -> FALSE
A70: 8 | B70: 6 | C70: 7.365 | D70: MGD | E70: 3.2 | F70: MGD | AK70: FALSE | AL70: =AND(C70:F70=inp_used_minimal) -> FALSE | AM70: =AND(A70=inp_used_usersel,C70:Q70=inp_used_nonvessel1,U70:AI70=inp_used_nonvessel2,inp_used_autosize=inp_autosize) -> FALSE | AN70: =AND(A70=inp_used_usersel,C70:AI70=inp_used) -> FALSE
A71: 8 | B71: 7 | C71: 22.614 | D71: MGD | E71: 11.066 | F71: MGD | AK71: FALSE | AL71: =AND(C71:F71=inp_used_minimal) -> FALSE | AM71: =AND(A71=inp_used_usersel,C71:Q71=inp_used_nonvessel1,U71:AI71=inp_used_nonvessel2,inp_used_autosize=inp_autosize) -> FALSE | AN71: =AND(A71=inp_used_usersel,C71:AI71=inp_used) -> FALSE
A72: 8 | B72: 8 | C72: 75.072 | D72: MGD | E72: 37.536 | F72: MGD | AK72: FALSE | AL72: =AND(C72:F72=inp_used_minimal) -> FALSE | AM72: =AND(A72=inp_used_usersel,C72:Q72=inp_used_nonvessel1,U72:AI72=inp_used_nonvessel2,inp_used_autosize=inp_autosize) -> FALSE | AN72: =AND(A72=inp_used_usersel,C72:AI72=inp_used) -> FALSE
A73: 9 | B73: 1 | C73: 0.03 | D73: MGD | E73: 0.007 | F73: MGD | G73: 5 | H73: treated water concentration | I73: 0.5 | M73: 283 | N73: degrees Kelvin | O73: 0.142 | P73: 3.17 | Q73: pre-engineered package | R73: yes | U73: 3 | V73: 8 | W73: 1 | X73: none | AF73: fully automated | AJ73: Methylene Chloride | AK73: FALSE | AL73: =AND(C73:F73=inp_used_minimal) -> TRUE | AM73: =AND(A73=inp_used_usersel,C73:Q73=inp_used_nonvessel1,U73:AI73=inp_used_nonvessel2,inp_used_autosize=inp_autosize) -> FALSE | AN73: =AND(A73=inp_used_usersel,C73:AI73=inp_used) -> FALSE
A74: 9 | B74: 2 | C74: 0.124 | D74: MGD | E74: 0.035 | F74: MGD | G74: 5 | H74: treated water concentration | I74: 0.5 | M74: 283 | N74: degrees Kelvin | O74: 0.142 | P74: 3.17 | Q74: pre-engineered package | R74: yes | U74: 3 | V74: 8 | W74: 1 | X74: none | AF74: fully automated | AK74: =IF(R74="yes",AM74,AN74) -> FALSE | AL74: =AND(C74:F74=inp_used_minimal) -> FALSE | AM74: =AND(A74=inp_used_usersel,C74:Q74=inp_used_nonvessel1,U74:AI74=inp_used_nonvessel2,inp_used_autosize=inp_autosize) -> FALSE | AN74: =AND(A74=inp_used_usersel,C74:AI74=inp_used) -> FALSE
A75: 9 | B75: 3 | C75: 0.305 | D75: MGD | E75: 0.094 | F75: MGD | G75: 5 | H75: treated water concentration | I75: 0.5 | M75: 283 | N75: degrees Kelvin | O75: 0.142 | P75: 3.17 | Q75: pre-engineered package | R75: yes | U75: 3 | V75: 8 | W75: 1 | X75: none | AF75: fully automated | AK75: FALSE | AL75: =AND(C75:F75=inp_used_minimal) -> FALSE | AM75: =AND(A75=inp_used_usersel,C75:Q75=inp_used_nonvessel1,U75:AI75=inp_used_nonvessel2,inp_used_autosize=inp_autosize) -> FALSE | AN75: =AND(A75=inp_used_usersel,C75:AI75=inp_used) -> FALSE
A76: 9 | B76: 4 | C76: 0.74 | D76: MGD | E76: 0.251 | F76: MGD | G76: 5 | H76: treated water concentration | I76: 0.5 | M76: 283 | N76: degrees Kelvin | O76: 0.142 | P76: 3.17 | Q76: pre-engineered package | R76: yes | U76: 3 | V76: 8 | W76: 1 | X76: none | AF76: fully automated | AK76: FALSE | AL76: =AND(C76:F76=inp_used_minimal) -> FALSE | AM76: =AND(A76=inp_used_usersel,C76:Q76=inp_used_nonvessel1,U76:AI76=inp_used_nonvessel2,inp_used_autosize=inp_autosize) -> FALSE | AN76: =AND(A76=inp_used_usersel,C76:AI76=inp_used) -> FALSE
A77: 9 | B77: 5 | C77: 2.152 | D77: MGD | E77: 0.819 | F77: MGD | AK77: FALSE | AL77: =AND(C77:F77=inp_used_minimal) -> FALSE | AM77: =AND(A77=inp_used_usersel,C77:Q77=inp_used_nonvessel1,U77:AI77=inp_used_nonvessel2,inp_used_autosize=inp_autosize) -> FALSE | AN77: =AND(A77=inp_used_usersel,C77:AI77=inp_used) -> FALSE
A78: 9 | B78: 6 | C78: 7.365 | D78: MGD | E78: 3.2 | F78: MGD | AK78: FALSE | AL78: =AND(C78:F78=inp_used_minimal) -> FALSE | AM78: =AND(A78=inp_used_usersel,C78:Q78=inp_used_nonvessel1,U78:AI78=inp_used_nonvessel2,inp_used_autosize=inp_autosize) -> FALSE | AN78: =AND(A78=inp_used_usersel,C78:AI78=inp_used) -> FALSE
A79: 9 | B79: 7 | C79: 22.614 | D79: MGD | E79: 11.066 | F79: MGD | AK79: FALSE | AL79: =AND(C79:F79=inp_used_minimal) -> FALSE | AM79: =AND(A79=inp_used_usersel,C79:Q79=inp_used_nonvessel1,U79:AI79=inp_used_nonvessel2,inp_used_autosize=inp_autosize) -> FALSE | AN79: =AND(A79=inp_used_usersel,C79:AI79=inp_used) -> FALSE
A80: 9 | B80: 8 | C80: 75.072 | D80: MGD | E80: 37.536 | F80: MGD | AK80: FALSE | AL80: =AND(C80:F80=inp_used_minimal) -> FALSE | AM80: =AND(A80=inp_used_usersel,C80:Q80=inp_used_nonvessel1,U80:AI80=inp_used_nonvessel2,inp_used_autosize=inp_autosize) -> FALSE | AN80: =AND(A80=inp_used_usersel,C80:AI80=inp_used) -> FALSE
A81: 10 | B81: 1 | C81: 0.03 | D81: MGD | E81: 0.007 | F81: MGD | G81: 5 | H81: treated water concentration | I81: 0.5 | M81: 283 | N81: degrees Kelvin | O81: 0.082 | P81: 3.17 | Q81: pre-engineered package | R81: yes | U81: 3 | V81: 8 | W81: 1 | X81: none | AF81: fully automated | AJ81: 1,2-DCA | AK81: FALSE | AL81: =AND(C81:F81=inp_used_minimal) -> TRUE | AM81: =AND(A81=inp_used_usersel,C81:Q81=inp_used_nonvessel1,U81:AI81=inp_used_nonvessel2,inp_used_autosize=inp_autosize) -> FALSE | AN81: =AND(A81=inp_used_usersel,C81:AI81=inp_used) -> FALSE
A82: 10 | B82: 2 | C82: 0.124 | D82: MGD | E82: 0.035 | F82: MGD | G82: 5 | H82: treated water concentration | I82: 0.5 | M82: 283 | N82: degrees Kelvin | O82: 0.082 | P82: 3.17 | Q82: pre-engineered package | R82: yes | U82: 3 | V82: 8 | W82: 1 | X82: none | AF82: fully automated | AK82: FALSE | AL82: =AND(C82:F82=inp_used_minimal) -> FALSE | AM82: =AND(A82=inp_used_usersel,C82:Q82=inp_used_nonvessel1,U82:AI82=inp_used_nonvessel2,inp_used_autosize=inp_autosize) -> FALSE | AN82: =AND(A82=inp_used_usersel,C82:AI82=inp_used) -> FALSE
A83: 10 | B83: 3 | C83: 0.305 | D83: MGD | E83: 0.094 | F83: MGD | G83: 5 | H83: treated water concentration | I83: 0.5 | M83: 283 | N83: degrees Kelvin | O83: 0.082 | P83: 3.17 | Q83: pre-engineered package | R83: yes | U83: 3 | V83: 8 | W83: 1 | X83: none | AF83: fully automated | AK83: FALSE | AL83: =AND(C83:F83=inp_used_minimal) -> FALSE | AM83: =AND(A83=inp_used_usersel,C83:Q83=inp_used_nonvessel1,U83:AI83=inp_used_nonvessel2,inp_used_autosize=inp_autosize) -> FALSE | AN83: =AND(A83=inp_used_usersel,C83:AI83=inp_used) -> FALSE
A84: 10 | B84: 4 | C84: 0.74 | D84: MGD | E84: 0.251 | F84: MGD | G84: 5 | H84: treated water concentration | I84: 0.5 | M84: 283 | N84: degrees Kelvin | O84: 0.082 | P84: 3.17 | Q84: pre-engineered package | R84: yes | U84: 3 | V84: 8 | W84: 1 | X84: none | AF84: fully automated | AK84: FALSE | AL84: =AND(C84:F84=inp_used_minimal) -> FALSE | AM84: =AND(A84=inp_used_usersel,C84:Q84=inp_used_nonvessel1,U84:AI84=inp_used_nonvessel2,inp_used_autosize=inp_autosize) -> FALSE | AN84: =AND(A84=inp_used_usersel,C84:AI84=inp_used) -> FALSE
A85: 10 | B85: 5 | C85: 2.152 | D85: MGD | E85: 0.819 | F85: MGD | AK85: FALSE | AL85: =AND(C85:F85=inp_used_minimal) -> FALSE | AM85: =AND(A85=inp_used_usersel,C85:Q85=inp_used_nonvessel1,U85:AI85=inp_used_nonvessel2,inp_used_autosize=inp_autosize) -> FALSE | AN85: =AND(A85=inp_used_usersel,C85:AI85=inp_used) -> FALSE
A86: 10 | B86: 6 | C86: 7.365 | D86: MGD | E86: 3.2 | F86: MGD | AK86: FALSE | AL86: =AND(C86:F86=inp_used_minimal) -> FALSE | AM86: =AND(A86=inp_used_usersel,C86:Q86=inp_used_nonvessel1,U86:AI86=inp_used_nonvessel2,inp_used_autosize=inp_autosize) -> FALSE | AN86: =AND(A86=inp_used_usersel,C86:AI86=inp_used) -> FALSE
A87: 10 | B87: 7 | C87: 22.614 | D87: MGD | E87: 11.066 | F87: MGD | AK87: FALSE | AL87: =AND(C87:F87=inp_used_minimal) -> FALSE | AM87: =AND(A87=inp_used_usersel,C87:Q87=inp_used_nonvessel1,U87:AI87=inp_used_nonvessel2,inp_used_autosize=inp_autosize) -> FALSE | AN87: =AND(A87=inp_used_usersel,C87:AI87=inp_used) -> FALSE
A88: 10 | B88: 8 | C88: 75.072 | D88: MGD | E88: 37.536 | F88: MGD | AK88: FALSE | AL88: =AND(C88:F88=inp_used_minimal) -> FALSE | AM88: =AND(A88=inp_used_usersel,C88:Q88=inp_used_nonvessel1,U88:AI88=inp_used_nonvessel2,inp_used_autosize=inp_autosize) -> FALSE | AN88: =AND(A88=inp_used_usersel,C88:AI88=inp_used) -> FALSE
A89: 11 | B89: 1 | C89: 0.03 | D89: MGD | E89: 0.007 | F89: MGD | G89: 5 | H89: treated water concentration | I89: 0.5 | M89: 283 | N89: degrees Kelvin | O89: 0.975 | P89: 2.54 | Q89: pre-engineered package | R89: yes | U89: 3 | V89: 8 | W89: 1 | X89: none | AF89: fully automated | AJ89: 1,3-Butadiene | AK89: FALSE | AL89: =AND(C89:F89=inp_used_minimal) -> TRUE | AM89: =AND(A89=inp_used_usersel,C89:Q89=inp_used_nonvessel1,U89:AI89=inp_used_nonvessel2,inp_used_autosize=inp_autosize) -> FALSE | AN89: =AND(A89=inp_used_usersel,C89:AI89=inp_used) -> FALSE
A90: 11 | B90: 2 | C90: 0.124 | D90: MGD | E90: 0.035 | F90: MGD | G90: 5 | H90: treated water concentration | I90: 0.5 | M90: 283 | N90: degrees Kelvin | O90: 0.975 | P90: 2.54 | Q90: pre-engineered package | R90: yes | U90: 3 | V90: 8 | W90: 1 | X90: none | AF90: fully automated | AK90: FALSE | AL90: =AND(C90:F90=inp_used_minimal) -> FALSE | AM90: =AND(A90=inp_used_usersel,C90:Q90=inp_used_nonvessel1,U90:AI90=inp_used_nonvessel2,inp_used_autosize=inp_autosize) -> FALSE | AN90: =AND(A90=inp_used_usersel,C90:AI90=inp_used) -> FALSE
A91: 11 | B91: 3 | C91: 0.305 | D91: MGD | E91: 0.094 | F91: MGD | G91: 5 | H91: treated water concentration | I91: 0.5 | M91: 283 | N91: degrees Kelvin | O91: 0.975 | P91: 2.54 | Q91: pre-engineered package | R91: yes | U91: 3 | V91: 8 | W91: 1 | X91: none | AF91: fully automated | AK91: FALSE | AL91: =AND(C91:F91=inp_used_minimal) -> FALSE | AM91: =AND(A91=inp_used_usersel,C91:Q91=inp_used_nonvessel1,U91:AI91=inp_used_nonvessel2,inp_used_autosize=inp_autosize) -> FALSE | AN91: =AND(A91=inp_used_usersel,C91:AI91=inp_used) -> FALSE
A92: 11 | B92: 4 | C92: 0.74 | D92: MGD | E92: 0.251 | F92: MGD | G92: 5 | H92: treated water concentration | I92: 0.5 | M92: 283 | N92: degrees Kelvin | O92: 0.975 | P92: 2.54 | Q92: pre-engineered package | R92: yes | U92: 3 | V92: 8 | W92: 1 | X92: none | AF92: fully automated | AK92: FALSE | AL92: =AND(C92:F92=inp_used_minimal) -> FALSE | AM92: =AND(A92=inp_used_usersel,C92:Q92=inp_used_nonvessel1,U92:AI92=inp_used_nonvessel2,inp_used_autosize=inp_autosize) -> FALSE | AN92: =AND(A92=inp_used_usersel,C92:AI92=inp_used) -> FALSE
A93: 11 | B93: 5 | C93: 2.152 | D93: MGD | E93: 0.819 | F93: MGD | AK93: FALSE | AL93: =AND(C93:F93=inp_used_minimal) -> FALSE | AM93: =AND(A93=inp_used_usersel,C93:Q93=inp_used_nonvessel1,U93:AI93=inp_used_nonvessel2,inp_used_autosize=inp_autosize) -> FALSE | AN93: =AND(A93=inp_used_usersel,C93:AI93=inp_used) -> FALSE
A94: 11 | B94: 6 | C94: 7.365 | D94: MGD | E94: 3.2 | F94: MGD | AK94: FALSE | AL94: =AND(C94:F94=inp_used_minimal) -> FALSE | AM94: =AND(A94=inp_used_usersel,C94:Q94=inp_used_nonvessel1,U94:AI94=inp_used_nonvessel2,inp_used_autosize=inp_autosize) -> FALSE | AN94: =AND(A94=inp_used_usersel,C94:AI94=inp_used) -> FALSE
A95: 11 | B95: 7 | C95: 22.614 | D95: MGD | E95: 11.066 | F95: MGD | AK95: FALSE | AL95: =AND(C95:F95=inp_used_minimal) -> FALSE | AM95: =AND(A95=inp_used_usersel,C95:Q95=inp_used_nonvessel1,U95:AI95=inp_used_nonvessel2,inp_used_autosize=inp_autosize) -> FALSE | AN95: =AND(A95=inp_used_usersel,C95:AI95=inp_used) -> FALSE
A96: 11 | B96: 8 | C96: 75.072 | D96: MGD | E96: 37.536 | F96: MGD | AK96: FALSE | AL96: =AND(C96:F96=inp_used_minimal) -> FALSE | AM96: =AND(A96=inp_used_usersel,C96:Q96=inp_used_nonvessel1,U96:AI96=inp_used_nonvessel2,inp_used_autosize=inp_autosize) -> FALSE | AN96: =AND(A96=inp_used_usersel,C96:AI96=inp_used) -> FALSE
A97: 12 | B97: 1 | C97: 0.03 | D97: MGD | E97: 0.007 | F97: MGD | G97: 5 | H97: treated water concentration | I97: 0.5 | M97: 283 | N97: degrees Kelvin | O97: 0.266 | P97: 3.17 | Q97: pre-engineered package | R97: yes | U97: 3 | V97: 8 | W97: 1 | X97: none | AF97: fully automated | AJ97: 1,1-DCA | AK97: FALSE | AL97: =AND(C97:F97=inp_used_minimal) -> TRUE | AM97: =AND(A97=inp_used_usersel,C97:Q97=inp_used_nonvessel1,U97:AI97=inp_used_nonvessel2,inp_used_autosize=inp_autosize) -> FALSE | AN97: =AND(A97=inp_used_usersel,C97:AI97=inp_used) -> FALSE
A98: 12 | B98: 2 | C98: 0.124 | D98: MGD | E98: 0.035 | F98: MGD | G98: 5 | H98: treated water concentration | I98: 0.5 | M98: 283 | N98: degrees Kelvin | O98: 0.266 | P98: 3.17 | Q98: pre-engineered package | R98: yes | U98: 3 | V98: 8 | W98: 1 | X98: none | AF98: fully automated | AK98: FALSE | AL98: =AND(C98:F98=inp_used_minimal) -> FALSE | AM98: =AND(A98=inp_used_usersel,C98:Q98=inp_used_nonvessel1,U98:AI98=inp_used_nonvessel2,inp_used_autosize=inp_autosize) -> FALSE | AN98: =AND(A98=inp_used_usersel,C98:AI98=inp_used) -> FALSE
A99: 12 | B99: 3 | C99: 0.305 | D99: MGD | E99: 0.094 | F99: MGD | G99: 5 | H99: treated water concentration | I99: 0.5 | M99: 283 | N99: degrees Kelvin | O99: 0.266 | P99: 3.17 | Q99: pre-engineered package | R99: yes | U99: 3 | V99: 8 | W99: 1 | X99: none | AF99: fully automated | AK99: FALSE | AL99: =AND(C99:F99=inp_used_minimal) -> FALSE | AM99: =AND(A99=inp_used_usersel,C99:Q99=inp_used_nonvessel1,U99:AI99=inp_used_nonvessel2,inp_used_autosize=inp_autosize) -> FALSE | AN99: =AND(A99=inp_used_usersel,C99:AI99=inp_used) -> FALSE
A100: 12 | B100: 4 | C100: 0.74 | D100: MGD | E100: 0.251 | F100: MGD | G100: 5 | H100: treated water concentration | I100: 0.5 | M100: 283 | N100: degrees Kelvin | O100: 0.266 | P100: 3.17 | Q100: pre-engineered package | R100: yes | U100: 3 | V100: 8 | W100: 1 | X100: none | AF100: fully automated | AK100: FALSE | AL100: =AND(C100:F100=inp_used_minimal) -> FALSE | AM100: =AND(A100=inp_used_usersel,C100:Q100=inp_used_nonvessel1,U100:AI100=inp_used_nonvessel2,inp_used_autosize=inp_autosize) -> FALSE | AN100: =AND(A100=inp_used_usersel,C100:AI100=inp_used) -> FALSE
A101: 12 | B101: 5 | C101: 2.152 | D101: MGD | E101: 0.819 | F101: MGD | AK101: FALSE | AL101: =AND(C101:F101=inp_used_minimal) -> FALSE | AM101: =AND(A101=inp_used_usersel,C101:Q101=inp_used_nonvessel1,U101:AI101=inp_used_nonvessel2,inp_used_autosize=inp_autosize) -> FALSE | AN101: =AND(A101=inp_used_usersel,C101:AI101=inp_used) -> FALSE
A102: 12 | B102: 6 | C102: 7.365 | D102: MGD | E102: 3.2 | F102: MGD | AK102: FALSE | AL102: =AND(C102:F102=inp_used_minimal) -> FALSE | AM102: =AND(A102=inp_used_usersel,C102:Q102=inp_used_nonvessel1,U102:AI102=inp_used_nonvessel2,inp_used_autosize=inp_autosize) -> FALSE | AN102: =AND(A102=inp_used_usersel,C102:AI102=inp_used) -> FALSE
A103: 12 | B103: 7 | C103: 22.614 | D103: MGD | E103: 11.066 | F103: MGD | AK103: FALSE | AL103: =AND(C103:F103=inp_used_minimal) -> FALSE | AM103: =AND(A103=inp_used_usersel,C103:Q103=inp_used_nonvessel1,U103:AI103=inp_used_nonvessel2,inp_used_autosize=inp_autosize) -> FALSE | AN103: =AND(A103=inp_used_usersel,C103:AI103=inp_used) -> FALSE
A104: 12 | B104: 8 | C104: 75.072 | D104: MGD | E104: 37.536 | F104: MGD | AK104: FALSE | AL104: =AND(C104:F104=inp_used_minimal) -> FALSE | AM104: =AND(A104=inp_used_usersel,C104:Q104=inp_used_nonvessel1,U104:AI104=inp_used_nonvessel2,inp_used_autosize=inp_autosize) -> FALSE | AN104: =AND(A104=inp_used_usersel,C104:AI104=inp_used) -> FALSE
A105: 13 | B105: 1 | C105: 0.03 | D105: MGD | E105: 0.007 | F105: MGD | G105: 5 | H105: treated water concentration | I105: 0.5 | M105: 283 | N105: degrees Kelvin | O105: 0.142 | P105: 3.17 | Q105: pre-engineered package | R105: yes | U105: 3 | V105: 8 | W105: 1 | X105: none | AF105: fully automated | AJ105: 1,1,1,2-TCA | AK105: FALSE | AL105: =AND(C105:F105=inp_used_minimal) -> TRUE | AM105: =AND(A105=inp_used_usersel,C105:Q105=inp_used_nonvessel1,U105:AI105=inp_used_nonvessel2,inp_used_autosize=inp_autosize) -> FALSE | AN105: =AND(A105=inp_used_usersel,C105:AI105=inp_used) -> FALSE
A106: 13 | B106: 2 | C106: 0.124 | D106: MGD | E106: 0.035 | F106: MGD | G106: 5 | H106: treated water concentration | I106: 0.5 | M106: 283 | N106: degrees Kelvin | O106: 0.142 | P106: 3.17 | Q106: pre-engineered package | R106: yes | U106: 3 | V106: 8 | W106: 1 | X106: none | AF106: fully automated | AK106: FALSE | AL106: =AND(C106:F106=inp_used_minimal) -> FALSE | AM106: =AND(A106=inp_used_usersel,C106:Q106=inp_used_nonvessel1,U106:AI106=inp_used_nonvessel2,inp_used_autosize=inp_autosize) -> FALSE | AN106: =AND(A106=inp_used_usersel,C106:AI106=inp_used) -> FALSE
A107: 13 | B107: 3 | C107: 0.305 | D107: MGD | E107: 0.094 | F107: MGD | G107: 5 | H107: treated water concentration | I107: 0.5 | M107: 283 | N107: degrees Kelvin | O107: 0.142 | P107: 3.17 | Q107: pre-engineered package | R107: yes | U107: 3 | V107: 8 | W107: 1 | X107: none | AF107: fully automated | AK107: FALSE | AL107: =AND(C107:F107=inp_used_minimal) -> FALSE | AM107: =AND(A107=inp_used_usersel,C107:Q107=inp_used_nonvessel1,U107:AI107=inp_used_nonvessel2,inp_used_autosize=inp_autosize) -> FALSE | AN107: =AND(A107=inp_used_usersel,C107:AI107=inp_used) -> FALSE
A108: 13 | B108: 4 | C108: 0.74 | D108: MGD | E108: 0.251 | F108: MGD | G108: 5 | H108: treated water concentration | I108: 0.5 | M108: 283 | N108: degrees Kelvin | O108: 0.142 | P108: 3.17 | Q108: pre-engineered package | R108: yes | U108: 3 | V108: 8 | W108: 1 | X108: none | AF108: fully automated | AK108: FALSE | AL108: =AND(C108:F108=inp_used_minimal) -> FALSE | AM108: =AND(A108=inp_used_usersel,C108:Q108=inp_used_nonvessel1,U108:AI108=inp_used_nonvessel2,inp_used_autosize=inp_autosize) -> FALSE | AN108: =AND(A108=inp_used_usersel,C108:AI108=inp_used) -> FALSE
A109: 13 | B109: 5 | C109: 2.152 | D109: MGD | E109: 0.819 | F109: MGD | AK109: FALSE | AL109: =AND(C109:F109=inp_used_minimal) -> FALSE | AM109: =AND(A109=inp_used_usersel,C109:Q109=inp_used_nonvessel1,U109:AI109=inp_used_nonvessel2,inp_used_autosize=inp_autosize) -> FALSE | AN109: =AND(A109=inp_used_usersel,C109:AI109=inp_used) -> FALSE
A110: 13 | B110: 6 | C110: 7.365 | D110: MGD | E110: 3.2 | F110: MGD | AK110: FALSE | AL110: =AND(C110:F110=inp_used_minimal) -> FALSE | AM110: =AND(A110=inp_used_usersel,C110:Q110=inp_used_nonvessel1,U110:AI110=inp_used_nonvessel2,inp_used_autosize=inp_autosize) -> FALSE | AN110: =AND(A110=inp_used_usersel,C110:AI110=inp_used) -> FALSE
A111: 13 | B111: 7 | C111: 22.614 | D111: MGD | E111: 11.066 | F111: MGD | AK111: FALSE | AL111: =AND(C111:F111=inp_used_minimal) -> FALSE | AM111: =AND(A111=inp_used_usersel,C111:Q111=inp_used_nonvessel1,U111:AI111=inp_used_nonvessel2,inp_used_autosize=inp_autosize) -> FALSE | AN111: =AND(A111=inp_used_usersel,C111:AI111=inp_used) -> FALSE
A112: 13 | B112: 8 | C112: 75.072 | D112: MGD | E112: 37.536 | F112: MGD | AK112: FALSE | AL112: =AND(C112:F112=inp_used_minimal) -> FALSE | AM112: =AND(A112=inp_used_usersel,C112:Q112=inp_used_nonvessel1,U112:AI112=inp_used_nonvessel2,inp_used_autosize=inp_autosize) -> FALSE | AN112: =AND(A112=inp_used_usersel,C112:AI112=inp_used) -> FALSE
A113: 14 | B113: 1 | C113: 0.03 | D113: MGD | E113: 0.007 | F113: MGD | G113: 5 | H113: treated water concentration | I113: 0.625 | M113: 283 | N113: degrees Kelvin | O113: 0.046 | P113: 5.23 | Q113: pre-engineered package | R113: yes | U113: 3 | V113: 8 | W113: 1 | X113: none | AF113: fully automated | AJ113: 1,1,2,2-TCA | AK113: FALSE | AL113: =AND(C113:F113=inp_used_minimal) -> TRUE | AM113: =AND(A113=inp_used_usersel,C113:Q113=inp_used_nonvessel1,U113:AI113=inp_used_nonvessel2,inp_used_autosize=inp_autosize) -> FALSE | AN113: =AND(A113=inp_used_usersel,C113:AI113=inp_used) -> FALSE
A114: 14 | B114: 2 | C114: 0.124 | D114: MGD | E114: 0.035 | F114: MGD | G114: 5 | H114: treated water concentration | I114: 0.625 | M114: 283 | N114: degrees Kelvin | O114: 0.046 | P114: 5.23 | Q114: pre-engineered package | R114: yes | U114: 3 | V114: 8 | W114: 1 | X114: none | AF114: fully automated | AK114: FALSE | AL114: =AND(C114:F114=inp_used_minimal) -> FALSE | AM114: =AND(A114=inp_used_usersel,C114:Q114=inp_used_nonvessel1,U114:AI114=inp_used_nonvessel2,inp_used_autosize=inp_autosize) -> FALSE | AN114: =AND(A114=inp_used_usersel,C114:AI114=inp_used) -> FALSE
A115: 14 | B115: 3 | C115: 0.305 | D115: MGD | E115: 0.094 | F115: MGD | G115: 5 | H115: treated water concentration | I115: 0.625 | M115: 283 | N115: degrees Kelvin | O115: 0.046 | P115: 5.23 | Q115: pre-engineered package | R115: yes | U115: 3 | V115: 8 | W115: 1 | X115: none | AF115: fully automated | AK115: FALSE | AL115: =AND(C115:F115=inp_used_minimal) -> FALSE | AM115: =AND(A115=inp_used_usersel,C115:Q115=inp_used_nonvessel1,U115:AI115=inp_used_nonvessel2,inp_used_autosize=inp_autosize) -> FALSE | AN115: =AND(A115=inp_used_usersel,C115:AI115=inp_used) -> FALSE
A116: 14 | B116: 4 | C116: 0.74 | D116: MGD | E116: 0.251 | F116: MGD | G116: 5 | H116: treated water concentration | I116: 0.625 | M116: 283 | N116: degrees Kelvin | O116: 0.046 | P116: 5.23 | Q116: pre-engineered package | R116: yes | U116: 3 | V116: 8 | W116: 1 | X116: none | AF116: fully automated | AK116: FALSE | AL116: =AND(C116:F116=inp_used_minimal) -> FALSE | AM116: =AND(A116=inp_used_usersel,C116:Q116=inp_used_nonvessel1,U116:AI116=inp_used_nonvessel2,inp_used_autosize=inp_autosize) -> FALSE | AN116: =AND(A116=inp_used_usersel,C116:AI116=inp_used) -> FALSE
A117: 14 | B117: 5 | C117: 2.152 | D117: MGD | E117: 0.819 | F117: MGD | AK117: FALSE | AL117: =AND(C117:F117=inp_used_minimal) -> FALSE | AM117: =AND(A117=inp_used_usersel,C117:Q117=inp_used_nonvessel1,U117:AI117=inp_used_nonvessel2,inp_used_autosize=inp_autosize) -> FALSE | AN117: =AND(A117=inp_used_usersel,C117:AI117=inp_used) -> FALSE
A118: 14 | B118: 6 | C118: 7.365 | D118: MGD | E118: 3.2 | F118: MGD | AK118: FALSE | AL118: =AND(C118:F118=inp_used_minimal) -> FALSE | AM118: =AND(A118=inp_used_usersel,C118:Q118=inp_used_nonvessel1,U118:AI118=inp_used_nonvessel2,inp_used_autosize=inp_autosize) -> FALSE | AN118: =AND(A118=inp_used_usersel,C118:AI118=inp_used) -> FALSE
A119: 14 | B119: 7 | C119: 22.614 | D119: MGD | E119: 11.066 | F119: MGD | AK119: FALSE | AL119: =AND(C119:F119=inp_used_minimal) -> FALSE | AM119: =AND(A119=inp_used_usersel,C119:Q119=inp_used_nonvessel1,U119:AI119=inp_used_nonvessel2,inp_used_autosize=inp_autosize) -> FALSE | AN119: =AND(A119=inp_used_usersel,C119:AI119=inp_used) -> FALSE
A120: 14 | B120: 8 | C120: 75.072 | D120: MGD | E120: 37.536 | F120: MGD | AK120: FALSE | AL120: =AND(C120:F120=inp_used_minimal) -> FALSE | AM120: =AND(A120=inp_used_usersel,C120:Q120=inp_used_nonvessel1,U120:AI120=inp_used_nonvessel2,inp_used_autosize=inp_autosize) -> FALSE | AN120: =AND(A120=inp_used_usersel,C120:AI120=inp_used) -> FALSE
A121: 15 | B121: 1 | C121: 0.03 | D121: MGD | E121: 0.007 | F121: MGD | G121: 5 | H121: treated water concentration | I121: 1.25 | M121: 283 | N121: degrees Kelvin | O121: 0.019 | P121: 3.17 | Q121: pre-engineered package | R121: yes | U121: 3 | V121: 8 | W121: 1 | X121: none | AF121: fully automated | AJ121: 1,2,3-TCP | AK121: FALSE | AL121: =AND(C121:F121=inp_used_minimal) -> TRUE | AM121: =AND(A121=inp_used_usersel,C121:Q121=inp_used_nonvessel1,U121:AI121=inp_used_nonvessel2,inp_used_autosize=inp_autosize) -> FALSE | AN121: =AND(A121=inp_used_usersel,C121:AI121=inp_used) -> FALSE
A122: 15 | B122: 2 | C122: 0.124 | D122: MGD | E122: 0.035 | F122: MGD | G122: 5 | H122: treated water concentration | I122: 1.25 | M122: 283 | N122: degrees Kelvin | O122: 0.019 | P122: 3.17 | Q122: pre-engineered package | R122: yes | U122: 3 | V122: 8 | W122: 1 | X122: none | AF122: fully automated | AK122: FALSE | AL122: =AND(C122:F122=inp_used_minimal) -> FALSE | AM122: =AND(A122=inp_used_usersel,C122:Q122=inp_used_nonvessel1,U122:AI122=inp_used_nonvessel2,inp_used_autosize=inp_autosize) -> FALSE | AN122: =AND(A122=inp_used_usersel,C122:AI122=inp_used) -> FALSE
A123: 15 | B123: 3 | C123: 0.305 | D123: MGD | E123: 0.094 | F123: MGD | G123: 5 | H123: treated water concentration | I123: 1.25 | M123: 283 | N123: degrees Kelvin | O123: 0.019 | P123: 3.17 | Q123: pre-engineered package | R123: yes | U123: 3 | V123: 8 | W123: 1 | X123: none | AF123: fully automated | AK123: FALSE | AL123: =AND(C123:F123=inp_used_minimal) -> FALSE | AM123: =AND(A123=inp_used_usersel,C123:Q123=inp_used_nonvessel1,U123:AI123=inp_used_nonvessel2,inp_used_autosize=inp_autosize) -> FALSE | AN123: =AND(A123=inp_used_usersel,C123:AI123=inp_used) -> FALSE
A124: 15 | B124: 4 | C124: 0.74 | D124: MGD | E124: 0.251 | F124: MGD | G124: 5 | H124: treated water concentration | I124: 1.25 | M124: 283 | N124: degrees Kelvin | O124: 0.019 | P124: 3.17 | Q124: pre-engineered package | R124: yes | U124: 3 | V124: 8 | W124: 1 | X124: none | AF124: fully automated | AK124: FALSE | AL124: =AND(C124:F124=inp_used_minimal) -> FALSE | AM124: =AND(A124=inp_used_usersel,C124:Q124=inp_used_nonvessel1,U124:AI124=inp_used_nonvessel2,inp_used_autosize=inp_autosize) -> FALSE | AN124: =AND(A124=inp_used_usersel,C124:AI124=inp_used) -> FALSE
A125: 15 | B125: 5 | C125: 2.152 | D125: MGD | E125: 0.819 | F125: MGD | AK125: FALSE | AL125: =AND(C125:F125=inp_used_minimal) -> FALSE | AM125: =AND(A125=inp_used_usersel,C125:Q125=inp_used_nonvessel1,U125:AI125=inp_used_nonvessel2,inp_used_autosize=inp_autosize) -> FALSE | AN125: =AND(A125=inp_used_usersel,C125:AI125=inp_used) -> FALSE
A126: 15 | B126: 6 | C126: 7.365 | D126: MGD | E126: 3.2 | F126: MGD | AK126: FALSE | AL126: =AND(C126:F126=inp_used_minimal) -> FALSE | AM126: =AND(A126=inp_used_usersel,C126:Q126=inp_used_nonvessel1,U126:AI126=inp_used_nonvessel2,inp_used_autosize=inp_autosize) -> FALSE | AN126: =AND(A126=inp_used_usersel,C126:AI126=inp_used) -> FALSE
A127: 15 | B127: 7 | C127: 22.614 | D127: MGD | E127: 11.066 | F127: MGD | AK127: FALSE | AL127: =AND(C127:F127=inp_used_minimal) -> FALSE | AM127: =AND(A127=inp_used_usersel,C127:Q127=inp_used_nonvessel1,U127:AI127=inp_used_nonvessel2,inp_used_autosize=inp_autosize) -> FALSE | AN127: =AND(A127=inp_used_usersel,C127:AI127=inp_used) -> FALSE
A128: 15 | B128: 8 | C128: 75.072 | D128: MGD | E128: 37.536 | F128: MGD | AK128: FALSE | AL128: =AND(C128:F128=inp_used_minimal) -> FALSE | AM128: =AND(A128=inp_used_usersel,C128:Q128=inp_used_nonvessel1,U128:AI128=inp_used_nonvessel2,inp_used_autosize=inp_autosize) -> FALSE | AN128: =AND(A128=inp_used_usersel,C128:AI128=inp_used) -> FALSE
A129: 16 | B129: 1 | C129: 0.03 | D129: MGD | E129: 0.007 | F129: MGD | AK129: FALSE | AL129: =AND(C129:F129=inp_used_minimal) -> TRUE | AM129: =AND(A129=inp_used_usersel,C129:Q129=inp_used_nonvessel1,U129:AI129=inp_used_nonvessel2,inp_used_autosize=inp_autosize) -> FALSE | AN129: =AND(A129=inp_used_usersel,C129:AI129=inp_used) -> FALSE
A130: 16 | B130: 2 | C130: 0.124 | D130: MGD | E130: 0.035 | F130: MGD | AK130: FALSE | AL130: =AND(C130:F130=inp_used_minimal) -> FALSE | AM130: =AND(A130=inp_used_usersel,C130:Q130=inp_used_nonvessel1,U130:AI130=inp_used_nonvessel2,inp_used_autosize=inp_autosize) -> FALSE | AN130: =AND(A130=inp_used_usersel,C130:AI130=inp_used) -> FALSE
A131: 16 | B131: 3 | C131: 0.305 | D131: MGD | E131: 0.094 | F131: MGD | AK131: FALSE | AL131: =AND(C131:F131=inp_used_minimal) -> FALSE | AM131: =AND(A131=inp_used_usersel,C131:Q131=inp_used_nonvessel1,U131:AI131=inp_used_nonvessel2,inp_used_autosize=inp_autosize) -> FALSE | AN131: =AND(A131=inp_used_usersel,C131:AI131=inp_used) -> FALSE
A132: 16 | B132: 4 | C132: 0.74 | D132: MGD | E132: 0.251 | F132: MGD | AK132: FALSE | AL132: =AND(C132:F132=inp_used_minimal) -> FALSE | AM132: =AND(A132=inp_used_usersel,C132:Q132=inp_used_nonvessel1,U132:AI132=inp_used_nonvessel2,inp_used_autosize=inp_autosize) -> FALSE | AN132: =AND(A132=inp_used_usersel,C132:AI132=inp_used) -> FALSE
A133: 16 | B133: 5 | C133: 2.152 | D133: MGD | E133: 0.819 | F133: MGD | AK133: FALSE | AL133: =AND(C133:F133=inp_used_minimal) -> FALSE | AM133: =AND(A133=inp_used_usersel,C133:Q133=inp_used_nonvessel1,U133:AI133=inp_used_nonvessel2,inp_used_autosize=inp_autosize) -> FALSE | AN133: =AND(A133=inp_used_usersel,C133:AI133=inp_used) -> FALSE
A134: 16 | B134: 6 | C134: 7.365 | D134: MGD | E134: 3.2 | F134: MGD | AK134: FALSE | AL134: =AND(C134:F134=inp_used_minimal) -> FALSE | AM134: =AND(A134=inp_used_usersel,C134:Q134=inp_used_nonvessel1,U134:AI134=inp_used_nonvessel2,inp_used_autosize=inp_autosize) -> FALSE | AN134: =AND(A134=inp_used_usersel,C134:AI134=inp_used) -> FALSE
A135: 16 | B135: 7 | C135: 22.614 | D135: MGD | E135: 11.066 | F135: MGD | AK135: FALSE | AL135: =AND(C135:F135=inp_used_minimal) -> FALSE | AM135: =AND(A135=inp_used_usersel,C135:Q135=inp_used_nonvessel1,U135:AI135=inp_used_nonvessel2,inp_used_autosize=inp_autosize) -> FALSE | AN135: =AND(A135=inp_used_usersel,C135:AI135=inp_used) -> FALSE
A136: 16 | B136: 8 | C136: 75.072 | D136: MGD | E136: 37.536 | F136: MGD | AK136: FALSE | AL136: =AND(C136:F136=inp_used_minimal) -> FALSE | AM136: =AND(A136=inp_used_usersel,C136:Q136=inp_used_nonvessel1,U136:AI136=inp_used_nonvessel2,inp_used_autosize=inp_autosize) -> FALSE | AN136: =AND(A136=inp_used_usersel,C136:AI136=inp_used) -> FALSE
A138: =IF(LEN(contam)=0,"",contam) -> 3 | C138: =IF(LEN(design_flow_I)=0,"",design_flow_I) -> 0.03 | D138: =IF(LEN(df_units)=0,"",df_units) -> MGD | E138: =IF(LEN(average_flow_I)=0,"",average_flow_I) -> 0.007 | F138: =IF(LEN(af_units)=0,"",af_units) -> MGD | G138: =IF(LEN(influent_conc_I)=0,"",influent_conc_I) -> 5 | H138: =IF(LEN(Units_rem_I)=0,"",Units_rem_I) -> treated water concentration | I138: =IF(LEN(P_REM_I)=0,"",P_REM_I) -> 0.5 | J138: =IF(LEN(pH_i)=0,"",pH_i) ->  | K138: =IF(LEN(pH_f)=0,"",pH_f) ->  | L138: =IF(LEN(alk_I)=0,"",alk_I) ->  | M138: =IF(LEN(T_I)=0,"",T_I) -> 283 | N138: =IF(LEN(T_units)=0,"",T_units) -> degrees Kelvin | O138: =IF(LEN(pilot_k)=0,"",pilot_k) -> 0.17 | P138: =IF(LEN(pilot_phi)=0,"",pilot_phi) -> 2.54 | Q138: =IF(LEN(design_type_I)=0,"",design_type_I) -> pre-engineered package | R138: =IF(LEN(use_autosize)=0,"",use_autosize) -> yes | S138: =IF(LEN(num_op_tanks)=0,"",num_op_tanks) -> 1 | T138: =IF(LEN(air_water_ratio)=0,"",air_water_ratio) -> 40 | U138: =IF(LEN(max_h2odepth)=0,"",max_h2odepth) -> 3 | V138: =IF(LEN(stages)=0,"",stages) -> 8 | W138: =IF(LEN(max_VOC_release)=0,"",max_VOC_release) -> 1 | X138: =IF(LEN(Offgas_Tech_I)=0,"",Offgas_Tech_I) -> none | Y138: =IF(LEN(og_opt1_I)=0,"",og_opt1_I) ->  | Z138: =IF(LEN(og_opt2_I)=0,"",og_opt2_I) ->  | AA138: =IF(LEN(og_opt3)=0,"",og_opt3) ->  | AB138: =IF(LEN(num_pumps_I)=0,"",num_pumps_I) ->  | AC138: =IF(LEN(num_blowers_I)=0,"",num_blowers_I) ->  | AD138: =IF(LEN(NRD_I)=0,"",NRD_I) ->  | AE138: =IF(LEN(component_level_I)=0,"",component_level_I) ->  | AF138: =IF(LEN(manual_I)=0,"",manual_I) -> fully automated | AG138: =IF(LEN(include_buildings_I)=0,"",include_buildings_I) ->  | AH138: =IF(LEN(include_HVAC_I)=0,"",include_HVAC_I) ->  | AI138: =IF(LEN(include_land_I)=0,"",include_land_I) ->  | AJ138: <--current inputs
C139: 0.03 | D139: MGD | E139: 0.007 | F139: MGD | G139: 5 | H139: treated water concentration | I139: 0.5 | M139: 283 | N139: degrees Kelvin | O139: 0.17 | P139: 2.54 | Q139: pre-engineered package | R139: yes | S139: 1 | T139: 40 | U139: 3 | V139: 8 | W139: 1 | X139: none | AF139: fully automated | AJ139: <--inputs used at last "Generate Results" | AK139: =AND(C139:AI139=inp_used) -> TRUE
S141: inp_autosize
S142: 1 | T142: 40

Sheet Cost Equations
A1: Cost Equations
A2: This sheet is used internally to calculate component costs using the cost equations method; see model documentation for more details on the development of cost equations
A4: Component | C4: Result | D4: Variable | F4: 2 | G4: 3 | H4: 4 | I4: 5 | J4: 6 | K4: 7 | L4: 8 | M4: 9 | N4: 10 | O4: 11 | P4: 16 | Q4: 17
A5: Aeration Basins
A6: Custom Designed
A7: Concrete, excavation and backfill, cover | B7: no equation
A8: Baffles | B8: baffle_eq | C8: =IF(OR(D8>P8,D8<Q8),"contact vendor",F8*D8^G8+H8*LN(D8)+I8+J8*EXP(K8*D8)+L8*D8^3+M8*D8^2+N8*D8+O8) -> 134.2407901 | D8: =baffle_area -> 12.5 | E8: baffle_eq | F8: =VLOOKUP($E8,eq_table_cl,F$4,FALSE) -> 0 | G8: 0 | H8: 0 | I8: 0 | J8: 0 | K8: 0 | L8: 0 | M8: 0 | N8: 10.73926321 | O8: 0 | P8: 10000.1 | Q8: 0
A9: Pre-engineered package
A10: Stainless Steel | B10: ss_tank_eq | C10: =IF(D10=0,0,IF(OR(D10>P10,D10<Q10),"contact vendor",F10*D10^G10+H10*LN(D10)+I10+J10*EXP(K10*D10)+L10*D10^3+M10*D10^2+N10*D10+O10)) -> 42707.56913 | D10: =tank_sf -> 222.5 | E10: ss_basin_eq | F10: =VLOOKUP($E10,eq_table_cl,F$4,FALSE) -> 0 | G10: 0 | H10: 0 | I10: 0 | J10: 0 | K10: 0 | L10: 0 | M10: 0 | N10: 98.21734631 | O10: 20854.20958 | P10: 1200 | Q10: 0
A11: Plastic | B11: pl_tank_eq | C11: =IF(D11=0,0,IF(OR(D11>P11,D11<Q11),"contact vendor",F11*D11^G11+H11*LN(D11)+I11+J11*EXP(K11*D11)+L11*D11^3+M11*D11^2+N11*D11+O11)) -> 36616.81442 | D11: =tank_sf -> 222.5 | E11: pl_basin_eq | F11: 0 | G11: 0 | H11: 0 | I11: 0 | J11: 0 | K11: 0 | L11: 0 | M11: 0.454071364 | N11: 49.39475696 | O11: 3147.110528 | P11: 239 | Q11: 0
A12: Fiberglass | B12: fg_tank_eq | C12: 21753.7535 | D12: =tank_sf -> 222.5 | E12: fg_basin_eq | F12: 181.4118875 | G12: 0.885631099 | H12: 0 | I12: 0 | J12: 0 | K12: 0 | L12: 0 | M12: 0 | N12: 0 | O12: 0 | P12: 1200 | Q12: 0
A13: Aerators
A14: Diffusers | B14: diffuser_eq | C14: =IF(D14=0,0,IF(OR(D14>P14,D14<Q14),"contact vendor",F14*D14^G14+H14*LN(D14)+I14+J14*EXP(K14*D14)+L14*D14^3+M14*D14^2+N14*D14+O14)) -> 63.51862585 | D14: =diffuser_size -> 13.92602496 | E14: diffuser_eq | F14: =VLOOKUP($E14,eq_table_cl,F$4,FALSE) -> 0 | G14: 0 | H14: 0 | I14: 0 | J14: 0 | K14: 0 | L14: 0 | M14: -0.023124966 | N14: 2.297075523 | O14: 36.01421591 | P14: 44.1 | Q14: 0
A15: Pumps and Blowers
A16: Booster Pumps | B16: pump_eq | C16: =IF(D16=0,0,IF(OR(D16>P16,D16<Q16),"contact vendor",F16*D16^G16+H16*LN(D16)+I16+J16*EXP(K16*D16)+L16*D16^3+M16*D16^2+N16*D16+O16)) -> 4499.149573 | D16: =pump_rating -> 13.02083333 | E16: dis75_pump_eq | F16: =VLOOKUP($E16,eq_table_cl,F$4,FALSE) -> 0 | G16: 0 | H16: 0 | I16: 0 | J16: 0 | K16: 0 | L16: 0 | M16: -0.000945834 | N16: 21.70765363 | O16: 4216.658192 | P16: 10001 | Q16: 0
A17: Blowers
A18: Centrifugal Blowers | B18: cent_blow_eq | C18: 16502.21246 | D18: =blower_rating -> 139.2602496 | E18: cent_blow_eq | F18: =VLOOKUP($E18,eq_table_cl,F$4,FALSE) -> 0 | G18: 0 | H18: 0 | I18: 0 | J18: 0 | K18: 0 | L18: 0 | M18: 0.001818499 | N18: 21.82658374 | O18: 13427.37005 | P18: 5001 | Q18: 0
